{"text_format":"1","workbook":"xlsx","n_sheets":16,"sheets":["本ツールについて","A 最初に入力してください　基本情報","B 仕様入力シート　１２３４地域","窓のプルダウン_非表示","B 仕様入力シート　５６７地域","B 仕様入力シート　８地域","非表示_出力帳票へのリンク","C 仕様表（仕様基準）","プルダウン項目_非表示","ドアのプルダウン_非表示","断熱材_非表示","仕様基準-省エネ基準_非表示","設備メモ_非表示","登録値_断熱材λ値","登録値_窓、ドアのU値､ηd値","改定後_地域区分_非表示"],"not_rendered":{"charts":0,"images":17,"macros":1,"external_links":2,"defined_names":122,"comments":0,"pivot_tables":0},"unopened":[],"bounds":{"document_bytes":16777216,"sheet_cells":100000,"rows_first":2000,"rows_last":500,"rows_between":2000,"halvings":0,"cell_chars":16384,"cell_head_chars":4096},"cells_cut":0,"cells_raw":0,"read":"whole","date_system":"1900"}

{"sheet":"本ツールについて","index":0,"n_rows":31,"n_cols":26,"rows_kept":31,"cut":false,"hidden":false,"merged":[[0,25,0,27],[8,0,8,7]]}
["仕様基準に基づく仕様表作成ツール　【木造戸建て住宅用】",null,null,null,null,null,null,null,null,null,null,null,null,null,null,null,null,null,null,null,null,null,null,null,null,"Ver. 1.0"]
[]
[" ◇　本ツールは、住宅の省エネルギー基準の仕様基準に基づき、　「断熱構造とする部位＊1の断熱仕様・性能値」　、及び　「設備機器の仕様」　を入力したのち、一つの仕様表として出力(印刷)します。"]
["　　　*1：断熱構造とする部位とは、外気と室内を熱的に区分し、断熱及び日射遮蔽の措置を講じた構造を断熱構造といい、屋根、天井、壁、床、開口部などの部位を指します（右図参照）。"]
[" ◇　木造戸建て住宅を対象としています。S造戸建て住宅、RC造戸建て住宅は対象外です。"]
[" ◇　シート　「C 仕様表 （仕様基準）」　は、設計図書の一部として確認検査機関等への申請時に使用することができます。"]
[" ◇　【国土交通省 改正建築物省エネ法オンライン講座】　の資料ライブラリーにて公開している下記資料を併せてご覧ください。　"]
["　 　「木造戸建住宅の仕様基準ガイドブック［省エネ基準編］」　、　「【建築物省エネ法】設計・監理資料集（住宅版）」"]
["　　　https://www.mlit.go.jp/jutakukentiku/house/04.html"]
[" ◇　性能値の調べ方を［参考情報 性能等の調べ方（別ファイル）］のページにて紹介しています。　記載の性能値は、　「断熱材の熱抵抗Ｒ」　、　「開口部の熱貫流率Ｕ」　、　「窓の日射熱取得率η」　、　「設備機器の効率等」　です。"]
[" ※　本ツールは令和６年度補助事業のもと、（一社）日本サステナブル建築協会が作成（監修 国土交通省）しました。"]
[" ※　（一社）日本サステナブル建築協会は、本ツールに関し何らの保証責任および賠償責任を負うものではありません。本ツールに関するお問い合わせは、省エネサポートセンター　「0120-882-177」　までお願いいたします。"]
[]
[]
["本ツールの機能、操作について"]
["　◎　入力するシートは、　「A 最初に入力してください　基本情報」　と　「B 仕様入力シート」　です。入力内容が自動的に　「C 仕様表（仕様基準）」　に反映されます。"]
["　◎　作成環境とExcelのバージョンが異なる場合、動作環境によって一部の機能が失われる等、正常に実行されなくなる可能性があることをあらかじめご了承ください。"]
["　◎　当該ファイルには関数やマクロが含まれていますので、不具合が生じる場合があることをあらかじめご了承ください。"]
["　◎　メッセージ バーで　[セキュリティの警告　マクロが無効にされました。]　が表示された場合、　[コンテンツの有効化] 　をクリックしてください。"]
[null,"　①　下記にセルの説明を記載します。"]
[null,null,null,"：入力ができます。",null,null,"白色","：自動で表示されます。入力は出来ません。",null,null,null,null,null,"：入力は不要です。入力しても内容は反映されません。"]
[null,null,"☐　","：クリックして該当箇所にチェック ✓ してください。"]
[null,"　②　はじめに、　「A 最初に入力してください　基本情報」　シートに入力してください。"]
[null,"　③　つぎに、　　仕様入力シートに移動　▶　　の図をクリックして該当する地域の　「B 仕様入力シート」　に入力してください。"]
[null,"　④　「C 仕様表（仕様基準）」　シートは、入力出来ません。申請時の資料としてそのまま使用できます。適否確認の結果は表示されないため、　「B 仕様入力シート」　　からご確認ください。"]
["　◎　「B 仕様入力シート」　の入力は、　１ 断熱材の熱抵抗Ｒ、　２ 窓の熱貫流率Uと日射遮蔽対策(【１ ２ ３ ４地域】は基準なし)、　 ２ ドアの熱貫流率Ｕ、　３設備機器の仕様　を全て入力してください。"]
["　◎　「B 仕様入力シート」　断熱材の種類　と　開口部、　ドア　のプルダウンによる選択肢は　「登録値_断熱材λ値」　シート、「登録値_窓、ドアのU値､ηd値」　シートにあります。"]
["　◎　仕様の性能値の調べ方等は、　「参考情報 性能等の調べ方（別ファイル）」　シートの　参考情報　性能値 （ 熱抵抗R、熱貫流率U、エアコンの効率区分など ） の調べ方　を参考にしてください。"]
["　◎　すべての部位、設備の仕様が適合の場合は、シートごとの入力に対して上部にある　［省エネ基準適否］　欄に自動で　「適合」　または　「不適合」　が表示されます。"]
["　◎　印刷は上部にある　［印刷］　ボタンをクリックするか、　「Ctrl+P」　を入力してください。印刷プレビューが表示され、印刷内容の確認ができます。"]
["　◎　Windowsで作成、テストを実施しました。Macやタブレットでのお問合せには誠に申し訳ございませんが対応いたしかねます。"]

{"sheet":"A 最初に入力してください　基本情報","index":1,"n_rows":22,"n_cols":35,"rows_kept":22,"cut":false,"hidden":false,"merged":[[4,2,4,4],[20,4,21,16],[8,2,8,16],[6,2,6,16],[20,0,21,1],[20,2,21,2],[15,2,15,3],[18,2,18,16],[12,2,12,16],[10,2,10,16]]}
["基 本 情 報"]
[]
[]
[null,null,"申請する建築士名：",null,null,null,"記入日（西暦）："]
[null,null,null,null,null,null,null,"年",null,"月",null,"日"]
[]
[null,"会社名："]
[]
[null,"事務所登録："]
[]
[null,"建築士番号："]
[]
[null,"物件名："]
[]
[null,null,"都道府県："]
[null,"建設地："]
[]
[null,null,"市町村："]
[null,null,null,null,null,null,null,null,null,null,null,null,null,null,null,null,null,null,null,null,null,null,null,null,null,null,null,null,null,null,null,null,null,null,{"$f":"C16&C19","v":""}]
[]
["地域の区分",null,{"$f":"IFERROR(VLOOKUP(AI19,地域区分検索,2,FALSE),\"\")","v":""},null,{"$f":"IF(OR(C16=\"\",C19=\"\"),\"\",IF(C21=\"\",\"エラー‼　建設地の　「都道府県」　と　「市町村」　を正しく選択してください\",\"\"))","v":""},null,null,null,null,null,null,null,null,null,null,null,null,null,null,null,null,null,null,null,null,null,null,null,null,null,null,null,null,null,{"$f":"IF(OR(C21=1,C21=2,C21=3,C21=4),\"B 仕様入力シート　１２３４地域\",IF(OR(C21=5,C21=6,C21=7),\"B 仕様入力シート　５６７地域\",IF(C21=8,\"B 仕様入力シート　８地域\",\"最初に入力してください　基本情報\")))","v":"最初に入力してください　基本情報"}]
[null,null,null,"地域"]

{"sheet":"B 仕様入力シート　１２３４地域","index":2,"n_rows":83,"n_cols":53,"rows_kept":83,"cut":false,"hidden":false,"merged":[[60,3,60,13],[68,3,68,13],[73,3,73,13],[79,3,79,13],[80,1,82,1],[82,3,82,13],[36,10,36,13],[37,3,37,4],[37,5,37,6],[37,7,37,8],[37,10,37,13],[34,3,34,4],[34,5,34,6],[34,7,34,8],[34,10,34,13],[34,14,34,15],[28,10,28,13],[25,10,25,13],[33,3,33,4],[33,5,33,6],[33,7,33,8],[33,10,33,13],[32,3,32,4],[32,5,32,6],[32,7,32,8],[32,10,32,13],[28,3,28,4],[28,5,28,6],[28,7,28,8],[24,3,24,4],[24,5,24,6],[24,7,24,8],[25,3,25,4],[25,5,25,6],[25,7,25,8],[17,5,17,6],[17,11,17,14],[18,5,18,6],[18,11,18,14],[23,6,23,7],[23,8,23,9],[23,10,23,11],[14,5,14,6],[14,11,14,14],[15,5,15,6],[15,11,15,14],[16,5,16,6],[16,11,16,14],[35,10,35,13],[0,1,2,6],[9,1,10,1],[9,4,10,4],[9,5,10,6],[9,7,10,7],[0,7,2,7],[13,5,13,6],[13,11,13,14],[7,5,7,6],[8,5,8,6],[8,11,8,14],[9,11,9,14],[10,11,10,14],[12,5,12,6],[12,11,12,14],[25,14,25,15],[26,10,26,13],[27,10,27,13],[9,17,10,17],[0,8,2,8],[0,10,2,13],[0,14,0,15],[1,9,2,9],[1,14,2,15],[9,8,10,8],[11,11,11,14],[8,15,9,16],[24,10,24,13]]}
[null,"１ ・ ２ ・ ３ ・ ４ 地域　仕様入力シート",null,null,null,null,null,"地域の区分",{"$f":"IF('A 最初に入力してください　基本情報'!C21=\"\",\"\",'A 最初に入力してください　基本情報'!C21)","v":""},null,{"$f":"IF(OR('A 最初に入力してください　基本情報'!C16=\"\",'A 最初に入力してください　基本情報'!C19=\"\"),\"\",IF(OR(I1=1,I1=2,I1=3,I1=4),\"\",\"←入力するシートが違います!!\"))","v":""},null,null,null,"省エネ基準適否",null,null,null,null,null,null,null,null,null,null,"非表示","非表示","非表示","非表示","非表示","非表示","非表示","非表示","非表示","非表示","非表示","非表示","非表示","非表示","非表示","非表示","非表示","非表示","非表示","非表示","非表示","非表示","非表示","非表示","非表示","非表示","非表示","非表示"]
[null,null,null,null,null,null,null,null,null,"地域",null,null,null,null,{"$f":"IF(OR(I1=1,I1=2,I1=3,I1=4),IF((SUM(AP13:AP19)+SUM(AP29:AP29)+AP38+AP42)>0,\"不適\",\"適合\"),\"\")","v":""}]
[]
[]
[]
[]
[]
[null,null,null,null,null,null,null,"自動で表示",null,"自動で表示",null,null,null,null,null,"自動で表示","自動で表示","自動で表示"]
[null,null,"①","②","③","④",null,"⑤","⑥","⑦","⑧","⑨",null,null,null,"熱抵抗",null,null,null,null,null,null,null,null,null,null,null,null,null,null,null,null,null,null,null,null,null,null,null,null,null,null,null,null,"出力帳票"]
[null,"部位","断熱部位の","熱抵抗R","断熱工法","断熱材の種類",null,"熱伝導率","厚さ","計算結果出力","直接入力","備考",null,null,null,null,null,"適否確認",null,null,null,null,null,null,null,null,null,null,null,null,null,null,null,null,null,null,null,null,null,null,null,null,null,null,1,2,3,4,5,6]
[null,null,"該当チェック","入力方法",null,null,null,null,null,"熱抵抗 ","熱抵抗","② 熱抵抗R入力方法　　「直接入力」　の場合",null,null,null,"設計値","基準値",null,null,null,null,null,null,null,null,null,null,null,"直接入力",null,null,"内断熱","外断熱または両面断熱",null,null,null,null,"適否確認"]
[null,null,null,null,null,null,null,"λ［W（/ m・K）］","［mm］","R［㎡・K / W］","R［㎡・K / W］","断熱材の種類、熱伝導率λ、厚さ、参考資料等を記入",null,null,null,"R［㎡・K / W］","R［㎡・K / W］",null,null,null,null,null,null,null,null,null,null,null,"R切り捨て",null,null,"軸組充填","枠組充填","外張","記号","基準値",null,"直接入力","プルダウン",null,null,"省エネ基準適否",null,null,"断熱工法","断熱材の種類","断熱材の厚さ","熱抵抗：設計値","熱抵抗：基準値","備考"]
[null,"屋根",null,null,null,null,null,{"$f":"IF(F13=\"\",\"\",VLOOKUP(F13,断熱材_非表示!$G$6:$H$87,2,FALSE))","v":""},null,{"$f":"IF(OR(F13=\"\",I13=\"\"),\"\",ROUNDDOWN((I13/1000/H13),1))","v":""},null,null,null,null,null,{"$f":"IF(D13=\"\",\"\",IF(D13=\"直接入力\",AC13,J13))","v":""},{"$f":"IFERROR(IF(D13=\"直接入力\",IF(K13=\"\",\"\",AI13&\" \"&FIXED(AJ13,1)),IF(J13=\"\",\"\",AI13&\" \"&FIXED(AJ13,1))),\"エラー\")","v":""},{"$f":"IF(C13=\"該当部位なし\",\"該当部位なし\",IF(D13=\"\",\"\",IF(OR($I$1=5,$I$1=6,$I$1=7,$I$1=8),\"地域に対し入力するシートが違います\",IF(D13=\"直接入力\",AL13,IF(D13=\"断熱材の種類から入力\",AM13,\"\")))))","v":""},null,null,null,null,null,null,null,null,null,null,{"$f":"IF(K13=\"\",\"\",ROUNDDOWN(K13,1))","v":""},null,2,{"$f":"VLOOKUP($I$1,'仕様基準-省エネ基準_非表示'!$B$6:$J$9,$AE13,FALSE)","v":{"$error":"#N/A"}},{"$f":"VLOOKUP($I$1,'仕様基準-省エネ基準_非表示'!$B$18:$J$21,$AE13,FALSE)","v":{"$error":"#N/A"}},{"$f":"VLOOKUP($I$1,'仕様基準-省エネ基準_非表示'!$B$30:$J$33,$AE13,FALSE)","v":{"$error":"#N/A"}},"≧",{"$f":"IF(E13=$AF$12,AF13,IF(E13=$AG$12,AG13,IF(E13=$AH$12,AH13,\"未入力\")))","v":"未入力"},null,{"$f":"IF(K13=\"\",\"\",IF(K13>=AJ13,\"適合\",\"不適\"))","v":""},{"$f":"IF(J13=\"\",\"\",IF(J13>=AJ13,\"適合\",\"不適\"))","v":""},null,null,{"$f":"IF(C13=\"断熱部位\",IF(R13=\"適合\",0,1),0)","v":0},null,null,{"$f":"IF(C13=\"該当部位なし\",\"－\",IF(E13=\"\",\"\",E13))","v":""},{"$f":"IF(C13=\"該当部位なし\",\"－\",IF(D13=\"直接入力\",\"－\",IF(F13=\"\",\"\",F13)))","v":""},{"$f":"IF(C13=\"該当部位なし\",\"－\",IF(D13=\"直接入力\",\"－\",IF(I13=\"\",\"\",I13)))","v":""},{"$f":"IF(C13=\"該当部位なし\",\"－\",IF(OR(P13=\"\",P13=0),\"\",P13))","v":""},{"$f":"IF(C13=\"該当部位なし\",\"－\",IF(AJ13=\"未入力\",\"\",AJ13))","v":""},{"$f":"IF(C13=\"\",\"\",IF(C13=\"該当部位なし\",\"該当部位なし\",IF(L13=\"\",\"－\",L13)))","v":""}]
[null,"天井",null,null,null,null,null,{"$f":"IF(F14=\"\",\"\",VLOOKUP(F14,断熱材_非表示!$G$6:$H$87,2,FALSE))","v":""},null,{"$f":"IF(OR(F14=\"\",I14=\"\"),\"\",ROUNDDOWN((I14/1000/H14),1))","v":""},null,null,null,null,null,{"$f":"IF(D14=\"\",\"\",IF(D14=\"直接入力\",AC14,J14))","v":""},"","",null,null,null,null,null,null,null,null,null,null,{"$f":"IF(K14=\"\",\"\",ROUNDDOWN(K14,1))","v":""},null,3,{"$f":"VLOOKUP($I$1,'仕様基準-省エネ基準_非表示'!$B$6:$J$9,$AE14,FALSE)","v":{"$error":"#N/A"}},{"$f":"VLOOKUP($I$1,'仕様基準-省エネ基準_非表示'!$B$18:$J$21,$AE14,FALSE)","v":{"$error":"#N/A"}},{"$f":"VLOOKUP($I$1,'仕様基準-省エネ基準_非表示'!$B$30:$J$33,$AE14,FALSE)","v":{"$error":"#N/A"}},"≧",{"$f":"IF(E14=$AF$12,AF14,IF(E14=$AG$12,AG14,IF(E14=$AH$12,AH14,\"未入力\")))","v":"未入力"},null,{"$f":"IF(K14=\"\",\"\",IF(K14>=AJ14,\"適合\",\"不適\"))","v":""},{"$f":"IF(J14=\"\",\"\",IF(J14>=AJ14,\"適合\",\"不適\"))","v":""},null,null,{"$f":"IF(C14=\"断熱部位\",IF(R14=\"適合\",0,1),0)","v":0},null,null,{"$f":"IF(C14=\"該当部位なし\",\"－\",IF(E14=\"\",\"\",E14))","v":""},{"$f":"IF(C14=\"該当部位なし\",\"－\",IF(D14=\"直接入力\",\"－\",IF(F14=\"\",\"\",F14)))","v":""},{"$f":"IF(C14=\"該当部位なし\",\"－\",IF(D14=\"直接入力\",\"－\",IF(I14=\"\",\"\",I14)))","v":""},{"$f":"IF(C14=\"該当部位なし\",\"－\",IF(OR(P14=\"\",P14=0),\"\",P14))","v":""},{"$f":"IF(C14=\"該当部位なし\",\"－\",IF(AJ14=\"未入力\",\"\",AJ14))","v":""},{"$f":"IF(C14=\"\",\"\",IF(C14=\"該当部位なし\",\"該当部位なし\",IF(L14=\"\",\"－\",L14)))","v":""}]
[null,"壁",null,null,null,null,null,{"$f":"IF(F15=\"\",\"\",VLOOKUP(F15,断熱材_非表示!$G$6:$H$87,2,FALSE))","v":""},null,"",null,null,null,null,null,"","","",null,null,null,null,null,null,null,null,null,null,"",null,4,{"$f":"VLOOKUP($I$1,'仕様基準-省エネ基準_非表示'!$B$6:$J$9,$AE15,FALSE)","v":{"$error":"#N/A"}},{"$f":"VLOOKUP($I$1,'仕様基準-省エネ基準_非表示'!$B$18:$J$21,$AE15,FALSE)","v":{"$error":"#N/A"}},{"$f":"VLOOKUP($I$1,'仕様基準-省エネ基準_非表示'!$B$30:$J$33,$AE15,FALSE)","v":{"$error":"#N/A"}},"≧","未入力",null,"","",null,null,{"$f":"IF(R15=\"適合\",0,1)","v":1},null,null,"","","","","",{"$f":"IF(D15=\"\",\"\",IF(L15=\"\",\"－\",L15))","v":""}]
[null,"床\n外気に接する部分※1",null,null,null,null,null,{"$f":"IF(F16=\"\",\"\",VLOOKUP(F16,断熱材_非表示!$G$6:$H$87,2,FALSE))","v":""},null,"",null,null,null,null,null,"","","",null,null,null,null,null,null,null,null,null,null,"",null,5,{"$f":"VLOOKUP($I$1,'仕様基準-省エネ基準_非表示'!$B$6:$J$9,$AE16,FALSE)","v":{"$error":"#N/A"}},{"$f":"VLOOKUP($I$1,'仕様基準-省エネ基準_非表示'!$B$18:$J$21,$AE16,FALSE)","v":{"$error":"#N/A"}},{"$f":"VLOOKUP($I$1,'仕様基準-省エネ基準_非表示'!$B$30:$J$33,$AE16,FALSE)","v":{"$error":"#N/A"}},"≧","未入力",null,"","",null,null,{"$f":"IF(C16=\"断熱部位\",IF(R16=\"適合\",0,1),0)","v":0},null,null,"","","","","",{"$f":"IF(C16=\"\",\"\",IF(C16=\"該当部位なし\",\"該当部位なし\",IF(L16=\"\",\"－\",L16)))","v":""}]
[null,"床\nその他の部分",null,null,null,null,null,{"$f":"IF(F17=\"\",\"\",VLOOKUP(F17,断熱材_非表示!$G$6:$H$87,2,FALSE))","v":""},null,"",null,null,null,null,null,"","","",null,null,null,null,null,null,null,null,null,null,"",null,6,{"$f":"VLOOKUP($I$1,'仕様基準-省エネ基準_非表示'!$B$6:$J$9,$AE17,FALSE)","v":{"$error":"#N/A"}},{"$f":"VLOOKUP($I$1,'仕様基準-省エネ基準_非表示'!$B$18:$J$21,$AE17,FALSE)","v":{"$error":"#N/A"}},{"$f":"VLOOKUP($I$1,'仕様基準-省エネ基準_非表示'!$B$30:$J$33,$AE17,FALSE)","v":{"$error":"#N/A"}},"≧",{"$f":"IF(E17=$AF$12,AF17,IF(E17=$AG$12,AG17,IF(E17=$AH$12,AH17,\"未入力\")))","v":"未入力"},null,"","",null,null,{"$f":"IF(C17=\"断熱部位\",IF(R17=\"適合\",0,1),0)","v":0},null,null,"","","","","",{"$f":"IF(C17=\"\",\"\",IF(C17=\"該当部位なし\",\"該当部位なし\",IF(L17=\"\",\"－\",L17)))","v":""}]
[null,"土間床等の外周部分の\n基礎壁\n（外気に接する部分）※2",null,null,{"$f":"IF(C18=\"断熱部位\",\"内断熱、外断熱または両側断熱\",\"\")","v":""},null,null,{"$f":"IF(F18=\"\",\"\",VLOOKUP(F18,断熱材_非表示!$G$6:$H$87,2,FALSE))","v":""},null,"",null,null,null,null,null,"","","",null,null,null,null,null,null,null,null,null,null,"",null,8,{"$f":"VLOOKUP($I$1,'仕様基準-省エネ基準_非表示'!$B$6:$J$9,$AE18,FALSE)","v":{"$error":"#N/A"}},null,null,"≧",{"$f":"AF18","v":{"$error":"#N/A"}},null,"","",null,null,{"$f":"IF(C18=\"断熱部位\",IF(R18=\"適合\",0,1),0)","v":0},null,null,null,"","","",{"$f":"IF(C18=\"該当部位なし\",\"－\",IF(D18=\"\",\"\",AJ18))","v":""},{"$f":"IF(C18=\"\",\"\",IF(C18=\"該当部位なし\",\"該当部位なし\",IF(L18=\"\",\"－\",L18)))","v":""}]
[null,"土間床等の外周部分の\n基礎壁\n（その他の部分）※2",null,null,{"$f":"IF(C19=\"断熱部位\",\"内断熱、外断熱または両側断熱\",\"\")","v":""},null,null,{"$f":"IF(F19=\"\",\"\",VLOOKUP(F19,断熱材_非表示!$G$6:$H$87,2,FALSE))","v":""},null,"",null,null,null,null,null,"","","",null,null,null,null,null,null,null,null,null,null,"",null,9,{"$f":"VLOOKUP($I$1,'仕様基準-省エネ基準_非表示'!$B$6:$J$9,$AE19,FALSE)","v":{"$error":"#N/A"}},null,null,"≧",{"$f":"AF19","v":{"$error":"#N/A"}},null,"","",null,null,{"$f":"IF(C19=\"断熱部位\",IF(R19=\"適合\",0,1),0)","v":0},null,null,"","","","",{"$f":"IF(C19=\"該当部位なし\",\"－\",IF(D19=\"\",\"\",AJ19))","v":""},{"$f":"IF(C19=\"\",\"\",IF(C19=\"該当部位なし\",\"該当部位なし\",IF(L19=\"\",\"－\",L19)))","v":""}]
[null,"※1　床の「外気に接する部分」のうち、住宅の床面積の合計に0.05を乗じた面積以下の部分については、床の「その他の部分」とみなすことができます。"]
[null,"※2　玄関、勝手口等の土間床部分については断熱を省略することができます。"]
[]
[]
[null,null,null,null,null,null,null,null,null,null,null,null,null,null,"自動で表示","自動で表示","自動で表示",null,null,null,null,null,null,null,null,null,null,null,null,null,null,null,null,null,null,null,null,null,null,null,null,null,null,null,"出力帳票"]
[null,null,"①","②",null,"③",null,"④",null,"⑤","⑥",null,null,null,null,null,null,null,null,null,null,null,null,null,null,null,null,null,null,null,null,null,null,null,null,null,null,null,null,"適否確認",null,null,null,null,"建具の仕様"," ガラスの仕様","中空層の仕様","日射取得\n/日射遮蔽","熱貫流率［W/(㎡･K)]",null,"日射熱取得率［－］",null,"備考"]
[null,"部位","窓の\n入力方法","建具の仕様",null," ガラスの仕様",null,"中空層の仕様",null,"直接入力\n熱貫流率","備考\n② 窓の入力方法　　「直接入力」　の場合",null,null,null,"熱貫流率",null,"適否確認",null,null,null,null,null,null,null,null,null,null,null,null,null,null,null,null,"基準値",null,"直接入力","プルダウン","直接入力","プルダウン","直接入力","プルダウン",null,null,null,null,null,null,null,"設計値","基準値","設計値","基準値"]
[null,null,null,null,null,null,null,null,null,null,"製品カタログやホームページ、自己適合宣言附属書の№を記入",null,null,null,"設計値","基準値",null,null,null,null,null,null,null,null,null,null,null,null,"直接入力",null,null,null,null,null,null,null,null,null,null,null,null,null,"出力帳票",null,1,2,3,4,5,6,7,8,9]
[null,null,null,null,null,null,null,null,null,"U［W/(㎡・K)］","注：『自己適合宣言書と同附属書』を添付すること",null,null,null,"U［W/(㎡・K)］","U［W/(㎡・K)］",null,null,null,null,null,null,null,null,null,null,null,null,"U四捨五入",null,null,null,null,"U","η","U","U","η","η",null,null,"省エネ基準適否","U"]
[null,"窓 ※3",null,null,null,null,null,null,null,null,null,null,null,null,{"$f":"IF(C29=\"直接入力\",IF(J29=\"\",\"\",AC29),IF(D29=\"\",\"\",IFERROR(VLOOKUP(AF29,窓のプルダウン_非表示!$Q$7:$R$61,2,FALSE),\"エラー！選択肢チェック参照\")))","v":""},{"$f":"IFERROR(IF(C29=\"直接入力\",IF(J29=\"\",\"\",\"≦\"&\" \"&AH29),IF(ISNUMBER(O29),\"≦\"&\" \"&AH29,\"\")),\"エラー\")","v":""},{"$f":"IF(C29=\"\",\"\",IF(OR($I$1=5,$I$1=6,$I$1=7,$I$1=8),\"地域に対し入力するシートが違います\",IF(C29=\"直接入力\",AJ29,IF(C29=\"建具とガラスの組み合わせから入力\",AK29,\"\"))))","v":""},null,null,null,null,null,null,null,null,null,null,null,{"$f":"IF(J29=\"\",\"\",ROUND(J29,1))","v":""},null,{"$f":"D29&\"_\"&F29","v":"_"},{"$f":"D29&\"_\"&F29&\"_\"&H29","v":"__"},{"$f":"F29","v":0},{"$f":"VLOOKUP($I$1,'仕様基準-省エネ基準_非表示'!$L$6:$O$9,3,FALSE)","v":{"$error":"#N/A"}},null,{"$f":"IF(J29=\"\",\"\",IF(AC29<=AH29,\"適合\",\"不適\"))","v":""},{"$f":"IF(P29=\"\",\"\",IF(O29<=AH29,\"適合\",\"不適\"))","v":""},null,null,null,null,{"$f":"IF(OR(Q29=\"適合\",Q29=\"該当窓なし\"),0,1)","v":1},{"$f":"IF(C29=\"\",\"\",IF(C29=\"直接入力\",J29,O29))","v":""},null,{"$f":"IF(C29=\"\",\"－\",IF(C29=\"直接入力\",\"－\",D29))","v":"－"},{"$f":"IF(C29=\"\",\"－\",IF(C29=\"直接入力\",\"－\",F29))","v":"－"},{"$f":"IF(C29=\"\",\"－\",IF(C29=\"直接入力\",\"－\",H29))","v":"－"},null,{"$f":"IF(C29=\"\",\"－\",O29)","v":"－"},{"$f":"IF(C29=\"\",\"－\",AH29)","v":"－"},null,null,{"$f":"IF(C29=\"\",\"－\",IF(K29=\"\",\"－\",K29))","v":"－"}]
[null,"※3　「熱貫流率」においては、開口部の面積（当該開口部が二以上の場合はその合計の面積）が住戸の床面積に0.02を乗じた数値以下となるものを除くことができます。"]
[]
[]
[null,null,null,null,null,null,null,null,null,null,null,null,null,null,"自動で表示","自動で表示","自動で表示"]
[null,null,"①","②",null,"③",null,"④",null,"⑤","⑥"]
[null,"部位","ドアの\n入力方法","枠の仕様",null,"戸の仕様",null," ガラスの仕様・中空層の仕様",null,"直接入力\n熱貫流率","備考\n② ドアの入力方法　　「直接入力」　の場合",null,null,null,"熱貫流率",null,"適否確認",null,null,null,null,null,null,null,null,null,null,null,null,null,null,null,null,null,"U",null,null,null,null,null,null,null,null,null,"枠の仕様","戸の仕様","ガラスの仕様・中空層の仕様","熱貫流率：設計値","熱貫流率：基準値","備考"]
[null,null,null,null,null,null,null,null,null,null,"製品カタログやホームページ、自己適合宣言附属書の№を記入",null,null,null,"設計値","基準値",null,null,null,null,null,null,null,null,null,null,null,null,"直接入力",null,null,null,null,null,null,null,null,null,null,null,null,null,"出力帳票",null,1,2,3,4,5,6]
[null,null,null,null,null,null,null,null,null,"U［W/(㎡・K)］","注：『自己適合宣言書と同附属書』を添付すること",null,null,null,"U［W/(㎡・K)］","U［W/(㎡・K)］",null,null,null,null,null,null,null,null,null,null,null,null,"U四捨五入",null,null,null,null,"基準値","直接入力","プルダウン",null,null,null,null,null,"省エネ基準適否","U"]
[null,"ドア",null,null,null,null,null,null,null,null,null,null,null,null,{"$f":"IF(C38=\"直接入力\",IF(J38=\"\",\"\",AC38),IF(D38=\"\",\"\",IFERROR(VLOOKUP(AF38,ドアのプルダウン_非表示!$I$4:$J$58,2,FALSE),\"エラー！選択肢チェック参照\")))","v":""},{"$f":"IFERROR(IF(C38=\"直接入力\",IF(J38=\"\",\"\",\"≦\"&\" \"&AH38),IF(ISNUMBER(O38),\"≦\"&\" \"&AH38,\"\")),\"エラー\")","v":""},{"$f":"IF(C38=\"\",\"\",IF(OR($I$1=5,$I$1=6,$I$1=7,$I$1=8),\"地域に対し入力するシートが違います\",IF(C38=\"直接入力\",AI38,IF(C38=\"枠と戸の組み合わせから入力\",AJ38,\"\"))))","v":""},null,null,null,null,null,null,null,null,null,null,null,{"$f":"IF(J38=\"\",\"\",ROUND(J38,1))","v":""},null,{"$f":"D38&\"_\"&F38","v":"_"},{"$f":"D38&\"_\"&F38&\"_\"&H38","v":"__"},null,{"$f":"VLOOKUP($I$1,'仕様基準-省エネ基準_非表示'!Q6:R9,2,FALSE)","v":{"$error":"#N/A"}},{"$f":"IF(J38=\"\",\"\",IF(AC38<=AH38,\"適合\",\"不適\"))","v":""},{"$f":"IF(P38=\"\",\"\",IF(O38<=AH38,\"適合\",\"不適\"))","v":""},null,null,null,null,null,{"$f":"IF(Q38=\"適合\",0,1)","v":1},{"$f":"IF(C38=\"\",\"\",IF(C38=\"直接入力\",J38,O38))","v":""},null,{"$f":"IF(C38=\"\",\"－\",IF(C38=\"直接入力\",\"－\",D38))","v":"－"},{"$f":"IF(C38=\"\",\"－\",IF(C38=\"直接入力\",\"－\",F38))","v":"－"},{"$f":"IF(C38=\"\",\"－\",IF(C38=\"直接入力\",\"－\",H38))","v":"－"},{"$f":"IF(C38=\"\",\"－\",O38)","v":"－"},{"$f":"IF(C38=\"\",\"－\",AH38)","v":"－"},{"$f":"IF(C38=\"\",\"－\",IF(K38=\"\",\"－\",K38))","v":"－"}]
[]
[]
[null,null,null,null,null,null,null,null,null,null,null,null,null,null,null,null,null,null,null,null,null,null,null,null,null,null,null,null,null,null,null,null,null,null,null,null,null,null,null,null,null,"省エネ基準適否"]
[null,null,null,"住戸全体を暖房　　",null,"ダクト式セントラル空調機で、ヒートポンプを熱源とするもの",null,null,null,null,null,null,null,null,null,null,null,null,null,null,null,null,null,null,null,null,null,null,null,null,false,null,null,null,"暖房",{"$f":"N(AE42)","v":0},null,null,"暖房方式",{"$f":"IFERROR(_xlfn.IFS(AJ42=1,\"住戸全体を暖房\",AJ43=1,D43,AJ60=1,D60),\"\")","v":""},{"$f":"IFERROR(_xlfn.IFS(AJ42=1,0,AJ43=1,IF(AND(AO45=0,AO47=0),0,1),AJ60=1,0),1)","v":1},{"$f":"AO42+AO62++AO70+AO75+AO81","v":5},null,null,"暖房設備","暖房方式",{"$f":"AN42","v":""}]
[null,null,null,"居室のみを暖房",null,null,null,null,null,null,null,null,null,null,null,null,null,null,null,null,null,null,null,null,null,null,null,null,null,null,false,null,null,null,null,{"$f":"N(AE43)","v":0},null,null,"設備仕様",{"$f":"IFERROR(_xlfn.IFS(AJ42=1,F42,AJ43=1,AO43&CHAR(10)&AP43,AJ60=1,\"－\"),\"\")","v":""},{"$f":"AQ43&AR43","v":"【主たる居室】"},{"$f":"AQ44&AR44","v":"【その他の居室】"},"【主たる居室】",{"$f":"IFERROR(_xlfn.IFS(AJ44=1,_xlfn.IFS(AJ46=1,AK46,AJ47=1,AK47,AJ48=1,AK48),AJ49=1,G49,AJ50=1,G50,AJ51=1,G51),\"\")","v":""},null,"設備仕様",{"$f":"AN43","v":""}]
[null,null,null,null,"【主たる居室】",null,"パネルラジエーターで以下のいずれかを熱源とし、かつ配管に断熱被覆があるもの",null,null,null,null,null,null,null,null,null,null,null,null,null,null,null,null,null,null,null,null,null,null,null,null,false,null,null,null,{"$f":"N(AF44)","v":0},null,null,null,null,null,null,"【その他の居室】",{"$f":"IFERROR(_xlfn.IFS(AJ52=1,_xlfn.IFS(AJ54=1,AK54,AJ55=1,AK55,AJ56=1,AK56),AJ57=1,G57,AJ58=1,G58,AJ59=1,G59),\"\")","v":""},null,"備考",{"$f":"IF(D61=\"\",IF(OR(AJ60=1,AND(AJ51=1,AJ59=1)),\"－\",\"\"),D61)","v":""}]
[null,null,null,null,null,null,"　①～③のいずれかを選択",null,null,null,null,null,null,null,null,null,null,null,null,null,null,null,null,null,null,null,null,null,null,null,null,null,null,null,null,null,null,null,null,"【主たる居室】",{"$f":"IFERROR(_xlfn.IFS(AJ44=1,IF(AO46=0,0,1),AJ49=1,0,AJ50=1,0,AJ51=1,0),1)","v":1},null,null,null,"冷房設備","冷房方式",{"$f":"AN62","v":""}]
[null,null,null,null,null,null,null,"① 石油潜熱回収型温水暖房機 【エコフィール】 の熱効率87.8% 以上のもの",null,null,null,null,null,null,null,null,null,null,null,null,null,null,null,null,null,null,null,null,null,null,null,null,false,null,null,{"$f":"N(AG46)","v":0},"パネルラジエーターで以下の熱源とし、かつ配管に断熱被覆があるもの\n【熱源機】石油潜熱回収型温水暖房機 【エコフィール】 の熱効率87.8% 以上のもの",null,null,null,{"$f":"IF(OR(AJ46=1,AJ47=1,AJ48=1),0,1)","v":1},null,null,null,null,"設備仕様",{"$f":"AN63","v":""}]
[null,null,null,null,null,null,null,"② ガス潜熱回収型温水暖房機 【エコジョーズ】 の熱効率82.5% 以上のもの",null,null,null,null,null,null,null,null,null,null,null,null,null,null,null,null,null,null,null,null,null,null,null,null,false,null,null,{"$f":"N(AG47)","v":0},"パネルラジエーターで以下の熱源とし、かつ配管に断熱被覆があるもの\n【熱源機】ガス潜熱回収型温水暖房機 【エコジョーズ】 の熱効率82.5% 以上のもの",null,null,"【その他の居室】",{"$f":"IFERROR(_xlfn.IFS(AJ52=1,IF(AO48=0,0,1),AJ57=1,0,AJ58=1,0,AJ59=1,0),1)","v":1},null,null,null,null,"備考",{"$f":"IF(D69=\"\",IF(OR(AJ68=1,AND(AJ65=1,AJ67=1)),\"－\",\"\"),D69)","v":""}]
[null,null,null,null,null,null,null,"③ 電気ヒートポンプ温水暖房機 （フロン系冷媒に限る）",null,null,null,null,null,null,null,null,null,null,null,null,null,null,null,null,null,null,null,null,null,null,null,null,false,null,null,{"$f":"N(AG48)","v":0},"パネルラジエーターで以下の熱源とし、かつ配管に断熱被覆があるもの\n【熱源機】電気ヒートポンプ温水暖房機 （フロン系冷媒に限る）",null,null,null,{"$f":"IF(OR(AJ54=1,AJ55=1,AJ56=1),0,1)","v":1},null,null,null,"換気設備","換気方式等",{"$f":"AN70","v":""}]
[null,null,null,null,null,null,"ルームエアコンディショナーで、エネルギー消費効率の区分が（ い） 又は（ ろ） のもの",null,null,null,null,null,null,null,null,null,null,null,null,null,null,null,null,null,null,null,null,null,null,null,null,false,null,null,null,{"$f":"N(AF49)","v":0},null,null,null,null,null,null,null,null,null,"備考",{"$f":"IF(D74=\"\",\"\",D74)","v":""}]
[null,null,null,null,null,null,"FF 暖房機の熱効率86.0% 以上のもの",null,null,null,null,null,null,null,null,null,null,null,null,null,null,null,null,null,null,null,null,null,null,null,null,false,null,null,null,{"$f":"N(AF50)","v":0},null,null,null,null,null,null,null,null,"給湯設備","機器の種類、効率",{"$f":"AN75","v":""}]
[null,"暖房設備",null,null,null,null,"暖房設備機器または放熱器を設置しない（入居者設置など完了検査時点で設置が行われない）",null,null,null,null,null,null,null,null,null,null,null,null,null,null,null,null,null,null,null,null,null,null,null,null,false,null,null,null,{"$f":"N(AF51)","v":0},"設置しない",null,null,null,null,null,null,null,null,"備考",{"$f":"IF(D80=\"\",IF(AJ79=1,\"－\",\"\"),D80)","v":""}]
[null,"右記のいずれかを選択",null,null,"【その他の居室】",null,"パネルラジエーターで以下のいずれかを熱源とし、かつ配管に断熱被覆があるもの",null,null,null,null,null,null,null,null,null,null,null,null,null,null,null,null,null,null,null,null,null,null,null,null,false,null,null,null,{"$f":"N(AF52)","v":0},null,null,null,null,null,null,null,null,"照明設備","照明設備の種類",{"$f":"AN81","v":""}]
[null,null,null,null,null,null,"　①～③のいずれかを選択",null,null,null,null,null,null,null,null,null,null,null,null,null,null,null,null,null,null,null,null,null,null,null,null,null,null,null,null,null,null,null,null,null,null,null,null,null,null,"備考",{"$f":"IF(D83=\"\",IF(AJ82=1,\"－\",\"\"),D83)","v":""}]
[null,null,null,null,null,null,null,"① 石油潜熱回収型温水暖房機 【エコフィール】 の熱効率87.8% 以上のもの",null,null,null,null,null,null,null,null,null,null,null,null,null,null,null,null,null,null,null,null,null,null,null,null,false,null,null,{"$f":"N(AG54)","v":0},"パネルラジエーターで以下の熱源とし、かつ配管に断熱被覆があるもの\n【熱源機】石油潜熱回収型温水暖房機 【エコフィール】 の熱効率87.8% 以上のもの"]
[null,null,null,null,null,null,null,"② ガス潜熱回収型温水暖房機 【エコジョーズ】 の熱効率82.5% 以上のもの",null,null,null,null,null,null,null,null,null,null,null,null,null,null,null,null,null,null,null,null,null,null,null,null,false,null,null,{"$f":"N(AG55)","v":0},"パネルラジエーターで以下の熱源とし、かつ配管に断熱被覆があるもの\n【熱源機】ガス潜熱回収型温水暖房機 【エコジョーズ】 の熱効率82.5% 以上のもの"]
[null,null,null,null,null,null,null,"③ 電気ヒートポンプ温水暖房機 （フロン系冷媒に限る）",null,null,null,null,null,null,null,null,null,null,null,null,null,null,null,null,null,null,null,null,null,null,null,null,false,null,null,{"$f":"N(AG56)","v":0},"パネルラジエーターで以下の熱源とし、かつ配管に断熱被覆があるもの\n【熱源機】電気ヒートポンプ温水暖房機 （フロン系冷媒に限る）"]
[null,null,null,null,null,null,"ルームエアコンディショナーで、エネルギー消費効率の区分が（ い） 又は（ ろ） のもの",null,null,null,null,null,null,null,null,null,null,null,null,null,null,null,null,null,null,null,null,null,null,null,null,false,null,null,null,{"$f":"N(AF57)","v":0}]
[null,null,null,null,null,null,"FF 暖房機の熱効率86.0% 以上のもの",null,null,null,null,null,null,null,null,null,null,null,null,null,null,null,null,null,null,null,null,null,null,null,null,false,null,null,null,{"$f":"N(AF58)","v":0}]
[null,null,null,null,null,null,"暖房設備機器または放熱器を設置しない（入居者設置など完了検査時点で設置が行われない）",null,null,null,null,null,null,null,null,null,null,null,null,null,null,null,null,null,null,null,null,null,null,null,null,false,null,null,null,{"$f":"N(AF59)","v":0},"設置しない"]
[null,null,null,"設置しない（入居者設置など完了検査時点で設置が行われない）",null,null,null,null,null,null,null,null,null,null,null,null,null,null,null,null,null,null,null,null,null,null,null,null,null,null,false,null,null,null,null,{"$f":"N(AE60)","v":0},"設置しない"]
[null,null,"備考"]
[null,null,null,"住戸全体を冷房　　",null,"ダクト式セントラル空調機で、ヒートポンプを熱源とするもの",null,null,null,null,null,null,null,null,null,null,null,null,null,null,null,null,null,null,null,null,null,null,null,null,false,null,null,null,"冷房",{"$f":"N(AE62)","v":0},"住戸全体を冷房",null,"冷房方式",{"$f":"IFERROR(_xlfn.IFS(AJ62=1,AK62,AJ63=1,AK63,AJ68=1,D68),\"\")","v":""},{"$f":"IFERROR(_xlfn.IFS(AJ62=1,0,AJ63=1,IF(AND(AO63=0,AO64=0),0,1),AJ68=1,0),1)","v":1},null,"【主たる居室】",{"$f":"IFERROR(IF(AJ63=1,_xlfn.IFS(AJ64=1,G64,AJ65=1,G65),\"\"),\"\")","v":""}]
[null,"冷房設備",null,"居室のみを冷房　　",null,"ルームエアコンディショナーで、エネルギー消費効率の区分が（ い） 又は（ ろ） のもの",null,null,null,null,null,null,null,null,null,null,null,null,null,null,null,null,null,null,null,null,null,null,null,null,false,null,null,null,null,{"$f":"N(AE63)","v":0},"居室のみを冷房",null,"設備仕様",{"$f":"IFERROR(_xlfn.IFS(AJ62=1,F62,AJ63=1,AQ62&AR62&CHAR(10)&AQ63&AR63,AJ68=1,\"－\"),\"\")","v":""},{"$f":"IF(OR(AJ64=1,AJ65=1),0,1)","v":1},null,"【その他の居室】",{"$f":"IFERROR(IF(AJ63=1,_xlfn.IFS(AJ66=1,G66,AJ67=1,G67),\"\"),\"\")","v":""}]
[null,null,null,null,"【主たる居室】",null,"ルームエアコンディショナーで、エネルギー消費効率の区分が（ い） 又は（ ろ） のもの",null,null,null,null,null,null,null,null,null,null,null,null,null,null,null,null,null,null,null,null,null,null,null,null,false,null,null,null,{"$f":"N(AF64)","v":0},null,null,null,null,{"$f":"IF(OR(AJ66=1,AJ67=1),0,1)","v":1}]
[null,null,null,null,null,null,"冷房設備機器を設置しない",null,null,null,null,null,null,null,null,null,null,null,null,null,null,null,null,null,null,null,null,null,null,null,null,false,null,null,null,{"$f":"N(AF65)","v":0},"設置しない"]
[null,null,null,null,"【その他の居室】",null,"ルームエアコンディショナーで、エネルギー消費効率の区分が（ い） 又は（ ろ） のもの",null,null,null,null,null,null,null,null,null,null,null,null,null,null,null,null,null,null,null,null,null,null,null,null,false,null,null,null,{"$f":"N(AF66)","v":0}]
[null,null,null,null,null,null,"冷房設備機器を設置しない",null,null,null,null,null,null,null,null,null,null,null,null,null,null,null,null,null,null,null,null,null,null,null,null,false,null,null,null,{"$f":"N(AF67)","v":0},"設置しない"]
[null,"右記のいずれかを選択",null,"設置しない（入居者設置など完了検査時点で設置が行われない）",null,null,null,null,null,null,null,null,null,null,null,null,null,null,null,null,null,null,null,null,null,null,null,null,null,null,false,null,null,null,null,{"$f":"N(AE68)","v":0},"設置しない"]
[null,null,"備考"]
[null,null,null,"比消費電力（熱交換換気設備を採用する場合にあっては比消費電力を有効換気量率で除した値）が0.3[W/(㎥/h)]以下の換気設備",null,null,null,null,null,null,null,null,null,null,null,null,null,null,null,null,null,null,null,null,null,null,null,null,null,null,false,null,null,null,"換気",{"$f":"N(AE70)","v":0},null,null,"換気方式",{"$f":"IFERROR(_xlfn.IFS(AJ70=1,D70,AJ71=1,D71,AJ72=1,D72,AJ73=1,D73),\"\")","v":""},{"$f":"IF(SUM(AJ70:AJ73)=0,1,0)","v":1}]
[null,null,null,"ダクト式第一種換気設備（熱交換なし）で、 ダクト内径が75ｍｍ以上で、 かつDC モーター（直流）のもの",null,null,null,null,null,null,null,null,null,null,null,null,null,null,null,null,null,null,null,null,null,null,null,null,null,null,false,null,null,null,null,{"$f":"N(AE71)","v":0}]
[null,"換気設備",null,"ダクト式第二種 又は 第三種換気設備で、 ダクト内径が75ｍｍ以上のもの",null,null,null,null,null,null,null,null,null,null,null,null,null,null,null,null,null,null,null,null,null,null,null,null,null,null,false,null,null,null,null,{"$f":"N(AE72)","v":0}]
[null,"右記のいずれかを選択",null,"壁付け式第二種 又は 第三種換気設備のもの",null,null,null,null,null,null,null,null,null,null,null,null,null,null,null,null,null,null,null,null,null,null,null,null,null,null,false,null,null,null,null,{"$f":"N(AE73)","v":0}]
[null,null,"備考"]
[null,null,null,"石油潜熱回収型給湯機【エコフィール】のモード熱効率 81.3% 以上のもの",null,null,null,null,null,null,null,null,null,null,null,null,null,null,null,null,null,null,null,null,null,null,null,null,null,null,false,null,null,null,"給湯",{"$f":"N(AE75)","v":0},null,null,"給湯",{"$f":"IFERROR(_xlfn.IFS(AJ75=1,D75,AJ76=1,D76,AND(AJ77=1,AJ78=1),AK77,AJ79=1,D79),\"\")","v":""},{"$f":"IF(SUM(AJ75:AJ79)=0,1,0)","v":1}]
[null,null,null,"ガス潜熱回収型給湯機【エコジョーズ】のモード熱効率 83.7% 以上のもの",null,null,null,null,null,null,null,null,null,null,null,null,null,null,null,null,null,null,null,null,null,null,null,null,null,null,false,null,null,null,null,0]
[null,"給湯設備",null,"電気ヒートポンプ給湯機【エコキュート】のJIS効率が下記以上のもの",null,null,null,null,null,null,null,null,null,null,null,null,null,null,null,null,null,null,null,null,null,null,null,null,null,null,false,null,null,null,null,0,"電気ヒートポンプ給湯機【エコキュート】のJIS効率が 3.5 以上(1地域)、3.2 以上(2地域)、3.0 以上(3地域)、2.9 以上(4地域)以上のもの"]
[null,"給湯設備",null,null,null," 3.5 以上（1地域）、3.2 以上（2地域）、3.0 以上（3地域）、2.9 以上（4地域）",null,null,null,null,null,null,null,null,null,null,null,null,null,null,null,null,null,null,null,null,null,null,null,null,false,false,null,null,null,{"$f":"N(AF78)","v":0}]
[null,"右記のいずれかを選択",null,"設置しない（入居者設置など完了検査時点で設置が行われない）",null,null,null,null,null,null,null,null,null,null,null,null,null,null,null,null,null,null,null,null,null,null,null,null,null,null,false,null,null,null,null,0]
[null,null,"備考"]
[null,"照明設備\n（非居室の仕様）\n　\n右記のいずれかを選択",null,"非居室の全ての照明に、LED 又は 蛍光灯 を設置している",null,null,null,null,null,null,null,null,null,null,null,null,null,null,null,null,null,null,null,null,null,null,null,null,null,null,false,null,null,null,"照明",{"$f":"N(AE81)","v":0},null,null,"照明",{"$f":"IFERROR(_xlfn.IFS(AJ81=1,D81,AJ82=1,D82),\"\")","v":""},{"$f":"IF(SUM(AJ81:AJ82)=0,1,0)","v":1}]
[null,null,null,"設置しない（入居者設置など完了検査時点で設置が行われない）",null,null,null,null,null,null,null,null,null,null,null,null,null,null,null,null,null,null,null,null,null,null,null,null,null,null,false,null,null,null,null,0]
[null,null,"備考"]

{"sheet":"窓のプルダウン_非表示","index":3,"n_rows":62,"n_cols":58,"rows_kept":62,"cut":false,"hidden":true,"merged":[[60,32,60,34],[60,36,60,37],[60,38,60,39],[61,25,61,42],[53,26,60,27],[53,28,59,29],[53,30,57,30],[53,31,54,31],[55,31,57,31],[58,30,59,30],[58,31,59,31],[60,28,60,29],[58,32,58,34],[58,36,58,37],[58,38,58,39],[59,32,59,34],[59,36,59,37],[59,38,59,39],[56,32,56,34],[56,36,56,37],[56,38,56,39],[57,32,57,34],[57,36,57,37],[57,38,57,39],[44,31,45,31],[46,28,51,29],[46,30,49,30],[46,31,47,31],[48,31,49,31],[50,30,51,30],[50,31,51,31],[30,28,30,29],[31,26,52,27],[31,28,45,29],[31,30,37,30],[31,31,33,31],[34,31,37,31],[38,30,43,30],[38,31,40,31],[41,31,43,31],[44,30,45,30],[52,28,52,29],[22,28,29,29],[22,30,27,30],[22,31,24,31],[25,31,27,31],[28,30,29,30],[28,31,29,31],[6,26,30,27],[6,28,21,29],[6,30,13,30],[6,31,9,31],[10,31,13,31],[14,30,19,30],[14,31,15,31],[16,31,19,31],[20,30,21,30],[20,31,21,31],[55,32,55,34],[55,36,55,37],[55,38,55,39],[50,36,50,37],[50,38,50,39],[51,32,51,34],[51,36,51,37],[51,38,51,39],[48,36,48,37],[48,38,48,39],[49,32,49,34],[49,36,49,37],[49,38,49,39],[50,32,50,34],[53,32,53,34],[53,36,53,37],[53,38,53,39],[54,32,54,34],[54,36,54,37],[54,38,54,39],[52,32,52,34],[52,36,52,37],[52,38,52,39],[46,32,46,34],[46,36,46,37],[46,38,46,39],[47,32,47,34],[47,36,47,37],[47,38,47,39],[48,32,48,34],[44,36,44,37],[44,38,44,39],[45,32,45,34],[45,36,45,37],[45,38,45,39],[42,36,42,37],[42,38,42,39],[43,32,43,34],[43,36,43,37],[43,38,43,39],[44,32,44,34],[40,32,40,34],[40,36,40,37],[40,38,40,39],[41,32,41,34],[41,36,41,37],[41,38,41,39],[42,32,42,34],[38,32,38,34],[38,36,38,37],[38,38,38,39],[39,32,39,34],[39,36,39,37],[39,38,39,39],[36,32,36,34],[36,36,36,37],[36,38,36,39],[37,32,37,34],[37,36,37,37],[37,38,37,39],[34,36,34,37],[34,38,34,39],[35,32,35,34],[35,36,35,37],[35,38,35,39],[32,32,32,34],[32,36,32,37],[32,38,32,39],[33,32,33,34],[33,36,33,37],[33,38,33,39],[34,32,34,34],[30,36,30,37],[30,38,30,39],[31,32,31,34],[31,36,31,37],[31,38,31,39],[29,32,29,34],[29,36,29,37],[29,38,29,39],[30,32,30,34],[27,32,27,34],[27,36,27,37],[27,38,27,39],[28,32,28,34],[28,36,28,37],[28,38,28,39],[25,32,25,34],[25,36,25,37],[25,38,25,39],[26,32,26,34],[26,36,26,37],[26,38,26,39],[24,32,24,34],[24,36,24,37],[24,38,24,39],[22,32,22,34],[22,36,22,37],[22,38,22,39],[23,32,23,34],[23,36,23,37],[23,38,23,39],[21,32,21,34],[21,36,21,37],[21,38,21,39],[19,32,19,34],[19,36,19,37],[19,38,19,39],[20,32,20,34],[20,36,20,37],[20,38,20,39],[17,36,17,37],[17,38,17,39],[18,32,18,34],[18,36,18,37],[18,38,18,39],[15,32,15,34],[15,36,15,37],[15,38,15,39],[16,32,16,34],[16,36,16,37],[16,38,16,39],[17,32,17,34],[10,36,10,37],[10,38,10,39],[8,32,8,34],[8,36,8,37],[8,38,8,39],[13,32,13,34],[13,36,13,37],[13,38,13,39],[14,32,14,34],[14,36,14,37],[14,38,14,39],[11,36,11,37],[11,38,11,39],[12,32,12,34],[12,36,12,37],[12,38,12,39],[11,32,11,34],[23,51,23,53],[24,51,24,53],[25,51,25,53],[26,51,26,53],[27,51,27,53],[4,28,5,30],[4,26,5,27],[6,32,6,34],[6,36,6,37],[6,38,6,39],[4,31,4,34],[4,45,5,46],[4,47,5,49],[4,41,4,43],[7,32,7,34],[7,36,7,37],[7,38,7,39],[5,32,5,34],[5,36,5,37],[5,38,5,39],[9,32,9,34],[9,36,9,37],[9,38,9,39],[10,32,10,34],[13,51,13,53],[14,51,14,53],[15,51,15,53],[17,51,17,53],[18,51,18,53],[19,51,19,53],[20,51,20,53],[21,51,21,53],[22,51,22,53],[4,50,4,53],[5,51,5,53],[6,51,6,53],[7,51,7,53],[8,51,8,53],[9,51,9,53],[10,51,10,53],[11,51,11,53],[12,51,12,53],[28,51,28,53],[29,51,29,53],[45,51,45,53],[46,51,46,53],[47,51,47,53],[48,51,48,53],[49,51,49,53],[50,51,50,53],[51,51,51,53],[30,51,30,53],[52,51,52,53],[31,51,31,53],[32,51,32,53],[33,51,33,53],[34,51,34,53],[35,51,35,53],[36,51,36,53],[37,51,37,53],[38,51,38,53],[39,51,39,53],[40,51,40,53],[41,51,41,53],[42,51,42,53],[43,51,43,53],[44,51,44,53],[53,51,53,53],[54,51,54,53],[55,51,55,53],[56,51,56,53],[57,51,57,53],[58,51,58,53],[59,51,59,53],[60,51,60,53],[61,51,61,53],[24,54,24,56],[26,54,26,56],[6,54,6,56],[7,54,7,56],[8,54,8,56],[10,54,10,56],[11,54,11,56],[12,54,12,56],[13,54,13,56],[14,54,14,56],[15,54,15,56],[27,54,27,56],[29,54,29,56],[30,54,30,56],[31,54,31,56],[20,54,20,56],[9,54,9,56],[25,54,25,56],[28,54,28,56],[23,57,23,59],[24,57,24,59],[26,57,26,59],[27,57,27,59],[29,57,29,59],[30,57,30,59],[31,57,31,59],[28,57,28,59],[25,57,25,59],[16,54,16,56],[17,54,17,56],[18,54,18,56],[19,54,19,56],[21,54,21,56],[22,54,22,56],[23,54,23,56]]}
[null,null,"名前の定義の注意点",null,null,null,null,null,null,null,null,null,null,null,null,null,null,null,null,null,null,null,null,null,null,null,null,null,null,null,null,null,null,null,null,null,null,null,null,null,null,null,null,null,null,"確認"]
[null,null,"・先頭は数字NG"]
[null,null,"・-、()の仕様はNG"]
[null,null,null,null,null,null,null,null,null,null,null,null,null,null,null,null,null,"ガイドブックより小数点第２位を四捨五入した値を表示(24/12/18)",null,null,null,null,null,null,null,null,null,null,null,null,null,null,null,null,null,null,null,null,null,null,null,null,null,null,null,null,null,null,null,null,null,"樹脂製建具 又は木製建具",null,null,"樹脂（又は木）と金属の複合材料製建具",null,null,"その他\n・金属製建具\n・金属製熱遮断構造建具等"]
[null,"【名前の管理】",null,null,null,null,null,null,null,null,null,null,null,null,null,null,null,"開口部の熱貫流率",null,null,null,null,null,null,null,null,"建具の仕様",null,"ガラスの仕様",null,null,"中空層の仕様",null,null,null,"開口部の熱貫流率\n [W/(㎡・K)] ※2 ",null,null,null,null,null,"日射熱取得率ηｇ",null,null,null,"建具の仕様",null,"ガラスの仕様",null,null,"中空層の仕様"]
[null,"名前","建具の仕様",null,null,"樹脂製建具又は木製建具",null,"樹脂製建具又は木製建具_三層複層ガラス_Low_E２枚",null,"樹脂_又は木_と金属の複合材料製建具_三層複層ガラス_Low_E２枚",null,null,null,"三層複層ガラス_Low_E２枚",null,null,null,"付属部材無し","日射取得型","日射遮蔽型","ー",null,null,null,null,null,null,null,null,null,null,"ガスの封入※1 ","中空層の厚さ",null,null,"付属部材無し","シャッター・\n雨戸付",null,"紙障子付",null,"風除室あり","日射取得型","日射遮蔽型","ー",null,null,null,null,null,null,"ガスの封入※1 ","中空層の厚さ"]
[null,"値↓","樹脂製建具又は木製建具",null,1,"三層複層ガラス_Low_E２枚",null,"ガスの封入されている_13 ㎜以上",null,"ガスの封入されている_12 ㎜以上",null,null,null,"日射取得型",null,1,{"$f":"C$7&\"_\"&F$7&\"_\"&H7","v":"樹脂製建具又は木製建具_三層複層ガラス_Low_E２枚_ガスの封入されている_13 ㎜以上"},{"$f":"ROUND(AJ7,1)","v":1.6},{"$f":"AP7","v":0.39},{"$f":"AQ7","v":0.24},{"$f":"AR7","v":0},null,null,null,null,null,"樹脂製建具 又は木製建具",null,"三層複層ガラス",null,"Low-E ガラス ２枚","されている","13 ㎜以上",null,null,1.6,1.49,null,1.43,null,1.38,0.39,0.24,null,null,"樹脂製建具 又は木製建具",null,"三層複層ガラス",null,"Low-E ガラス ２枚","されている","13 ㎜以上",null,null,"12 ㎜以上"]
[null,null,"樹脂_又は木_と金属の複合材料製建具",null,2,"三層複層ガラス_Low_E１枚",null,"ガスの封入されている_10 ㎜以上 13 ㎜未満",null,"ガスの封入されている_8 ㎜以上 12 ㎜未満",null,null,null,"日射遮蔽型",null,null,"樹脂製建具又は木製建具_三層複層ガラス_Low_E２枚_ガスの封入されている_10 ㎜以上 13 ㎜未満",{"$f":"ROUND(AJ8,1)","v":1.7},{"$f":"AP8","v":0.39},{"$f":"AQ8","v":0.24},{"$f":"AR8","v":0},null,null,null,null,null,null,null,null,null,null,null,"10 ㎜以上 13 ㎜未満",null,null,1.7,1.58,null,1.51,null,1.46,0.39,0.24,null,null,null,null,null,null,null,null,"10 ㎜以上 13 ㎜未満",null,null,"8 ㎜以上 12 ㎜未満"]
[null,null,"その他・金属製建具・金属製熱遮断構造建具等",null,3,"三層複層ガラス_一般",null,"ガスの封入されている_7 ㎜以上 10 ㎜未満",null,"ガスの封入されている_8 ㎜未満",null,null,null,null,null,null,"樹脂製建具又は木製建具_三層複層ガラス_Low_E２枚_ガスの封入されている_7 ㎜以上 10 ㎜未満",1.9,0.39,0.24,0,null,null,null,null,null,null,null,null,null,null,null,"7 ㎜以上 10 ㎜未満",null,null,1.9,1.75,null,1.66,null,1.6,0.39,0.24,null,null,null,null,null,null,null,null,"7 ㎜以上 10 ㎜未満",null,null,"8 ㎜未満"]
[null,null,null,null,4,"二層複層ガラス_Low_E",null,"ガスの封入されている_7 ㎜未満",null,"ガスの封入されていない_16 ㎜以上",null,null,null,"三層複層ガラス_Low_E１枚",null,null,"樹脂製建具又は木製建具_三層複層ガラス_Low_E２枚_ガスの封入されている_7 ㎜未満",2.2000000000000002,0.39,0.24,0,null,null,null,null,null,null,null,null,null,null,null,"7 ㎜未満",null,null,2.15,1.96,null,1.86,null,1.77,0.39,0.24,null,null,null,null,null,null,null,null,"7 ㎜未満"]
[null,null,"日射取得型",null,5,"二層複層ガラス_一般",null,"ガスの封入されていない_13 ㎜以上",null,"ガスの封入されていない_10 ㎜以上 16 ㎜未満",null,null,null,"日射取得型",null,null,"樹脂製建具又は木製建具_三層複層ガラス_Low_E２枚_ガスの封入されていない_13 ㎜以上",1.7,0.39,0.24,0,null,null,null,null,null,null,null,null,null,null,"されていない","13 ㎜以上",null,null,1.7,1.58,null,1.51,null,1.46,0.39,0.24,null,null,null,null,null,null,null,"されていない","13 ㎜以上",null,null,"16 ㎜以上"]
[null,null,"日射遮蔽型",null,6,"単板ガラス",null,"ガスの封入されていない_9 ㎜以上 13 ㎜未満",null,"ガスの封入されていない_8 ㎜以上 10 ㎜未満",null,null,null,"日射遮蔽型",null,null,"樹脂製建具又は木製建具_三層複層ガラス_Low_E２枚_ガスの封入されていない_9 ㎜以上 13 ㎜未満",1.9,0.39,0.24,0,null,null,null,null,null,null,null,null,null,null,null,"9 ㎜以上 13 ㎜未満",null,null,1.9,1.75,null,1.66,null,1.6,0.39,0.24,null,null,null,null,null,null,null,null,"9 ㎜以上 13 ㎜未満",null,null,"10 ㎜以上 16 ㎜未満"]
[null,null,null,null,null,null,null,"ガスの封入されていない_7 ㎜以上 9 ㎜未満",null,"ガスの封入されていない_8 ㎜未満",null,null,null,null,null,null,"樹脂製建具又は木製建具_三層複層ガラス_Low_E２枚_ガスの封入されていない_7 ㎜以上 9 ㎜未満",2.2000000000000002,0.39,0.24,0,null,null,null,null,null,null,null,null,null,null,null,"7 ㎜以上 9 ㎜未満",null,null,2.15,1.96,null,1.86,null,1.77,0.39,0.24,null,null,null,null,null,null,null,null,"7 ㎜以上 9 ㎜未満",null,null,"8 ㎜以上 10 ㎜未満"]
[null,null,null,null,null,"樹脂_又は木_と金属の複合材料製建具",null,"ガスの封入されていない_7 ㎜未満",null,null,null,null,null,"三層複層ガラス_一般",null,null,"樹脂製建具又は木製建具_三層複層ガラス_Low_E２枚_ガスの封入されていない_7 ㎜未満",2.2999999999999998,0.39,0.24,0,null,null,null,null,null,null,null,null,null,null,null,"7 ㎜未満",null,null,2.33,2.11,null,1.99,null,1.89,0.39,0.24,null,null,null,null,null,null,null,null,"7 ㎜未満",null,null,"8 ㎜未満"]
[null,null,null,null,1,"三層複層ガラス_Low_E２枚",null,null,null,null,null,null,null,"－",null,2,{"$f":"C$7&\"_\"&F$8&\"_\"&H17","v":"樹脂製建具又は木製建具_三層複層ガラス_Low_E１枚_ガスの封入されている_10 ㎜以上"},1.9,0.42,0.27,0,null,null,null,null,null,null,null,null,null,"Low-E ガラス １枚","されている","10 ㎜以上",null,null,1.9,1.75,null,1.66,null,1.6,0.42,0.27,null,null,null,null,null,null,"Low-E ガラス １枚","されている","10 ㎜以上",null,null,"12 ㎜以上"]
[null,null,null,null,2,"三層複層ガラス_Low_E１枚",null,"樹脂製建具又は木製建具_三層複層ガラス_Low_E１枚",null,"樹脂_又は木_と金属の複合材料製建具_三層複層ガラス_Low_E１枚",null,null,null,null,null,null,"樹脂製建具又は木製建具_三層複層ガラス_Low_E１枚_ガスの封入されている_10 ㎜未満",2.2000000000000002,0.42,0.27,0,null,null,null,null,null,null,null,null,null,null,null,"10 ㎜未満",null,null,2.15,1.96,null,1.86,null,1.77,0.42,0.27,null,null,null,null,null,null,null,null,"10 ㎜未満",null,null,"9 ㎜以上 12 ㎜未満"]
[null,null,null,null,3,"三層複層ガラス_一般",null,"ガスの封入されている_10 ㎜以上",null,"ガスの封入されている_12 ㎜以上",null,null,null,"複層ガラス_Low_E",null,null,"樹脂製建具又は木製建具_三層複層ガラス_Low_E１枚_ガスの封入されていない_13 ㎜以上",1.9,0.42,0.27,0,null,null,null,null,null,null,null,null,null,null,"されていない","13 ㎜以上",null,null,1.9,1.75,null,1.66,null,1.6,0.42,0.27,null,null,null,null,null,null,null,null,null,null,null,"9 ㎜未満"]
[null,null,null,null,4,"二層複層ガラス_Low_E",null,"ガスの封入されている_10 ㎜未満",null,"ガスの封入されている_9 ㎜以上 12 ㎜未満",null,null,null,"日射取得型",null,null,"樹脂製建具又は木製建具_三層複層ガラス_Low_E１枚_ガスの封入されていない_9 ㎜以上 13 ㎜未満",2.2000000000000002,0.42,0.27,0,null,null,null,null,null,null,null,null,null,null,null,"9 ㎜以上 13 ㎜未満",null,null,2.15,1.96,null,1.86,null,1.77,0.42,0.27,null,null,null,null,null,null,null,"されていない","13 ㎜以上",null,null,"16 ㎜以上"]
[null,null,null,null,5,"二層複層ガラス_一般",null,"ガスの封入されていない_13 ㎜以上",null,"ガスの封入されている_9 ㎜未満",null,null,null,"日射遮蔽型",null,null,"樹脂製建具又は木製建具_三層複層ガラス_Low_E１枚_ガスの封入されていない_7 ㎜以上 9 ㎜未満",2.2999999999999998,0.42,0.27,0,null,null,null,null,null,null,null,null,null,null,null,"7 ㎜以上 9 ㎜未満",null,null,2.33,2.11,null,1.99,null,1.89,0.42,0.27,null,null,null,null,null,null,null,null,"9 ㎜以上 13 ㎜未満",null,null,"12 ㎜以上 16 ㎜未満"]
[null,null,null,null,6,"単板ガラス",null,"ガスの封入されていない_9 ㎜以上 13 ㎜未満",null,"ガスの封入されていない_16 ㎜以上",null,null,null,null,null,null,"樹脂製建具又は木製建具_三層複層ガラス_Low_E１枚_ガスの封入されていない_7 ㎜未満",2.9,0.42,0.27,0,null,null,null,null,null,null,null,null,null,null,null,"7 ㎜未満",null,null,2.91,2.59,null,2.41,null,2.2599999999999998,0.42,0.27,null,null,null,null,null,null,null,null,"7 ㎜以上 9 ㎜未満",null,null,"12 ㎜未満"]
[null,null,null,null,null,null,null,"ガスの封入されていない_7 ㎜以上 9 ㎜未満",null,"ガスの封入されていない_12 ㎜以上 16 ㎜未満",null,null,null,"複層ガラス_一般",null,3,{"$f":"C$7&\"_\"&F$9&\"_\"&H25","v":"樹脂製建具又は木製建具_三層複層ガラス_一般_ガスの封入されていない_12 ㎜以上"},2.2999999999999998,0,0,0.52,null,null,null,null,null,null,null,null,null,"一般ガラス","されていない","12 ㎜以上",null,null,2.33,2.11,null,1.99,null,1.89,null,null,0.52,null,null,null,null,null,null,null,"7 ㎜未満"]
[null,null,null,null,null,"その他・金属製建具・金属製熱遮断構造建具等",null,"ガスの封入されていない_7 ㎜未満",null,"ガスの封入されていない_12 ㎜未満",null,null,null,"－",null,null,{"$f":"C$7&\"_\"&F$9&\"_\"&H26","v":"樹脂製建具又は木製建具_三層複層ガラス_一般_ガスの封入されていない_12 ㎜未満"},2.9,0,0,0.52,null,null,null,null,null,null,null,null,null,null,null,"12 ㎜未満",null,null,2.91,2.59,null,2.41,null,2.2599999999999998,null,null,0.52,null,null,null,null,null,"一般ガラス","されていない","12 ㎜以上",null,null,"7 ㎜以上"]
[null,null,null,null,1,"二層複層ガラス_Low_E",null,null,null,null,null,null,null,null,null,4,{"$f":"C$7&\"_\"&F$10&\"_\"&H29","v":"樹脂製建具又は木製建具_二層複層ガラス_Low_E_ガスの封入されている_10 ㎜以上"},2.2000000000000002,0.46,0.28999999999999998,0,null,null,null,null,null,null,null,"二層複層ガラス",null,"Low-E ガラス","されている","10 ㎜以上",null,null,2.15,1.96,null,1.86,null,1.77,0.46,0.28999999999999998,null,null,null,null,null,null,null,null,"12 ㎜未満",null,null,"7 ㎜未満"]
[null,null,null,null,2,"二層複層ガラス_一般",null,"樹脂製建具又は木製建具_三層複層ガラス_一般",null,"樹脂_又は木_と金属の複合材料製建具_三層複層ガラス_一般",null,null,null,null,null,null,"樹脂製建具又は木製建具_二層複層ガラス_Low_E_ガスの封入されている_8 ㎜以上 10 ㎜未満",2.2999999999999998,0.46,0.28999999999999998,0,null,null,null,null,null,null,null,null,null,null,null,"8 ㎜以上 10 ㎜未満",null,null,2.33,2.11,null,1.99,null,1.89,0.46,0.28999999999999998,null,null,null,null,"二層複層ガラス",null,"Low-E ガラス","されている","10 ㎜以上",null,null,"14 ㎜以上",null,null,"10 ㎜以上"]
[null,null,null,null,3,"単板ガラス",null,"ガスの封入されていない_12 ㎜以上",null,"ガスの封入されていない_7 ㎜以上",null,null,null,null,null,null,"樹脂製建具又は木製建具_二層複層ガラス_Low_E_ガスの封入されている_8 ㎜未満",2.9,0.46,0.28999999999999998,0,null,null,null,null,null,null,null,null,null,null,null,"8 ㎜未満",null,null,2.91,2.59,null,2.41,null,2.2599999999999998,0.46,0.28999999999999998,null,null,null,null,null,null,null,null,"8 ㎜以上 10 ㎜未満",null,null,"14 ㎜未満",null,null,"10 ㎜未満"]
[null,null,null,null,null,null,null,"ガスの封入されていない_12 ㎜未満",null,"ガスの封入されていない_7 ㎜未満",null,null,null,null,null,null,"樹脂製建具又は木製建具_二層複層ガラス_Low_E_ガスの封入されていない_14 ㎜以上",2.2000000000000002,0.46,0.28999999999999998,0,null,null,null,null,null,null,null,null,null,null,"されていない","14 ㎜以上",null,null,2.15,1.96,null,1.86,null,1.77,0.46,0.28999999999999998,null,null,null,null,null,null,null,null,"8 ㎜未満"]
[null,null,null,null,null,null,null,null,null,null,null,null,null,null,null,null,"樹脂製建具又は木製建具_二層複層ガラス_Low_E_ガスの封入されていない_11 ㎜以上 14 ㎜未満",2.2999999999999998,0.46,0.28999999999999998,0,null,null,null,null,null,null,null,null,null,null,null,"11 ㎜以上 14 ㎜未満",null,null,2.33,2.11,null,1.99,null,1.89,0.46,0.28999999999999998,null,null,null,null,null,null,null,"されていない","14 ㎜以上",null,null,"9 ㎜以上",null,null,"14 ㎜以上"]
[null,null,null,null,null,null,null,"樹脂製建具又は木製建具_複層ガラス_Low_E",null,"樹脂_又は木_と金属の複合材料製建具_複層ガラス_Low_E",null,"その他・金属製建具・金属製熱遮断構造建具等_複層ガラス_Low_E",null,null,null,null,"樹脂製建具又は木製建具_二層複層ガラス_Low_E_ガスの封入されていない_11 ㎜未満",2.9,0.46,0.28999999999999998,0,null,null,null,null,null,null,null,null,null,null,null,"11 ㎜未満",null,null,2.91,2.59,null,2.41,null,2.2599999999999998,0.46,0.28999999999999998,null,null,null,null,null,null,null,null,"11 ㎜以上 14 ㎜未満",null,null,"9 ㎜未満",null,null,"7 ㎜以上 14 ㎜未満"]
[null,null,null,null,null,null,null,"ガスの封入されている_10 ㎜以上",null,"ガスの封入されている_14 ㎜以上",null,"ガスの封されている_10 ㎜以上",null,null,null,5,{"$f":"C$7&\"_\"&F$11&\"_\"&H37","v":"樹脂製建具又は木製建具_二層複層ガラス_一般_ガスの封入されていない_13 ㎜以上"},2.9,0,0,0.56999999999999995,null,null,null,null,null,null,null,null,null,"一般ガラス","されていない","13 ㎜以上",null,null,2.91,2.59,null,2.41,null,2.2599999999999998,null,null,0.56999999999999995,null,null,null,null,null,null,null,"11 ㎜未満",null,null,null,null,null,"7 ㎜未満"]
[null,null,null,null,null,null,null,"ガスの封入されている_8 ㎜以上 10 ㎜未満",null,"ガスの封入されている_14 ㎜未満",null,"ガスの封されている_10 ㎜未満",null,null,null,null,{"$f":"C$7&\"_\"&F$11&\"_\"&H38","v":"樹脂製建具又は木製建具_二層複層ガラス_一般_ガスの封入されていない_13 ㎜未満"},3.5,0,0,0.56999999999999995,null,null,null,null,null,null,null,null,null,null,null,"13 ㎜未満",null,null,3.49,3.04,null,2.82,null,2.59,null,null,0.56999999999999995,null,null,null,null,null,"一般ガラス","されていない","13 ㎜以上",null,null,"11 ㎜以上",null,null,"8 ㎜以上"]
[null,null,null,null,null,null,null,"ガスの封入されている_8 ㎜未満",null,"ガスの封入されていない_9 ㎜以上",null,"ガスの封されていない_14 ㎜以上",null,null,null,6,{"$f":"C$7&\"_\"&F$12&\"_\"&H41","v":"樹脂製建具又は木製建具_単板ガラス_－"},6.5,0,0,0.63,null,null,null,null,null,null,null,"単板ガラス",null,"－","－","－",null,null,6.51,5.23,null,4.76,null,3.95,null,null,0.63,null,null,null,null,null,null,null,"13 ㎜未満",null,null,"11 ㎜未満",null,null,"8 ㎜未満"]
[null,null,null,null,null,null,null,"ガスの封入されていない_14 ㎜以上",null,"ガスの封入されていない_9 ㎜未満",null,"ガスの封されていない_7 ㎜以上 14 ㎜未満",null,null,null,1,{"$f":"C$8&\"_\"&F$15&\"_\"&J7","v":"樹脂_又は木_と金属の複合材料製建具_三層複層ガラス_Low_E２枚_ガスの封入されている_12 ㎜以上"},1.9,{"$f":"AP32","v":0.43},{"$f":"AQ32","v":0.26},{"$f":"AR32","v":0},null,null,null,null,null,"樹脂（又は木）と金属の複合材料製建具",null,"三層複層ガラス",null,"Low-E ガラス ２枚","されている","12 ㎜以上",null,null,1.9,1.75,null,1.66,null,1.6,0.43,0.26,null,null,null,null,"単板ガラス",null,"－","－","－",null,null,"－",null,null,"－"]
[null,null,null,null,null,null,null,"ガスの封入されていない_11 ㎜以上 14 ㎜未満",null,null,null,"ガスの封されていない_7 ㎜未満",null,null,null,null,"樹脂_又は木_と金属の複合材料製建具_三層複層ガラス_Low_E２枚_ガスの封入されている_8 ㎜以上 12 ㎜未満",2.2000000000000002,0.43,0.26,0,null,null,null,null,null,null,null,null,null,null,null,"8 ㎜以上 12 ㎜未満",null,null,2.15,1.96,null,1.86,null,1.77,0.43,0.26,null,null,"樹脂（又は木）と金属の複合材料製建具",null,"三層複層ガラス",null,"Low-E ガラス ２枚","されている","12 ㎜以上"]
[null,null,null,null,null,null,null,"ガスの封入されていない_11 ㎜未満",null,null,null,null,null,null,null,null,"樹脂_又は木_と金属の複合材料製建具_三層複層ガラス_Low_E２枚_ガスの封入されている_8 ㎜未満",2.2999999999999998,0.43,0.26,0,null,null,null,null,null,null,null,null,null,null,null,"8 ㎜未満",null,null,2.33,2.11,null,1.99,null,1.89,0.43,0.26,null,null,null,null,null,null,null,null,"8 ㎜以上 12 ㎜未満"]
[null,null,null,null,null,null,null,null,null,null,null,null,null,null,null,null,"樹脂_又は木_と金属の複合材料製建具_三層複層ガラス_Low_E２枚_ガスの封入されていない_16 ㎜以上",1.9,0.43,0.26,0,null,null,null,null,null,null,null,null,null,null,"されていない","16 ㎜以上",null,null,1.9,1.75,null,1.66,null,1.6,0.43,0.26,null,null,null,null,null,null,null,null,"8 ㎜未満"]
[null,null,null,null,null,null,null,"樹脂製建具又は木製建具_複層ガラス_一般",null,"樹脂_又は木_と金属の複合材料製建具_複層ガラス_一般",null,"その他・金属製建具・金属製熱遮断構造建具等_複層ガラス_一般",null,null,null,null,"樹脂_又は木_と金属の複合材料製建具_三層複層ガラス_Low_E２枚_ガスの封入されていない_10 ㎜以上 16 ㎜未満",2.2000000000000002,0.43,0.26,0,null,null,null,null,null,null,null,null,null,null,null,"10 ㎜以上 16 ㎜未満",null,null,2.15,1.96,null,1.86,null,1.77,0.43,0.26,null,null,null,null,null,null,null,"されていない","16 ㎜以上"]
[null,null,null,null,null,null,null,"ガスの封入されていない_13 ㎜以上",null,"ガスの封入されていない_11 ㎜以上",null,"ガスの封されていない_8 ㎜以上",null,null,null,null,"樹脂_又は木_と金属の複合材料製建具_三層複層ガラス_Low_E２枚_ガスの封入されていない_8 ㎜以上 10 ㎜未満",2.2999999999999998,0.43,0.26,0,null,null,null,null,null,null,null,null,null,null,null,"8 ㎜以上 10 ㎜未満",null,null,2.33,2.11,null,1.99,null,1.89,0.43,0.26,null,null,null,null,null,null,null,null,"10 ㎜以上 16 ㎜未満"]
[null,null,null,null,null,null,null,"ガスの封入されていない_13 ㎜未満",null,"ガスの封入されていない_11 ㎜未満",null,"ガスの封されていない_8 ㎜未満",null,null,null,null,"樹脂_又は木_と金属の複合材料製建具_三層複層ガラス_Low_E２枚_ガスの封入されていない_8 ㎜未満",2.9,0.43,0.26,0,null,null,null,null,null,null,null,null,null,null,null,"8 ㎜未満",null,null,2.91,2.59,null,2.41,null,2.2599999999999998,0.43,0.26,null,null,null,null,null,null,null,null,"8 ㎜以上 10 ㎜未満"]
[null,null,null,null,null,null,null,null,null,null,null,null,null,null,null,2,{"$f":"C$8&\"_\"&F$16&\"_\"&J17","v":"樹脂_又は木_と金属の複合材料製建具_三層複層ガラス_Low_E１枚_ガスの封入されている_12 ㎜以上"},2.2000000000000002,0.47,0.3,0,null,null,null,null,null,null,null,null,null,"Low-E ガラス １枚","されている","12 ㎜以上",null,null,2.15,1.96,null,1.86,null,1.77,0.47,0.3,null,null,null,null,null,null,null,null,"8 ㎜未満"]
[null,null,null,null,null,null,null,"樹脂製建具又は木製建具_単板ガラス",null,"樹脂_又は木_と金属の複合材料製建具_単板ガラス",null,"その他・金属製建具・金属製熱遮断構造建具等_単板ガラス",null,null,null,null,"樹脂_又は木_と金属の複合材料製建具_三層複層ガラス_Low_E１枚_ガスの封入されている_9 ㎜以上 12 ㎜未満",2.2999999999999998,0.47,0.3,0,null,null,null,null,null,null,null,null,null,null,null,"9 ㎜以上 12 ㎜未満",null,null,2.33,2.11,null,1.99,null,1.89,0.47,0.3,null,null,null,null,null,null,"Low-E ガラス １枚","されている","12 ㎜以上"]
[null,null,null,null,null,null,null,"－",null,"－",null,"－",null,null,null,null,"樹脂_又は木_と金属の複合材料製建具_三層複層ガラス_Low_E１枚_ガスの封入されている_9 ㎜未満",2.9,0.47,0.3,0,null,null,null,null,null,null,null,null,null,null,null,"9 ㎜未満",null,null,2.91,2.59,null,2.41,null,2.2599999999999998,0.47,0.3,null,null,null,null,null,null,null,null,"9 ㎜以上 12 ㎜未満"]
[null,null,null,null,null,null,null,null,null,null,null,null,null,null,null,null,"樹脂_又は木_と金属の複合材料製建具_三層複層ガラス_Low_E１枚_ガスの封入されていない_16 ㎜以上",2.2000000000000002,0.47,0.3,0,null,null,null,null,null,null,null,null,null,null,"されていない","16 ㎜以上",null,null,2.15,1.96,null,1.86,null,1.77,0.47,0.3,null,null,null,null,null,null,null,null,"9 ㎜未満"]
[null,null,null,null,null,null,null,null,null,null,null,null,null,null,null,null,"樹脂_又は木_と金属の複合材料製建具_三層複層ガラス_Low_E１枚_ガスの封入されていない_12 ㎜以上 16 ㎜未満",2.2999999999999998,0.47,0.3,0,null,null,null,null,null,null,null,null,null,null,null,"12 ㎜以上 16 ㎜未満",null,null,2.33,2.11,null,1.99,null,1.89,0.47,0.3,null,null,null,null,null,null,null,"されていない","16 ㎜以上"]
[null,null,null,null,null,null,null,null,null,null,null,null,null,null,null,null,"樹脂_又は木_と金属の複合材料製建具_三層複層ガラス_Low_E１枚_ガスの封入されていない_12 ㎜未満",2.9,0.47,0.3,0,null,null,null,null,null,null,null,null,null,null,null,"12 ㎜未満",null,null,2.91,2.59,null,2.41,null,2.2599999999999998,0.47,0.3,null,null,null,null,null,null,null,null,"12 ㎜以上 16 ㎜未満"]
[null,null,null,null,null,null,null,null,null,null,null,null,null,null,null,3,{"$f":"C$8&\"_\"&F$17&\"_\"&J25","v":"樹脂_又は木_と金属の複合材料製建具_三層複層ガラス_一般_ガスの封入されていない_7 ㎜以上"},2.9,0,0,0.57999999999999996,null,null,null,null,null,null,null,null,null,"一般ガラス","されていない","7 ㎜以上",null,null,2.91,2.59,null,2.41,null,2.2599999999999998,null,null,0.57999999999999996,null,null,null,null,null,null,null,"12 ㎜未満"]
[null,null,null,null,null,null,null,null,null,null,null,null,null,null,null,null,{"$f":"C$8&\"_\"&F$17&\"_\"&J26","v":"樹脂_又は木_と金属の複合材料製建具_三層複層ガラス_一般_ガスの封入されていない_7 ㎜未満"},3.5,0,0,0.57999999999999996,null,null,null,null,null,null,null,null,null,null,null,"7 ㎜未満",null,null,3.49,3.04,null,2.82,null,2.59,null,null,0.57999999999999996,null,null,null,null,null,"一般ガラス","されていない","7 ㎜以上"]
[null,"【プルダウン】",null,null,null,null,null,null,null,null,null,null,null,null,null,4,{"$f":"C$8&\"_\"&F$18&\"_\"&J29","v":"樹脂_又は木_と金属の複合材料製建具_二層複層ガラス_Low_E_ガスの封入されている_14 ㎜以上"},2.2999999999999998,0.51,0.32,0,null,null,null,null,null,null,null,"二層複層ガラス",null,"Low-E ガラス","されている","14 ㎜以上",null,null,2.33,2.11,null,1.99,null,1.89,0.51,0.32,null,null,null,null,null,null,null,null,"7 ㎜未満"]
[null,null,{"$f":"C6","v":"建具の仕様"},null,null,null,null,null,null,null,null,null,null,null,null,null,{"$f":"C$8&\"_\"&F$18&\"_\"&J30","v":"樹脂_又は木_と金属の複合材料製建具_二層複層ガラス_Low_E_ガスの封入されている_14 ㎜未満"},2.9,0.51,0.32,0,null,null,null,null,null,null,null,null,null,null,null,"14 ㎜未満",null,null,2.91,2.59,null,2.41,null,2.2599999999999998,0.51,0.32,null,null,null,null,"二層複層ガラス",null,"Low-E ガラス","されている","14 ㎜以上"]
[null,null,{"$f":"C7","v":"樹脂製建具又は木製建具"},null,null,null,null,null,null,null,null,null,null,null,null,null,{"$f":"C$8&\"_\"&F$18&\"_\"&J31","v":"樹脂_又は木_と金属の複合材料製建具_二層複層ガラス_Low_E_ガスの封入されていない_9 ㎜以上"},2.9,0.51,0.32,0,null,null,null,null,null,null,null,null,null,null,"されていない","9 ㎜以上",null,null,2.91,2.59,null,2.41,null,2.2599999999999998,0.51,0.32,null,null,null,null,null,null,null,null,"14 ㎜未満"]
[null,null,{"$f":"C8","v":"樹脂_又は木_と金属の複合材料製建具"},null,null,null,null,null,null,null,null,null,null,null,null,null,{"$f":"C$8&\"_\"&F$18&\"_\"&J32","v":"樹脂_又は木_と金属の複合材料製建具_二層複層ガラス_Low_E_ガスの封入されていない_9 ㎜未満"},3.5,0.51,0.32,0,null,null,null,null,null,null,null,null,null,null,null,"9 ㎜未満",null,null,3.49,3.04,null,2.82,null,2.59,0.51,0.32,null,null,null,null,null,null,null,"されていない","9 ㎜以上"]
[null,null,{"$f":"C9","v":"その他・金属製建具・金属製熱遮断構造建具等"},null,null,null,null,null,null,null,null,null,null,null,null,5,{"$f":"C$8&\"_\"&F$19&\"_\"&J37","v":"樹脂_又は木_と金属の複合材料製建具_二層複層ガラス_一般_ガスの封入されていない_11 ㎜以上"},3.5,0,0,0.63,null,null,null,null,null,null,null,null,null,"一般ガラス","されていない","11 ㎜以上",null,null,3.49,3.04,null,2.82,null,2.59,null,null,0.63,null,null,null,null,null,null,null,"9 ㎜未満"]
[null,null,{"$f":"C10","v":0},null,null,null,null,null,null,null,null,null,null,null,null,null,{"$f":"C$8&\"_\"&F$19&\"_\"&J38","v":"樹脂_又は木_と金属の複合材料製建具_二層複層ガラス_一般_ガスの封入されていない_11 ㎜未満"},4.0999999999999996,0,0,0.63,null,null,null,null,null,null,null,null,null,null,null,"11 ㎜未満",null,null,4.07,3.49,null,3.21,null,2.9,null,null,0.63,null,null,null,null,null,"一般ガラス","されていない","11 ㎜以上"]
[null,null,null,null,null,null,null,null,null,null,null,null,null,null,null,6,{"$f":"C$8&\"_\"&F$20&\"_\"&J41","v":"樹脂_又は木_と金属の複合材料製建具_単板ガラス_－"},6.5,0,0,0.7,null,null,null,null,null,null,null,"単板ガラス",null,"－","－","－",null,null,6.51,5.23,null,4.76,null,3.95,null,null,0.7,null,null,null,null,null,null,null,"11 ㎜未満"]
[null,null,null,null,null,null,null,null,null,null,null,null,null,null,null,1,{"$f":"C$9&\"_\"&F$23&\"_\"&L29","v":"その他・金属製建具・金属製熱遮断構造建具等_二層複層ガラス_Low_E_ガスの封されている_10 ㎜以上"},2.9,{"$f":"AP54","v":0.51},{"$f":"AQ54","v":0.32},{"$f":"AR54","v":0},null,null,null,null,null,"その他\n・金属製建具\n・金属製熱遮断構造建具等",null,"二層複層ガラス",null,"Low-E ガラス","されている","10 ㎜以上",null,null,2.91,2.59,null,2.41,null,2.2599999999999998,0.51,0.32,null,null,null,null,"単板ガラス",null,"－","－","－"]
[null,null,null,null,null,null,null,null,null,null,null,null,null,null,null,null,{"$f":"C$9&\"_\"&F$23&\"_\"&L30","v":"その他・金属製建具・金属製熱遮断構造建具等_二層複層ガラス_Low_E_ガスの封されている_10 ㎜未満"},3.5,0.51,0.32,0,null,null,null,null,null,null,null,null,null,null,null,"10 ㎜未満",null,null,3.49,3.04,null,2.82,null,2.59,0.51,0.32,null,null,"その他\n・金属製建具\n・金属製熱遮断構造建具等",null,"二層複層ガラス",null,"Low-E ガラス","されている","10 ㎜以上"]
[null,null,null,null,null,null,null,null,null,null,null,null,null,null,null,null,{"$f":"C$9&\"_\"&F$23&\"_\"&L31","v":"その他・金属製建具・金属製熱遮断構造建具等_二層複層ガラス_Low_E_ガスの封されていない_14 ㎜以上"},2.9,0.51,0.32,0,null,null,null,null,null,null,null,null,null,null,"されていない","14 ㎜以上",null,null,2.91,2.59,null,2.41,null,2.2599999999999998,0.51,0.32,null,null,null,null,null,null,null,null,"10 ㎜未満"]
[null,null,null,null,null,null,null,null,null,null,null,null,null,null,null,null,{"$f":"C$9&\"_\"&F$23&\"_\"&L32","v":"その他・金属製建具・金属製熱遮断構造建具等_二層複層ガラス_Low_E_ガスの封されていない_7 ㎜以上 14 ㎜未満"},3.5,0.51,0.32,0,null,null,null,null,null,null,null,null,null,null,null,"7 ㎜以上 14 ㎜未満",null,null,3.49,3.04,null,2.82,null,2.59,0.51,0.32,null,null,null,null,null,null,null,"されていない","14 ㎜以上"]
[null,null,null,null,null,null,null,null,null,null,null,null,null,null,null,null,{"$f":"C$9&\"_\"&F$23&\"_\"&L33","v":"その他・金属製建具・金属製熱遮断構造建具等_二層複層ガラス_Low_E_ガスの封されていない_7 ㎜未満"},4.0999999999999996,0.51,0.32,0,null,null,null,null,null,null,null,null,null,null,null,"7 ㎜未満",null,null,4.07,3.49,null,3.21,null,2.9,0.51,0.32,null,null,null,null,null,null,null,null,"7 ㎜以上 14 ㎜未満"]
[null,null,null,null,null,null,null,null,null,null,null,null,null,null,null,2,{"$f":"C$9&\"_\"&F$24&\"_\"&L37","v":"その他・金属製建具・金属製熱遮断構造建具等_二層複層ガラス_一般_ガスの封されていない_8 ㎜以上"},4.0999999999999996,0,0,0.63,null,null,null,null,null,null,null,null,null,"一般ガラス","されていない","8 ㎜以上",null,null,4.07,3.49,null,3.21,null,2.9,null,null,0.63,null,null,null,null,null,null,null,"7 ㎜未満"]
[null,null,null,null,null,null,null,null,null,null,null,null,null,null,null,null,{"$f":"C$9&\"_\"&F$24&\"_\"&L38","v":"その他・金属製建具・金属製熱遮断構造建具等_二層複層ガラス_一般_ガスの封されていない_8 ㎜未満"},4.7,0,0,0.63,null,null,null,null,null,null,null,null,null,null,null,"8 ㎜未満",null,null,4.6500000000000004,3.92,null,3.6,null,3.18,null,null,0.63,null,null,null,null,null,"一般ガラス","されていない","8 ㎜以上"]
[null,null,null,null,null,null,null,null,null,null,null,null,null,null,null,3,{"$f":"C$9&\"_\"&F$25&\"_\"&L41","v":"その他・金属製建具・金属製熱遮断構造建具等_単板ガラス_－"},6.5,0,0,0.7,null,null,null,null,null,null,null,"単板ガラス",null,"－","－","－",null,null,6.51,5.23,null,4.76,null,3.95,null,null,0.7,null,null,null,null,null,null,null,"8 ㎜未満"]
[null,null,null,null,null,null,null,null,null,null,null,null,null,null,null,null,null,null,null,null,null,null,null,null,null,"表中の用語の定義については、国立研究開発法人建築研究所が公表する「平成 28 年省エネルギー基準に準拠したエネルギー消費性能の評価に関する技術情報（住\n宅）」の「2. エネルギー消費性能の算定方法 2.1 算定方法 1. 概要と用語の定義」を参照（https://www.kenken.go.jp/becc /house.html）\n※ 1「ガス」とは、アルゴンガス又は熱伝導率がこれと同等以下のものをいいます。   ※ 2 国立研究開発法人建築研究所ホームページ内「平成 28 年省エネルギー基準に準拠したエネルギー消費性能の評価に関する技術情報」の熱貫流率及び線熱貫流率（ドア等の大部分がガラスで構成されない開口部）の熱貫流率の表及\nび風除室に面する場合の計算式によります。簡易計算の結果よりも安全側に丸めていますのでご注意ください。",null,null,null,null,null,null,null,null,null,null,null,null,null,null,null,null,null,null,null,null,null,"単板ガラス",null,"－","－","－"]

{"sheet":"B 仕様入力シート　５６７地域","index":4,"n_rows":85,"n_cols":53,"rows_kept":85,"cut":false,"hidden":false,"merged":[[81,3,81,13],[38,10,38,13],[28,1,30,1],[13,5,13,6],[82,1,84,1],[42,3,42,4],[39,7,39,8],[42,7,42,8],[37,7,37,8],[38,5,38,6],[38,7,38,8],[37,5,37,6],[42,5,42,6],[84,3,84,13],[39,3,39,4],[38,3,38,4],[71,3,71,13],[76,3,76,13],[9,5,10,6],[25,2,25,3],[29,2,30,2],[30,6,30,7],[17,5,17,6],[15,5,15,6],[9,7,10,7],[28,6,28,7],[29,6,29,7],[63,3,63,13],[37,3,37,4],[29,8,29,9],[39,5,39,6],[30,8,30,9],[25,21,25,22],[25,10,25,11],[15,11,15,14],[23,8,23,9],[28,2,28,3],[23,6,23,7],[18,5,18,6],[28,8,28,9],[24,8,24,9],[25,8,25,9],[25,19,25,20],[24,15,24,18],[25,15,25,18],[27,15,27,18],[28,15,28,18],[26,15,26,18],[11,11,11,14],[12,11,12,14],[13,11,13,14],[14,11,14,14],[0,8,2,8],[14,5,14,6],[12,5,12,6],[37,10,37,13],[24,6,24,7],[25,6,25,7],[16,5,16,6],[24,10,24,11],[30,10,30,11],[0,7,2,7],[1,9,2,9],[0,10,2,13],[0,1,2,6],[9,17,10,17],[9,11,9,14],[10,11,10,14],[8,15,9,16],[0,14,0,15],[1,14,2,15],[8,5,8,6],[9,8,10,8],[7,5,7,6],[8,11,8,14],[9,1,10,1],[9,4,10,4],[42,10,42,13],[25,12,26,12],[16,11,16,14],[17,11,17,14],[18,11,18,14],[23,10,23,11],[25,14,26,14],[39,14,39,15],[40,10,40,13],[29,10,29,11],[29,15,29,18],[28,10,28,11],[39,10,39,13],[41,10,41,13],[23,15,23,18],[30,15,30,18]]}
[null,"５ ・ ６ ・ ７ 地域　仕様入力シート",null,null,null,null,null,"地域の区分",{"$f":"IF('A 最初に入力してください　基本情報'!C21=\"\",\"\",'A 最初に入力してください　基本情報'!C21)","v":""},null,{"$f":"IF(OR('A 最初に入力してください　基本情報'!C16=\"\",'A 最初に入力してください　基本情報'!C19=\"\"),\"\",IF(OR(I1=5,I1=6,I1=7),\"\",\"←入力するシートが違います!!\"))","v":""},null,null,null,"省エネ基準適否",null,null,null,null,null,null,null,null,null,null,"非表示","非表示","非表示","非表示","非表示","非表示","非表示","非表示","非表示","非表示","非表示","非表示","非表示","非表示","非表示","非表示","非表示","非表示","非表示","非表示","非表示","非表示","非表示","非表示","非表示","非表示","非表示","非表示"]
[null,null,null,null,null,null,null,null,null,"地域",null,null,null,null,{"$f":"IF(OR(I1=5,I1=6,I1=7),IF((SUM(AP13:AP19)+SUM(AP29:AP31)+AP43+AP47)>0,\"不適\",\"適合\"),\"\")","v":""}]
[]
[]
[]
[]
[]
[null,null,null,null,null,null,null,"自動で表示",null,"自動で表示",null,null,null,null,null,"自動で表示","自動で表示","自動で表示"]
[null,null,"①","②","③","④",null,"⑤","⑥","⑦","⑧","⑨",null,null,null,"熱抵抗",null,null,null,null,null,null,null,null,null,null,null,null,null,null,null,null,null,null,null,null,null,null,null,null,null,null,null,null,"出力帳票"]
[null,"部位","断熱部位の","熱抵抗R","断熱工法","断熱材の種類",null,"熱伝導率","厚さ","計算結果出力","直接入力","備考",null,null,null,null,null,"適否確認",null,null,null,null,null,null,null,null,null,null,null,null,null,null,null,null,null,null,null,null,null,null,null,null,null,null,1,2,3,4,5,6]
[null,null,"該当チェック","入力方法",null,null,null,null,null,"熱抵抗 ","熱抵抗","② 熱抵抗R入力方法　　「直接入力」　の場合",null,null,null,"設計値","基準値",null,null,null,null,null,null,null,null,null,null,null,"直接入力",null,null,"内断熱","外断熱または両面断熱",null,null,null,null,"適否確認"]
[null,null,null,null,null,null,null,"λ［W（/ m・K）］","［mm］","R［㎡・K / W］","R［㎡・K / W］","断熱材の種類、熱伝導率λ、厚さ、参考資料等を記入",null,null,null,"R［㎡・K / W］","R［㎡・K / W］",null,null,null,null,null,null,null,null,null,null,null,"R切り捨て",null,null,"軸組充填","枠組充填","外張","記号","基準値",null,"直接入力","プルダウン",null,null,"省エネ基準適否",null,null,"断熱工法","断熱材の種類","断熱材の厚さ","熱抵抗：設計値","熱抵抗：基準値","備考"]
[null,"屋根",null,null,null,null,null,{"$f":"IF(F13=\"\",\"\",VLOOKUP(F13,断熱材_非表示!$G$6:$H$87,2,FALSE))","v":""},null,{"$f":"IF(OR(F13=\"\",I13=\"\"),\"\",ROUNDDOWN((I13/1000/H13),1))","v":""},null,null,null,null,null,{"$f":"IF(D13=\"\",\"\",IF(D13=\"直接入力\",AC13,J13))","v":""},{"$f":"IFERROR(IF(D13=\"直接入力\",IF(K13=\"\",\"\",AI13&\" \"&FIXED(AJ13,1)),IF(J13=\"\",\"\",AI13&\" \"&FIXED(AJ13,1))),\"エラー\")","v":""},{"$f":"IF(C13=\"該当部位なし\",\"該当部位なし\",IF(D13=\"\",\"\",IF(OR($I$1=1,$I$1=2,$I$1=3,$I$1=4,$I$1=8),\"地域に対し入力するシートが違います\",IF(D13=\"直接入力\",AL13,IF(D13=\"断熱材の種類から入力\",AM13,\"\")))))","v":""},null,null,null,null,null,null,null,null,null,null,{"$f":"IF(K13=\"\",\"\",ROUNDDOWN(K13,1))","v":""},null,2,{"$f":"VLOOKUP($I$1,'仕様基準-省エネ基準_非表示'!$B$10:$J$12,$AE13,FALSE)","v":{"$error":"#N/A"}},{"$f":"VLOOKUP($I$1,'仕様基準-省エネ基準_非表示'!$B$22:$J$24,$AE13,FALSE)","v":{"$error":"#N/A"}},{"$f":"VLOOKUP($I$1,'仕様基準-省エネ基準_非表示'!$B$34:$J$36,$AE13,FALSE)","v":{"$error":"#N/A"}},"≧",{"$f":"IF(E13=$AF$12,AF13,IF(E13=$AG$12,AG13,IF(E13=$AH$12,AH13,\"未入力\")))","v":"未入力"},null,{"$f":"IF(K13=\"\",\"\",IF(K13>=AJ13,\"適合\",\"不適\"))","v":""},{"$f":"IF(J13=\"\",\"\",IF(J13>=AJ13,\"適合\",\"不適\"))","v":""},null,null,{"$f":"IF(C13=\"断熱部位\",IF(R13=\"適合\",0,1),0)","v":0},null,null,{"$f":"IF(C13=\"該当部位なし\",\"－\",IF(E13=\"\",\"\",E13))","v":""},{"$f":"IF(C13=\"該当部位なし\",\"－\",IF(D13=\"直接入力\",\"－\",IF(F13=\"\",\"\",F13)))","v":""},{"$f":"IF(C13=\"該当部位なし\",\"－\",IF(D13=\"直接入力\",\"－\",IF(I13=\"\",\"\",I13)))","v":""},{"$f":"IF(C13=\"該当部位なし\",\"－\",IF(OR(P13=\"\",P13=0),\"\",P13))","v":""},{"$f":"IF(C13=\"該当部位なし\",\"－\",IF(AJ13=\"未入力\",\"\",AJ13))","v":""},{"$f":"IF(C13=\"\",\"\",IF(C13=\"該当部位なし\",\"該当部位なし\",IF(L13=\"\",\"－\",L13)))","v":""}]
[null,"天井",null,null,null,null,null,{"$f":"IF(F14=\"\",\"\",VLOOKUP(F14,断熱材_非表示!$G$6:$H$87,2,FALSE))","v":""},null,{"$f":"IF(OR(F14=\"\",I14=\"\"),\"\",ROUNDDOWN((I14/1000/H14),1))","v":""},null,null,null,null,null,{"$f":"IF(D14=\"\",\"\",IF(D14=\"直接入力\",AC14,J14))","v":""},"","",null,null,null,null,null,null,null,null,null,null,{"$f":"IF(K14=\"\",\"\",ROUNDDOWN(K14,1))","v":""},null,3,{"$f":"VLOOKUP($I$1,'仕様基準-省エネ基準_非表示'!$B$10:$J$12,$AE14,FALSE)","v":{"$error":"#N/A"}},{"$f":"VLOOKUP($I$1,'仕様基準-省エネ基準_非表示'!$B$22:$J$24,$AE14,FALSE)","v":{"$error":"#N/A"}},{"$f":"VLOOKUP($I$1,'仕様基準-省エネ基準_非表示'!$B$34:$J$36,$AE14,FALSE)","v":{"$error":"#N/A"}},"≧",{"$f":"IF(E14=$AF$12,AF14,IF(E14=$AG$12,AG14,IF(E14=$AH$12,AH14,\"未入力\")))","v":"未入力"},null,{"$f":"IF(K14=\"\",\"\",IF(K14>=AJ14,\"適合\",\"不適\"))","v":""},{"$f":"IF(J14=\"\",\"\",IF(J14>=AJ14,\"適合\",\"不適\"))","v":""},null,null,{"$f":"IF(C14=\"断熱部位\",IF(R14=\"適合\",0,1),0)","v":0},null,null,{"$f":"IF(C14=\"該当部位なし\",\"－\",IF(E14=\"\",\"\",E14))","v":""},{"$f":"IF(C14=\"該当部位なし\",\"－\",IF(D14=\"直接入力\",\"－\",IF(F14=\"\",\"\",F14)))","v":""},{"$f":"IF(C14=\"該当部位なし\",\"－\",IF(D14=\"直接入力\",\"－\",IF(I14=\"\",\"\",I14)))","v":""},{"$f":"IF(C14=\"該当部位なし\",\"－\",IF(OR(P14=\"\",P14=0),\"\",P14))","v":""},{"$f":"IF(C14=\"該当部位なし\",\"－\",IF(AJ14=\"未入力\",\"\",AJ14))","v":""},{"$f":"IF(C14=\"\",\"\",IF(C14=\"該当部位なし\",\"該当部位なし\",IF(L14=\"\",\"－\",L14)))","v":""}]
[null,"壁",null,null,null,null,null,{"$f":"IF(F15=\"\",\"\",VLOOKUP(F15,断熱材_非表示!$G$6:$H$87,2,FALSE))","v":""},null,"",null,null,null,null,null,"","","",null,null,null,null,null,null,null,null,null,null,"",null,4,{"$f":"VLOOKUP($I$1,'仕様基準-省エネ基準_非表示'!$B$10:$J$12,$AE15,FALSE)","v":{"$error":"#N/A"}},{"$f":"VLOOKUP($I$1,'仕様基準-省エネ基準_非表示'!$B$22:$J$24,$AE15,FALSE)","v":{"$error":"#N/A"}},{"$f":"VLOOKUP($I$1,'仕様基準-省エネ基準_非表示'!$B$34:$J$36,$AE15,FALSE)","v":{"$error":"#N/A"}},"≧","未入力",null,"","",null,null,{"$f":"IF(R15=\"適合\",0,1)","v":1},null,null,"","","","","",{"$f":"IF(D15=\"\",\"\",IF(L15=\"\",\"－\",L15))","v":""}]
[null,"床\n外気に接する部分※1",null,null,null,null,null,{"$f":"IF(F16=\"\",\"\",VLOOKUP(F16,断熱材_非表示!$G$6:$H$87,2,FALSE))","v":""},null,"",null,null,null,null,null,"","","",null,null,null,null,null,null,null,null,null,null,"",null,5,{"$f":"VLOOKUP($I$1,'仕様基準-省エネ基準_非表示'!$B$10:$J$12,$AE16,FALSE)","v":{"$error":"#N/A"}},{"$f":"VLOOKUP($I$1,'仕様基準-省エネ基準_非表示'!$B$22:$J$24,$AE16,FALSE)","v":{"$error":"#N/A"}},{"$f":"VLOOKUP($I$1,'仕様基準-省エネ基準_非表示'!$B$34:$J$36,$AE16,FALSE)","v":{"$error":"#N/A"}},"≧","未入力",null,"","",null,null,{"$f":"IF(C16=\"断熱部位\",IF(R16=\"適合\",0,1),0)","v":0},null,null,"","","","","",{"$f":"IF(C16=\"\",\"\",IF(C16=\"該当部位なし\",\"該当部位なし\",IF(L16=\"\",\"－\",L16)))","v":""}]
[null,"床\nその他の部分",null,null,null,null,null,{"$f":"IF(F17=\"\",\"\",VLOOKUP(F17,断熱材_非表示!$G$6:$H$87,2,FALSE))","v":""},null,"",null,null,null,null,null,"","","",null,null,null,null,null,null,null,null,null,null,"",null,6,{"$f":"VLOOKUP($I$1,'仕様基準-省エネ基準_非表示'!$B$10:$J$12,$AE17,FALSE)","v":{"$error":"#N/A"}},{"$f":"VLOOKUP($I$1,'仕様基準-省エネ基準_非表示'!$B$22:$J$24,$AE17,FALSE)","v":{"$error":"#N/A"}},{"$f":"VLOOKUP($I$1,'仕様基準-省エネ基準_非表示'!$B$34:$J$36,$AE17,FALSE)","v":{"$error":"#N/A"}},"≧","未入力",null,"","",null,null,{"$f":"IF(C17=\"断熱部位\",IF(R17=\"適合\",0,1),0)","v":0},null,null,"","","","","",{"$f":"IF(C17=\"\",\"\",IF(C17=\"該当部位なし\",\"該当部位なし\",IF(L17=\"\",\"－\",L17)))","v":""}]
[null,"土間床等の外周部分の\n基礎壁\n（外気に接する部分）※2",null,null,{"$f":"IF(C18=\"断熱部位\",\"内断熱、外断熱または両側断熱\",\"\")","v":""},null,null,{"$f":"IF(F18=\"\",\"\",VLOOKUP(F18,断熱材_非表示!$G$6:$H$87,2,FALSE))","v":""},null,"",null,null,null,null,null,"","","",null,null,null,null,null,null,null,null,null,null,"",null,8,{"$f":"VLOOKUP($I$1,'仕様基準-省エネ基準_非表示'!$B$10:$J$12,$AE18,FALSE)","v":{"$error":"#N/A"}},null,null,"≧",{"$f":"AF18","v":{"$error":"#N/A"}},null,"","",null,null,{"$f":"IF(C18=\"断熱部位\",IF(R18=\"適合\",0,1),0)","v":0},null,null,"","","","",{"$f":"IF(C18=\"該当部位なし\",\"－\",IF(D18=\"\",\"\",AJ18))","v":""},{"$f":"IF(C18=\"\",\"\",IF(C18=\"該当部位なし\",\"該当部位なし\",IF(L18=\"\",\"－\",L18)))","v":""}]
[null,"土間床等の外周部分の\n基礎壁\n（その他の部分）※2",null,null,{"$f":"IF(C19=\"断熱部位\",\"内断熱、外断熱または両側断熱\",\"\")","v":""},null,null,{"$f":"IF(F19=\"\",\"\",VLOOKUP(F19,断熱材_非表示!$G$6:$H$87,2,FALSE))","v":""},null,"",null,null,null,null,null,"","","",null,null,null,null,null,null,null,null,null,null,"",null,9,{"$f":"VLOOKUP($I$1,'仕様基準-省エネ基準_非表示'!$B$10:$J$12,$AE19,FALSE)","v":{"$error":"#N/A"}},null,null,"≧",{"$f":"AF19","v":{"$error":"#N/A"}},null,"","",null,null,{"$f":"IF(C19=\"断熱部位\",IF(R19=\"適合\",0,1),0)","v":0},null,null,"","","","",{"$f":"IF(C19=\"該当部位なし\",\"－\",IF(D19=\"\",\"\",AJ19))","v":""},{"$f":"IF(C19=\"\",\"\",IF(C19=\"該当部位なし\",\"該当部位なし\",IF(L19=\"\",\"－\",L19)))","v":""}]
[null,"※1　床の「外気に接する部分」のうち、住宅の床面積の合計に0.05を乗じた面積以下の部分については、床の「その他の部分」とみなすことができます。"]
[null,"※2　玄関、勝手口等の土間床部分については断熱を省略することができます。"]
[]
[]
[null,null,null,null,null,null,null,null,null,null,null,null,null,null,null,null,null,null,null,"自動で表示","自動で表示","自動で表示","自動で表示","自動で表示",null,null,null,null,null,null,null,null,null,null,null,null,null,null,null,null,null,null,null,null,"出力帳票"]
[null,null,null,null,"①","②","③",null,"④",null,"⑤",null,"⑥","⑦","⑧","⑨",null,null,null,null,null,null,null,null,null,null,null,null,null,null,null,null,null,null,null,null,null,null,null,"適否確認",null,null,null,null,"建具の仕様"," ガラスの仕様","中空層の仕様","日射取得\n/日射遮蔽","熱貫流率［W/(㎡･K)]",null,"日射熱取得率［－］",null,"備考"]
[null,"部位","日射遮蔽対策",null,"該当窓の有無","窓の\n入力方法","建具の仕様",null," ガラスの仕様",null,"中空層の仕様",null,"Low-Eガラス\n日射取得/遮蔽","直接入力\n熱貫流率","直接入力\n開口部の日射熱取得率","備考\n② 窓の入力方法　　「直接入力」　の場合",null,null,null,"熱貫流率",null,"日射熱取得率",null,"適否確認",null,null,null,null,null,null,null,null,null,"基準値",null,"直接入力","プルダウン","直接入力","プルダウン","直接入力","プルダウン",null,null,null,null,null,null,null,"設計値","基準値","設計値","基準値"]
[null,null,null,null,null,null,null,null,null,null,null,null,null,null,null,"製品カタログやホームページ、自己適合宣言附属書の№を記入",null,null,null,"設計値","基準値","設計値","基準値",null,null,null,null,null,"直接入力","直接入力",null,null,null,null,null,null,null,null,null,null,null,null,"出力帳票","出力帳票",1,2,3,4,5,6,7,8,9]
[null,null,null,null,null,null,null,null,null,null,null,null,null,"U［W/(㎡・K)］","ηd［―］","注：『自己適合宣言書と同附属書』を添付すること",null,null,null,"U［W/(㎡・K)］","U［W/(㎡・K)］","η［―］","η［―］",null,null,null,null,null,"U四捨五入","η四捨五入",null,null,null,"U","η","U","U","η","η",null,null,"省エネ基準適否","U","η"]
[null,"窓 ※3※4","有効なひさし、軒等※5、\n付属部材※6が\nある所に設置する窓",null,null,null,null,null,null,null,null,null,null,null,null,null,null,null,null,{"$f":"IF(F29=\"直接入力\",IF(N29=\"\",\"\",AC29),IF(G29=\"\",\"\",IFERROR(VLOOKUP(AF29,窓のプルダウン_非表示!$Q$7:$R$61,2,FALSE),\"エラー！選択肢チェック参照\")))","v":""},{"$f":"IFERROR(IF(F29=\"直接入力\",IF(N29=\"\",\"\",\"≦\"&\" \"&AH29),IF(ISNUMBER(T29),\"≦\"&\" \"&AH29,\"\")),\"エラー\")","v":""},null,null,{"$f":"IF(E29=\"\",\"\",IF(OR($I$1=1,$I$1=2,$I$1=3,$I$1=4,$I$1=3,$I$1=8),\"地域に対し入力するシートが違います\",IF(E29=\"なし\",\"該当窓なし\",IF(F29=\"直接入力\",AJ29,IF(F29=\"建具とガラスの組み合わせから入力\",AK29,\"\")))))","v":""},null,null,null,null,{"$f":"IF(N29=\"\",\"\",ROUND(N29,1))","v":""},null,{"$f":"G29&\"_\"&I29","v":"_"},{"$f":"G29&\"_\"&I29&\"_\"&K29","v":"__"},{"$f":"I29","v":0},{"$f":"VLOOKUP($I$1,'仕様基準-省エネ基準_非表示'!$L$10:$O$12,3,FALSE)","v":{"$error":"#N/A"}},null,{"$f":"IF(N29=\"\",\"\",IF(AC29<=AH29,\"適合\",\"不適\"))","v":""},{"$f":"IF(U29=\"\",\"\",IF(T29<=AH29,\"適合\",\"不適\"))","v":""},null,null,null,null,{"$f":"IF(E29=\"あり\",IF(X29=\"適合\",0,1),0)","v":0},{"$f":"IF(F29=\"\",\"\",IF(F29=\"直接入力\",N29,T29))","v":""},null,{"$f":"IF(OR(E29=\"\",E29=\"なし\"),\"－\",IF(F29=\"直接入力\",\"－\",G29))","v":"－"},{"$f":"IF(OR(E29=\"\",E29=\"なし\"),\"－\",IF(F29=\"直接入力\",\"－\",I29))","v":"－"},{"$f":"IF(OR(E29=\"\",E29=\"なし\"),\"－\",IF(F29=\"直接入力\",\"－\",K29))","v":"－"},null,{"$f":"IF(OR(E29=\"\",E29=\"なし\"),\"－\",T29)","v":"－"},{"$f":"IF(OR(E29=\"\",E29=\"なし\"),\"－\",AH29)","v":"－"},null,null,{"$f":"IF(E29=\"\",\"－\",IF(E29=\"なし\",\"該当窓なし\",IF(P29=\"\",\"－\",P29)))","v":"－"}]
[null,null,"有効なひさし、軒等※5、\n付属部材※6が\nない所に設置する窓","熱貫流率Ｕが最大の窓",null,null,null,null,null,null,null,null,null,null,null,null,null,null,null,{"$f":"IF(F30=\"直接入力\",IF(N30=\"\",\"\",AC30),IF(G30=\"\",\"\",IFERROR(VLOOKUP(AF30,窓のプルダウン_非表示!$Q$7:$R$61,2,FALSE),\"エラー！選択肢チェック参照\")))","v":""},{"$f":"IFERROR(IF(F30=\"直接入力\",IF(N30=\"\",\"\",\"≦\"&\" \"&AH30),IF(ISNUMBER(T30),\"≦\"&\" \"&AH30,\"\")),\"エラー\")","v":""},{"$f":"IF(F30=\"直接入力\",IF(O30=\"\",\"\",AD30),IF(G30=\"\",\"\",IFERROR(IF(M30=\"日射取得型\",VLOOKUP(AF30,窓のプルダウン_非表示!$Q$7:$U$61,3,FALSE),IF(M30=\"日射遮蔽型\",VLOOKUP(AF30,窓のプルダウン_非表示!$Q$7:$U$61,4,FALSE),IF(M30=\"－\",VLOOKUP(AF30,窓のプルダウン_非表示!$Q$7:$U$61,5,FALSE),\"エラー！選択肢チェック参照\"))),\"エラー！選択肢チェック参照\")))","v":""},{"$f":"IFERROR(IF(F30=\"直接入力\",IF(O30=\"\",\"\",\"≦\"&\" \"&AI30),IF(ISNUMBER(V30),\"≦\"&\" \"&AI30,\"\")),\"エラー\")","v":""},{"$f":"IF(E30=\"\",\"\",IF(OR($I$1=1,$I$1=2,$I$1=3,$I$1=4,$I$1=3,$I$1=8),\"地域に対し入力するシートが違います\",IF(E30=\"なし\",\"該当窓なし\",IF(F30=\"直接入力\",AN30,IF(F30=\"建具とガラスの組み合わせから入力\",AO30,\"\")))))","v":""},null,null,null,null,{"$f":"IF(N30=\"\",\"\",ROUND(N30,1))","v":""},{"$f":"IF(O30=\"\",\"\",ROUND(O30,2))","v":""},{"$f":"G30&\"_\"&I30","v":"_"},{"$f":"G30&\"_\"&I30&\"_\"&K30","v":"__"},{"$f":"I30","v":0},{"$f":"VLOOKUP($I$1,'仕様基準-省エネ基準_非表示'!$L$10:$O$12,3,FALSE)","v":{"$error":"#N/A"}},{"$f":"VLOOKUP($I$1,'仕様基準-省エネ基準_非表示'!$L$10:$O$12,4,FALSE)","v":{"$error":"#N/A"}},{"$f":"IF(N30=\"\",\"\",IF(AC30<=AH30,\"適合\",\"不適\"))","v":""},{"$f":"IF(U30=\"\",\"\",IF(T30<=AH30,\"適合\",\"不適\"))","v":""},{"$f":"IF(O30=\"\",\"\",IF(AD30<=AI30,\"適合\",\"不適\"))","v":""},{"$f":"IF(W30=\"\",\"\",IF(V30<=AI30,\"適合\",\"不適\"))","v":""},{"$f":"IF(AND(N30=\"\",O30=\"\"),\"\",IF(AND(AJ30=\"適合\",AL30=\"適合\"),\"適合\",\"不適\"))","v":""},{"$f":"IF(AND(U30=\"\",W30=\"\"),\"\",IF(AND(AK30=\"適合\",AM30=\"適合\"),\"適合\",\"不適\"))","v":""},{"$f":"IF(E30=\"あり\",IF(X30=\"適合\",0,1),0)","v":0},{"$f":"IF(F30=\"\",\"\",IF(F30=\"直接入力\",N30,T30))","v":""},{"$f":"IF(F30=\"\",\"\",IF(F30=\"直接入力\",O30,V30))","v":""},{"$f":"IF(OR(E30=\"\",E30=\"なし\"),\"－\",IF(F30=\"直接入力\",\"－\",G30))","v":"－"},{"$f":"IF(OR(E30=\"\",E30=\"なし\"),\"－\",IF(F30=\"直接入力\",\"－\",I30))","v":"－"},{"$f":"IF(OR(E30=\"\",E30=\"なし\"),\"－\",IF(F30=\"直接入力\",\"－\",K30))","v":"－"},{"$f":"IF(OR(E30=\"\",E30=\"なし\"),\"－\",IF(F30=\"直接入力\",\"－\",M30))","v":"－"},{"$f":"IF(OR(E30=\"\",E30=\"なし\"),\"－\",T30)","v":"－"},{"$f":"IF(OR(E30=\"\",E30=\"なし\"),\"－\",AH30)","v":"－"},{"$f":"IF(OR(E30=\"\",E30=\"なし\"),\"－\",V30)","v":"－"},{"$f":"IF(OR(E30=\"\",E30=\"なし\"),\"－\",AI30)","v":"－"},{"$f":"IF(E30=\"\",\"－\",IF(E30=\"なし\",\"該当窓なし\",IF(P30=\"\",\"－\",P30)))","v":"－"}]
[null,null,null,"開口部の日射熱取得率ηdが最大の窓",null,null,null,null,null,null,null,null,null,null,null,null,null,null,null,{"$f":"IF(F31=\"直接入力\",IF(N31=\"\",\"\",AC31),IF(G31=\"\",\"\",IFERROR(VLOOKUP(AF31,窓のプルダウン_非表示!$Q$7:$R$61,2,FALSE),\"エラー！選択肢チェック参照\")))","v":""},{"$f":"IFERROR(IF(F31=\"直接入力\",IF(N31=\"\",\"\",\"≦\"&\" \"&AH31),IF(ISNUMBER(T31),\"≦\"&\" \"&AH31,\"\")),\"エラー\")","v":""},{"$f":"IF(F31=\"直接入力\",IF(O31=\"\",\"\",AD31),IF(G31=\"\",\"\",IFERROR(IF(M31=\"日射取得型\",VLOOKUP(AF31,窓のプルダウン_非表示!$Q$7:$U$61,3,FALSE),IF(M31=\"日射遮蔽型\",VLOOKUP(AF31,窓のプルダウン_非表示!$Q$7:$U$61,4,FALSE),IF(M31=\"－\",VLOOKUP(AF31,窓のプルダウン_非表示!$Q$7:$U$61,5,FALSE),\"エラー！選択肢チェック参照\"))),\"エラー！選択肢チェック参照\")))","v":""},{"$f":"IFERROR(IF(F31=\"直接入力\",IF(O31=\"\",\"\",\"≦\"&\" \"&AI31),IF(ISNUMBER(V31),\"≦\"&\" \"&AI31,\"\")),\"エラー\")","v":""},{"$f":"IF(E31=\"\",\"\",IF(OR($I$1=1,$I$1=2,$I$1=3,$I$1=4,$I$1=3,$I$1=8),\"地域に対し入力するシートが違います\",IF(E31=\"なし\",\"該当窓なし\",IF(F31=\"直接入力\",AN31,IF(F31=\"建具とガラスの組み合わせから入力\",AO31,\"\")))))","v":""},null,null,null,null,"",{"$f":"IF(O31=\"\",\"\",ROUND(O31,2))","v":""},{"$f":"G31&\"_\"&I31","v":"_"},{"$f":"G31&\"_\"&I31&\"_\"&K31","v":"__"},{"$f":"I31","v":0},{"$f":"VLOOKUP($I$1,'仕様基準-省エネ基準_非表示'!$L$10:$O$12,3,FALSE)","v":{"$error":"#N/A"}},{"$f":"VLOOKUP($I$1,'仕様基準-省エネ基準_非表示'!$L$10:$O$12,4,FALSE)","v":{"$error":"#N/A"}},{"$f":"IF(N31=\"\",\"\",IF(AC31<=AH31,\"適合\",\"不適\"))","v":""},{"$f":"IF(U31=\"\",\"\",IF(T31<=AH31,\"適合\",\"不適\"))","v":""},{"$f":"IF(O31=\"\",\"\",IF(AD31<=AI31,\"適合\",\"不適\"))","v":""},{"$f":"IF(W31=\"\",\"\",IF(V31<=AI31,\"適合\",\"不適\"))","v":""},{"$f":"IF(AND(N31=\"\",O31=\"\"),\"\",IF(AND(AJ31=\"適合\",AL31=\"適合\"),\"適合\",\"不適\"))","v":""},{"$f":"IF(AND(U31=\"\",W31=\"\"),\"\",IF(AND(AK31=\"適合\",AM31=\"適合\"),\"適合\",\"不適\"))","v":""},{"$f":"IF(E31=\"あり\",IF(X31=\"適合\",0,1),0)","v":0},{"$f":"IF(F31=\"\",\"\",IF(F31=\"直接入力\",N31,T31))","v":""},{"$f":"IF(F31=\"\",\"\",IF(F31=\"直接入力\",O31,V31))","v":""},"－","－",{"$f":"IF(OR(E31=\"\",E31=\"なし\"),\"－\",IF(F31=\"直接入力\",\"－\",K31))","v":"－"},{"$f":"IF(OR(E31=\"\",E31=\"なし\"),\"－\",IF(F31=\"直接入力\",\"－\",M31))","v":"－"},{"$f":"IF(OR(E31=\"\",E31=\"なし\"),\"－\",T31)","v":"－"},{"$f":"IF(OR(E31=\"\",E31=\"なし\"),\"－\",AH31)","v":"－"},{"$f":"IF(OR(E31=\"\",E31=\"なし\"),\"－\",V31)","v":"－"},{"$f":"IF(OR(E31=\"\",E31=\"なし\"),\"－\",AI31)","v":"－"},"－"]
[null,"※3　「熱貫流率」においては、開口部の面積（当該開口部が二以上の場合はその合計の面積）が住戸の床面積に0.02を乗じた数値以下となるものを除くことができます。"]
[null,"※4　「日射遮蔽対策（日射熱取得率）」においては、天窓以外の開口部で、開口部の面積（当該開口部が二以上の場合はその合計の面積）が住戸の床面積に0.04を乗じた数値以下となるものを除くことができます。"]
[null,"※5　「有効なひさし、軒等」とは、外壁からの出寸法が、その下端から窓下端までの高さの0.3倍以上のものをいいます。"]
[null,"※6　「有効な付属部材」とは、障子、外付けブラインド（窓の直近外側に設置し、金属製スラット等の可変によって日射調整機能のあるブラインド）、その他これらと同等以上の日射遮蔽性能があり、開口部に建築的に取り付けられるものをいいます。レースカーテン、内付けブラインド等の着脱が容易なものは対象外です。"]
[]
[]
[null,null,null,null,null,null,null,null,null,null,null,null,null,null,"自動で表示","自動で表示","自動で表示"]
[null,null,"①","②",null,"③",null,"④",null,"⑤","⑥"]
[null,"部位","ドアの\n入力方法","枠の仕様",null,"戸の仕様",null," ガラスの仕様・中空層の仕様",null,"直接入力\n熱貫流率","備考\n② ドアの入力方法　　「直接入力」　の場合",null,null,null,"熱貫流率",null,"適否確認",null,null,null,null,null,null,null,null,null,null,null,null,null,null,null,null,null,"U",null,null,null,null,null,null,null,null,null,"枠の仕様","戸の仕様","ガラスの仕様・中空層の仕様","熱貫流率：設計値","熱貫流率：基準値","備考"]
[null,null,null,null,null,null,null,null,null,null,"製品カタログやホームページ、自己適合宣言附属書の№を記入",null,null,null,"設計値","基準値",null,null,null,null,null,null,null,null,null,null,null,null,"直接入力",null,null,null,null,null,null,null,null,null,null,null,null,null,"出力帳票",null,1,2,3,4,5,6]
[null,null,null,null,null,null,null,null,null,"U［W/(㎡・K)］","注：『自己適合宣言書と同附属書』を添付すること",null,null,null,"U［W/(㎡・K)］","U［W/(㎡・K)］",null,null,null,null,null,null,null,null,null,null,null,null,"U四捨五入",null,null,null,null,"基準値","直接入力","プルダウン",null,null,null,null,null,"省エネ基準適否","U"]
[null,"ドア",null,null,null,null,null,null,null,null,null,null,null,null,{"$f":"IF(C43=\"直接入力\",IF(J43=\"\",\"\",AC43),IF(D43=\"\",\"\",IFERROR(VLOOKUP(AF43,ドアのプルダウン_非表示!$I$4:$J$58,2,FALSE),\"エラー！選択肢チェック参照\")))","v":""},{"$f":"IFERROR(IF(C43=\"直接入力\",IF(J43=\"\",\"\",\"≦\"&\" \"&AH43),IF(ISNUMBER(O43),\"≦\"&\" \"&AH43,\"\")),\"エラー\")","v":""},{"$f":"IF(C43=\"\",\"\",IF(OR($I$1=1,$I$1=2,$I$1=3,$I$1=4,$I$1=8),\"地域に対し入力するシートが違います\",IF(C43=\"直接入力\",AI43,IF(C43=\"枠と戸の組み合わせから入力\",AJ43,\"\"))))","v":""},null,null,null,null,null,null,null,null,null,null,null,{"$f":"IF(J43=\"\",\"\",ROUND(J43,1))","v":""},null,{"$f":"D43&\"_\"&F43","v":"_"},{"$f":"D43&\"_\"&F43&\"_\"&H43","v":"__"},null,{"$f":"VLOOKUP($I$1,'仕様基準-省エネ基準_非表示'!Q10:R12,2,FALSE)","v":{"$error":"#N/A"}},{"$f":"IF(J43=\"\",\"\",IF(AC43<=AH43,\"適合\",\"不適\"))","v":""},{"$f":"IF(P43=\"\",\"\",IF(O43<=AH43,\"適合\",\"不適\"))","v":""},null,null,null,null,null,{"$f":"IF(Q43=\"適合\",0,1)","v":1},{"$f":"IF(C43=\"\",\"\",IF(C43=\"直接入力\",J43,O43))","v":""},null,{"$f":"IF(C43=\"\",\"－\",IF(C43=\"直接入力\",\"－\",D43))","v":"－"},{"$f":"IF(C43=\"\",\"－\",IF(C43=\"直接入力\",\"－\",F43))","v":"－"},{"$f":"IF(C43=\"\",\"－\",IF(C43=\"直接入力\",\"－\",H43))","v":"－"},{"$f":"IF(C43=\"\",\"－\",O43)","v":"－"},{"$f":"IF(C43=\"\",\"－\",AH43)","v":"－"},{"$f":"IF(C43=\"\",\"－\",IF(K43=\"\",\"－\",K43))","v":"－"}]
[]
[]
[null,null,null,null,null,null,null,null,null,null,null,null,null,null,null,null,null,null,null,null,null,null,null,null,null,null,null,null,null,null,null,null,null,null,null,null,null,null,null,null,null,"省エネ基準適否"]
[null,null,null,"住戸全体を暖房　　",null,"ダクト式セントラル空調機で、ヒートポンプを熱源とするもの",null,null,null,null,null,null,null,null,null,null,null,null,null,null,null,null,null,null,null,null,null,null,null,null,false,null,null,null,"暖房",{"$f":"N(AE47)","v":0},null,null,"暖房方式",{"$f":"IFERROR(_xlfn.IFS(AJ47=1,\"住戸全体を暖房\",AJ48=1,D48,AJ63=1,D63),\"\")","v":""},{"$f":"IF(SUM(AJ47:AJ63)=0,1,0)","v":1},{"$f":"AO47+AO65+AO73+AO78+AO83","v":5},null,null,"暖房設備","暖房方式",{"$f":"AN47","v":""}]
[null,null,null,"居室のみを暖房",null,null,null,null,null,null,null,null,null,null,null,null,null,null,null,null,null,null,null,null,null,null,null,null,null,null,false,null,null,null,null,{"$f":"N(AE48)","v":0},null,null,"設備仕様",{"$f":"IFERROR(_xlfn.IFS(AJ47=1,F47,AJ48=1,AO48&CHAR(10)&AP48,AJ63=1,\"－\"),\"\")","v":""},{"$f":"AQ48&AR48","v":"【主たる居室】"},{"$f":"AQ49&AR49","v":"【その他の居室】"},"【主たる居室】",{"$f":"IFERROR(_xlfn.IFS(AJ49=1,_xlfn.IFS(AJ51=1,AK51,AJ52=1,AK52,AJ53=1,AK53),AJ54=1,G54,AJ55=1,G55),\"\")","v":""},null,"設備仕様",{"$f":"AN48","v":""}]
[null,null,null,null,"【主たる居室】",null,"パネルラジエーターで以下のいずれかを熱源とし、かつ配管に断熱被覆があるもの",null,null,null,null,null,null,null,null,null,null,null,null,null,null,null,null,null,null,null,null,null,null,null,null,false,null,null,null,{"$f":"N(AF49)","v":0},null,null,null,null,null,null,"【その他の居室】",{"$f":"IFERROR(_xlfn.IFS(AJ56=1,_xlfn.IFS(AJ58=1,AK58,AJ59=1,AK59,AJ60=1,AK60),AJ61=1,G61,AJ62=1,G62),\"\")","v":""},null,"備考",{"$f":"IF(D64=\"\",IF(OR(AJ63=1,AND(AJ55=1,AJ62=1)),\"－\",\"\"),D64)","v":""}]
[null,null,null,null,null,null,"　①～③のいずれかを選択",null,null,null,null,null,null,null,null,null,null,null,null,null,null,null,null,null,null,null,null,null,null,null,null,null,null,null,null,null,null,null,null,null,null,null,null,null,"冷房設備","冷房方式",{"$f":"AN65","v":""}]
[null,null,null,null,null,null,null,"① 石油潜熱回収型温水暖房機 【エコフィール】 の熱効率87.8% 以上のもの",null,null,null,null,null,null,null,null,null,null,null,null,null,null,null,null,null,null,null,null,null,null,null,null,false,null,null,{"$f":"N(AG51)","v":0},"パネルラジエーターで以下の熱源とし、かつ配管に断熱被覆があるもの\n【熱源機】石油潜熱回収型温水暖房機 【エコフィール】 の熱効率87.8% 以上のもの",null,null,{"$f":"IFERROR(_xlfn.IFS(AJ49=1,_xlfn.IFS(AJ51=1,AK51,AJ52=1,AK52,AJ53=1,AK53),AJ54=1,G54),\"\")","v":""},null,null,null,null,null,"設備仕様",{"$f":"AN66","v":""}]
[null,null,null,null,null,null,null,"② ガス潜熱回収型温水暖房機 【エコジョーズ】 の熱効率82.5% 以上のもの",null,null,null,null,null,null,null,null,null,null,null,null,null,null,null,null,null,null,null,null,null,null,null,null,false,null,null,{"$f":"N(AG52)","v":0},"パネルラジエーターで以下の熱源とし、かつ配管に断熱被覆があるもの\n【熱源機】ガス潜熱回収型温水暖房機 【エコジョーズ】 の熱効率82.5% 以上のもの",null,null,null,null,null,null,null,null,"備考",{"$f":"IF(D72=\"\",IF(OR(AJ71=1,AND(AJ68=1,AJ70=1)),\"－\",\"\"),D72)","v":""}]
[null,null,null,null,null,null,null,"③ 電気ヒートポンプ温水暖房機 （フロン系冷媒に限る）",null,null,null,null,null,null,null,null,null,null,null,null,null,null,null,null,null,null,null,null,null,null,null,null,false,null,null,{"$f":"N(AG53)","v":0},"パネルラジエーターで以下の熱源とし、かつ配管に断熱被覆があるもの\n【熱源機】電気ヒートポンプ温水暖房機 （フロン系冷媒に限る）",null,null,null,null,null,null,null,"換気設備","換気方式等",{"$f":"AN73","v":""}]
[null,"暖房設備",null,null,null,null,"ルームエアコンディショナーで、エネルギー消費効率の区分が（ い） 又は（ ろ） のもの",null,null,null,null,null,null,null,null,null,null,null,null,null,null,null,null,null,null,null,null,null,null,null,null,false,null,null,null,{"$f":"N(AF54)","v":0},null,null,null,null,null,null,null,null,null,"備考",{"$f":"IF(D77=\"\",\"\",D77)","v":""}]
[null,null,null,null,null,null,"暖房設備機器または放熱器を設置しない（入居者設置など完了検査時点で設置が行われない）",null,null,null,null,null,null,null,null,null,null,null,null,null,null,null,null,null,null,null,null,null,null,null,null,false,null,null,null,{"$f":"N(AF55)","v":0},"設置しない",null,null,null,null,null,null,null,"給湯設備","機器の種類、効率",{"$f":"AN78","v":""}]
[null,"右記のいずれかを選択",null,null,"【その他の居室】",null,"パネルラジエーターで以下のいずれかを熱源とし、かつ配管に断熱被覆があるもの",null,null,null,null,null,null,null,null,null,null,null,null,null,null,null,null,null,null,null,null,null,null,null,null,false,null,null,null,{"$f":"N(AF56)","v":0},null,null,null,null,null,null,null,null,null,"備考",{"$f":"IF(D82=\"\",IF(AJ81=1,\"－\",\"\"),D82)","v":""}]
[null,null,null,null,null,null,"　①～③のいずれかを選択",null,null,null,null,null,null,null,null,null,null,null,null,null,null,null,null,null,null,null,null,null,null,null,null,null,null,null,null,null,null,null,null,null,null,null,null,null,"照明設備","照明設備の種類",{"$f":"AN83","v":""}]
[null,null,null,null,null,null,null,"① 石油潜熱回収型温水暖房機 【エコフィール】 の熱効率87.8% 以上のもの",null,null,null,null,null,null,null,null,null,null,null,null,null,null,null,null,null,null,null,null,null,null,null,null,false,null,null,{"$f":"N(AG58)","v":0},"パネルラジエーターで以下の熱源とし、かつ配管に断熱被覆があるもの\n【熱源機】石油潜熱回収型温水暖房機 【エコフィール】 の熱効率87.8% 以上のもの",null,null,null,null,null,null,null,null,"備考",{"$f":"IF(D85=\"\",IF(AJ84=1,\"－\",\"\"),D85)","v":""}]
[null,null,null,null,null,null,null,"② ガス潜熱回収型温水暖房機 【エコジョーズ】 の熱効率82.5% 以上のもの",null,null,null,null,null,null,null,null,null,null,null,null,null,null,null,null,null,null,null,null,null,null,null,null,false,null,null,{"$f":"N(AG59)","v":0},"パネルラジエーターで以下の熱源とし、かつ配管に断熱被覆があるもの\n【熱源機】ガス潜熱回収型温水暖房機 【エコジョーズ】 の熱効率82.5% 以上のもの"]
[null,null,null,null,null,null,null,"③ 電気ヒートポンプ温水暖房機 （フロン系冷媒に限る）",null,null,null,null,null,null,null,null,null,null,null,null,null,null,null,null,null,null,null,null,null,null,null,null,false,null,null,{"$f":"N(AG60)","v":0},"パネルラジエーターで以下の熱源とし、かつ配管に断熱被覆があるもの\n【熱源機】電気ヒートポンプ温水暖房機 （フロン系冷媒に限る）"]
[null,null,null,null,null,null,"ルームエアコンディショナーで、エネルギー消費効率の区分が（ い） 又は（ ろ） のもの",null,null,null,null,null,null,null,null,null,null,null,null,null,null,null,null,null,null,null,null,null,null,null,null,false,null,null,null,{"$f":"N(AF61)","v":0}]
[null,null,null,null,null,null,"暖房設備機器または放熱器を設置しない（入居者設置など完了検査時点で設置が行われない）",null,null,null,null,null,null,null,null,null,null,null,null,null,null,null,null,null,null,null,null,null,null,null,null,false,null,null,null,{"$f":"N(AF62)","v":0},"設置しない"]
[null,null,null,"設置しない（入居者設置など完了検査時点で設置が行われない）",null,null,null,null,null,null,null,null,null,null,null,null,null,null,null,null,null,null,null,null,null,null,null,null,null,null,false,null,null,null,null,{"$f":"N(AE63)","v":0},"設置しない"]
[null,null,"備考"]
[null,null,null,"住戸全体を冷房　　",null,"ダクト式セントラル空調機で、ヒートポンプを熱源とするもの",null,null,null,null,null,null,null,null,null,null,null,null,null,null,null,null,null,null,null,null,null,null,null,null,false,null,null,null,null,{"$f":"N(AE65)","v":0},"住戸全体を冷房",null,"冷房方式",{"$f":"IFERROR(_xlfn.IFS(AJ65=1,AK65,AJ66=1,AK66,AJ71=1,D71),\"\")","v":""},{"$f":"IFERROR(_xlfn.IFS(AJ65=1,0,AJ66=1,IF(AND(AO66=0,AO67=0),0,1),AJ71=1,0),1)","v":1},null,"【主たる居室】",{"$f":"IFERROR(IF(AJ66=1,_xlfn.IFS(AJ67=1,G67,AJ68=1,G68),\"\"),\"\")","v":""}]
[null,null,null,"居室のみを冷房　　",null,null,null,null,null,null,null,null,null,null,null,null,null,null,null,null,null,null,null,null,null,null,null,null,null,null,false,null,null,null,"冷房",{"$f":"N(AE66)","v":0},"居室のみを冷房",null,"設備仕様",{"$f":"IFERROR(_xlfn.IFS(AJ65=1,F65,AJ66=1,AQ65&AR65&CHAR(10)&AQ66&AR66,AJ71=1,\"－\"),\"\")","v":""},{"$f":"IF(OR(AJ67=1,AJ68=1),0,1)","v":1},null,"【その他の居室】",{"$f":"IFERROR(IF(AJ66=1,_xlfn.IFS(AJ69=1,G69,AJ70=1,G70),\"\"),\"\")","v":""}]
[null,null,null,null,"【主たる居室】",null,"ルームエアコンディショナーで、エネルギー消費効率の区分が（ い） 又は（ ろ） のもの",null,null,null,null,null,null,null,null,null,null,null,null,null,null,null,null,null,null,null,null,null,null,null,null,false,null,null,null,{"$f":"N(AF67)","v":0},null,null,null,null,{"$f":"IF(OR(AJ69=1,AJ70=1),0,1)","v":1}]
[null,"冷房設備",null,null,null,null,"冷房設備機器を設置しない",null,null,null,null,null,null,null,null,null,null,null,null,null,null,null,null,null,null,null,null,null,null,null,null,false,null,null,null,{"$f":"N(AF68)","v":0},"設置しない"]
[null,"右記のいずれかを選択",null,null,"【その他の居室】",null,"ルームエアコンディショナーで、エネルギー消費効率の区分が（ い） 又は（ ろ） のもの",null,null,null,null,null,null,null,null,null,null,null,null,null,null,null,null,null,null,null,null,null,null,null,null,false,null,null,null,{"$f":"N(AF69)","v":0}]
[null,null,null,null,null,null,"冷房設備機器を設置しない",null,null,null,null,null,null,null,null,null,null,null,null,null,null,null,null,null,null,null,null,null,null,null,null,false,null,null,null,{"$f":"N(AF70)","v":0},"設置しない"]
[null,null,null,"設置しない（入居者設置など完了検査時点で設置が行われない）",null,null,null,null,null,null,null,null,null,null,null,null,null,null,null,null,null,null,null,null,null,null,null,null,null,null,false,null,null,null,null,{"$f":"N(AE71)","v":0},"設置しない"]
[null,null,"備考"]
[null,null,null,"比消費電力（熱交換換気設備を採用する場合にあっては比消費電力を有効換気量率で除した値）が0.3[W/(㎥/h)]以下の換気設備",null,null,null,null,null,null,null,null,null,null,null,null,null,null,null,null,null,null,null,null,null,null,null,null,null,null,false,null,null,null,"換気",{"$f":"N(AE73)","v":0},null,null,"換気方式",{"$f":"IFERROR(_xlfn.IFS(AJ73=1,D73,AJ74=1,D74,AJ75=1,D75,AJ76=1,D76),\"\")","v":""},{"$f":"IF(SUM(AJ73:AJ76)=0,1,0)","v":1}]
[null,null,null,"ダクト式第一種換気設備（熱交換なし）で、 ダクト内径が75ｍｍ以上で、 かつDC モーター（直流）のもの",null,null,null,null,null,null,null,null,null,null,null,null,null,null,null,null,null,null,null,null,null,null,null,null,null,null,false,null,null,null,null,{"$f":"N(AE74)","v":0}]
[null,"換気設備",null,"ダクト式第二種 又は 第三種換気設備で、 ダクト内径が75ｍｍ以上のもの",null,null,null,null,null,null,null,null,null,null,null,null,null,null,null,null,null,null,null,null,null,null,null,null,null,null,false,null,null,null,null,{"$f":"N(AE75)","v":0}]
[null,"右記のいずれかを選択",null,"壁付け式第二種 又は 第三種換気設備のもの",null,null,null,null,null,null,null,null,null,null,null,null,null,null,null,null,null,null,null,null,null,null,null,null,null,null,false,null,null,null,null,{"$f":"N(AE76)","v":0}]
[null,null,"備考"]
[null,null,null,"石油給湯機【エコフィール含む】のモード熱効率 77.8% 以上のもの",null,null,null,null,null,null,null,null,null,null,null,null,null,null,null,null,null,null,null,null,null,null,null,null,null,null,false,null,null,null,"給湯",{"$f":"N(AE78)","v":0},null,null,"給湯",{"$f":"IFERROR(_xlfn.IFS(AJ78=1,D78,AJ79=1,D79,AJ80=1,D80,AJ81=1,D81),\"\")","v":""},{"$f":"IF(SUM(AJ78:AJ81)=0,1,0)","v":1}]
[null,null,null,"ガス給湯機【エコジョーズ含む】のモード熱効率 78.2% 以上のもの",null,null,null,null,null,null,null,null,null,null,null,null,null,null,null,null,null,null,null,null,null,null,null,null,null,null,false,null,null,null,null,0]
[null,"給湯設備",null,"電気ヒートポンプ給湯機【エコキュート】",null,null,null,null,null,null,null,null,null,null,null,null,null,null,null,null,null,null,null,null,null,null,null,null,null,null,false,null,null,null,null,0]
[null,"右記のいずれかを選択",null,"設置しない（入居者設置など完了検査時点で設置が行われない）",null,null,null,null,null,null,null,null,null,null,null,null,null,null,null,null,null,null,null,null,null,null,null,null,null,null,false,null,null,null,null,0]
[null,null,"備考"]
[null,"照明設備\n（非居室の仕様）\n　\n右記のいずれかを選択",null,"非居室の全ての照明に、LED 又は 蛍光灯 を設置している",null,null,null,null,null,null,null,null,null,null,null,null,null,null,null,null,null,null,null,null,null,null,null,null,null,null,false,null,null,null,"照明",{"$f":"N(AE83)","v":0},null,null,"照明",{"$f":"IFERROR(_xlfn.IFS(AJ83=1,D83,AJ84=1,D84),\"\")","v":""},{"$f":"IF(SUM(AJ83:AJ84)=0,1,0)","v":1}]
[null,null,null,"設置しない（入居者設置など完了検査時点で設置が行われない）",null,null,null,null,null,null,null,null,null,null,null,null,null,null,null,null,null,null,null,null,null,null,null,null,null,null,false,null,null,null,null,{"$f":"N(AE84)","v":0}]
[null,null,"備考"]

{"sheet":"B 仕様入力シート　８地域","index":5,"n_rows":52,"n_cols":53,"rows_kept":52,"cut":false,"hidden":false,"merged":[[0,1,2,6],[0,7,2,7],[0,8,2,8],[0,10,2,13],[0,14,0,15],[1,9,2,9],[1,14,2,15],[9,1,10,1],[9,4,10,4],[9,5,10,6],[9,7,10,7],[9,8,10,8],[8,15,9,16],[9,17,10,17],[11,11,11,14],[12,5,12,6],[12,11,12,14],[7,5,7,6],[8,5,8,6],[8,11,8,14],[9,11,9,14],[10,11,10,14],[13,5,13,6],[13,11,13,14],[16,6,16,7],[16,8,16,9],[16,10,16,11],[18,2,18,3],[18,6,18,7],[18,8,18,9],[18,10,18,11],[17,14,17,17],[18,12,19,12],[18,14,18,17],[17,6,17,7],[17,8,17,9],[17,10,17,11],[18,18,18,19],[19,14,19,17],[20,14,20,17],[18,13,19,13],[21,14,21,17],[22,14,22,17],[49,1,51,1],[38,3,38,13],[43,3,43,13],[48,3,48,13],[51,3,51,13],[21,1,22,1],[22,6,22,7],[22,8,22,9],[22,10,22,11],[21,2,21,3],[21,6,21,7],[21,8,21,9],[21,10,21,11]]}
[null,"８ 地域　仕様入力シート",null,null,null,null,null,"地域の区分",{"$f":"IF('A 最初に入力してください　基本情報'!C21=\"\",\"\",'A 最初に入力してください　基本情報'!C21)","v":""},null,{"$f":"IF(OR('A 最初に入力してください　基本情報'!C16=\"\",'A 最初に入力してください　基本情報'!C19=\"\"),\"\",IF(I1=8,\"\",\"←入力するシートが違います!!\"))","v":""},null,null,null,"省エネ基準適否",null,null,null,null,null,null,null,null,null,null,"非表示","非表示","非表示","非表示","非表示","非表示","非表示","非表示","非表示","非表示","非表示","非表示","非表示","非表示","非表示","非表示","非表示","非表示","非表示","非表示","非表示","非表示","非表示","非表示","非表示","非表示","非表示","非表示"]
[null,null,null,null,null,null,null,null,null,"地域",null,null,null,null,{"$f":"IF(I1=8,IF((SUM(AP13:AP14)+SUM(AP22:AP23)+AP32)>0,\"不適\",\"適合\"),\"\")","v":""}]
[]
[]
[]
[]
[]
[null,null,null,null,null,null,null,"自動で表示",null,"自動で表示",null,null,null,null,null,"自動で表示","自動で表示","自動で表示"]
[null,null,"①","②","③","④",null,"⑤","⑥","⑦","⑧","⑨",null,null,null,"熱抵抗",null,null,null,null,null,null,null,null,null,null,null,null,null,null,null,null,null,null,null,null,null,null,null,null,null,null,null,null,"出力帳票"]
[null,"部位","断熱部位の","熱抵抗R","断熱工法","断熱材の種類",null,"熱伝導率","厚さ","計算結果出力","直接入力","備考",null,null,null,null,null,"適否確認",null,null,null,null,null,null,null,null,null,null,null,null,null,null,null,null,null,null,null,null,null,null,null,null,null,null,1,2,3,4,5,6]
[null,null,"該当チェック","入力方法",null,null,null,null,null,"熱抵抗 ","熱抵抗","② 熱抵抗R入力方法　　「直接入力」　の場合",null,null,null,"設計値","基準値",null,null,null,null,null,null,null,null,null,null,null,"直接入力",null,null,"内断熱","外断熱または両面断熱",null,null,null,null,"適否確認",null,null,null,null,"出力帳票"]
[null,null,null,null,null,null,null,"λ［W（/ m・K）］","［mm］","R［㎡・K / W］","R［㎡・K / W］","断熱材の種類、熱伝導率λ、厚さ、参考資料等を記入",null,null,null,"R［㎡・K / W］","R［㎡・K / W］",null,null,null,null,null,null,null,null,null,null,null,"R切り捨て",null,null,"軸組充填","枠組充填","外張","記号","基準値",null,"直接入力","プルダウン",null,null,"省エネ基準適否","熱抵抗",null,"断熱工法","断熱材の種類","断熱材の厚さ","熱抵抗：設計値","熱抵抗：基準値","備考"]
[null,"屋根",null,null,null,null,null,{"$f":"IF(F13=\"\",\"\",VLOOKUP(F13,断熱材_非表示!$G$6:$H$87,2,FALSE))","v":""},null,{"$f":"IF(OR(F13=\"\",I13=\"\"),\"\",ROUNDDOWN((I13/1000/H13),2))","v":""},null,null,null,null,null,{"$f":"IF(D13=\"\",\"\",IF(D13=\"直接入力\",AC13,J13))","v":""},{"$f":"IFERROR(IF(D13=\"直接入力\",IF(K13=\"\",\"\",AI13&\" \"&FIXED(AJ13,2)),IF(J13=\"\",\"\",AI13&\" \"&FIXED(AJ13,2))),\"エラー\")","v":""},{"$f":"IF(C13=\"該当部位なし\",\"該当部位なし\",IF(D13=\"\",\"\",IF($I$1<>8,\"地域に対し入力するシートが違います\",IF(D13=\"直接入力\",AL13,IF(D13=\"断熱材の種類から入力\",AM13,\"\")))))","v":""},null,null,null,null,null,null,null,null,null,null,{"$f":"IF(K13=\"\",\"\",ROUNDDOWN(K13,2))","v":""},null,2,{"$f":"VLOOKUP($I$1,'仕様基準-省エネ基準_非表示'!$B$13:$J$13,$AE13,FALSE)","v":{"$error":"#N/A"}},{"$f":"VLOOKUP($I$1,'仕様基準-省エネ基準_非表示'!$B$25:$J$25,$AE13,FALSE)","v":{"$error":"#N/A"}},{"$f":"VLOOKUP($I$1,'仕様基準-省エネ基準_非表示'!$B$37:$J$37,$AE13,FALSE)","v":{"$error":"#N/A"}},"≧",{"$f":"IF(E13=$AF$12,AF13,IF(E13=$AG$12,AG13,IF(E13=$AH$12,AH13,\"未入力\")))","v":"未入力"},null,{"$f":"IF(K13=\"\",\"\",IF(K13>=AJ13,\"適合\",\"不適\"))","v":""},{"$f":"IF(J13=\"\",\"\",IF(J13>=AJ13,\"適合\",\"不適\"))","v":""},null,null,{"$f":"IF(C13=\"断熱部位\",IF(R13=\"適合\",0,1),0)","v":0},{"$f":"IF(D13=\"\",\"\",IF(D13=\"直接入力\",K13,J13))","v":""},null,{"$f":"IF(C13=\"該当部位なし\",\"－\",IF(E13=\"\",\"\",E13))","v":""},{"$f":"IF(C13=\"該当部位なし\",\"－\",IF(D13=\"直接入力\",\"－\",IF(F13=\"\",\"\",F13)))","v":""},{"$f":"IF(C13=\"該当部位なし\",\"－\",IF(D13=\"直接入力\",\"－\",IF(I13=\"\",\"\",I13)))","v":""},{"$f":"IF(C13=\"該当部位なし\",\"－\",IF(OR(AQ13=\"\",AQ13=0),\"\",AQ13))","v":""},{"$f":"IF(C13=\"該当部位なし\",\"－\",IF(AJ13=\"未入力\",\"\",AJ13))","v":""},{"$f":"IF(C13=\"\",\"\",IF(C13=\"該当部位なし\",\"該当部位なし\",IF(L13=\"\",\"－\",L13)))","v":""}]
[null,"天井",null,null,null,null,null,{"$f":"IF(F14=\"\",\"\",VLOOKUP(F14,断熱材_非表示!$G$6:$H$87,2,FALSE))","v":""},null,{"$f":"IF(OR(F14=\"\",I14=\"\"),\"\",ROUNDDOWN((I14/1000/H14),2))","v":""},null,null,null,null,null,{"$f":"IF(D14=\"\",\"\",IF(D14=\"直接入力\",AC14,J14))","v":""},{"$f":"IFERROR(IF(D14=\"直接入力\",IF(K14=\"\",\"\",AI14&\" \"&FIXED(AJ14,2)),IF(J14=\"\",\"\",AI14&\" \"&FIXED(AJ14,2))),\"エラー\")","v":""},{"$f":"IF(C14=\"該当部位なし\",\"該当部位なし\",IF(D14=\"\",\"\",IF($I$1<>8,\"地域に対し入力するシートが違います\",IF(D14=\"直接入力\",AL14,IF(D14=\"断熱材の種類から入力\",AM14,\"\")))))","v":""},null,null,null,null,null,null,null,null,null,null,{"$f":"IF(K14=\"\",\"\",ROUNDDOWN(K14,2))","v":""},null,3,{"$f":"VLOOKUP($I$1,'仕様基準-省エネ基準_非表示'!$B$13:$J$13,$AE14,FALSE)","v":{"$error":"#N/A"}},{"$f":"VLOOKUP($I$1,'仕様基準-省エネ基準_非表示'!$B$25:$J$25,$AE14,FALSE)","v":{"$error":"#N/A"}},{"$f":"VLOOKUP($I$1,'仕様基準-省エネ基準_非表示'!$B$37:$J$37,$AE14,FALSE)","v":{"$error":"#N/A"}},"≧",{"$f":"IF(E14=$AF$12,AF14,IF(E14=$AG$12,AG14,IF(E14=$AH$12,AH14,\"未入力\")))","v":"未入力"},null,{"$f":"IF(K14=\"\",\"\",IF(K14>=AJ14,\"適合\",\"不適\"))","v":""},{"$f":"IF(J14=\"\",\"\",IF(J14>=AJ14,\"適合\",\"不適\"))","v":""},null,null,{"$f":"IF(C14=\"断熱部位\",IF(R14=\"適合\",0,1),0)","v":0},{"$f":"IF(D14=\"\",\"\",IF(D14=\"直接入力\",K14,J14))","v":""},null,{"$f":"IF(C14=\"該当部位なし\",\"－\",IF(E14=\"\",\"\",E14))","v":""},{"$f":"IF(C14=\"該当部位なし\",\"－\",IF(D14=\"直接入力\",\"－\",IF(F14=\"\",\"\",F14)))","v":""},{"$f":"IF(C14=\"該当部位なし\",\"－\",IF(D14=\"直接入力\",\"－\",IF(I14=\"\",\"\",I14)))","v":""},{"$f":"IF(C14=\"該当部位なし\",\"－\",IF(OR(AQ14=\"\",AQ14=0),\"\",AQ14))","v":""},{"$f":"IF(C14=\"該当部位なし\",\"－\",IF(AJ14=\"未入力\",\"\",AJ14))","v":""},{"$f":"IF(C14=\"\",\"\",IF(C14=\"該当部位なし\",\"該当部位なし\",IF(L14=\"\",\"－\",L14)))","v":""}]
[]
[]
[null,null,null,null,null,null,null,null,null,null,null,null,null,null,null,null,null,null,"自動で表示","自動で表示","自動で表示",null,null,null,null,null,null,null,null,null,null,null,null,null,null,null,null,null,null,null,null,null,null,null,"出力帳票"]
[null,null,null,null,"①","②","③",null,"④",null,"⑤",null,"⑥","⑦","⑨",null,null,null,null,null,null,null,null,null,null,null,null,null,null,null,null,null,null,null,null,null,null,null,null,"適否確認",null,null,null,null,"建具の仕様"," ガラスの仕様","中空層の仕様","日射取得\n/日射遮蔽","熱貫流率［W/(㎡･K)]",null,"日射熱取得率［－］",null,"備考"]
[null,"部位","日射遮蔽対策",null,"該当窓の有無","窓の\n入力方法","建具の仕様",null," ガラスの仕様",null,"中空層の仕様",null,"Low-Eガラス\n日射取得/遮蔽","直接入力\n開口部の日射熱取得率","備考\n② 窓の入力方法　　「直接入力」　の場合",null,null,null,"日射熱取得率",null,"適否確認",null,null,null,null,null,null,null,null,null,null,null,null,"基準値",null,"直接入力","プルダウン","直接入力","プルダウン","直接入力","プルダウン",null,null,null,null,null,null,null,"設計値","基準値","設計値","基準値"]
[null,null,null,null,null,null,null,null,null,null,null,null,null,null,"製品カタログやホームページ、自己適合宣言附属書の№を記入",null,null,null,"設計値","基準値",null,null,null,null,null,null,null,null,"直接入力","直接入力",null,null,null,null,null,null,null,null,null,null,null,null,"出力帳票","出力帳票",1,2,3,4,5,6,7,8,9]
[null,null,null,null,null,null,null,null,null,null,null,null,null,"ηd［―］","注：『自己適合宣言書と同附属書』を添付すること",null,null,null,"η［―］","η［―］",null,null,null,null,null,null,null,null,"U四捨五入","η四捨五入",null,null,null,"U","η","U","U","η","η",null,null,"省エネ基準適否","U","η"]
[null,"窓 ※１","有効なひさし、軒等※2、\n付属部材※3が\nある所に設置する窓",null,null,null,null,null,null,null,null,null,null,null,{"$f":"IF(E22=\"あり\",\"該当の窓あり\",\"\")","v":""},null,null,null,null,null,{"$f":"IF(E22=\"\",\"\",IF($I$1<>8,\"地域に対し入力するシートが違います\",IF(E22=\"なし\",\"該当窓なし\",\"該当窓あり\")))","v":""},null,null,null,null,null,null,null,null,null,{"$f":"G22&\"_\"&I22","v":"_"},{"$f":"G22&\"_\"&I22&\"_\"&K22","v":"__"},{"$f":"I22","v":0},{"$f":"VLOOKUP($I$1,'仕様基準-省エネ基準_非表示'!$L$13:$O$13,3,FALSE)","v":{"$error":"#N/A"}},null,{"$f":"IF(#REF!=\"\",\"\",IF(#REF!<=AH22,\"適合\",\"不適\"))","v":{"$error":"#REF!"}},{"$f":"IF(#REF!=\"\",\"\",IF(#REF!<=AH22,\"適合\",\"不適\"))","v":{"$error":"#REF!"}},null,null,null,null,0,{"$f":"IF(F22=\"\",\"\",IF(F22=\"直接入力\",#REF!,#REF!))","v":""},null,null,null,null,null,null,null,null,null,{"$f":"IF(E22=\"\",\"\",IF(E22=\"なし\",\"該当窓なし\",\"該当窓あり\"))","v":""}]
[null,null,"有効なひさし、軒等※2、\n付属部材※3が\nない所に設置する窓","開口部の日射熱取得率ηdが最大の窓",null,null,null,null,null,null,null,null,null,null,null,null,null,null,{"$f":"IF(F23=\"直接入力\",IF(N23=\"\",\"\",N23),IF(G23=\"\",\"\",IFERROR(IF(M23=\"日射取得型\",VLOOKUP(AF23,窓のプルダウン_非表示!$Q$7:$U$61,3,FALSE),IF(M23=\"日射遮蔽型\",VLOOKUP(AF23,窓のプルダウン_非表示!$Q$7:$U$61,4,FALSE),IF(M23=\"－\",VLOOKUP(AF23,窓のプルダウン_非表示!$Q$7:$U$61,5,FALSE),\"エラー！選択肢チェック参照\"))),\"エラー！選択肢チェック参照\")))","v":""},{"$f":"IFERROR(IF(F23=\"直接入力\",IF(N23=\"\",\"\",\"≦\"&\" \"&AI23),IF(ISNUMBER(S23),\"≦\"&\" \"&AI23,\"\")),\"エラー\")","v":""},{"$f":"IF(E23=\"\",\"\",IF($I$1<>8,\"地域に対し入力するシートが違います\",IF(E23=\"なし\",\"該当窓なし\",IF(F23=\"直接入力\",AL23,IF(F23=\"建具とガラスの組み合わせから入力\",AM23,\"\")))))","v":""},null,null,null,null,null,null,null,null,{"$f":"IF(N23=\"\",\"\",ROUND(N23,2))","v":""},{"$f":"G23&\"_\"&I23","v":"_"},{"$f":"G23&\"_\"&I23&\"_\"&K23","v":"__"},{"$f":"I23","v":0},{"$f":"VLOOKUP($I$1,'仕様基準-省エネ基準_非表示'!$L$13:$O$13,3,FALSE)","v":{"$error":"#N/A"}},{"$f":"VLOOKUP($I$1,'仕様基準-省エネ基準_非表示'!$L$13:$O$13,4,FALSE)","v":{"$error":"#N/A"}},{"$f":"IF(#REF!=\"\",\"\",IF(#REF!<=AH23,\"適合\",\"不適\"))","v":{"$error":"#REF!"}},{"$f":"IF(#REF!=\"\",\"\",IF(#REF!<=AH23,\"適合\",\"不適\"))","v":{"$error":"#REF!"}},{"$f":"IF(N23=\"\",\"\",IF(AD23<=AI23,\"適合\",\"不適\"))","v":""},{"$f":"IF(T23=\"\",\"\",IF(S23<=AI23,\"適合\",\"不適\"))","v":""},{"$f":"IF(AND(#REF!=\"\",N23=\"\"),\"\",IF(AND(AJ23=\"適合\",AL23=\"適合\"),\"適合\",\"不適\"))","v":{"$error":"#REF!"}},{"$f":"IF(AND(#REF!=\"\",T23=\"\"),\"\",IF(AND(AK23=\"適合\",AM23=\"適合\"),\"適合\",\"不適\"))","v":{"$error":"#REF!"}},{"$f":"IF(E23=\"あり\",IF(U23=\"適合\",0,1),0)","v":0},{"$f":"IF(F23=\"\",\"\",IF(F23=\"直接入力\",#REF!,#REF!))","v":""},{"$f":"IF(F23=\"\",\"\",IF(F23=\"直接入力\",N23,S23))","v":""},{"$f":"IF(OR(E23=\"\",E23=\"なし\"),\"－\",IF(F23=\"直接入力\",\"－\",G23))","v":"－"},{"$f":"IF(OR(E23=\"\",E23=\"なし\"),\"－\",IF(F23=\"直接入力\",\"－\",I23))","v":"－"},{"$f":"IF(OR(E23=\"\",E23=\"なし\"),\"－\",IF(F23=\"直接入力\",\"－\",K23))","v":"－"},{"$f":"IF(OR(E23=\"\",E23=\"なし\"),\"－\",IF(F23=\"直接入力\",\"－\",M23))","v":"－"},null,null,{"$f":"IF(OR(E23=\"\",E23=\"なし\"),\"－\",S23)","v":"－"},{"$f":"IF(OR(E23=\"\",E23=\"なし\"),\"－\",AI23)","v":"－"},{"$f":"IF(E23=\"\",\"－\",IF(E23=\"なし\",\"該当窓なし\",IF(O23=\"\",\"－\",O23)))","v":"－"}]
[null,"※1　「日射遮蔽対策（日射熱取得率）」においては、天窓以外の開口部で、開口部の面積（当該開口部が二以上の場合はその合計の面積）が住戸の床面積に0.04を乗じた数値以下となるものを除くことができます。"]
[null,"※2　「有効なひさし、軒等」とは、外壁からの出寸法が、その下端から窓下端までの高さの0.3倍以上のものをいいます。"]
[null,"※3　「有効な付属部材」とは、障子、外付けブラインド（窓の直近外側に設置し、金属製スラット等の可変によって日射調整機能のあるブラインド）、その他これらと同等以上の日射遮蔽性能があり、開口部に建築的に取り付けられるものをいいます。レースカーテン、内付けブラインド等の着脱が容易なものは対象外です。"]
[]
[]
[]
[]
[null,null,null,null,null,null,null,null,null,null,null,null,null,null,null,null,null,null,null,null,null,null,null,null,null,null,null,null,null,null,null,null,null,null,null,null,null,null,null,null,null,"省エネ基準適否"]
[null,null,null,"住戸全体を冷房　　",null,"ダクト式セントラル空調機で、ヒートポンプを熱源とするもの",null,null,null,null,null,null,null,null,null,null,null,null,null,null,null,null,null,null,null,null,null,null,null,null,false,null,null,null,"冷房",{"$f":"N(AE32)","v":0},null,null,"冷房方式",{"$f":"IFERROR(_xlfn.IFS(AJ32=1,\"住戸全体を暖房\",AJ33=1,D33,AJ38=1,D38),\"\")","v":""},{"$f":"IFERROR(_xlfn.IFS(AJ32=1,0,AJ33=1,IF(AND(AO33=0,AO34=0),0,1),AJ38=1,0),1)","v":1},{"$f":"AO32+AO40+AO45+AO50","v":4},"【主たる居室】",{"$f":"IFERROR(IF(AJ33=1,_xlfn.IFS(AJ34=1,G34,AJ35=1,G35),\"\"),\"\")","v":""},"暖房設備","暖房方式",{"$f":"AN32","v":""}]
[null,"冷房設備",null,"居室のみを冷房　　",null,null,null,null,null,null,null,null,null,null,null,null,null,null,null,null,null,null,null,null,null,null,null,null,null,null,false,null,null,null,null,{"$f":"N(AE33)","v":0},null,null,"設備仕様",{"$f":"IFERROR(_xlfn.IFS(AJ32=1,F32,AJ33=1,AQ32&AR32&CHAR(10)&AQ33&AR33,AJ38=1,\"－\"),\"\")","v":""},{"$f":"IF(OR(AJ34=1,AJ35=1),0,1)","v":1},null,"【その他の居室】",{"$f":"IFERROR(IF(AJ33=1,_xlfn.IFS(AJ36=1,G36,AJ37=1,G37),\"\"),\"\")","v":""},null,"設備仕様",{"$f":"AN33","v":""}]
[null,null,null,null,"【主たる居室】",null,"ルームエアコンディショナーで、エネルギー消費効率の区分が（ い） 又は（ ろ） のもの",null,null,null,null,null,null,null,null,null,null,null,null,null,null,null,null,null,null,null,null,null,null,null,null,false,null,null,null,{"$f":"N(AF34)","v":0},null,null,null,null,{"$f":"IF(OR(AJ36=1,AJ37=1),0,1)","v":1},null,null,null,null,"備考",{"$f":"IF(D49=\"\",\"\",D49)","v":""}]
[null,null,null,null,null,null,"冷房設備機器を設置しない（入居者設置など完了検査時点で設置が行われない）",null,null,null,null,null,null,null,null,null,null,null,null,null,null,null,null,null,null,null,null,null,null,null,null,false,null,null,null,{"$f":"N(AF35)","v":0},"設置しない",null,null,null,null,null,null,null,"冷房設備","冷房方式",{"$f":"AN32","v":""}]
[null,null,null,null,"【その他の居室】",null,"ルームエアコンディショナーで、エネルギー消費効率の区分が（ い） 又は（ ろ） のもの",null,null,null,null,null,null,null,null,null,null,null,null,null,null,null,null,null,null,null,null,null,null,null,null,false,null,null,null,{"$f":"N(AF36)","v":0},null,null,null,null,null,null,null,null,null,"設備仕様",{"$f":"AN33","v":""}]
[null,null,null,null,null,null,"冷房設備機器を設置しない（入居者設置など完了検査時点で設置が行われない）",null,null,null,null,null,null,null,null,null,null,null,null,null,null,null,null,null,null,null,null,null,null,null,null,false,null,null,null,{"$f":"N(AF37)","v":0},"設置しない",null,null,null,null,null,null,null,null,"備考",{"$f":"IF(D39=\"\",IF(OR(AJ38=1,AND(AJ35=1,AJ37=1)),\"－\",\"\"),D39)","v":""}]
[null,"右記のいずれかを選択",null,"設置しない（入居者設置など完了検査時点で設置が行われない）",null,null,null,null,null,null,null,null,null,null,null,null,null,null,null,null,null,null,null,null,null,null,null,null,null,null,false,null,null,null,null,{"$f":"N(AE38)","v":0},"設置しない",null,null,null,null,null,null,null,"換気設備","換気方式等",{"$f":"AN40","v":""}]
[null,null,"備考",null,null,null,null,null,null,null,null,null,null,null,null,null,null,null,null,null,null,null,null,null,null,null,null,null,null,null,null,null,null,null,null,null,null,null,null,null,null,null,null,null,null,"備考",{"$f":"IF(D44=\"\",\"\",D44)","v":""}]
[null,null,null,"比消費電力（熱交換換気設備を採用する場合にあっては比消費電力を有効換気量率で除した値）が0.3[W/(㎥/h)]以下の換気設備",null,null,null,null,null,null,null,null,null,null,null,null,null,null,null,null,null,null,null,null,null,null,null,null,null,null,false,null,null,null,"換気",{"$f":"N(AE40)","v":0},null,null,"換気方式",{"$f":"IFERROR(_xlfn.IFS(AJ40=1,D40,AJ41=1,D41,AJ42=1,D42,AJ43=1,D43),\"\")","v":""},{"$f":"IF(SUM(AJ40:AJ43)=0,1,0)","v":1},null,null,null,"給湯設備","機器の種類、効率",{"$f":"AN45","v":""}]
[null,null,null,"ダクト式第一種換気設備（熱交換なし）で、 ダクト内径が75ｍｍ以上で、 かつDC モーター（直流）のもの",null,null,null,null,null,null,null,null,null,null,null,null,null,null,null,null,null,null,null,null,null,null,null,null,null,null,false,null,null,null,null,{"$f":"N(AE41)","v":0},null,null,null,null,null,null,null,null,null,"備考",{"$f":"IF(D49=\"\",IF(AJ48=1,\"－\",\"\"),D49)","v":""}]
[null,"換気設備",null,"ダクト式第二種 又は 第三種換気設備で、 ダクト内径が75ｍｍ以上のもの",null,null,null,null,null,null,null,null,null,null,null,null,null,null,null,null,null,null,null,null,null,null,null,null,null,null,false,null,null,null,null,{"$f":"N(AE42)","v":0},null,null,null,null,null,null,null,null,"照明設備","照明設備の種類",{"$f":"AN50","v":""}]
[null,"右記のいずれかを選択",null,"壁付け式第二種 又は 第三種換気設備のもの",null,null,null,null,null,null,null,null,null,null,null,null,null,null,null,null,null,null,null,null,null,null,null,null,null,null,false,null,null,null,null,{"$f":"N(AE43)","v":0},null,null,null,null,null,null,null,null,null,"備考",{"$f":"IF(D52=\"\",IF(AJ51=1,\"－\",\"\"),D52)","v":""}]
[null,null,"備考"]
[null,null,null,"石油給湯機【エコフィール含む】のモード熱効率 77.8% 以上のもの",null,null,null,null,null,null,null,null,null,null,null,null,null,null,null,null,null,null,null,null,null,null,null,null,null,null,false,null,null,null,"給湯",{"$f":"N(AE45)","v":0},null,null,"給湯",{"$f":"IFERROR(_xlfn.IFS(AJ45=1,D45,AJ46=1,D46,AJ47=1,D47,AJ48=1,D48),\"\")","v":""},{"$f":"IF(SUM(AJ45:AJ48)=0,1,0)","v":1}]
[null,null,null,"ガス給湯機【エコジョーズ含む】のモード熱効率 78.2% 以上のもの",null,null,null,null,null,null,null,null,null,null,null,null,null,null,null,null,null,null,null,null,null,null,null,null,null,null,false,null,null,null,null,{"$f":"N(AE46)","v":0}]
[null,"給湯設備",null,"電気ヒートポンプ給湯機【エコキュート】",null,null,null,null,null,null,null,null,null,null,null,null,null,null,null,null,null,null,null,null,null,null,null,null,null,null,false,null,null,null,null,{"$f":"N(AE47)","v":0}]
[null,"右記のいずれかを選択",null,"設置しない（入居者設置など完了検査時点で設置が行われない）",null,null,null,null,null,null,null,null,null,null,null,null,null,null,null,null,null,null,null,null,null,null,null,null,null,null,false,null,null,null,null,{"$f":"N(AE48)","v":0}]
[null,null,"備考"]
[null,"照明設備\n（非居室の仕様）\n　\n右記のいずれかを選択",null,"非居室の全ての照明に、LED 又は 蛍光灯 を設置している",null,null,null,null,null,null,null,null,null,null,null,null,null,null,null,null,null,null,null,null,null,null,null,null,null,null,false,null,null,null,"照明",{"$f":"N(AE50)","v":0},null,null,"照明",{"$f":"IFERROR(_xlfn.IFS(AJ50=1,D50,AJ51=1,D51),\"\")","v":""},{"$f":"IF(SUM(AJ50:AJ51)=0,1,0)","v":1}]
[null,null,null,"設置しない（入居者設置など完了検査時点で設置が行われない）",null,null,null,null,null,null,null,null,null,null,null,null,null,null,null,null,null,null,null,null,null,null,null,null,null,null,false,null,null,null,null,{"$f":"N(AE51)","v":0}]
[null,null,"備考"]

{"sheet":"非表示_出力帳票へのリンク","index":6,"n_rows":100,"n_cols":19,"rows_kept":100,"cut":false,"hidden":true,"merged":[[82,1,87,1],[88,1,99,1],[88,2,90,2],[91,2,93,2],[94,2,95,2],[96,2,97,2],[98,2,99,2],[22,2,27,2],[28,2,33,2],[34,2,39,2],[73,2,81,2],[10,1,49,1],[50,1,81,1],[40,2,44,2],[45,2,49,2],[50,2,56,2],[57,2,63,2],[64,2,72,2],[10,2,15,2],[16,2,21,2]]}
["No","出力帳票項目名",null,null,"共通","1234地域","567地域","8地域",1,2,3,4,5,6,7,8]
[1,"作成者",null,null,{"$f":"IF('A 最初に入力してください　基本情報'!C5=\"\",\"\",'A 最初に入力してください　基本情報'!C5)","v":""},null,null,null,{"$f":"$E2","v":""},{"$f":"$E2","v":""},"","","","","",{"$f":"$E2","v":""}]
[2,"記入日",null,null,{"$f":"IF(OR('A 最初に入力してください　基本情報'!G5=\"\",'A 最初に入力してください　基本情報'!I5=\"\",'A 最初に入力してください　基本情報'!K5=\"\"),\"\",'A 最初に入力してください　基本情報'!G5&\"年 \"&'A 最初に入力してください　基本情報'!I5&\"月 \"&'A 最初に入力してください　基本情報'!K5&\"日\")","v":""},null,null,null,{"$f":"$E3","v":""},"","","","","","",{"$f":"$E3","v":""}]
[3,"会社名",null,null,{"$f":"IF('A 最初に入力してください　基本情報'!C7=\"\",\"\",'A 最初に入力してください　基本情報'!C7)","v":""},null,null,null,"","","","","","","",""]
[4,"事務所登録",null,null,{"$f":"IF('A 最初に入力してください　基本情報'!C9=\"\",\"\",'A 最初に入力してください　基本情報'!C9)","v":""},null,null,null,"","","","","","","",""]
[5,"建築士番号",null,null,{"$f":"IF('A 最初に入力してください　基本情報'!C11=\"\",\"\",'A 最初に入力してください　基本情報'!C11)","v":""},null,null,null,"","","","","","","",""]
[6,"物件名",null,null,{"$f":"IF('A 最初に入力してください　基本情報'!C13=\"\",\"\",'A 最初に入力してください　基本情報'!C13)","v":""},null,null,null,"","","","","","","",""]
[7,"地域の区分",null,null,{"$f":"IF('A 最初に入力してください　基本情報'!C21=\"\",\"\",'A 最初に入力してください　基本情報'!C21&\"地域\")","v":""},null,null,null,"","","","","","","",{"$f":"$E8","v":""}]
[8,"建設地：県",null,null,{"$f":"IF('A 最初に入力してください　基本情報'!C16=\"\",\"\",'A 最初に入力してください　基本情報'!C16)","v":""},null,null,null,"","","","","","","",{"$f":"$E9","v":""}]
[9,"建設地：市区町村",null,null,{"$f":"IF('A 最初に入力してください　基本情報'!C19=\"\",\"\",'A 最初に入力してください　基本情報'!C19)","v":""},null,null,null,"","","","","","","",{"$f":"$E10","v":""}]
[10,"外皮基準：断熱仕様","屋根","断熱工法",1,{"$f":"INDEX('B 仕様入力シート　１２３４地域'!$AS$13:$AX$19,R11,非表示_出力帳票へのリンク!E11)","v":""},{"$f":"INDEX('B 仕様入力シート　５６７地域'!$AS$13:$AX$19,R11,非表示_出力帳票へのリンク!E11)","v":""},{"$f":"INDEX('B 仕様入力シート　８地域'!$AS$13:$AX$18,R11,非表示_出力帳票へのリンク!E11)","v":""},{"$f":"$F11","v":""},{"$f":"$F11","v":""},"","",{"$f":"$G11","v":""},{"$f":"$G11","v":""},"",{"$f":"$H11","v":""},null,1]
[11,null,null,"断熱材の種類",2,{"$f":"INDEX('B 仕様入力シート　１２３４地域'!$AS$13:$AX$19,R12,非表示_出力帳票へのリンク!E12)","v":""},{"$f":"INDEX('B 仕様入力シート　５６７地域'!$AS$13:$AX$19,R12,非表示_出力帳票へのリンク!E12)","v":""},{"$f":"INDEX('B 仕様入力シート　８地域'!$AS$13:$AX$18,R12,非表示_出力帳票へのリンク!E12)","v":""},{"$f":"$F12","v":""},"","","",{"$f":"$G12","v":""},"","",{"$f":"$H12","v":""},null,{"$f":"R11","v":1}]
[12,null,null,"断熱材の厚さ",3,{"$f":"INDEX('B 仕様入力シート　１２３４地域'!$AS$13:$AX$19,R13,非表示_出力帳票へのリンク!E13)","v":""},{"$f":"INDEX('B 仕様入力シート　５６７地域'!$AS$13:$AX$19,R13,非表示_出力帳票へのリンク!E13)","v":""},{"$f":"INDEX('B 仕様入力シート　８地域'!$AS$13:$AX$18,R13,非表示_出力帳票へのリンク!E13)","v":""},"","","","","","","","",null,{"$f":"R12","v":1}]
[13,null,null,"熱抵抗：設計値",4,{"$f":"INDEX('B 仕様入力シート　１２３４地域'!$AS$13:$AX$19,R14,非表示_出力帳票へのリンク!E14)","v":""},{"$f":"INDEX('B 仕様入力シート　５６７地域'!$AS$13:$AX$19,R14,非表示_出力帳票へのリンク!E14)","v":""},{"$f":"INDEX('B 仕様入力シート　８地域'!$AS$13:$AX$18,R14,非表示_出力帳票へのリンク!E14)","v":""},"","","","","","","","",null,1]
[14,null,null,"熱抵抗：基準値",5,{"$f":"INDEX('B 仕様入力シート　１２３４地域'!$AS$13:$AX$19,R15,非表示_出力帳票へのリンク!E15)","v":""},{"$f":"INDEX('B 仕様入力シート　５６７地域'!$AS$13:$AX$19,R15,非表示_出力帳票へのリンク!E15)","v":""},{"$f":"INDEX('B 仕様入力シート　８地域'!$AS$13:$AX$18,R15,非表示_出力帳票へのリンク!E15)","v":""},"","","","","","","","",null,1]
[15,null,null,"備考",6,{"$f":"INDEX('B 仕様入力シート　１２３４地域'!$AS$13:$AX$19,R16,非表示_出力帳票へのリンク!E16)","v":""},{"$f":"INDEX('B 仕様入力シート　５６７地域'!$AS$13:$AX$19,R16,非表示_出力帳票へのリンク!E16)","v":""},{"$f":"INDEX('B 仕様入力シート　８地域'!$AS$13:$AX$18,R16,非表示_出力帳票へのリンク!E16)","v":""},"","","","","","","","",null,1]
[16,null,"天井","断熱工法",1,{"$f":"INDEX('B 仕様入力シート　１２３４地域'!$AS$13:$AX$19,R17,非表示_出力帳票へのリンク!E17)","v":""},{"$f":"INDEX('B 仕様入力シート　５６７地域'!$AS$13:$AX$19,R17,非表示_出力帳票へのリンク!E17)","v":""},{"$f":"INDEX('B 仕様入力シート　８地域'!$AS$13:$AX$18,R17,非表示_出力帳票へのリンク!E17)","v":""},"","","","","","","","",null,2]
[17,null,null,"断熱材の種類",2,{"$f":"INDEX('B 仕様入力シート　１２３４地域'!$AS$13:$AX$19,R18,非表示_出力帳票へのリンク!E18)","v":""},{"$f":"INDEX('B 仕様入力シート　５６７地域'!$AS$13:$AX$19,R18,非表示_出力帳票へのリンク!E18)","v":""},{"$f":"INDEX('B 仕様入力シート　８地域'!$AS$13:$AX$18,R18,非表示_出力帳票へのリンク!E18)","v":""},"","","","","","","","",null,{"$f":"R17","v":2}]
[18,null,null,"断熱材の厚さ",3,{"$f":"INDEX('B 仕様入力シート　１２３４地域'!$AS$13:$AX$19,R19,非表示_出力帳票へのリンク!E19)","v":""},{"$f":"INDEX('B 仕様入力シート　５６７地域'!$AS$13:$AX$19,R19,非表示_出力帳票へのリンク!E19)","v":""},{"$f":"INDEX('B 仕様入力シート　８地域'!$AS$13:$AX$18,R19,非表示_出力帳票へのリンク!E19)","v":""},"","","","","","","","",null,{"$f":"R18","v":2}]
[19,null,null,"熱抵抗：設計値",4,{"$f":"INDEX('B 仕様入力シート　１２３４地域'!$AS$13:$AX$19,R20,非表示_出力帳票へのリンク!E20)","v":""},{"$f":"INDEX('B 仕様入力シート　５６７地域'!$AS$13:$AX$19,R20,非表示_出力帳票へのリンク!E20)","v":""},{"$f":"INDEX('B 仕様入力シート　８地域'!$AS$13:$AX$18,R20,非表示_出力帳票へのリンク!E20)","v":""},"","","","","","","","",null,2]
[20,null,null,"熱抵抗：基準値",5,{"$f":"INDEX('B 仕様入力シート　１２３４地域'!$AS$13:$AX$19,R21,非表示_出力帳票へのリンク!E21)","v":""},{"$f":"INDEX('B 仕様入力シート　５６７地域'!$AS$13:$AX$19,R21,非表示_出力帳票へのリンク!E21)","v":""},{"$f":"INDEX('B 仕様入力シート　８地域'!$AS$13:$AX$18,R21,非表示_出力帳票へのリンク!E21)","v":""},"","","","","","","","",null,2]
[21,null,null,"備考",6,{"$f":"INDEX('B 仕様入力シート　１２３４地域'!$AS$13:$AX$19,R22,非表示_出力帳票へのリンク!E22)","v":""},{"$f":"INDEX('B 仕様入力シート　５６７地域'!$AS$13:$AX$19,R22,非表示_出力帳票へのリンク!E22)","v":""},{"$f":"INDEX('B 仕様入力シート　８地域'!$AS$13:$AX$18,R22,非表示_出力帳票へのリンク!E22)","v":""},"","","","","","","","",null,2]
[22,null,"壁","断熱工法",1,{"$f":"INDEX('B 仕様入力シート　１２３４地域'!$AS$13:$AX$19,R23,非表示_出力帳票へのリンク!E23)","v":""},{"$f":"INDEX('B 仕様入力シート　５６７地域'!$AS$13:$AX$19,R23,非表示_出力帳票へのリンク!E23)","v":""},"－","","","","","","","",{"$f":"IF($H23=\"\",\"\",$H23)","v":"－"},null,3]
[23,null,null,"断熱材の種類",2,{"$f":"INDEX('B 仕様入力シート　１２３４地域'!$AS$13:$AX$19,R24,非表示_出力帳票へのリンク!E24)","v":""},{"$f":"INDEX('B 仕様入力シート　５６７地域'!$AS$13:$AX$19,R24,非表示_出力帳票へのリンク!E24)","v":""},"－","","","","","","","",{"$f":"IF($H24=\"\",\"\",$H24)","v":"－"},null,{"$f":"R23","v":3}]
[24,null,null,"断熱材の厚さ",3,{"$f":"INDEX('B 仕様入力シート　１２３４地域'!$AS$13:$AX$19,R25,非表示_出力帳票へのリンク!E25)","v":""},{"$f":"INDEX('B 仕様入力シート　５６７地域'!$AS$13:$AX$19,R25,非表示_出力帳票へのリンク!E25)","v":""},"－","","","","","","","","－",null,{"$f":"R24","v":3}]
[25,null,null,"熱抵抗：設計値",4,{"$f":"INDEX('B 仕様入力シート　１２３４地域'!$AS$13:$AX$19,R26,非表示_出力帳票へのリンク!E26)","v":""},{"$f":"INDEX('B 仕様入力シート　５６７地域'!$AS$13:$AX$19,R26,非表示_出力帳票へのリンク!E26)","v":""},"－","","","","","","","","－",null,3]
[26,null,null,"熱抵抗：基準値",5,{"$f":"INDEX('B 仕様入力シート　１２３４地域'!$AS$13:$AX$19,R27,非表示_出力帳票へのリンク!E27)","v":""},{"$f":"INDEX('B 仕様入力シート　５６７地域'!$AS$13:$AX$19,R27,非表示_出力帳票へのリンク!E27)","v":""},"－","","","","","","","","－",null,3]
[27,null,null,"備考",6,{"$f":"INDEX('B 仕様入力シート　１２３４地域'!$AS$13:$AX$19,R28,非表示_出力帳票へのリンク!E28)","v":""},{"$f":"INDEX('B 仕様入力シート　５６７地域'!$AS$13:$AX$19,R28,非表示_出力帳票へのリンク!E28)","v":""},"－","","","","","","","","－",null,3]
[28,null,"床\n外気に接する部分","断熱工法",1,{"$f":"INDEX('B 仕様入力シート　１２３４地域'!$AS$13:$AX$19,R29,非表示_出力帳票へのリンク!E29)","v":""},{"$f":"INDEX('B 仕様入力シート　５６７地域'!$AS$13:$AX$19,R29,非表示_出力帳票へのリンク!E29)","v":""},"－","","","","","","","","－",null,4]
[29,null,null,"断熱材の種類",2,{"$f":"INDEX('B 仕様入力シート　１２３４地域'!$AS$13:$AX$19,R30,非表示_出力帳票へのリンク!E30)","v":""},{"$f":"INDEX('B 仕様入力シート　５６７地域'!$AS$13:$AX$19,R30,非表示_出力帳票へのリンク!E30)","v":""},"－","","","","","","","","－",null,{"$f":"R29","v":4}]
[30,null,null,"断熱材の厚さ",3,{"$f":"INDEX('B 仕様入力シート　１２３４地域'!$AS$13:$AX$19,R31,非表示_出力帳票へのリンク!E31)","v":""},{"$f":"INDEX('B 仕様入力シート　５６７地域'!$AS$13:$AX$19,R31,非表示_出力帳票へのリンク!E31)","v":""},"－","","","","","","","","－",null,{"$f":"R30","v":4}]
[31,null,null,"熱抵抗：設計値",4,{"$f":"INDEX('B 仕様入力シート　１２３４地域'!$AS$13:$AX$19,R32,非表示_出力帳票へのリンク!E32)","v":""},{"$f":"INDEX('B 仕様入力シート　５６７地域'!$AS$13:$AX$19,R32,非表示_出力帳票へのリンク!E32)","v":""},"－",{"$f":"$F32","v":""},"","","",{"$f":"$G32","v":""},"","","－",null,4]
[32,null,null,"熱抵抗：基準値",5,{"$f":"INDEX('B 仕様入力シート　１２３４地域'!$AS$13:$AX$19,R33,非表示_出力帳票へのリンク!E33)","v":""},{"$f":"INDEX('B 仕様入力シート　５６７地域'!$AS$13:$AX$19,R33,非表示_出力帳票へのリンク!E33)","v":""},"－","","","","","","","","－",null,4]
[33,null,null,"備考",6,{"$f":"INDEX('B 仕様入力シート　１２３４地域'!$AS$13:$AX$19,R34,非表示_出力帳票へのリンク!E34)","v":""},{"$f":"INDEX('B 仕様入力シート　５６７地域'!$AS$13:$AX$19,R34,非表示_出力帳票へのリンク!E34)","v":""},"－","","","","","","","","－",null,4]
[34,null,"床\nその他の部分","断熱工法",1,{"$f":"INDEX('B 仕様入力シート　１２３４地域'!$AS$13:$AX$19,R35,非表示_出力帳票へのリンク!E35)","v":""},{"$f":"INDEX('B 仕様入力シート　５６７地域'!$AS$13:$AX$19,R35,非表示_出力帳票へのリンク!E35)","v":""},"－","","","","","","","","－",null,5]
[35,null,null,"断熱材の種類",2,{"$f":"INDEX('B 仕様入力シート　１２３４地域'!$AS$13:$AX$19,R36,非表示_出力帳票へのリンク!E36)","v":""},{"$f":"INDEX('B 仕様入力シート　５６７地域'!$AS$13:$AX$19,R36,非表示_出力帳票へのリンク!E36)","v":""},"－","","","","","","","","－",null,{"$f":"R35","v":5}]
[36,null,null,"断熱材の厚さ",3,{"$f":"INDEX('B 仕様入力シート　１２３４地域'!$AS$13:$AX$19,R37,非表示_出力帳票へのリンク!E37)","v":""},{"$f":"INDEX('B 仕様入力シート　５６７地域'!$AS$13:$AX$19,R37,非表示_出力帳票へのリンク!E37)","v":""},"－","","","","","","","","－",null,{"$f":"R36","v":5}]
[37,null,null,"熱抵抗：設計値",4,{"$f":"INDEX('B 仕様入力シート　１２３４地域'!$AS$13:$AX$19,R38,非表示_出力帳票へのリンク!E38)","v":""},{"$f":"INDEX('B 仕様入力シート　５６７地域'!$AS$13:$AX$19,R38,非表示_出力帳票へのリンク!E38)","v":""},"－","","","","","","","","－",null,5]
[38,null,null,"熱抵抗：基準値",5,{"$f":"INDEX('B 仕様入力シート　１２３４地域'!$AS$13:$AX$19,R39,非表示_出力帳票へのリンク!E39)","v":""},{"$f":"INDEX('B 仕様入力シート　５６７地域'!$AS$13:$AX$19,R39,非表示_出力帳票へのリンク!E39)","v":""},"－","","","","","","","","－",null,5]
[39,null,null,"備考",6,{"$f":"INDEX('B 仕様入力シート　１２３４地域'!$AS$13:$AX$19,R40,非表示_出力帳票へのリンク!E40)","v":""},{"$f":"INDEX('B 仕様入力シート　５６７地域'!$AS$13:$AX$19,R40,非表示_出力帳票へのリンク!E40)","v":""},"－","","","","","","","","－",null,5]
[40,null,"基礎壁\n外気に接する部分","断熱材の種類",2,{"$f":"INDEX('B 仕様入力シート　１２３４地域'!$AS$13:$AX$19,R41,非表示_出力帳票へのリンク!E41)","v":""},{"$f":"INDEX('B 仕様入力シート　５６７地域'!$AS$13:$AX$19,R41,非表示_出力帳票へのリンク!E41)","v":""},"－","","","","","","","","－",null,6]
[41,null,null,"断熱材の厚さ",3,{"$f":"INDEX('B 仕様入力シート　１２３４地域'!$AS$13:$AX$19,R42,非表示_出力帳票へのリンク!E42)","v":""},{"$f":"INDEX('B 仕様入力シート　５６７地域'!$AS$13:$AX$19,R42,非表示_出力帳票へのリンク!E42)","v":""},"－","","","","","","","","－",null,{"$f":"R41","v":6}]
[42,null,null,"熱抵抗：設計値",4,{"$f":"INDEX('B 仕様入力シート　１２３４地域'!$AS$13:$AX$19,R43,非表示_出力帳票へのリンク!E43)","v":""},{"$f":"INDEX('B 仕様入力シート　５６７地域'!$AS$13:$AX$19,R43,非表示_出力帳票へのリンク!E43)","v":""},"－","","","","","","","","－",null,{"$f":"R42","v":6}]
[43,null,null,"熱抵抗：基準値",5,{"$f":"INDEX('B 仕様入力シート　１２３４地域'!$AS$13:$AX$19,R44,非表示_出力帳票へのリンク!E44)","v":""},{"$f":"INDEX('B 仕様入力シート　５６７地域'!$AS$13:$AX$19,R44,非表示_出力帳票へのリンク!E44)","v":""},"－","","","","","","","","－",null,6]
[44,null,null,"備考",6,{"$f":"INDEX('B 仕様入力シート　１２３４地域'!$AS$13:$AX$19,R45,非表示_出力帳票へのリンク!E45)","v":""},{"$f":"INDEX('B 仕様入力シート　５６７地域'!$AS$13:$AX$19,R45,非表示_出力帳票へのリンク!E45)","v":""},"－","","","","","","","","－",null,6]
[45,null,"基礎壁\nその他の部分","断熱材の種類",2,{"$f":"INDEX('B 仕様入力シート　１２３４地域'!$AS$13:$AX$19,R46,非表示_出力帳票へのリンク!E46)","v":""},{"$f":"INDEX('B 仕様入力シート　５６７地域'!$AS$13:$AX$19,R46,非表示_出力帳票へのリンク!E46)","v":""},"－","","","","","","","","－",null,7]
[46,null,null,"断熱材の厚さ",3,{"$f":"INDEX('B 仕様入力シート　１２３４地域'!$AS$13:$AX$19,R47,非表示_出力帳票へのリンク!E47)","v":""},{"$f":"INDEX('B 仕様入力シート　５６７地域'!$AS$13:$AX$19,R47,非表示_出力帳票へのリンク!E47)","v":""},"－","","","","","","","","－",null,{"$f":"R46","v":7}]
[47,null,null,"熱抵抗：設計値",4,{"$f":"INDEX('B 仕様入力シート　１２３４地域'!$AS$13:$AX$19,R48,非表示_出力帳票へのリンク!E48)","v":""},{"$f":"INDEX('B 仕様入力シート　５６７地域'!$AS$13:$AX$19,R48,非表示_出力帳票へのリンク!E48)","v":""},"－","","","","","","","","－",null,7]
[48,null,null,"熱抵抗：基準値",5,{"$f":"INDEX('B 仕様入力シート　１２３４地域'!$AS$13:$AX$19,R49,非表示_出力帳票へのリンク!E49)","v":""},{"$f":"INDEX('B 仕様入力シート　５６７地域'!$AS$13:$AX$19,R49,非表示_出力帳票へのリンク!E49)","v":""},"－","","","","","","","","－",null,7]
[49,null,null,"備考",6,{"$f":"INDEX('B 仕様入力シート　１２３４地域'!$AS$13:$AX$19,R50,非表示_出力帳票へのリンク!E50)","v":""},{"$f":"INDEX('B 仕様入力シート　５６７地域'!$AS$13:$AX$19,R50,非表示_出力帳票へのリンク!E50)","v":""},"－","","","","","","","","－",null,7]
[50,"外皮基準：窓","1～4地域","建具の仕様",1,{"$f":"INDEX('B 仕様入力シート　１２３４地域'!$AS$29:$BA$29,R51,非表示_出力帳票へのリンク!E51)","v":"－"},"－","－","－","－","－","－",{"$f":"IF($G51=\"\",\"\",$G51)","v":"－"},{"$f":"IF($G51=\"\",\"\",$G51)","v":"－"},"－",{"$f":"IF($H51=\"\",\"\",$H51)","v":"－"},null,1]
[51,null,null,"ガラスの仕様",2,{"$f":"INDEX('B 仕様入力シート　１２３４地域'!$AS$29:$BA$29,R52,非表示_出力帳票へのリンク!E52)","v":"－"},"－","－",{"$f":"$F52","v":"－"},"－","－","－",{"$f":"IF($G52=\"\",\"\",$G52)","v":"－"},"－","－","－",null,1]
[52,null,null,"中空層の仕様",3,{"$f":"INDEX('B 仕様入力シート　１２３４地域'!$AS$29:$BA$29,R53,非表示_出力帳票へのリンク!E53)","v":"－"},"－","－","－","－","－","－","－","－","－","－",null,1]
[53,null,null,"日射取得\n/日射遮蔽",4,null,"－","－",0,0,0,0,"－","－","－","－",null,1]
[54,null,null,"熱貫流率：設計値",5,{"$f":"INDEX('B 仕様入力シート　１２３４地域'!$AS$29:$BA$29,R55,非表示_出力帳票へのリンク!E55)","v":"－"},"－","－","－","－","－","－","－","－","－","－",null,1]
[55,null,null,"熱貫流率：基準値",6,{"$f":"INDEX('B 仕様入力シート　１２３４地域'!$AS$29:$BA$29,R56,非表示_出力帳票へのリンク!E56)","v":"－"},"－","－","－","－","－","－","－","－","－","－",null,1]
[56,null,null,"備考",9,{"$f":"INDEX('B 仕様入力シート　１２３４地域'!$AS$29:$BA$29,R57,非表示_出力帳票へのリンク!E57)","v":"－"},"－","－","－","－","－","－","－","－","－","－",null,1]
[57,null,"5～8地域\nひさし等\nある所","建具の仕様",1,"－",{"$f":"INDEX('B 仕様入力シート　５６７地域'!$AS$29:$BA$31,R58,非表示_出力帳票へのリンク!E58)","v":"－"},"－",{"$f":"IF($F58=\"\",\"\",$F58)","v":"－"},{"$f":"IF($F58=\"\",\"\",$F58)","v":"－"},"－","－",{"$f":"$G58","v":"－"},"－","－","－",null,1]
[58,null,null,"ガラスの仕様",2,"－",{"$f":"INDEX('B 仕様入力シート　５６７地域'!$AS$29:$BA$31,R59,非表示_出力帳票へのリンク!E59)","v":"－"},"－",{"$f":"IF($F59=\"\",\"\",$F59)","v":"－"},"－","－","－","－","－","－","－",null,1]
[59,null,null,"中空層の仕様",3,"－",{"$f":"INDEX('B 仕様入力シート　５６７地域'!$AS$29:$BA$31,R60,非表示_出力帳票へのリンク!E60)","v":"－"},"－","－","－","－","－","－","－","－","－",null,1]
[60,null,null,"日射取得\n/日射遮蔽",4,"－",null,"－",{"$f":"IF($F61=\"\",\"\",$F61)","v":"－"},"－","－","－",null,null,null,null,null,1]
[61,null,null,"熱貫流率：設計値",5,"－",{"$f":"INDEX('B 仕様入力シート　５６７地域'!$AS$29:$BA$31,R62,非表示_出力帳票へのリンク!E62)","v":"－"},"－","－","－","－","－","－","－","－","－",null,1]
[62,null,null,"熱貫流率：基準値",6,"－",{"$f":"INDEX('B 仕様入力シート　５６７地域'!$AS$29:$BA$31,R63,非表示_出力帳票へのリンク!E63)","v":"－"},"－","－","－","－","－","－","－","－","－",null,1]
[63,null,null,"備考",9,"－",{"$f":"INDEX('B 仕様入力シート　５６７地域'!$AS$29:$BA$31,R64,非表示_出力帳票へのリンク!E64)","v":"－"},{"$f":"'B 仕様入力シート　８地域'!BA22","v":""},"－","－","－","－","－","－","－","",null,1]
[64,null,"5～8地域\nひさし等\nない所\nU大","建具の仕様",1,"－",{"$f":"INDEX('B 仕様入力シート　５６７地域'!$AS$29:$BA$31,R65,非表示_出力帳票へのリンク!E65)","v":"－"},"－","－","－","－","－","－","－","－","－",null,2]
[65,null,null,"ガラスの仕様",2,"－",{"$f":"INDEX('B 仕様入力シート　５６７地域'!$AS$29:$BA$31,R66,非表示_出力帳票へのリンク!E66)","v":"－"},"－","－","－","－","－","－","－","－","－",null,2]
[66,null,null,"中空層の仕様",3,"－",{"$f":"INDEX('B 仕様入力シート　５６７地域'!$AS$29:$BA$31,R67,非表示_出力帳票へのリンク!E67)","v":"－"},"－","－","－","－","－","－","－","－","－",null,2]
[67,null,null,"日射取得\n/日射遮蔽",4,"－",{"$f":"INDEX('B 仕様入力シート　５６７地域'!$AS$29:$BA$31,R68,非表示_出力帳票へのリンク!E68)","v":"－"},"－","－","－","－","－","－","－","－","－",null,2]
[68,null,null,"熱貫流率：設計値",5,"－",{"$f":"INDEX('B 仕様入力シート　５６７地域'!$AS$29:$BA$31,R69,非表示_出力帳票へのリンク!E69)","v":"－"},"－","－","－","－","－","－","－","－","－",null,2]
[69,null,null,"熱貫流率：基準値",6,"－",{"$f":"INDEX('B 仕様入力シート　５６７地域'!$AS$29:$BA$31,R70,非表示_出力帳票へのリンク!E70)","v":"－"},"－","－","－","－","－","－","－","－","－",null,2]
[70,null,null,"日射熱取得率：設計値",7,"－",{"$f":"INDEX('B 仕様入力シート　５６７地域'!$AS$29:$BA$31,R71,非表示_出力帳票へのリンク!E71)","v":"－"},"－","－","－","－","－","－","－","－","－",null,2]
[71,null,null,"日射熱取得率：基準値",8,"－",{"$f":"INDEX('B 仕様入力シート　５６７地域'!$AS$29:$BA$31,R72,非表示_出力帳票へのリンク!E72)","v":"－"},"－","－","－","－","－",{"$f":"$G72","v":"－"},"－","－","－",null,2]
[72,null,null,"備考",9,"－",{"$f":"INDEX('B 仕様入力シート　５６７地域'!$AS$29:$BA$31,R73,非表示_出力帳票へのリンク!E73)","v":"－"},"－","－","－","－","－","－","－","－","－",null,2,"8地域"]
[73,null,"5～8地域\nひさし等\nない所\nη大","建具の仕様",1,"－",{"$f":"INDEX('B 仕様入力シート　５６７地域'!$AS$29:$BA$31,R74,非表示_出力帳票へのリンク!E74)","v":"－"},{"$f":"INDEX('B 仕様入力シート　８地域'!$AS$23:$BA$23,S74,非表示_出力帳票へのリンク!E74)","v":"－"},"－","－","－","－","－","－","－","－",null,3,1]
[74,null,null,"ガラスの仕様",2,"－",{"$f":"INDEX('B 仕様入力シート　５６７地域'!$AS$29:$BA$31,R75,非表示_出力帳票へのリンク!E75)","v":"－"},{"$f":"INDEX('B 仕様入力シート　８地域'!$AS$23:$BA$23,S75,非表示_出力帳票へのリンク!E75)","v":"－"},"－","－","－","－","－","－","－","－",null,3,1]
[75,null,null,"中空層の仕様",3,"－",{"$f":"INDEX('B 仕様入力シート　５６７地域'!$AS$29:$BA$31,R76,非表示_出力帳票へのリンク!E76)","v":"－"},{"$f":"INDEX('B 仕様入力シート　８地域'!$AS$23:$BA$23,S76,非表示_出力帳票へのリンク!E76)","v":"－"},"－","－","－","－","－","－","－",{"$f":"$H76","v":"－"},null,3,1]
[76,null,null,"日射取得\n/日射遮蔽",4,"－",{"$f":"INDEX('B 仕様入力シート　５６７地域'!$AS$29:$BA$31,R77,非表示_出力帳票へのリンク!E77)","v":"－"},{"$f":"INDEX('B 仕様入力シート　８地域'!$AS$23:$BA$23,S77,非表示_出力帳票へのリンク!E77)","v":"－"},"－","－","－","－","－","－","－","－",null,3,1]
[77,null,null,"熱貫流率：設計値",5,"－",{"$f":"INDEX('B 仕様入力シート　５６７地域'!$AS$29:$BA$31,R78,非表示_出力帳票へのリンク!E78)","v":"－"},"－","－","－","－","－","－","－","－","－",null,3,1]
[78,null,null,"熱貫流率：基準値",6,"－",{"$f":"INDEX('B 仕様入力シート　５６７地域'!$AS$29:$BA$31,R79,非表示_出力帳票へのリンク!E79)","v":"－"},"－","－","－","－","－","－","－","－","－",null,3,1]
[79,null,null,"日射熱取得率：設計値",7,"－",{"$f":"INDEX('B 仕様入力シート　５６７地域'!$AS$29:$BA$31,R80,非表示_出力帳票へのリンク!E80)","v":"－"},{"$f":"INDEX('B 仕様入力シート　８地域'!$AS$23:$BA$23,S80,非表示_出力帳票へのリンク!E80)","v":"－"},"－","－","－","－","－","－","－","－",null,3,1]
[80,null,null,"日射熱取得率：基準値",8,"－",{"$f":"INDEX('B 仕様入力シート　５６７地域'!$AS$29:$BA$31,R81,非表示_出力帳票へのリンク!E81)","v":"－"},{"$f":"INDEX('B 仕様入力シート　８地域'!$AS$23:$BA$23,S81,非表示_出力帳票へのリンク!E81)","v":"－"},"－","－","－","－","－","－","－","－",null,3,1]
[81,null,null,"備考",9,"－",{"$f":"INDEX('B 仕様入力シート　５６７地域'!$AS$29:$BA$31,R82,非表示_出力帳票へのリンク!E82)","v":"－"},{"$f":"INDEX('B 仕様入力シート　８地域'!$AS$23:$BA$23,S82,非表示_出力帳票へのリンク!E82)","v":"－"},"－","－","－","－","－","－","－","－",null,3,1]
[82,"外皮基準：ドア","枠の仕様",null,1,{"$f":"INDEX('B 仕様入力シート　１２３４地域'!$AS$38:$AX$38,R83,非表示_出力帳票へのリンク!E83)","v":"－"},{"$f":"INDEX('B 仕様入力シート　５６７地域'!$AS$43:$AX$43,R83,非表示_出力帳票へのリンク!E83)","v":"－"},"－",{"$f":"$F83","v":"－"},"－","－","－","－","－","－","－",null,1]
[83,null,"戸の仕様",null,2,{"$f":"INDEX('B 仕様入力シート　１２３４地域'!$AS$38:$AX$38,R84,非表示_出力帳票へのリンク!E84)","v":"－"},{"$f":"INDEX('B 仕様入力シート　５６７地域'!$AS$43:$AX$43,R84,非表示_出力帳票へのリンク!E84)","v":"－"},"－","－","－","－","－","－","－","－","－",null,1]
[84,null,"ガラスの仕様・中空層の仕様",null,3,{"$f":"INDEX('B 仕様入力シート　１２３４地域'!$AS$38:$AX$38,R85,非表示_出力帳票へのリンク!E85)","v":"－"},{"$f":"INDEX('B 仕様入力シート　５６７地域'!$AS$43:$AX$43,R85,非表示_出力帳票へのリンク!E85)","v":"－"},"－","－","－","－","－","－","－","－","－",null,1]
[85,null,"熱貫流率：設計値",null,4,{"$f":"INDEX('B 仕様入力シート　１２３４地域'!$AS$38:$AX$38,R86,非表示_出力帳票へのリンク!E86)","v":"－"},{"$f":"INDEX('B 仕様入力シート　５６７地域'!$AS$43:$AX$43,R86,非表示_出力帳票へのリンク!E86)","v":"－"},"－","－","－","－","－","－","－","－","－",null,1]
[86,null,"熱貫流率：基準値",null,5,{"$f":"INDEX('B 仕様入力シート　１２３４地域'!$AS$38:$AX$38,R87,非表示_出力帳票へのリンク!E87)","v":"－"},{"$f":"INDEX('B 仕様入力シート　５６７地域'!$AS$43:$AX$43,R87,非表示_出力帳票へのリンク!E87)","v":"－"},"－","－","－","－","－","－","－","－","－",null,1]
[87,null,"備考",null,6,{"$f":"INDEX('B 仕様入力シート　１２３４地域'!$AS$38:$AX$38,R88,非表示_出力帳票へのリンク!E88)","v":"－"},{"$f":"INDEX('B 仕様入力シート　５６７地域'!$AS$43:$AX$43,R88,非表示_出力帳票へのリンク!E88)","v":"－"},"－","－","－","－","－","－","－","－","－",null,1]
[88,"一次エネ基準：設備仕様","暖房設備","暖房方式",null,{"$f":"'B 仕様入力シート　１２３４地域'!AU42","v":""},{"$f":"'B 仕様入力シート　５６７地域'!AU47","v":""},null,"","","","","","","",{"$f":"IF($H89=\"\",\"\",$H89)","v":""}]
[89,null,null,"設備仕様",null,{"$f":"'B 仕様入力シート　１２３４地域'!AU43","v":""},{"$f":"'B 仕様入力シート　５６７地域'!AU48","v":""},null,"","","","","","","",{"$f":"IF($H90=\"\",\"\",$H90)","v":""}]
[90,null,null,"備考",null,{"$f":"'B 仕様入力シート　１２３４地域'!AU44","v":""},{"$f":"'B 仕様入力シート　５６７地域'!AU49","v":""},null,"","","","",{"$f":"$G91","v":""},"","",{"$f":"IF($H91=\"\",\"\",$H91)","v":""}]
[91,null,"冷房設備","冷房方式",null,{"$f":"'B 仕様入力シート　１２３４地域'!AU45","v":""},{"$f":"'B 仕様入力シート　５６７地域'!AU50","v":""},{"$f":"'B 仕様入力シート　８地域'!AU35","v":""},"","","","","","","",{"$f":"$H92","v":""}]
[92,null,null,"設備仕様",null,{"$f":"'B 仕様入力シート　１２３４地域'!AU46","v":""},{"$f":"'B 仕様入力シート　５６７地域'!AU51","v":""},{"$f":"'B 仕様入力シート　８地域'!AU36","v":""},"","","","","","","",{"$f":"IF($H93=\"\",\"\",$H93)","v":""}]
[93,null,null,"備考",null,{"$f":"'B 仕様入力シート　１２３４地域'!AU47","v":""},{"$f":"'B 仕様入力シート　５６７地域'!AU52","v":""},{"$f":"'B 仕様入力シート　８地域'!AU37","v":""},"","","","","","","",""]
[94,null,"換気設備","換気方式等",null,{"$f":"'B 仕様入力シート　１２３４地域'!AU48","v":""},{"$f":"'B 仕様入力シート　５６７地域'!AU53","v":""},{"$f":"'B 仕様入力シート　８地域'!AU38","v":""},"","","","","","","",""]
[95,null,null,"備考",null,{"$f":"'B 仕様入力シート　１２３４地域'!AU49","v":""},{"$f":"'B 仕様入力シート　５６７地域'!AU54","v":""},{"$f":"'B 仕様入力シート　８地域'!AU39","v":""},"","","","","","","",""]
[96,null,"給湯設備","機器の種類、効率",null,{"$f":"'B 仕様入力シート　１２３４地域'!AU50","v":""},{"$f":"'B 仕様入力シート　５６７地域'!AU55","v":""},{"$f":"'B 仕様入力シート　８地域'!AU40","v":""},"","","","","","","",""]
[97,null,null,"備考",null,{"$f":"'B 仕様入力シート　１２３４地域'!AU51","v":""},{"$f":"'B 仕様入力シート　５６７地域'!AU56","v":""},{"$f":"'B 仕様入力シート　８地域'!AU41","v":""},"","","","","","","",""]
[98,null,"照明設備","照明設備の種類",null,{"$f":"'B 仕様入力シート　１２３４地域'!AU52","v":""},{"$f":"'B 仕様入力シート　５６７地域'!AU57","v":""},{"$f":"'B 仕様入力シート　８地域'!AU42","v":""},"","","","","","","",""]
[99,null,null,"備考",null,{"$f":"'B 仕様入力シート　１２３４地域'!AU53","v":""},{"$f":"'B 仕様入力シート　５６７地域'!AU58","v":""},{"$f":"'B 仕様入力シート　８地域'!AU43","v":""},"","","","","","","",""]

{"sheet":"C 仕様表（仕様基準）","index":7,"n_rows":40,"n_cols":29,"rows_kept":40,"cut":false,"hidden":false,"merged":[[35,2,35,5],[35,6,35,7],[35,8,35,10],[35,19,35,24],[29,17,29,18],[29,19,30,24],[31,2,31,5],[38,2,38,5],[38,6,38,7],[31,6,31,7],[31,8,31,10],[31,11,31,16],[31,19,31,24],[29,2,30,5],[29,6,30,7],[29,8,30,10],[29,11,30,16],[34,2,34,5],[34,6,34,18],[34,19,34,24],[35,12,35,18],[39,2,39,5],[39,6,39,7],[39,19,39,24],[36,2,36,5],[36,6,36,7],[36,19,36,24],[37,2,37,5],[37,6,37,7],[37,8,37,18],[37,19,37,24],[38,19,38,24],[39,8,39,18],[38,8,38,18],[36,12,36,18],[36,8,36,10],[11,7,11,12],[12,2,12,5],[12,7,12,12],[12,16,12,24],[13,2,13,5],[13,7,13,12],[13,16,13,24],[10,2,11,5],[10,6,11,6],[10,7,10,13],[10,14,10,15],[10,16,11,24],[23,19,23,24],[24,3,26,3],[17,2,18,3],[17,4,17,5],[17,7,17,12],[17,16,17,24],[18,4,18,5],[18,7,18,12],[26,19,26,24],[21,17,21,18],[21,19,22,24],[23,2,26,2],[18,16,18,24],[24,19,24,24],[26,6,26,8],[26,9,26,10],[26,11,26,13],[25,19,25,24],[25,6,25,8],[25,9,25,10],[25,11,25,13],[25,4,26,4],[24,4,24,5],[21,2,22,5],[14,2,14,5],[14,7,14,12],[14,16,14,24],[15,2,16,3],[15,4,15,5],[15,7,15,12],[15,16,15,24],[16,4,16,5],[16,7,16,12],[16,16,16,24],[21,6,22,8],[21,9,22,10],[21,11,22,13],[21,14,22,14],[21,15,21,16],[24,6,24,8],[24,9,24,10],[24,11,24,13],[23,4,23,5],[23,6,23,8],[23,9,23,10],[23,11,23,13],[5,2,5,4],[6,2,6,4],[7,2,7,4],[5,17,5,24],[6,17,6,24],[7,12,7,24],[5,11,5,15],[6,11,6,15],[5,5,5,9],[6,5,6,9],[7,5,7,9]]}
[null,null,6,6,9.5,10,9,9,9,10,9,9,9,10,10,9,9,9,9,9,9,null,9,9,9]
[]
[30,null,"仕様表　木造戸建て住宅（仕様基準）",null,null,null,null,null,null,"建築物省エネ法第10条に基づく省エネ基準適合義務に関する事項",null,null,null,null,null,null,null,null,null,null,null,null,null,null,null,null,"拡大率57％"]
[6]
[30,null,"基本情報",null,null,null,null,null,null,null,null,null,null,null,null,null,null,null,null,null,null,null,null,null,null,null,"地域の区分",{"$f":"'A 最初に入力してください　基本情報'!C21","v":""},{"$f":"AB5+8","v":{"$error":"#VALUE!"}}]
[27,null,"申請する建築士名",null,null,{"$f":"IFERROR(VLOOKUP(1,非表示_出力帳票へのリンク!$A$2:$P$100,'C 仕様表（仕様基準）'!AC5,FALSE),\"\")","v":""},null,null,null,null,"記入日",{"$f":"IFERROR(VLOOKUP(2,非表示_出力帳票へのリンク!$A$2:$P$100,'C 仕様表（仕様基準）'!AC5,FALSE),\"\")","v":""},null,null,null,null,"会社名",{"$f":"IFERROR(VLOOKUP(3,非表示_出力帳票へのリンク!$A$2:$P$100,'C 仕様表（仕様基準）'!AC5,FALSE),\"\")","v":""}]
[27,null,"事務所登録",null,null,{"$f":"IFERROR(VLOOKUP(4,非表示_出力帳票へのリンク!$A$2:$P$100,'C 仕様表（仕様基準）'!AC5,FALSE),\"\")","v":""},null,null,null,null,"建築士番号",{"$f":"IFERROR(VLOOKUP(5,非表示_出力帳票へのリンク!$A$2:$P$100,'C 仕様表（仕様基準）'!AC5,FALSE),\"\")","v":""},null,null,null,null,"物件名",{"$f":"IFERROR(VLOOKUP(6,非表示_出力帳票へのリンク!$A$2:$P$100,'C 仕様表（仕様基準）'!AC5,FALSE),\"\")","v":""}]
[27,null,"地域の区分",null,null,{"$f":"IFERROR(VLOOKUP(7,非表示_出力帳票へのリンク!$A$2:$P$100,'C 仕様表（仕様基準）'!AC5,FALSE),\"\")","v":""},null,null,null,null,"建設地",{"$f":"IFERROR(VLOOKUP(8,非表示_出力帳票へのリンク!$A$2:$P$100,'C 仕様表（仕様基準）'!AC5,FALSE),\"\")","v":""},{"$f":"IFERROR(VLOOKUP(9,非表示_出力帳票へのリンク!$A$2:$P$100,'C 仕様表（仕様基準）'!AC5,FALSE),\"\")","v":""}]
[6]
[30,null,"外皮基準：断熱仕様"]
[16,null,"部位",null,null,null,"断熱工法","断熱材",null,null,null,null,null,null,"熱抵抗［㎡･K/W］",null,"備考"]
[16,null,null,null,null,null,null,"種類",null,null,null,null,null,"厚さ[mm]","設計値","基準値"]
[27,null,"屋根",null,null,null,{"$f":"IFERROR(VLOOKUP(10,非表示_出力帳票へのリンク!$A$2:$P$100,'C 仕様表（仕様基準）'!AC5,FALSE),\"\")","v":""},{"$f":"IFERROR(VLOOKUP(11,非表示_出力帳票へのリンク!$A$2:$P$100,'C 仕様表（仕様基準）'!AC5,FALSE),\"\")","v":""},null,null,null,null,null,{"$f":"IFERROR(VLOOKUP(12,非表示_出力帳票へのリンク!$A$2:$P$100,'C 仕様表（仕様基準）'!AC5,FALSE),\"\")","v":""},{"$f":"IFERROR(VLOOKUP(13,非表示_出力帳票へのリンク!$A$2:$P$100,'C 仕様表（仕様基準）'!AC5,FALSE),\"\")","v":""},{"$f":"IFERROR(VLOOKUP(14,非表示_出力帳票へのリンク!$A$2:$P$100,'C 仕様表（仕様基準）'!AC5,FALSE),\"\")","v":""},{"$f":"IFERROR(VLOOKUP(15,非表示_出力帳票へのリンク!$A$2:$P$100,'C 仕様表（仕様基準）'!AC5,FALSE),\"\")","v":""}]
[27,null,"天井",null,null,null,{"$f":"IFERROR(VLOOKUP(16,非表示_出力帳票へのリンク!$A$2:$P$100,'C 仕様表（仕様基準）'!AC5,FALSE),\"\")","v":""},{"$f":"IFERROR(VLOOKUP(17,非表示_出力帳票へのリンク!$A$2:$P$100,'C 仕様表（仕様基準）'!AC5,FALSE),\"\")","v":""},null,null,null,null,null,{"$f":"IFERROR(VLOOKUP(18,非表示_出力帳票へのリンク!$A$2:$P$100,'C 仕様表（仕様基準）'!AC5,FALSE),\"\")","v":""},{"$f":"IFERROR(VLOOKUP(19,非表示_出力帳票へのリンク!$A$2:$P$100,'C 仕様表（仕様基準）'!AC5,FALSE),\"\")","v":""},{"$f":"IFERROR(VLOOKUP(20,非表示_出力帳票へのリンク!$A$2:$P$100,'C 仕様表（仕様基準）'!AC5,FALSE),\"\")","v":""},{"$f":"IFERROR(VLOOKUP(21,非表示_出力帳票へのリンク!$A$2:$P$100,'C 仕様表（仕様基準）'!AC5,FALSE),\"\")","v":""}]
[27,null,"壁",null,null,null,{"$f":"IFERROR(VLOOKUP(22,非表示_出力帳票へのリンク!$A$2:$P$100,'C 仕様表（仕様基準）'!AC5,FALSE),\"\")","v":""},{"$f":"IFERROR(VLOOKUP(23,非表示_出力帳票へのリンク!$A$2:$P$100,'C 仕様表（仕様基準）'!AC5,FALSE),\"\")","v":""},null,null,null,null,null,{"$f":"IFERROR(VLOOKUP(24,非表示_出力帳票へのリンク!$A$2:$P$100,'C 仕様表（仕様基準）'!AC5,FALSE),\"\")","v":""},{"$f":"IFERROR(VLOOKUP(25,非表示_出力帳票へのリンク!$A$2:$P$100,'C 仕様表（仕様基準）'!AC5,FALSE),\"\")","v":""},{"$f":"IFERROR(VLOOKUP(26,非表示_出力帳票へのリンク!$A$2:$P$100,'C 仕様表（仕様基準）'!AC5,FALSE),\"\")","v":""},{"$f":"IFERROR(VLOOKUP(27,非表示_出力帳票へのリンク!$A$2:$P$100,'C 仕様表（仕様基準）'!AC5,FALSE),\"\")","v":""}]
[27,null,"床",null,"外気に接する部分",null,{"$f":"IFERROR(VLOOKUP(28,非表示_出力帳票へのリンク!$A$2:$P$100,'C 仕様表（仕様基準）'!AC5,FALSE),\"\")","v":""},{"$f":"IFERROR(VLOOKUP(29,非表示_出力帳票へのリンク!$A$2:$P$100,'C 仕様表（仕様基準）'!AC5,FALSE),\"\")","v":""},null,null,null,null,null,{"$f":"IFERROR(VLOOKUP(30,非表示_出力帳票へのリンク!$A$2:$P$100,'C 仕様表（仕様基準）'!AC5,FALSE),\"\")","v":""},{"$f":"IFERROR(VLOOKUP(31,非表示_出力帳票へのリンク!$A$2:$P$100,'C 仕様表（仕様基準）'!AC5,FALSE),\"\")","v":""},{"$f":"IFERROR(VLOOKUP(32,非表示_出力帳票へのリンク!$A$2:$P$100,'C 仕様表（仕様基準）'!AC5,FALSE),\"\")","v":""},{"$f":"IFERROR(VLOOKUP(33,非表示_出力帳票へのリンク!$A$2:$P$100,'C 仕様表（仕様基準）'!AC5,FALSE),\"\")","v":""}]
[27,null,null,null,"その他の部分",null,{"$f":"IFERROR(VLOOKUP(34,非表示_出力帳票へのリンク!$A$2:$P$100,'C 仕様表（仕様基準）'!AC5,FALSE),\"\")","v":""},{"$f":"IFERROR(VLOOKUP(35,非表示_出力帳票へのリンク!$A$2:$P$100,'C 仕様表（仕様基準）'!AC5,FALSE),\"\")","v":""},null,null,null,null,null,{"$f":"IFERROR(VLOOKUP(36,非表示_出力帳票へのリンク!$A$2:$P$100,'C 仕様表（仕様基準）'!AC5,FALSE),\"\")","v":""},{"$f":"IFERROR(VLOOKUP(37,非表示_出力帳票へのリンク!$A$2:$P$100,'C 仕様表（仕様基準）'!AC5,FALSE),\"\")","v":""},{"$f":"IFERROR(VLOOKUP(38,非表示_出力帳票へのリンク!$A$2:$P$100,'C 仕様表（仕様基準）'!AC5,FALSE),\"\")","v":""},{"$f":"IFERROR(VLOOKUP(39,非表示_出力帳票へのリンク!$A$2:$P$100,'C 仕様表（仕様基準）'!AC5,FALSE),\"\")","v":""}]
[27,null,"土間床等の\n外周部分の\n基礎壁",null,"外気に接する部分",null,null,{"$f":"IFERROR(VLOOKUP(40,非表示_出力帳票へのリンク!$A$2:$P$100,'C 仕様表（仕様基準）'!AC5,FALSE),\"\")","v":""},null,null,null,null,null,{"$f":"IFERROR(VLOOKUP(41,非表示_出力帳票へのリンク!$A$2:$P$100,'C 仕様表（仕様基準）'!AC5,FALSE),\"\")","v":""},{"$f":"IFERROR(VLOOKUP(42,非表示_出力帳票へのリンク!$A$2:$P$100,'C 仕様表（仕様基準）'!AC5,FALSE),\"\")","v":""},{"$f":"IFERROR(VLOOKUP(43,非表示_出力帳票へのリンク!$A$2:$P$100,'C 仕様表（仕様基準）'!AC5,FALSE),\"\")","v":""},{"$f":"IFERROR(VLOOKUP(44,非表示_出力帳票へのリンク!$A$2:$P$100,'C 仕様表（仕様基準）'!AC5,FALSE),\"\")","v":""}]
[27,null,null,null,"その他の部分",null,null,{"$f":"IFERROR(VLOOKUP(45,非表示_出力帳票へのリンク!$A$2:$P$100,'C 仕様表（仕様基準）'!AC5,FALSE),\"\")","v":""},null,null,null,null,null,{"$f":"IFERROR(VLOOKUP(46,非表示_出力帳票へのリンク!$A$2:$P$100,'C 仕様表（仕様基準）'!AC5,FALSE),\"\")","v":""},{"$f":"IFERROR(VLOOKUP(47,非表示_出力帳票へのリンク!$A$2:$P$100,'C 仕様表（仕様基準）'!AC5,FALSE),\"\")","v":""},{"$f":"IFERROR(VLOOKUP(48,非表示_出力帳票へのリンク!$A$2:$P$100,'C 仕様表（仕様基準）'!AC5,FALSE),\"\")","v":""},{"$f":"IFERROR(VLOOKUP(49,非表示_出力帳票へのリンク!$A$2:$P$100,'C 仕様表（仕様基準）'!AC5,FALSE),\"\")","v":""}]
[6]
[30,null,"外皮基準：窓"]
[16,null,"部位・地域・窓の設置場所",null,null,null,"建具の仕様",null,null," ガラスの仕様",null,"中空層の仕様",null,null,"日射取得\n/日射遮蔽","熱貫流率［W/(㎡･K)]",null,"日射熱取得率［－］",null,"備考"]
[16,null,null,null,null,null,null,null,null,null,null,null,null,null,null,"設計値","基準値","設計値","基準値"]
[33,null,"窓","１～４\n地域",null,null,{"$f":"IFERROR(VLOOKUP(50,非表示_出力帳票へのリンク!$A$2:$P$100,'C 仕様表（仕様基準）'!AC5,FALSE),\"\")","v":""},null,null,{"$f":"IFERROR(VLOOKUP(51,非表示_出力帳票へのリンク!$A$2:$P$100,'C 仕様表（仕様基準）'!AC5,FALSE),\"\")","v":""},null,{"$f":"IFERROR(VLOOKUP(52,非表示_出力帳票へのリンク!$A$2:$P$100,'C 仕様表（仕様基準）'!AC5,FALSE),\"\")","v":""},null,null,null,{"$f":"IFERROR(VLOOKUP(54,非表示_出力帳票へのリンク!$A$2:$P$100,'C 仕様表（仕様基準）'!AC5,FALSE),\"\")","v":""},{"$f":"IFERROR(VLOOKUP(55,非表示_出力帳票へのリンク!$A$2:$P$100,'C 仕様表（仕様基準）'!AC5,FALSE),\"\")","v":""},null,null,{"$f":"IFERROR(VLOOKUP(56,非表示_出力帳票へのリンク!$A$2:$P$100,'C 仕様表（仕様基準）'!AC5,FALSE),\"\")","v":""}]
[33,null,null,"５～８\n地域","有効なひさし、軒等が\nある 所に設置する窓",null,{"$f":"IFERROR(IF(AB5=8,\"－\",VLOOKUP(57,非表示_出力帳票へのリンク!$A$2:$P$100,'C 仕様表（仕様基準）'!AC5,FALSE)),\"\")","v":""},null,null,{"$f":"IFERROR(IF(AB5=8,\"－\",VLOOKUP(58,非表示_出力帳票へのリンク!$A$2:$P$100,'C 仕様表（仕様基準）'!AC5,FALSE)),\"\")","v":""},null,{"$f":"IFERROR(IF(AB5=8,\"－\",VLOOKUP(59,非表示_出力帳票へのリンク!$A$2:$P$100,'C 仕様表（仕様基準）'!AC5,FALSE)),\"\")","v":""},null,null,null,{"$f":"IFERROR(IF(AB5=8,\"－\",VLOOKUP(61,非表示_出力帳票へのリンク!$A$2:$P$100,'C 仕様表（仕様基準）'!AC5,FALSE)),\"\")","v":""},{"$f":"IFERROR(IF(AB5=8,\"－\",VLOOKUP(62,非表示_出力帳票へのリンク!$A$2:$P$100,'C 仕様表（仕様基準）'!AC5,FALSE)),\"\")","v":""},null,null,{"$f":"IFERROR(VLOOKUP(63,非表示_出力帳票へのリンク!$A$2:$P$100,'C 仕様表（仕様基準）'!AC5,FALSE),\"\")","v":""}]
[33,null,null,null,"有効なひさし、軒等が\nない 所に設置する窓","熱貫流率Ｕが最大",{"$f":"IFERROR(IF(AB5=8,\"－\",VLOOKUP(64,非表示_出力帳票へのリンク!$A$2:$P$100,'C 仕様表（仕様基準）'!AC5,FALSE)),\"\")","v":""},null,null,{"$f":"IFERROR(IF(AB5=8,\"－\",VLOOKUP(65,非表示_出力帳票へのリンク!$A$2:$P$100,'C 仕様表（仕様基準）'!AC5,FALSE)),\"\")","v":""},null,{"$f":"IFERROR(IF(AB5=8,\"－\",VLOOKUP(66,非表示_出力帳票へのリンク!$A$2:$P$100,'C 仕様表（仕様基準）'!AC5,FALSE)),\"\")","v":""},null,null,{"$f":"IFERROR(IF(AB5=8,\"－\",VLOOKUP(67,非表示_出力帳票へのリンク!$A$2:$P$100,'C 仕様表（仕様基準）'!AC5,FALSE)),\"\")","v":""},{"$f":"IFERROR(IF(AB5=8,\"－\",VLOOKUP(68,非表示_出力帳票へのリンク!$A$2:$P$100,'C 仕様表（仕様基準）'!AC5,FALSE)),\"\")","v":""},{"$f":"IFERROR(IF(AB5=8,\"－\",VLOOKUP(69,非表示_出力帳票へのリンク!$A$2:$P$100,'C 仕様表（仕様基準）'!AC5,FALSE)),\"\")","v":""},{"$f":"IFERROR(IF(AB5=8,\"－\",VLOOKUP(70,非表示_出力帳票へのリンク!$A$2:$P$100,'C 仕様表（仕様基準）'!AC5,FALSE)),\"\")","v":""},{"$f":"IFERROR(IF(AB5=8,\"－\",VLOOKUP(71,非表示_出力帳票へのリンク!$A$2:$P$100,'C 仕様表（仕様基準）'!AC5,FALSE)),\"\")","v":""},{"$f":"IFERROR(IF(AB5=8,\"－\",VLOOKUP(72,非表示_出力帳票へのリンク!$A$2:$P$100,'C 仕様表（仕様基準）'!AC5,FALSE)),\"\")","v":""}]
[33,null,null,null,null,"日射熱取得率ηdが最大",{"$f":"IFERROR(VLOOKUP(73,非表示_出力帳票へのリンク!$A$2:$P$100,'C 仕様表（仕様基準）'!AC5,FALSE),\"\")","v":""},null,null,{"$f":"IFERROR(VLOOKUP(74,非表示_出力帳票へのリンク!$A$2:$P$100,'C 仕様表（仕様基準）'!AC5,FALSE),\"\")","v":""},null,{"$f":"IFERROR(VLOOKUP(75,非表示_出力帳票へのリンク!$A$2:$P$100,'C 仕様表（仕様基準）'!AC5,FALSE),\"\")","v":""},null,null,{"$f":"IFERROR(VLOOKUP(76,非表示_出力帳票へのリンク!$A$2:$P$100,'C 仕様表（仕様基準）'!AC5,FALSE),\"\")","v":""},{"$f":"IFERROR(VLOOKUP(77,非表示_出力帳票へのリンク!$A$2:$P$100,'C 仕様表（仕様基準）'!AC5,FALSE),\"\")","v":""},{"$f":"IFERROR(VLOOKUP(78,非表示_出力帳票へのリンク!$A$2:$P$100,'C 仕様表（仕様基準）'!AC5,FALSE),\"\")","v":""},{"$f":"IFERROR(VLOOKUP(79,非表示_出力帳票へのリンク!$A$2:$P$100,'C 仕様表（仕様基準）'!AC5,FALSE),\"\")","v":""},{"$f":"IFERROR(VLOOKUP(80,非表示_出力帳票へのリンク!$A$2:$P$100,'C 仕様表（仕様基準）'!AC5,FALSE),\"\")","v":""},{"$f":"IFERROR(VLOOKUP(81,非表示_出力帳票へのリンク!$A$2:$P$100,'C 仕様表（仕様基準）'!AC5,FALSE),\"\")","v":""}]
[6]
[30,null,"外皮基準：ドア"]
[16,null,"部位",null,null,null,"枠の仕様",null,"戸の仕様",null,null," ガラスの仕様・中空層の仕様",null,null,null,null,null,"熱貫流率［W/(㎡･K)]",null,"備考"]
[16,null,null,null,null,null,null,null,null,null,null,null,null,null,null,null,null,"設計値","基準値"]
[33,null,"ドア",null,null,null,{"$f":"IFERROR(VLOOKUP(82,非表示_出力帳票へのリンク!$A$2:$P$100,'C 仕様表（仕様基準）'!AC5,FALSE),\"\")","v":""},null,{"$f":"IFERROR(VLOOKUP(83,非表示_出力帳票へのリンク!$A$2:$P$100,'C 仕様表（仕様基準）'!AC5,FALSE),\"\")","v":""},null,null,{"$f":"IFERROR(VLOOKUP(84,非表示_出力帳票へのリンク!$A$2:$P$100,'C 仕様表（仕様基準）'!AC5,FALSE),\"\")","v":""},null,null,null,null,null,{"$f":"IFERROR(VLOOKUP(85,非表示_出力帳票へのリンク!$A$2:$P$100,'C 仕様表（仕様基準）'!AC5,FALSE),\"\")","v":""},{"$f":"IFERROR(VLOOKUP(86,非表示_出力帳票へのリンク!$A$2:$P$100,'C 仕様表（仕様基準）'!AC5,FALSE),\"\")","v":""},{"$f":"IFERROR(VLOOKUP(87,非表示_出力帳票へのリンク!$A$2:$P$100,'C 仕様表（仕様基準）'!AC5,FALSE),\"\")","v":""}]
[6]
[30,null,"一次エネエルギー消費量基準：設備仕様"]
[30,null,"設備の種類",null,null,null,"設備機器の仕様",null,null,null,null,null,null,null,null,null,null,null,null,"備考"]
[27,null,"暖房設備",null,null,null,"暖房方式",null,{"$f":"IFERROR(IF(AB5=8,\"－\",VLOOKUP(88,非表示_出力帳票へのリンク!$A$2:$P$100,'C 仕様表（仕様基準）'!AC5,FALSE)),\"\")","v":""},null,null,"設備仕様",{"$f":"IFERROR(IF(AB5=8,\"－\",VLOOKUP(89,非表示_出力帳票へのリンク!$A$2:$P$100,'C 仕様表（仕様基準）'!AC5,FALSE)),\"\")","v":""},null,null,null,null,null,null,{"$f":"IFERROR(IF(AB5=8,\"－\",VLOOKUP(90,非表示_出力帳票へのリンク!$A$2:$P$100,'C 仕様表（仕様基準）'!AC5,FALSE)),\"\")","v":""}]
[27,null,"冷房設備",null,null,null,"冷房方式",null,{"$f":"IFERROR(VLOOKUP(91,非表示_出力帳票へのリンク!$A$2:$P$100,'C 仕様表（仕様基準）'!AC5,FALSE),\"\")","v":""},null,null,"設備仕様",{"$f":"IFERROR(VLOOKUP(92,非表示_出力帳票へのリンク!$A$2:$P$100,'C 仕様表（仕様基準）'!AC5,FALSE),\"\")","v":""},null,null,null,null,null,null,{"$f":"IFERROR(VLOOKUP(93,非表示_出力帳票へのリンク!$A$2:$P$100,'C 仕様表（仕様基準）'!AC5,FALSE),\"\")","v":""}]
[27,null,"換気設備",null,null,null,"換気方式等",null,{"$f":"IFERROR(VLOOKUP(94,非表示_出力帳票へのリンク!$A$2:$P$100,'C 仕様表（仕様基準）'!AC5,FALSE),\"\")","v":""},null,null,null,null,null,null,null,null,null,null,{"$f":"IFERROR(VLOOKUP(95,非表示_出力帳票へのリンク!$A$2:$P$100,'C 仕様表（仕様基準）'!AC5,FALSE),\"\")","v":""}]
[27,null,"給湯設備",null,null,null,"機器の種類、効率",null,{"$f":"IFERROR(VLOOKUP(96,非表示_出力帳票へのリンク!$A$2:$P$100,'C 仕様表（仕様基準）'!AC5,FALSE),\"\")","v":""},null,null,null,null,null,null,null,null,null,null,{"$f":"IFERROR(VLOOKUP(97,非表示_出力帳票へのリンク!$A$2:$P$100,'C 仕様表（仕様基準）'!AC5,FALSE),\"\")","v":""}]
[27,null,"照明設備",null,null,null,"照明設備の種類",null,{"$f":"IFERROR(VLOOKUP(98,非表示_出力帳票へのリンク!$A$2:$P$100,'C 仕様表（仕様基準）'!AC5,FALSE),\"\")","v":""},null,null,null,null,null,null,null,null,null,null,{"$f":"IFERROR(VLOOKUP(99,非表示_出力帳票へのリンク!$A$2:$P$100,'C 仕様表（仕様基準）'!AC5,FALSE),\"\")","v":""}]

{"sheet":"プルダウン項目_非表示","index":8,"n_rows":10,"n_cols":9,"rows_kept":10,"cut":false,"hidden":true,"merged":[]}
[null,null,null,"屋根"]
[null,null,null,"天井"]
[null,null,null,"壁"]
[null,null,null,"床\n外気に接する部分","床\nその他の部分"]
[null,null,null,null,null,"土間床等の外周部分の\n基礎壁\n（外気に接する部分）"]
[null,null,null,null,null,"土間床等の外周部分の\n基礎壁\n（その他の部分）"]
[null,"断熱部位のチェック","熱抵抗R入力方法","断熱工法",null,null,"該当窓の有無","窓の入力方法","ドアの入力方法"]
[null,"断熱部位","直接入力","軸組充填","軸組充填","内断熱","あり","直接入力","直接入力"]
[null,"該当部位なし","断熱材の種類から入力","枠組充填","枠組充填","外断熱または両面断熱","なし","建具とガラスの組み合わせから入力","枠と戸の組み合わせから入力"]
[null,null,null,"外張"]

{"sheet":"ドアのプルダウン_非表示","index":9,"n_rows":102,"n_cols":23,"rows_kept":102,"cut":false,"hidden":true,"merged":[[57,22,57,23],[1,12,1,15],[1,16,1,17],[12,11,13,11],[55,22,55,23],[56,16,56,17],[56,20,56,21],[56,22,56,23],[57,12,57,13],[57,14,57,15],[57,16,57,17],[57,20,57,21],[55,11,56,11],[55,12,56,13],[55,14,56,15],[55,16,55,17],[55,20,55,21],[54,12,54,13],[54,14,54,15],[54,16,54,17],[54,20,54,21],[54,22,54,23],[53,12,53,13],[53,14,53,15],[50,20,50,21],[51,20,51,21],[49,11,50,11],[49,14,49,15],[49,12,51,12],[53,16,53,17],[53,20,53,21],[53,22,53,23],[52,12,52,13],[52,14,52,15],[52,16,52,17],[52,20,52,21],[52,22,52,23],[49,22,49,23],[51,22,51,23],[50,22,50,23],[49,16,49,17],[49,20,49,21],[48,22,48,23],[46,22,46,23],[47,12,47,13],[47,14,47,15],[47,16,47,17],[47,20,47,21],[47,22,47,23],[43,22,43,23],[44,14,46,15],[44,16,45,17],[44,20,44,21],[44,22,44,23],[45,20,45,21],[45,22,45,23],[46,16,46,17],[48,12,48,13],[48,14,48,15],[48,16,48,17],[48,20,48,21],[43,11,46,11],[43,12,46,13],[43,14,43,15],[43,16,43,17],[43,20,43,21],[46,20,46,21],[42,12,42,13],[42,14,42,15],[42,16,42,17],[42,20,42,21],[42,22,42,23],[41,12,41,13],[41,14,41,15],[41,16,41,17],[41,20,41,21],[41,22,41,23],[40,12,40,13],[40,14,40,15],[40,16,40,17],[40,20,40,21],[40,22,40,23],[39,12,39,13],[39,14,39,15],[39,16,39,17],[39,20,39,21],[39,22,39,23],[35,22,35,23],[36,14,38,15],[36,16,37,17],[36,20,36,21],[36,22,36,23],[37,20,37,21],[37,22,37,23],[38,16,38,17],[35,11,38,11],[35,12,38,13],[35,14,35,15],[35,16,35,17],[35,20,35,21],[38,20,38,21],[33,20,33,21],[33,22,33,23],[34,12,34,13],[34,14,34,15],[34,16,34,17],[34,20,34,21],[34,22,34,23],[38,22,38,23],[30,20,30,21],[30,22,30,23],[31,20,31,21],[31,22,31,23],[32,18,33,18],[32,20,32,21],[32,22,32,23],[30,11,33,11],[30,12,33,13],[30,14,33,15],[30,16,33,17],[30,18,31,18],[29,12,29,13],[29,14,29,15],[29,16,29,17],[29,20,29,21],[29,22,29,23],[28,12,28,13],[28,14,28,15],[28,16,28,17],[28,20,28,21],[28,22,28,23],[26,22,26,23],[27,12,27,13],[27,14,27,15],[27,16,27,17],[27,20,27,21],[27,22,27,23],[26,12,26,13],[26,14,26,15],[26,16,26,17],[26,18,27,18],[26,20,26,21],[24,22,24,23],[25,12,25,13],[25,14,25,15],[25,16,25,17],[25,20,25,21],[25,22,25,23],[24,12,24,13],[24,14,24,15],[24,16,24,17],[24,18,25,18],[24,20,24,21],[23,12,23,13],[23,14,23,15],[23,16,23,17],[23,20,23,21],[23,22,23,23],[22,12,22,13],[22,14,22,15],[22,16,22,17],[22,20,22,21],[22,22,22,23],[21,12,21,13],[21,14,21,15],[21,16,21,17],[21,20,21,21],[21,22,21,23],[20,12,20,13],[20,14,20,15],[20,16,20,17],[20,20,20,21],[20,22,20,23],[19,12,19,13],[19,14,19,15],[19,16,19,17],[19,20,19,21],[19,22,19,23],[15,22,15,23],[16,14,18,15],[16,16,17,17],[16,20,16,21],[16,22,16,23],[17,20,17,21],[17,22,17,23],[18,16,18,17],[15,11,18,11],[15,12,18,13],[15,14,15,15],[15,16,15,17],[15,20,15,21],[18,20,18,21],[13,22,13,23],[14,14,14,15],[14,16,14,17],[14,20,14,21],[14,22,14,23],[9,12,14,13],[9,14,9,15],[9,16,9,17],[9,20,9,21],[9,22,9,23],[18,22,18,23],[12,14,12,15],[12,16,12,17],[12,18,13,18],[12,20,12,21],[12,22,12,23],[13,14,13,15],[13,16,13,17],[13,20,13,21],[10,20,10,21],[10,22,10,23],[11,14,11,15],[11,16,11,17],[11,20,11,21],[11,22,11,23],[10,14,10,15],[10,16,10,17],[10,18,11,18],[8,12,8,13],[8,14,8,15],[8,16,8,17],[8,20,8,21],[8,22,8,23],[6,22,6,23],[7,12,7,13],[7,14,7,15],[7,16,7,17],[7,20,7,21],[7,22,7,23],[6,12,6,13],[6,14,6,15],[6,16,6,17],[6,18,7,18],[6,20,6,21],[4,22,4,23],[5,12,5,13],[5,14,5,15],[5,16,5,17],[5,20,5,21],[5,22,5,23],[4,12,4,13],[4,14,4,15],[4,16,4,17],[4,18,5,18],[4,20,4,21],[3,12,3,13],[3,14,3,15],[3,16,3,17],[3,20,3,21],[3,22,3,23],[1,11,2,11],[1,20,1,23],[2,20,2,21],[2,22,2,23]]}
[null,"枠の仕様",null,null,"戸の仕様",null,"ガラスの仕様_中空層の仕様"]
[null,null,null,null,null,null,null,null,null,null,null,"枠の仕様","戸の仕様",null,null,null,"ガラスの仕様",null,"中空層","の仕様","開口部の熱貫流率［W/(㎡・K)] ※2 "]
[null,"建具の仕様",null,null,"金属製熱遮断構造",null,"金属製熱遮断構造_金属製高断熱フラッシュ構造_ドア内ガラスなし",null,null,"ドアの熱貫流率",null,null,null,null,null,null,null,null,"ガスの封入※1 ","中空層の厚さ","付属部材無し",null,"風除室あり"]
[null,"金属製熱遮断構造",null,null,"金属製高断熱フラッシュ構造_ドア内ガラスなし",null,"－",null,{"$f":"G$3&\"_\"&G4","v":"金属製熱遮断構造_金属製高断熱フラッシュ構造_ドア内ガラスなし_－"},{"$f":"ROUND(U4,1)","v":1.6},null,null,null,null,"ドア内ガラスなし",null,"－",null,"－","－",1.6,null,1.38]
[null,"複合材料製",null,null,"金属製高断熱フラッシュ構造_ドア内ガラスあり",null,null,null,{"$f":"G$6&\"_\"&G7","v":"金属製熱遮断構造_金属製高断熱フラッシュ構造_ドア内ガラスあり_Low-E二層複層ガラス_ガスの封入されている_7 ㎜以上"},{"$f":"ROUND(U5,1)","v":1.9},null,null,"金属製",null,null,null,null,null,"されている","7 ㎜以上",1.9,null,1.6]
[null,"金属製又はその他",null,null,"金属製断熱フラッシュ構造_ドア内ガラスなし",null,"金属製熱遮断構造_金属製高断熱フラッシュ構造_ドア内ガラスあり",null,{"$f":"G$6&\"_\"&G8","v":"金属製熱遮断構造_金属製高断熱フラッシュ構造_ドア内ガラスあり_Low-E二層複層ガラス_ガスの封入されている_7 ㎜未満"},2.2999999999999998,null,null,"高断熱",null,null,null,"Low-E",null,null,"7 ㎜未満",2.33,null,1.89]
[null,null,null,null,"金属製断熱フラッシュ構造_ドア内ガラスあり",null,"Low-E二層複層ガラス_ガスの封入されている_7 ㎜以上",null,{"$f":"G$6&\"_\"&G9","v":"金属製熱遮断構造_金属製高断熱フラッシュ構造_ドア内ガラスあり_Low-E二層複層ガラス_ガスの封入されていない_9 ㎜以上"},1.9,null,null,"フラッシュ",null,"ドア内ガラスあり",null,"二層複層ガラス",null,"されていない","9 ㎜以上",1.9,null,1.6]
[null,null,null,null,"金属製フラッシュ構造_ドア内ガラスなし",null,"Low-E二層複層ガラス_ガスの封入されている_7 ㎜未満",null,{"$f":"G$6&\"_\"&G10","v":"金属製熱遮断構造_金属製高断熱フラッシュ構造_ドア内ガラスあり_Low-E二層複層ガラス_ガスの封入されていない_9 ㎜未満"},2.2999999999999998,null,null,"構造",null,null,null,null,null,null,"9 ㎜未満",2.33,null,1.89]
[null,null,null,null,"金属製フラッシュ構造_ドア内ガラスあり",null,"Low-E二層複層ガラス_ガスの封入されていない_9 ㎜以上",null,{"$f":"G$6&\"_\"&G11","v":"金属製熱遮断構造_金属製高断熱フラッシュ構造_ドア内ガラスあり_二層複層ガラス_ガスの封入されていない_中空層厚問わない"},2.2999999999999998,null,null,null,null,null,null,"二層複層ガラス",null,"されていない","中空層厚問わない",2.33,null,1.89]
[null,null,null,null,"金属製ハニカムフラッシュ構造_ドア内ガラスなし",null,"Low-E二層複層ガラス_ガスの封入されていない_9 ㎜未満",null,{"$f":"G$13&\"_\"&G14","v":"金属製熱遮断構造_金属製断熱フラッシュ構造_ドア内ガラスなし_－"},1.9,null,null,"金属製断熱フラッシュ構造",null,"ドア内ガラスなし",null,"－",null,"－","－",1.9,null,1.6]
[null,null,null,null,"金属製ハニカムフラッシュ構造_ドア内ガラスあり",null,"二層複層ガラス_ガスの封入されていない_中空層厚問わない",null,{"$f":"G$16&\"_\"&G17","v":"金属製熱遮断構造_金属製断熱フラッシュ構造_ドア内ガラスあり_Low-E二層複層ガラス_ガスの封入されている_10 ㎜以上"},2.2999999999999998,null,null,null,null,null,null,null,null,"されている","10 ㎜以上",2.33,null,1.89]
[null,null,null,null,null,null,null,null,{"$f":"G$16&\"_\"&G18","v":"金属製熱遮断構造_金属製断熱フラッシュ構造_ドア内ガラスあり_Low-E二層複層ガラス_ガスの封入されている_10 ㎜未満"},2.9,null,null,null,null,null,null,"Low-E",null,null,"10 ㎜未満",2.91,null,2.2599999999999998]
[null,null,null,null,"複合材料製",null,"金属製熱遮断構造_金属製断熱フラッシュ構造_ドア内ガラスなし",null,{"$f":"G$16&\"_\"&G19","v":"金属製熱遮断構造_金属製断熱フラッシュ構造_ドア内ガラスあり_Low-E二層複層ガラス_ガスの封入されていない_14 ㎜以上"},2.2999999999999998,null,"金属製熱遮断構造",null,null,"ドア内ガラスあり",null,"二層複層ガラス",null,"されていない","14 ㎜以上",2.33,null,1.89]
[null,null,null,null,"金属製高断熱フラッシュ構造_ドア内ガラスなし",null,"－",null,{"$f":"G$16&\"_\"&G20","v":"金属製熱遮断構造_金属製断熱フラッシュ構造_ドア内ガラスあり_Low-E二層複層ガラス_ガスの封入されていない_14 ㎜未満"},2.9,null,null,null,null,null,null,null,null,null,"14 ㎜未満",2.91,null,2.2599999999999998]
[null,null,null,null,"金属製高断熱フラッシュ構造_ドア内ガラスあり",null,null,null,{"$f":"G$16&\"_\"&G21","v":"金属製熱遮断構造_金属製断熱フラッシュ構造_ドア内ガラスあり_二層複層ガラス_ガスの封入されていない_中空層厚問わない"},2.9,null,null,null,null,null,null,"二層複層ガラス",null,"されていない","中空層厚問わない",2.91,null,2.2599999999999998]
[null,null,null,null,"金属製断熱フラッシュ構造_ドア内ガラスなし",null,"金属製熱遮断構造_金属製断熱フラッシュ構造_ドア内ガラスあり",null,{"$f":"G$23&\"_\"&G24","v":"金属製熱遮断構造_金属製フラッシュ構造_ドア内ガラスなし_－"},1.9,null,null,"金属製\nフラッシュ構造",null,"ドア内ガラスなし",null,"－",null,"－","－",1.9,null,1.6]
[null,null,null,null,"金属製断熱フラッシュ構造_ドア内ガラスあり",null,"Low-E二層複層ガラス_ガスの封入されている_10 ㎜以上",null,{"$f":"G$26&\"_\"&G27","v":"金属製熱遮断構造_金属製フラッシュ構造_ドア内ガラスあり_Low-E二層複層ガラス_ガスの封入されている_中空層厚問わない"},2.9,null,null,null,null,"ドア内ガラスあり",null,"Low-E\n二層複層ガラス",null,"されている","中空層厚問わない",2.91,null,2.2599999999999998]
[null,null,null,null,"金属製フラッシュ構造_ドア内ガラスなし",null,"Low-E二層複層ガラス_ガスの封入されている_10 ㎜未満",null,{"$f":"G$26&\"_\"&G28","v":"金属製熱遮断構造_金属製フラッシュ構造_ドア内ガラスあり_Low-E二層複層ガラス_ガスの封入されていない_中空層厚問わない"},2.9,null,null,null,null,null,null,null,null,"されていない","中空層厚問わない",2.91,null,2.2599999999999998]
[null,null,null,null,"金属製フラッシュ構造_ドア内ガラスあり",null,"Low-E二層複層ガラス_ガスの封入されていない_14 ㎜以上",null,{"$f":"G$26&\"_\"&G29","v":"金属製熱遮断構造_金属製フラッシュ構造_ドア内ガラスあり_二層複層ガラス_ガスの封入されていない_中空層厚問わない"},2.9,null,null,null,null,null,null,"二層複層ガラス",null,"されていない","中空層厚問わない",2.91,null,2.2599999999999998]
[null,null,null,null,"金属製ハニカムフラッシュ構造_ドア内ガラスなし",null,"Low-E二層複層ガラス_ガスの封入されていない_14 ㎜未満",null,{"$f":"G$31&\"_\"&G32","v":"金属製熱遮断構造_金属製ハニカムフラッシュ構造_ドア内ガラスなし_－"},2.9,null,null,"金属製",null,"ドア内ガラスなし",null,"－",null,"－","－",2.91,null,2.2599999999999998]
[null,null,null,null,"金属製ハニカムフラッシュ構造_ドア内ガラスあり",null,"二層複層ガラス_ガスの封入されていない_中空層厚問わない",null,{"$f":"G$34&\"_\"&G35","v":"金属製熱遮断構造_金属製ハニカムフラッシュ構造_ドア内ガラスあり_Low-E二層複層ガラス_ガスの封入されている_中空層厚問わない"},3.5,null,null,"ハニカム",null,null,null,"Low-E",null,"されている","中空層厚問わない",3.49,null,2.59]
[null,null,null,null,null,null,null,null,{"$f":"G$34&\"_\"&G36","v":"金属製熱遮断構造_金属製ハニカムフラッシュ構造_ドア内ガラスあり_Low-E二層複層ガラス_ガスの封入されていない_中空層厚問わない"},3.5,null,null,"フラッシュ",null,"ドア内ガラスあり",null,"二層複層ガラス",null,"されていない","中空層厚問わない",3.49,null,2.59]
[null,null,null,null,"金属製又はその他",null,"金属製熱遮断構造_金属製フラッシュ構造_ドア内ガラスなし",null,{"$f":"G$34&\"_\"&G37","v":"金属製熱遮断構造_金属製ハニカムフラッシュ構造_ドア内ガラスあり_二層複層ガラス_ガスの封入されていない_中空層厚問わない"},3.5,null,null,"構造",null,null,null,"二層複層ガラス",null,"されていない","中空層厚問わない",3.49,null,2.59]
[null,null,null,null,"金属製フラッシュ構造_ドア内ガラスなし",null,"－",null,{"$f":"G$40&\"_\"&G41","v":"複合材料製_金属製高断熱フラッシュ構造_ドア内ガラスなし_－"},1.6,null,null,null,null,"ドア内ガラスなし",null,"－",null,"－","－",1.6,null,1.38]
[null,null,null,null,"金属製フラッシュ構造_ドア内ガラスあり",null,null,null,{"$f":"G$43&\"_\"&G44","v":"複合材料製_金属製高断熱フラッシュ構造_ドア内ガラスあり_Low-E二層複層ガラス_ガスの封入されている_8 ㎜以上"},1.9,null,null,"金属製",null,null,null,null,null,"されている","8 ㎜以上",1.9,null,1.6]
[null,null,null,null,"金属製ハニカムフラッシュ構造_ドア内ガラスなし",null,"金属製熱遮断構造_金属製フラッシュ構造_ドア内ガラスあり",null,{"$f":"G$43&\"_\"&G45","v":"複合材料製_金属製高断熱フラッシュ構造_ドア内ガラスあり_Low-E二層複層ガラス_ガスの封入されている_8 ㎜未満"},2.2999999999999998,null,null,"高断熱",null,null,null,"Low-E",null,null,"8 ㎜未満",2.33,null,1.89]
[null,null,null,null,"金属製ハニカムフラッシュ構造_ドア内ガラスあり",null,"Low-E二層複層ガラス_ガスの封入されている_中空層厚問わない",null,{"$f":"G$43&\"_\"&G46","v":"複合材料製_金属製高断熱フラッシュ構造_ドア内ガラスあり_Low-E二層複層ガラス_ガスの封入されていない_10 ㎜以上"},1.9,null,null,"フラッシュ",null,"ドア内ガラスあり",null,"二層複層ガラス",null,"されていない","10 ㎜以上",1.9,null,1.6]
[null,null,null,null,"金属製又はその他_ドア内ガラスなし",null,"Low-E二層複層ガラス_ガスの封入されていない_中空層厚問わない",null,{"$f":"G$43&\"_\"&G47","v":"複合材料製_金属製高断熱フラッシュ構造_ドア内ガラスあり_Low-E二層複層ガラス_ガスの封入されていない_10 ㎜未満"},2.2999999999999998,null,null,"構造",null,null,null,null,null,null,"10 ㎜未満",2.33,null,1.89]
[null,null,null,null,"金属製又はその他_ドア内ガラスあり",null,"二層複層ガラス_ガスの封入されていない_中空層厚問わない",null,{"$f":"G$43&\"_\"&G48","v":"複合材料製_金属製高断熱フラッシュ構造_ドア内ガラスあり_二層複層ガラス_ガスの封入されていない_中空層厚問わない"},2.2999999999999998,null,null,null,null,null,null,"二層複層ガラス",null,"されていない","中空層厚問わない",2.33,null,1.89]
[null,null,null,null,null,null,null,null,{"$f":"G$50&\"_\"&G51","v":"複合材料製_金属製断熱フラッシュ構造_ドア内ガラスなし_－"},1.9,null,null,null,null,"ドア内ガラスなし",null,"－",null,"－","－",1.9,null,1.6]
[null,null,null,null,null,null,"金属製熱遮断構造_金属製ハニカムフラッシュ構造_ドア内ガラスなし",null,{"$f":"G$53&\"_\"&G54","v":"複合材料製_金属製断熱フラッシュ構造_ドア内ガラスあり_Low-E二層複層ガラス_ガスの封入されている_11 ㎜以上"},2.2999999999999998,null,"複合材料製","金属製断熱フラッシュ構造",null,"ドア内ガラスあり",null,"Low-E\n二層複層ガラス",null,"されている","11 ㎜以上",2.33,null,1.89]
[null,null,null,null,null,null,"－",null,{"$f":"G$53&\"_\"&G55","v":"複合材料製_金属製断熱フラッシュ構造_ドア内ガラスあり_Low-E二層複層ガラス_ガスの封入されている_11 ㎜未満"},2.9,null,null,null,null,null,null,null,null,null,"11 ㎜未満",2.91,null,2.2599999999999998]
[null,null,null,null,null,null,null,null,{"$f":"G$53&\"_\"&G56","v":"複合材料製_金属製断熱フラッシュ構造_ドア内ガラスあり_Low-E二層複層ガラス_ガスの封入されていない_15 ㎜以上"},2.2999999999999998,null,null,null,null,null,null,null,null,"されていない","15 ㎜以上",2.33,null,1.89]
[null,null,null,null,null,null,"金属製熱遮断構造_金属製ハニカムフラッシュ構造_ドア内ガラスあり",null,{"$f":"G$53&\"_\"&G57","v":"複合材料製_金属製断熱フラッシュ構造_ドア内ガラスあり_Low-E二層複層ガラス_ガスの封入されていない_15 ㎜未満"},2.9,null,null,null,null,null,null,null,null,null,"15 ㎜未満",2.91,null,2.2599999999999998]
[null,null,null,null,null,null,"Low-E二層複層ガラス_ガスの封入されている_中空層厚問わない",null,{"$f":"G$53&\"_\"&G58","v":"複合材料製_金属製断熱フラッシュ構造_ドア内ガラスあり_二層複層ガラス_ガスの封入されていない_中空層厚問わない"},2.9,null,null,null,null,null,null,"二層複層ガラス",null,"されていない","中空層厚問わない",2.91,null,2.2599999999999998]
[null,null,null,null,null,null,"Low-E二層複層ガラス_ガスの封入されていない_中空層厚問わない",null,{"$f":"G$60&\"_\"&G61","v":"複合材料製_金属製フラッシュ構造_ドア内ガラスなし_－"},2.2999999999999998,null,null,"金属製\nフラッシュ構造",null,"ドア内ガラスなし",null,"－",null,"－","－",2.33,null,1.89]
[null,null,null,null,null,null,"二層複層ガラス_ガスの封入されていない_中空層厚問わない",null,{"$f":"G$63&\"_\"&G64","v":"複合材料製_金属製フラッシュ構造_ドア内ガラスあり_Low-E二層複層ガラス_ガスの封入されている_中空層厚問わない"},2.9,null,null,null,null,"ドア内ガラスあり",null,"Low-E\n二層複層ガラス",null,"されている","中空層厚問わない",2.91,null,2.2599999999999998]
[null,null,null,null,null,null,null,null,{"$f":"G$63&\"_\"&G65","v":"複合材料製_金属製フラッシュ構造_ドア内ガラスあり_Low-E二層複層ガラス_ガスの封入されていない_中空層厚問わない"},2.9,null,null,null,null,null,null,null,null,"されていない","中空層厚問わない",2.91,null,2.2599999999999998]
[null,null,null,null,null,null,null,null,{"$f":"G$63&\"_\"&G66","v":"複合材料製_金属製フラッシュ構造_ドア内ガラスあり_二層複層ガラス_ガスの封入されていない_中空層厚問わない"},2.9,null,null,null,null,null,null,"二層複層ガラス",null,"されていない","中空層厚問わない",2.91,null,2.2599999999999998]
[null,null,null,null,null,null,"複合材料製_金属製高断熱フラッシュ構造_ドア内ガラスなし",null,{"$f":"G$68&\"_\"&G69","v":"複合材料製_金属製ハニカムフラッシュ構造_ドア内ガラスなし_－"},2.9,null,null,"金属製",null,"ドア内ガラスなし",null,"－",null,"－","－",2.91,null,2.2599999999999998]
[null,null,null,null,null,null,"－",null,{"$f":"G$71&\"_\"&G72","v":"複合材料製_金属製ハニカムフラッシュ構造_ドア内ガラスあり_Low-E二層複層ガラス_ガスの封入されている_中空層厚問わない"},3.5,null,null,"ハニカム",null,null,null,"Low-E",null,"されている","中空層厚問わない",3.49,null,2.59]
[null,null,null,null,null,null,null,null,{"$f":"G$71&\"_\"&G73","v":"複合材料製_金属製ハニカムフラッシュ構造_ドア内ガラスあり_Low-E二層複層ガラス_ガスの封入されていない_中空層厚問わない"},3.5,null,null,"フラッシュ",null,"ドア内ガラスあり",null,"二層複層ガラス",null,"されていない","中空層厚問わない",3.49,null,2.59]
[null,null,null,null,null,null,"複合材料製_金属製高断熱フラッシュ構造_ドア内ガラスあり",null,{"$f":"G$71&\"_\"&G74","v":"複合材料製_金属製ハニカムフラッシュ構造_ドア内ガラスあり_二層複層ガラス_ガスの封入されていない_中空層厚問わない"},3.5,null,null,"構造",null,null,null,"二層複層ガラス",null,"されていない","中空層厚問わない",3.49,null,2.59]
[null,null,null,null,null,null,"Low-E二層複層ガラス_ガスの封入されている_8 ㎜以上",null,{"$f":"G$77&\"_\"&G78","v":"金属製又はその他_金属製フラッシュ構造_ドア内ガラスなし_－"},2.2999999999999998,null,null,"金属製\nフラッシュ構造",null,"ドア内ガラスなし",null,"－",null,"－","－",2.33,null,1.89]
[null,null,null,null,null,null,"Low-E二層複層ガラス_ガスの封入されている_8 ㎜未満",null,{"$f":"G$80&\"_\"&G81","v":"金属製又はその他_金属製フラッシュ構造_ドア内ガラスあり_Low-E二層複層ガラス_ガスの封入されている_中空層厚問わない"},2.9,null,null,null,null,"ドア内ガラスあり",null,"Low-E\n二層複層ガラス",null,"されている","中空層厚問わない",2.91,null,2.2599999999999998]
[null,null,null,null,null,null,"Low-E二層複層ガラス_ガスの封入されていない_10 ㎜以上",null,{"$f":"G$80&\"_\"&G82","v":"金属製又はその他_金属製フラッシュ構造_ドア内ガラスあり_Low-E二層複層ガラス_ガスの封入されていない_中空層厚問わない"},2.9,null,null,null,null,null,null,null,null,"されていない","中空層厚問わない",2.91,null,2.2599999999999998]
[null,null,null,null,null,null,"Low-E二層複層ガラス_ガスの封入されていない_10 ㎜未満",null,{"$f":"G$80&\"_\"&G83","v":"金属製又はその他_金属製フラッシュ構造_ドア内ガラスあり_二層複層ガラス_ガスの封入されていない_中空層厚問わない"},2.9,null,null,null,null,null,null,"二層複層ガラス",null,"されていない","中空層厚問わない",2.91,null,2.2599999999999998]
[null,null,null,null,null,null,"二層複層ガラス_ガスの封入されていない_中空層厚問わない",null,{"$f":"G$85&\"_\"&G86","v":"金属製又はその他_金属製ハニカムフラッシュ構造_ドア内ガラスなし_－"},2.9,null,null,null,null,"ドア内ガラスなし",null,"－",null,"－","－",2.91,null,2.2599999999999998]
[null,null,null,null,null,null,null,null,{"$f":"G$88&\"_\"&G89","v":"金属製又はその他_金属製ハニカムフラッシュ構造_ドア内ガラスあり_Low-E二層複層ガラス_ガスの封入されている_中空層厚問わない"},3.5,null,null,"金属製",null,null,null,"Low-E",null,"されている","中空層厚問わない",3.49,null,2.59]
[null,null,null,null,null,null,"複合材料製_金属製断熱フラッシュ構造_ドア内ガラスなし",null,{"$f":"G$88&\"_\"&G90","v":"金属製又はその他_金属製ハニカムフラッシュ構造_ドア内ガラスあり_Low-E二層複層ガラス_ガスの封入されていない_中空層厚問わない"},3.5,null,"金属製又はその他","ハニカム フラッシュ\n構造",null,"ドア内ガラスあり",null,"二層複層ガラス",null,"されていない","中空層厚問わない",3.49,null,2.59]
[null,null,null,null,null,null,"－",null,{"$f":"G$88&\"_\"&G91","v":"金属製又はその他_金属製ハニカムフラッシュ構造_ドア内ガラスあり_二層複層ガラス_ガスの封入されていない_8 ㎜以上"},3.5,null,null,null,null,null,null,"二層複層ガラス",null,"されていない","8 ㎜以上",3.49,null,2.59]
[null,null,null,null,null,null,null,null,{"$f":"G$88&\"_\"&G92","v":"金属製又はその他_金属製ハニカムフラッシュ構造_ドア内ガラスあり_二層複層ガラス_ガスの封入されていない_8 ㎜未満"},4.0999999999999996,null,null,null,null,null,null,null,null,null,"8 ㎜未満",4.07,null,2.9]
[null,null,null,null,null,null,"複合材料製_金属製断熱フラッシュ構造_ドア内ガラスあり",null,{"$f":"G$88&\"_\"&G93","v":"金属製又はその他_金属製ハニカムフラッシュ構造_ドア内ガラスあり_単板ガラス_－"},4.0999999999999996,null,null,null,null,null,null,"単板ガラス",null,"－","－",4.07,null,2.9]
[null,null,null,null,null,null,"Low-E二層複層ガラス_ガスの封入されている_11 ㎜以上",null,{"$f":"G$95&\"_\"&G96","v":"金属製又はその他_金属製又はその他_ドア内ガラスなし_－"},6.5,null,null,null,null,"ドア内ガラスなし",null,"－",null,"－","－",6.51,null,3.95]
[null,null,null,null,null,null,"Low-E二層複層ガラス_ガスの封入されている_11 ㎜未満",null,{"$f":"G$98&\"_\"&G99","v":"金属製又はその他_金属製又はその他_ドア内ガラスあり_Low-E二層複層ガラス_ガスの封入されている_中空層厚問わない"},6.5,null,null,"金属製",null,null,null,"Low-E",null,"されている","中空層厚問わない",6.51,null,3.95]
[null,null,null,null,null,null,"Low-E二層複層ガラス_ガスの封入されていない_15 ㎜以上",null,{"$f":"G$98&\"_\"&G100","v":"金属製又はその他_金属製又はその他_ドア内ガラスあり_Low-E二層複層ガラス_ガスの封入されていない_中空層厚問わない"},6.5,null,null,"又は\nその他",null,"ドア内ガラスあり",null,"二層複層ガラス",null,"されていない","中空層厚問わない",6.51,null,3.95]
[null,null,null,null,null,null,"Low-E二層複層ガラス_ガスの封入されていない_15 ㎜未満",null,{"$f":"G$98&\"_\"&G101","v":"金属製又はその他_金属製又はその他_ドア内ガラスあり_二層複層ガラス_ガスの封入されていない_中空層厚問わない"},6.5,null,null,null,null,null,null,"二層複層ガラス",null,"されていない","中空層厚問わない",6.51,null,3.95]
[null,null,null,null,null,null,"二層複層ガラス_ガスの封入されていない_中空層厚問わない",null,{"$f":"G$98&\"_\"&G102","v":"金属製又はその他_金属製又はその他_ドア内ガラスあり_単板ガラス_－"},6.5,null,null,null,null,null,null,"単板ガラス",null,"－","－",6.51,null,3.95]
[]
[null,null,null,null,null,null,"複合材料製_金属製フラッシュ構造_ドア内ガラスなし"]
[null,null,null,null,null,null,"－"]
[]
[null,null,null,null,null,null,"複合材料製_金属製フラッシュ構造_ドア内ガラスあり"]
[null,null,null,null,null,null,"Low-E二層複層ガラス_ガスの封入されている_中空層厚問わない"]
[null,null,null,null,null,null,"Low-E二層複層ガラス_ガスの封入されていない_中空層厚問わない"]
[null,null,null,null,null,null,"二層複層ガラス_ガスの封入されていない_中空層厚問わない"]
[]
[null,null,null,null,null,null,"複合材料製_金属製ハニカムフラッシュ構造_ドア内ガラスなし"]
[null,null,null,null,null,null,"－"]
[]
[null,null,null,null,null,null,"複合材料製_金属製ハニカムフラッシュ構造_ドア内ガラスあり"]
[null,null,null,null,null,null,"Low-E二層複層ガラス_ガスの封入されている_中空層厚問わない"]
[null,null,null,null,null,null,"Low-E二層複層ガラス_ガスの封入されていない_中空層厚問わない"]
[null,null,null,null,null,null,"二層複層ガラス_ガスの封入されていない_中空層厚問わない"]
[]
[]
[null,null,null,null,null,null,"金属製又はその他_金属製フラッシュ構造_ドア内ガラスなし"]
[null,null,null,null,null,null,"－"]
[]
[null,null,null,null,null,null,"金属製又はその他_金属製フラッシュ構造_ドア内ガラスあり"]
[null,null,null,null,null,null,"Low-E二層複層ガラス_ガスの封入されている_中空層厚問わない"]
[null,null,null,null,null,null,"Low-E二層複層ガラス_ガスの封入されていない_中空層厚問わない"]
[null,null,null,null,null,null,"二層複層ガラス_ガスの封入されていない_中空層厚問わない"]
[]
[null,null,null,null,null,null,"金属製又はその他_金属製ハニカムフラッシュ構造_ドア内ガラスなし"]
[null,null,null,null,null,null,"－"]
[]
[null,null,null,null,null,null,"金属製又はその他_金属製ハニカムフラッシュ構造_ドア内ガラスあり"]
[null,null,null,null,null,null,"Low-E二層複層ガラス_ガスの封入されている_中空層厚問わない"]
[null,null,null,null,null,null,"Low-E二層複層ガラス_ガスの封入されていない_中空層厚問わない"]
[null,null,null,null,null,null,"二層複層ガラス_ガスの封入されていない_8 ㎜以上"]
[null,null,null,null,null,null,"二層複層ガラス_ガスの封入されていない_8 ㎜未満"]
[null,null,null,null,null,null,"単板ガラス_－"]
[]
[null,null,null,null,null,null,"金属製又はその他_金属製又はその他_ドア内ガラスなし"]
[null,null,null,null,null,null,"－"]
[]
[null,null,null,null,null,null,"金属製又はその他_金属製又はその他_ドア内ガラスあり"]
[null,null,null,null,null,null,"Low-E二層複層ガラス_ガスの封入されている_中空層厚問わない"]
[null,null,null,null,null,null,"Low-E二層複層ガラス_ガスの封入されていない_中空層厚問わない"]
[null,null,null,null,null,null,"二層複層ガラス_ガスの封入されていない_中空層厚問わない"]
[null,null,null,null,null,null,"単板ガラス_－"]

{"sheet":"断熱材_非表示","index":10,"n_rows":87,"n_cols":15,"rows_kept":87,"cut":false,"hidden":true,"merged":[[79,1,80,4],[81,1,86,4],[67,1,71,1],[67,2,71,2],[72,1,78,4],[47,2,52,2],[53,2,56,2],[57,2,58,2],[61,2,66,2],[36,3,37,3],[39,3,41,3],[42,3,45,3],[48,3,52,3],[53,3,54,3],[55,3,56,3],[61,3,63,3],[64,3,66,3],[36,2,37,2],[39,2,45,2],[46,1,56,1],[57,1,60,1],[61,1,66,1],[30,1,31,1],[32,1,35,1],[36,1,45,1],[3,1,3,4],[24,1,29,1],[5,1,23,1],[5,2,8,3],[9,2,23,3]]}
[null,"住宅の省エネルギー基準と評価方法2024【戸建住宅版】　 6-029　6-030　6-031"]
[]
[]
[null,"種類",null,null,null,"製品記号","断熱材の種類（製品記号）","熱伝導率λ                      ","備考"," JIS",null,null,null,null,"断熱材の種類（製品記号）"]
[null,null,null,null,null,null,null,"［W（/ m・K）］"]
[null,"グラスウール断熱材","通常品",null,"10-50","GW10-50",{"$f":"N6","v":"グラスウール断熱材 通常品10-50"},0.05,null," JIS A 9521_2022   建築用断熱材（抜粋）",null,{"$f":"B6","v":"グラスウール断熱材"},{"$f":"C$6&E6","v":"通常品10-50"},{"$f":"L6&\" \"&M6","v":"グラスウール断熱材 通常品10-50"},"グラスウール断熱材 GW10-50"]
[null,null,null,null,"16-45","GW16-45",{"$f":"N7","v":"グラスウール断熱材 通常品16-45"},4.4999999999999998E-2,null," JIS A 9521_2022   建築用断熱材（抜粋）",null,{"$f":"L6","v":"グラスウール断熱材"},{"$f":"C$6&E7","v":"通常品16-45"},{"$f":"L7&\" \"&M7","v":"グラスウール断熱材 通常品16-45"},"グラスウール断熱材 GW16-45"]
[null,null,null,null,"24-38","GW24-38","グラスウール断熱材 通常品24-38",3.7999999999999999E-2,null," JIS A 9521_2022   建築用断熱材（抜粋）",null,{"$f":"L7","v":"グラスウール断熱材"},"通常品24-38","グラスウール断熱材 通常品24-38","グラスウール断熱材 GW24-38"]
[null,null,null,null,"32-36","GW32-36","グラスウール断熱材 通常品32-36",3.5999999999999997E-2,null," JIS A 9521_2022   建築用断熱材（抜粋）",null,"グラスウール断熱材","通常品32-36","グラスウール断熱材 通常品32-36","グラスウール断熱材 GW32-36"]
[null,null,"高性能品",null,"HG10-45","GWHG10-45","グラスウール断熱材 高性能品HG10-45",4.4999999999999998E-2,null," JIS A 9521_2022   建築用断熱材（抜粋）",null,"グラスウール断熱材",{"$f":"C$10&E10","v":"高性能品HG10-45"},"グラスウール断熱材 高性能品HG10-45","グラスウール断熱材 GWHG10-45"]
[null,null,null,null,"HG10-43","GWHG10-43","グラスウール断熱材 高性能品HG10-43",4.2999999999999997E-2,null," JIS A 9521_2022   建築用断熱材（抜粋）",null,"グラスウール断熱材",{"$f":"C$10&E11","v":"高性能品HG10-43"},"グラスウール断熱材 高性能品HG10-43","グラスウール断熱材 GWHG10-43"]
[null,null,null,null,"HG14-38","GWHG14-38","グラスウール断熱材 高性能品HG14-38",3.7999999999999999E-2,null," JIS A 9521_2022   建築用断熱材（抜粋）",null,"グラスウール断熱材","高性能品HG14-38","グラスウール断熱材 高性能品HG14-38","グラスウール断熱材 GWHG14-38"]
[null,null,null,null,"HG16-38","GWHG16-38","グラスウール断熱材 高性能品HG16-38",3.7999999999999999E-2,null," JIS A 9521_2022   建築用断熱材（抜粋）",null,"グラスウール断熱材","高性能品HG16-38","グラスウール断熱材 高性能品HG16-38","グラスウール断熱材 GWHG16-38"]
[null,null,null,null,"HG16-37","GWHG16-37","グラスウール断熱材 高性能品HG16-37",3.6999999999999998E-2,null," JIS A 9521_2022   建築用断熱材（抜粋）",null,"グラスウール断熱材","高性能品HG16-37","グラスウール断熱材 高性能品HG16-37","グラスウール断熱材 GWHG16-37"]
[null,null,null,null,"HG20-36","GWHG20-36","グラスウール断熱材 高性能品HG20-36",3.5999999999999997E-2,null," JIS A 9521_2022   建築用断熱材（抜粋）",null,"グラスウール断熱材","高性能品HG20-36","グラスウール断熱材 高性能品HG20-36","グラスウール断熱材 GWHG20-36"]
[null,null,null,null,"HG20-35","GWHG20-35","グラスウール断熱材 高性能品HG20-35",3.5000000000000003E-2,null," JIS A 9521_2022   建築用断熱材（抜粋）",null,"グラスウール断熱材","高性能品HG20-35","グラスウール断熱材 高性能品HG20-35","グラスウール断熱材 GWHG20-35"]
[null,null,null,null,"HG20-34","GWHG20-34","グラスウール断熱材 高性能品HG20-34",3.4000000000000002E-2,null," JIS A 9521_2022   建築用断熱材（抜粋）",null,"グラスウール断熱材","高性能品HG20-34","グラスウール断熱材 高性能品HG20-34","グラスウール断熱材 GWHG20-34"]
[null,null,null,null,"HG24-36","GWHG24-36","グラスウール断熱材 高性能品HG24-36",3.5999999999999997E-2,null," JIS A 9521_2022   建築用断熱材（抜粋）",null,"グラスウール断熱材","高性能品HG24-36","グラスウール断熱材 高性能品HG24-36","グラスウール断熱材 GWHG24-36"]
[null,null,null,null,"HG24-35","GWHG24-35","グラスウール断熱材 高性能品HG24-35",3.5000000000000003E-2,null," JIS A 9521_2022   建築用断熱材（抜粋）",null,"グラスウール断熱材","高性能品HG24-35","グラスウール断熱材 高性能品HG24-35","グラスウール断熱材 GWHG24-35"]
[null,null,null,null,"HG24-34","GWHG24-34","グラスウール断熱材 高性能品HG24-34",3.4000000000000002E-2,null," JIS A 9521_2022   建築用断熱材（抜粋）",null,"グラスウール断熱材","高性能品HG24-34","グラスウール断熱材 高性能品HG24-34","グラスウール断熱材 GWHG24-34"]
[null,null,null,null,"HG28-33","GWHG28-33","グラスウール断熱材 高性能品HG28-33",3.3000000000000002E-2,null," JIS A 9521_2022   建築用断熱材（抜粋）",null,"グラスウール断熱材","高性能品HG28-33","グラスウール断熱材 高性能品HG28-33","グラスウール断熱材 GWHG28-33"]
[null,null,null,null,"HG32-35","GWHG32-35","グラスウール断熱材 高性能品HG32-35",3.5000000000000003E-2,null," JIS A 9521_2022   建築用断熱材（抜粋）",null,"グラスウール断熱材","高性能品HG32-35","グラスウール断熱材 高性能品HG32-35","グラスウール断熱材 GWHG32-35"]
[null,null,null,null,"HG36-32","GWHG36-32","グラスウール断熱材 高性能品HG36-32",3.2000000000000001E-2,null," JIS A 9521_2022   建築用断熱材（抜粋）",null,"グラスウール断熱材","高性能品HG36-32","グラスウール断熱材 高性能品HG36-32","グラスウール断熱材 GWHG36-32"]
[null,null,null,null,"HG38-32","GWHG38-32","グラスウール断熱材 高性能品HG38-32",3.2000000000000001E-2,null," JIS A 9521_2022   建築用断熱材（抜粋）",null,"グラスウール断熱材","高性能品HG38-32","グラスウール断熱材 高性能品HG38-32","グラスウール断熱材 GWHG38-32"]
[null,"ロックウール断熱材","LD",null,null,"RWLD","ロックウール断熱材 LD",3.9E-2,null," JIS A 9521_2022   建築用断熱材（抜粋）",null,{"$f":"B25","v":"ロックウール断熱材"},{"$f":"C25","v":"LD"},"ロックウール断熱材 LD","ロックウール断熱材 RWLD"]
[null,null,"MA",null,null,"RWMA","ロックウール断熱材 MA",3.7999999999999999E-2,null," JIS A 9521_2022   建築用断熱材（抜粋）",null,{"$f":"L25","v":"ロックウール断熱材"},{"$f":"C26","v":"MA"},"ロックウール断熱材 MA","ロックウール断熱材 RWMA"]
[null,null,"MB",null,null,"RWMB","ロックウール断熱材 MB",3.6999999999999998E-2,null," JIS A 9521_2022   建築用断熱材（抜粋）",null,{"$f":"L26","v":"ロックウール断熱材"},"MB","ロックウール断熱材 MB","ロックウール断熱材 RWMB"]
[null,null,"MC、HA",null,null,"RWMC、RWHA","ロックウール断熱材 MC、HA",3.5999999999999997E-2,null," JIS A 9521_2022   建築用断熱材（抜粋）",null,"ロックウール断熱材","MC、HA","ロックウール断熱材 MC、HA","ロックウール断熱材 RWMC、RWHA"]
[null,null,"HB",null,null,"RWHB","ロックウール断熱材 HB",3.5000000000000003E-2,null," JIS A 9521_2022   建築用断熱材（抜粋）",null,"ロックウール断熱材","HB","ロックウール断熱材 HB","ロックウール断熱材 RWHB"]
[null,null,"HC",null,null,"RWHC","ロックウール断熱材 HC",3.4000000000000002E-2,null," JIS A 9521_2022   建築用断熱材（抜粋）",null,"ロックウール断熱材","HC","ロックウール断熱材 HC","ロックウール断熱材 RWHC"]
[null,"インシュレーション\nファイバー断熱材","ファイバーマット",null,null,"IM","インシュレーション\nファイバー断熱材 ファイバーマット",0.04,null," JIS A 9521_2022   建築用断熱材（抜粋）",null,{"$f":"B31","v":"インシュレーション\nファイバー断熱材"},{"$f":"C31","v":"ファイバーマット"},"インシュレーション\nファイバー断熱材 ファイバーマット","インシュレーション\nファイバー断熱材 IM"]
[null,null,"ファイバーボード",null,null,"DIB、DIBP","インシュレーション\nファイバー断熱材 ファイバーボード",5.1999999999999998E-2,null," JIS A 9521_2022   建築用断熱材（抜粋）",null,{"$f":"L31","v":"インシュレーション\nファイバー断熱材"},{"$f":"C32","v":"ファイバーボード"},"インシュレーション\nファイバー断熱材 ファイバーボード","インシュレーション\nファイバー断熱材 DIB、DIBP"]
[null,"ビーズ法ポリスチレンフォーム断熱材","1号 ",null,null,"EPS1","ビーズ法ポリスチレンフォーム断熱材 1号 ",3.4000000000000002E-2,null," JIS A 9521_2022   建築用断熱材（抜粋）",null,{"$f":"B33","v":"ビーズ法ポリスチレンフォーム断熱材"},{"$f":"C33","v":"1号 "},"ビーズ法ポリスチレンフォーム断熱材 1号 ","ビーズ法ポリスチレンフォーム断熱材 EPS1"]
[null,null,"2号 ",null,null,"EPS2","ビーズ法ポリスチレンフォーム断熱材 2号 ",3.5999999999999997E-2,null," JIS A 9521_2022   建築用断熱材（抜粋）",null,{"$f":"L33","v":"ビーズ法ポリスチレンフォーム断熱材"},{"$f":"C34","v":"2号 "},"ビーズ法ポリスチレンフォーム断熱材 2号 ","ビーズ法ポリスチレンフォーム断熱材 EPS2"]
[null,null,"3号 ",null,null,"EPS3","ビーズ法ポリスチレンフォーム断熱材 3号 ",3.7999999999999999E-2,null," JIS A 9521_2022   建築用断熱材（抜粋）",null,"ビーズ法ポリスチレンフォーム断熱材",{"$f":"C35","v":"3号 "},"ビーズ法ポリスチレンフォーム断熱材 3号 ","ビーズ法ポリスチレンフォーム断熱材 EPS3"]
[null,null,"4号 ",null,null,"EPS4","ビーズ法ポリスチレンフォーム断熱材 4号 ",4.1000000000000002E-2,null," JIS A 9521_2022   建築用断熱材（抜粋）",null,"ビーズ法ポリスチレンフォーム断熱材",{"$f":"C36","v":"4号 "},"ビーズ法ポリスチレンフォーム断熱材 4号 ","ビーズ法ポリスチレンフォーム断熱材 EPS4"]
[null,"押出法ポリスチレンフォーム断熱材","1種","b","A","XPS1bA","押出法ポリスチレンフォーム断熱材 1種bA",0.04,"スキン層なし"," JIS A 9521_2022   建築用断熱材（抜粋）",null,{"$f":"B37","v":"押出法ポリスチレンフォーム断熱材"},{"$f":"C37&D37&E37","v":"1種bA"},"押出法ポリスチレンフォーム断熱材 1種bA","押出法ポリスチレンフォーム断熱材 XPS1bA"]
[null,null,null,null,"C","XPS1bC","押出法ポリスチレンフォーム断熱材 1種bC",3.5999999999999997E-2,null," JIS A 9521_2022   建築用断熱材（抜粋）",null,{"$f":"L37","v":"押出法ポリスチレンフォーム断熱材"},{"$f":"C37&D37&E38","v":"1種bC"},"押出法ポリスチレンフォーム断熱材 1種bC","押出法ポリスチレンフォーム断熱材 XPS1bC"]
[null,null,"2種","b","A","XPS2bA","押出法ポリスチレンフォーム断熱材 2種bA",3.4000000000000002E-2,null," JIS A 9521_2022   建築用断熱材（抜粋）",null,"押出法ポリスチレンフォーム断熱材",{"$f":"C39&D39&E39","v":"2種bA"},"押出法ポリスチレンフォーム断熱材 2種bA","押出法ポリスチレンフォーム断熱材 XPS2bA"]
[null,null,"3種","a","A","XPS3aA","押出法ポリスチレンフォーム断熱材 3種aA",2.8000000000000001E-2,null," JIS A 9521_2022   建築用断熱材（抜粋）",null,"押出法ポリスチレンフォーム断熱材",{"$f":"C40&D40&E40","v":"3種aA"},"押出法ポリスチレンフォーム断熱材 3種aA","押出法ポリスチレンフォーム断熱材 XPS3aA"]
[null,null,null,null,"C","XPS3aC","押出法ポリスチレンフォーム断熱材 3種aC",2.4E-2,null," JIS A 9521_2022   建築用断熱材（抜粋）",null,"押出法ポリスチレンフォーム断熱材",{"$f":"C40&D40&E41","v":"3種aC"},"押出法ポリスチレンフォーム断熱材 3種aC","押出法ポリスチレンフォーム断熱材 XPS3aC"]
[null,null,null,null,"D","XPS3aD","押出法ポリスチレンフォーム断熱材 3種aD",2.1999999999999999E-2,null," JIS A 9521_2022   建築用断熱材（抜粋）",null,"押出法ポリスチレンフォーム断熱材",{"$f":"C40&D40&E42","v":"3種aD"},"押出法ポリスチレンフォーム断熱材 3種aD","押出法ポリスチレンフォーム断熱材 XPS3aD"]
[null,null,null,"b","A","XPS3bA","押出法ポリスチレンフォーム断熱材 3種bA",2.8000000000000001E-2,null," JIS A 9521_2022   建築用断熱材（抜粋）",null,"押出法ポリスチレンフォーム断熱材",{"$f":"C40&D43&E43","v":"3種bA"},"押出法ポリスチレンフォーム断熱材 3種bA","押出法ポリスチレンフォーム断熱材 XPS3bA"]
[null,null,null,null,"C","XPS3bC","押出法ポリスチレンフォーム断熱材 3種bC",2.4E-2,null," JIS A 9521_2022   建築用断熱材（抜粋）",null,"押出法ポリスチレンフォーム断熱材",{"$f":"C40&D43&E44","v":"3種bC"},"押出法ポリスチレンフォーム断熱材 3種bC","押出法ポリスチレンフォーム断熱材 XPS3bC"]
[null,null,null,null,"D","XPS3bD","押出法ポリスチレンフォーム断熱材 3種bD",2.1999999999999999E-2,null," JIS A 9521_2022   建築用断熱材（抜粋）",null,"押出法ポリスチレンフォーム断熱材",{"$f":"C40&D43&E45","v":"3種bD"},"押出法ポリスチレンフォーム断熱材 3種bD","押出法ポリスチレンフォーム断熱材 XPS3bD"]
[null,null,null,null,"A Ⅰ、A Ⅱ","XPS3bA Ⅰ、XPS3bA Ⅱ","押出法ポリスチレンフォーム断熱材 3種bA Ⅰ、A Ⅱ",2.8000000000000001E-2,"スキン層付き"," JIS A 9521_2022   建築用断熱材（抜粋）",null,"押出法ポリスチレンフォーム断熱材",{"$f":"C40&D43&E46","v":"3種bA Ⅰ、A Ⅱ"},"押出法ポリスチレンフォーム断熱材 3種bA Ⅰ、A Ⅱ","押出法ポリスチレンフォーム断熱材 XPS3bA Ⅰ、XPS3bA Ⅱ"]
[null,"硬質ウレタンフォーム断熱材","1種","1号","Ⅰ、Ⅱ","PUF1.1 Ⅰ、PUF1.1 Ⅱ","硬質ウレタンフォーム断熱材 1種1号Ⅰ、Ⅱ",2.9000000000000001E-2,"外被材、面材、及びスキン層なし"," JIS A 9521_2022   建築用断熱材（抜粋）",null,{"$f":"B47","v":"硬質ウレタンフォーム断熱材"},{"$f":"C47&D47&E47","v":"1種1号Ⅰ、Ⅱ"},"硬質ウレタンフォーム断熱材 1種1号Ⅰ、Ⅱ","硬質ウレタンフォーム断熱材 PUF1.1 Ⅰ、PUF1.1 Ⅱ"]
[null,null,"2種","1号","A Ⅰ、A Ⅱ","PUF2.1A Ⅰ、PUF2.1A Ⅱ","硬質ウレタンフォーム断熱材 2種1号A Ⅰ、A Ⅱ",2.3E-2,"非透湿性面材付き"," JIS A 9521_2022   建築用断熱材（抜粋）",null,{"$f":"L47","v":"硬質ウレタンフォーム断熱材"},{"$f":"C48&D48&E48","v":"2種1号A Ⅰ、A Ⅱ"},"硬質ウレタンフォーム断熱材 2種1号A Ⅰ、A Ⅱ","硬質ウレタンフォーム断熱材 PUF2.1A Ⅰ、PUF2.1A Ⅱ"]
[null,null,null,"2号","A Ⅰ、A Ⅱ","PUF2.2A Ⅰ、PUF2.2A Ⅱ","硬質ウレタンフォーム断熱材 2種2号A Ⅰ、A Ⅱ",2.4E-2,null," JIS A 9521_2022   建築用断熱材（抜粋）",null,"硬質ウレタンフォーム断熱材",{"$f":"C48&D49&E49","v":"2種2号A Ⅰ、A Ⅱ"},"硬質ウレタンフォーム断熱材 2種2号A Ⅰ、A Ⅱ","硬質ウレタンフォーム断熱材 PUF2.2A Ⅰ、PUF2.2A Ⅱ"]
[null,null,null,null,"C Ⅰ、C Ⅱ","PUF2.2C Ⅰ、PUF2.2C Ⅱ","硬質ウレタンフォーム断熱材 2種2号C Ⅰ、C Ⅱ",2.1999999999999999E-2,null," JIS A 9521_2022   建築用断熱材（抜粋）",null,"硬質ウレタンフォーム断熱材",{"$f":"C48&D49&E50","v":"2種2号C Ⅰ、C Ⅱ"},"硬質ウレタンフォーム断熱材 2種2号C Ⅰ、C Ⅱ","硬質ウレタンフォーム断熱材 PUF2.2C Ⅰ、PUF2.2C Ⅱ"]
[null,null,null,null,"D Ⅰ、D Ⅱ","PUF2.2D Ⅰ、PUF2.2D Ⅱ","硬質ウレタンフォーム断熱材 2種2号D Ⅰ、D Ⅱ",2.1000000000000001E-2,null," JIS A 9521_2022   建築用断熱材（抜粋）",null,"硬質ウレタンフォーム断熱材",{"$f":"C48&D49&E51","v":"2種2号D Ⅰ、D Ⅱ"},"硬質ウレタンフォーム断熱材 2種2号D Ⅰ、D Ⅱ","硬質ウレタンフォーム断熱材 PUF2.2D Ⅰ、PUF2.2D Ⅱ"]
[null,null,null,null,"ＥⅠ、ＥⅡ","PUF2.2E Ⅰ、PUF2.2E Ⅱ","硬質ウレタンフォーム断熱材 2種2号ＥⅠ、ＥⅡ",0.02,null," JIS A 9521_2022   建築用断熱材（抜粋）",null,"硬質ウレタンフォーム断熱材",{"$f":"C48&D49&E52","v":"2種2号ＥⅠ、ＥⅡ"},"硬質ウレタンフォーム断熱材 2種2号ＥⅠ、ＥⅡ","硬質ウレタンフォーム断熱材 PUF2.2E Ⅰ、PUF2.2E Ⅱ"]
[null,null,null,null,"ＧⅠ、ＧⅡ","PUF2.2G Ⅰ、PUF2.2G Ⅱ","硬質ウレタンフォーム断熱材 2種2号ＧⅠ、ＧⅡ",1.7999999999999999E-2,null," JIS A 9521_2022   建築用断熱材（抜粋）",null,"硬質ウレタンフォーム断熱材",{"$f":"C48&D49&E53","v":"2種2号ＧⅠ、ＧⅡ"},"硬質ウレタンフォーム断熱材 2種2号ＧⅠ、ＧⅡ","硬質ウレタンフォーム断熱材 PUF2.2G Ⅰ、PUF2.2G Ⅱ"]
[null,null,"3種","1号","C Ⅰ、C Ⅱ","PUF3.1C Ⅰ、PUF3.1C Ⅱ","硬質ウレタンフォーム断熱材 3種1号C Ⅰ、C Ⅱ",2.4E-2,"透湿性面材、透湿性面材及び非透湿性面材付き"," JIS A 9521_2022   建築用断熱材（抜粋）",null,"硬質ウレタンフォーム断熱材",{"$f":"C54&D54&E54","v":"3種1号C Ⅰ、C Ⅱ"},"硬質ウレタンフォーム断熱材 3種1号C Ⅰ、C Ⅱ","硬質ウレタンフォーム断熱材 PUF3.1C Ⅰ、PUF3.1C Ⅱ"]
[null,null,null,null,"D Ⅰ、D Ⅱ","PUF3.1D Ⅰ、PUF3.1D Ⅱ","硬質ウレタンフォーム断熱材 3種1号D Ⅰ、D Ⅱ",2.3E-2,null," JIS A 9521_2022   建築用断熱材（抜粋）",null,"硬質ウレタンフォーム断熱材",{"$f":"C54&D54&E55","v":"3種1号D Ⅰ、D Ⅱ"},"硬質ウレタンフォーム断熱材 3種1号D Ⅰ、D Ⅱ","硬質ウレタンフォーム断熱材 PUF3.1D Ⅰ、PUF3.1D Ⅱ"]
[null,null,null,"2号","C Ⅰ、C Ⅱ","PUF3.2C Ⅰ、PUF3.2C Ⅱ","硬質ウレタンフォーム断熱材 3種2号C Ⅰ、C Ⅱ",2.4E-2,null," JIS A 9521_2022   建築用断熱材（抜粋）",null,"硬質ウレタンフォーム断熱材",{"$f":"C54&D56&E56","v":"3種2号C Ⅰ、C Ⅱ"},"硬質ウレタンフォーム断熱材 3種2号C Ⅰ、C Ⅱ","硬質ウレタンフォーム断熱材 PUF3.2C Ⅰ、PUF3.2C Ⅱ"]
[null,null,null,null,"D Ⅰ、D Ⅱ","PUF3.2D Ⅰ、PUF3.2D Ⅱ","硬質ウレタンフォーム断熱材 3種2号D Ⅰ、D Ⅱ",2.3E-2,null," JIS A 9521_2022   建築用断熱材（抜粋）",null,"硬質ウレタンフォーム断熱材",{"$f":"C54&D56&E57","v":"3種2号D Ⅰ、D Ⅱ"},"硬質ウレタンフォーム断熱材 3種2号D Ⅰ、D Ⅱ","硬質ウレタンフォーム断熱材 PUF3.2D Ⅰ、PUF3.2D Ⅱ"]
[null,"ポリエチレンフォーム断熱材","1種","1号",null,"PE1.1","ポリエチレンフォーム断熱材 1種1号",4.2000000000000003E-2,null," JIS A 9521_2022   建築用断熱材（抜粋）",null,{"$f":"B58","v":"ポリエチレンフォーム断熱材"},{"$f":"C58&D58","v":"1種1号"},"ポリエチレンフォーム断熱材 1種1号","ポリエチレンフォーム断熱材 PE1.1"]
[null,null,null,"2号",null,"PE1.2","ポリエチレンフォーム断熱材 1種2号",4.2000000000000003E-2,null," JIS A 9521_2022   建築用断熱材（抜粋）",null,{"$f":"L58","v":"ポリエチレンフォーム断熱材"},{"$f":"C58&D59","v":"1種2号"},"ポリエチレンフォーム断熱材 1種2号","ポリエチレンフォーム断熱材 PE1.2"]
[null,null,"2種",null,null,"PE2","ポリエチレンフォーム断熱材 2種",3.7999999999999999E-2,null," JIS A 9521_2022   建築用断熱材（抜粋）",null,"ポリエチレンフォーム断熱材",{"$f":"C60","v":"2種"},"ポリエチレンフォーム断熱材 2種","ポリエチレンフォーム断熱材 PE2"]
[null,null,"3種",null,null,"PE3","ポリエチレンフォーム断熱材 3種",3.4000000000000002E-2,null," JIS A 9521_2022   建築用断熱材（抜粋）",null,"ポリエチレンフォーム断熱材",{"$f":"C61","v":"3種"},"ポリエチレンフォーム断熱材 3種","ポリエチレンフォーム断熱材 PE3"]
[null,"フェノールフォーム断熱材","1種","2号","C Ⅰ、C Ⅱ","PF1.2C Ⅰ、PF1.2C Ⅱ","フェノールフォーム断熱材 1種2号C Ⅰ、C Ⅱ",0.02,null," JIS A 9521_2022   建築用断熱材（抜粋）",null,{"$f":"B62","v":"フェノールフォーム断熱材"},{"$f":"C62&D62&E62","v":"1種2号C Ⅰ、C Ⅱ"},"フェノールフォーム断熱材 1種2号C Ⅰ、C Ⅱ","フェノールフォーム断熱材 PF1.2C Ⅰ、PF1.2C Ⅱ"]
[null,null,null,null,"D Ⅰ、D Ⅱ","PF1.2D Ⅰ、PF1.2D Ⅱ","フェノールフォーム断熱材 1種2号D Ⅰ、D Ⅱ",1.9E-2,null," JIS A 9521_2022   建築用断熱材（抜粋）",null,{"$f":"L62","v":"フェノールフォーム断熱材"},{"$f":"C62&D62&E63","v":"1種2号D Ⅰ、D Ⅱ"},"フェノールフォーム断熱材 1種2号D Ⅰ、D Ⅱ","フェノールフォーム断熱材 PF1.2D Ⅰ、PF1.2D Ⅱ"]
[null,null,null,null,"E Ⅰ、E Ⅱ","PF1.2E Ⅰ、PF1.2E Ⅱ","フェノールフォーム断熱材 1種2号E Ⅰ、E Ⅱ",1.7999999999999999E-2,null," JIS A 9521_2022   建築用断熱材（抜粋）",null,"フェノールフォーム断熱材",{"$f":"C62&D62&E64","v":"1種2号E Ⅰ、E Ⅱ"},"フェノールフォーム断熱材 1種2号E Ⅰ、E Ⅱ","フェノールフォーム断熱材 PF1.2E Ⅰ、PF1.2E Ⅱ"]
[null,null,null,"3号","C Ⅰ、C Ⅱ","PF1.3C Ⅰ、PF1.3C Ⅱ","フェノールフォーム断熱材 1種3号C Ⅰ、C Ⅱ",0.02,null," JIS A 9521_2022   建築用断熱材（抜粋）",null,"フェノールフォーム断熱材",{"$f":"C62&D65&E65","v":"1種3号C Ⅰ、C Ⅱ"},"フェノールフォーム断熱材 1種3号C Ⅰ、C Ⅱ","フェノールフォーム断熱材 PF1.3C Ⅰ、PF1.3C Ⅱ"]
[null,null,null,null,"D Ⅰ、D Ⅱ","PF1.3D Ⅰ、PF1.3D Ⅱ","フェノールフォーム断熱材 1種3号D Ⅰ、D Ⅱ",1.9E-2,null," JIS A 9521_2022   建築用断熱材（抜粋）",null,"フェノールフォーム断熱材",{"$f":"C62&D65&E66","v":"1種3号D Ⅰ、D Ⅱ"},"フェノールフォーム断熱材 1種3号D Ⅰ、D Ⅱ","フェノールフォーム断熱材 PF1.3D Ⅰ、PF1.3D Ⅱ"]
[null,null,null,null,"E Ⅰ、E Ⅱ","PF1.3E Ⅰ、PF1.3E Ⅱ","フェノールフォーム断熱材 1種3号E Ⅰ、E Ⅱ",1.7999999999999999E-2,null," JIS A 9521_2022   建築用断熱材（抜粋）",null,"フェノールフォーム断熱材",{"$f":"C62&D65&E67","v":"1種3号E Ⅰ、E Ⅱ"},"フェノールフォーム断熱材 1種3号E Ⅰ、E Ⅱ","フェノールフォーム断熱材 PF1.3E Ⅰ、PF1.3E Ⅱ"]
[null,"吹付け硬質\nウレタンフォーム","Ａ種",1,null,"NF1","吹付け硬質\nウレタンフォーム Ａ種1",3.4000000000000002E-2,null,"JIS A 9526_2022　建築物断熱用吹付け硬質ウレタンフォーム（抜粋）",null,{"$f":"B68","v":"吹付け硬質\nウレタンフォーム"},{"$f":"C$68&D68","v":"Ａ種1"},"吹付け硬質\nウレタンフォーム Ａ種1","吹付け硬質\nウレタンフォーム NF1"]
[null,null,null,"1H",null,"NF1H","吹付け硬質\nウレタンフォーム Ａ種1H",2.5999999999999999E-2,null,"JIS A 9526_2022　建築物断熱用吹付け硬質ウレタンフォーム（抜粋）",null,{"$f":"L68","v":"吹付け硬質\nウレタンフォーム"},{"$f":"C$68&D69","v":"Ａ種1H"},"吹付け硬質\nウレタンフォーム Ａ種1H","吹付け硬質\nウレタンフォーム NF1H"]
[null,null,null,2,null,"NF2","吹付け硬質\nウレタンフォーム Ａ種2",3.4000000000000002E-2,null,"JIS A 9526_2022　建築物断熱用吹付け硬質ウレタンフォーム（抜粋）",null,"吹付け硬質\nウレタンフォーム",{"$f":"C$68&D70","v":"Ａ種2"},"吹付け硬質\nウレタンフォーム Ａ種2","吹付け硬質\nウレタンフォーム NF2"]
[null,null,null,"2H",null,"NF2H",{"$f":"N71","v":"吹付け硬質\nウレタンフォーム Ａ種2H"},2.5999999999999999E-2,null,"JIS A 9526_2022　建築物断熱用吹付け硬質ウレタンフォーム（抜粋）",null,"吹付け硬質\nウレタンフォーム",{"$f":"C$68&D71","v":"Ａ種2H"},{"$f":"L71&\" \"&M71","v":"吹付け硬質\nウレタンフォーム Ａ種2H"},"吹付け硬質\nウレタンフォーム NF2H"]
[null,null,null,3,null,"NF3","吹付け硬質\nウレタンフォーム Ａ種3",0.04,null,"JIS A 9526_2022　建築物断熱用吹付け硬質ウレタンフォーム（抜粋）",null,"吹付け硬質\nウレタンフォーム",{"$f":"C$68&D72","v":"Ａ種3"},"吹付け硬質\nウレタンフォーム Ａ種3","吹付け硬質\nウレタンフォーム NF3"]
[null,"吹込み用グラスウール断熱材",null,null,null,"LFGW1052","吹込み用グラスウール断熱材 LFGW1052",5.1999999999999998E-2,"天井","JIS A 9523_2023　吹込み用繊維質断熱材（抜粋）",null,{"$f":"B73","v":"吹込み用グラスウール断熱材"},{"$f":"F73","v":"LFGW1052"},"吹込み用グラスウール断熱材 LFGW1052","吹込み用グラスウール断熱材 LFGW1052"]
[null,null,null,null,null,"LFGW1352","吹込み用グラスウール断熱材 LFGW1352",5.1999999999999998E-2,null,"JIS A 9523_2023　吹込み用繊維質断熱材（抜粋）",null,{"$f":"L73","v":"吹込み用グラスウール断熱材"},{"$f":"F74","v":"LFGW1352"},"吹込み用グラスウール断熱材 LFGW1352","吹込み用グラスウール断熱材 LFGW1352"]
[null,null,null,null,null,"LFGW1852","吹込み用グラスウール断熱材 LFGW1852",5.1999999999999998E-2,null,"JIS A 9523_2023　吹込み用繊維質断熱材（抜粋）",null,"吹込み用グラスウール断熱材","LFGW1852","吹込み用グラスウール断熱材 LFGW1852","吹込み用グラスウール断熱材 LFGW1852"]
[null,null,null,null,null,"LFGW2040","吹込み用グラスウール断熱材 LFGW2040",0.04,"屋根・床・壁","JIS A 9523_2023　吹込み用繊維質断熱材（抜粋）",null,"吹込み用グラスウール断熱材","LFGW2040","吹込み用グラスウール断熱材 LFGW2040","吹込み用グラスウール断熱材 LFGW2040"]
[null,null,null,null,null,"LFGW2238","吹込み用グラスウール断熱材 LFGW2238",3.7999999999999999E-2,null,"JIS A 9523_2023　吹込み用繊維質断熱材（抜粋）",null,"吹込み用グラスウール断熱材","LFGW2238","吹込み用グラスウール断熱材 LFGW2238","吹込み用グラスウール断熱材 LFGW2238"]
[null,null,null,null,null,"LFGW3240","吹込み用グラスウール断熱材 LFGW3240",0.04,null,"JIS A 9523_2023　吹込み用繊維質断熱材（抜粋）",null,"吹込み用グラスウール断熱材","LFGW3240","吹込み用グラスウール断熱材 LFGW3240","吹込み用グラスウール断熱材 LFGW3240"]
[null,null,null,null,null,"LFGW3238","吹込み用グラスウール断熱材 LFGW3238",3.7999999999999999E-2,null,"JIS A 9523_2023　吹込み用繊維質断熱材（抜粋）",null,"吹込み用グラスウール断熱材","LFGW3238","吹込み用グラスウール断熱材 LFGW3238","吹込み用グラスウール断熱材 LFGW3238"]
[null,"吹込み用ロックウール断熱材",null,null,null,"LFRW2547","吹込み用ロックウール断熱材 LFRW2547",4.7E-2,"天井","JIS A 9523_2023　吹込み用繊維質断熱材（抜粋）",null,{"$f":"B80","v":"吹込み用ロックウール断熱材"},"LFRW2547","吹込み用ロックウール断熱材 LFRW2547","吹込み用ロックウール断熱材 LFRW2547"]
[null,null,null,null,null,"LFRW6038","吹込み用ロックウール断熱材 LFRW6038",3.7999999999999999E-2,"屋根・床・壁","JIS A 9523_2023　吹込み用繊維質断熱材（抜粋）",null,{"$f":"L80","v":"吹込み用ロックウール断熱材"},"LFRW6038","吹込み用ロックウール断熱材 LFRW6038","吹込み用ロックウール断熱材 LFRW6038"]
[null,"吹込み用セルローズファイバー断熱材",null,null,null,"LFCF2540","吹込み用セルローズファイバー断熱材 LFCF2540",0.04,"天井","JIS A 9523_2023　吹込み用繊維質断熱材（抜粋）",null,{"$f":"B82","v":"吹込み用セルローズファイバー断熱材"},"LFCF2540","吹込み用セルローズファイバー断熱材 LFCF2540","吹込み用セルローズファイバー断熱材 LFCF2540"]
[null,null,null,null,null,"LFCF4040","吹込み用セルローズファイバー断熱材 LFCF4040",0.04,"屋根・床・壁","JIS A 9523_2023　吹込み用繊維質断熱材（抜粋）",null,{"$f":"L82","v":"吹込み用セルローズファイバー断熱材"},"LFCF4040","吹込み用セルローズファイバー断熱材 LFCF4040","吹込み用セルローズファイバー断熱材 LFCF4040"]
[null,null,null,null,null,"LFCF4540","吹込み用セルローズファイバー断熱材 LFCF4540",0.04,null,"JIS A 9523_2023　吹込み用繊維質断熱材（抜粋）",null,"吹込み用セルローズファイバー断熱材","LFCF4540","吹込み用セルローズファイバー断熱材 LFCF4540","吹込み用セルローズファイバー断熱材 LFCF4540"]
[null,null,null,null,null,"LFCF5040","吹込み用セルローズファイバー断熱材 LFCF5040",0.04,null,"JIS A 9523_2023　吹込み用繊維質断熱材（抜粋）",null,"吹込み用セルローズファイバー断熱材","LFCF5040","吹込み用セルローズファイバー断熱材 LFCF5040","吹込み用セルローズファイバー断熱材 LFCF5040"]
[null,null,null,null,null,"LFCF5540","吹込み用セルローズファイバー断熱材 LFCF5540",0.04,null,"JIS A 9523_2023　吹込み用繊維質断熱材（抜粋）",null,"吹込み用セルローズファイバー断熱材","LFCF5540","吹込み用セルローズファイバー断熱材 LFCF5540","吹込み用セルローズファイバー断熱材 LFCF5540"]
[null,null,null,null,null,"LFCF6040","吹込み用セルローズファイバー断熱材 LFCF6040",0.04,null,"JIS A 9523_2023　吹込み用繊維質断熱材（抜粋）",null,"吹込み用セルローズファイバー断熱材","LFCF6040","吹込み用セルローズファイバー断熱材 LFCF6040","吹込み用セルローズファイバー断熱材 LFCF6040"]

{"sheet":"仕様基準-省エネ基準_非表示","index":11,"n_rows":37,"n_cols":18,"rows_kept":37,"cut":false,"hidden":true,"merged":[[3,12,3,13],[3,11,4,11],[3,16,4,16]]}
[null,null,2,3,4,5,6,7,8,9]
[null,"仕様基準【省エネ基準】　断熱材の熱抵抗値基準　",null,null,null,null,"以上であること",null,null,null,null,"仕様基準　",null,null,"以下であること",null,"仕様基準　"]
[null,"木造（軸組充填）",null,null,null,null,null,null,"木造（内断熱）",null,null,"窓の熱貫流率U　η",null,null,null,null,"ドアの熱貫流率U　η"]
[null,"部位","屋根","天井","外壁","床","床",null,"基礎","基礎",null,"地域区分","U",null,"η",null,"地域区分","U"]
[null,"地域区分","充填","充填","充填","外気床","その他床",null,"外気接","その他",null,null,"誘導基準","省エネ基準","省エネ基準",null,null,"省エネ基準"]
[null,1,6.6,5.7,3.3,5.2,3.3,null,3.5,1.2,null,1,1.9,2.2999999999999998,null,null,1,2.2999999999999998]
[null,2,6.6,5.7,3.3,5.2,3.3,null,3.5,1.2,null,2,1.9,2.2999999999999998,null,null,2,2.2999999999999998]
[null,3,4.5999999999999996,4,2.2000000000000002,5.2,3.3,null,3.5,1.2,null,3,1.9,2.2999999999999998,null,null,3,2.2999999999999998]
[null,4,4.5999999999999996,4,2.2000000000000002,3.3,2.2000000000000002,null,1.7,0.5,null,4,2.2999999999999998,3.5,"ー",null,4,3.5]
[null,5,4.5999999999999996,4,2.2000000000000002,3.3,2.2000000000000002,null,1.7,0.5,null,5,2.2999999999999998,4.7,0.59,null,5,4.7]
[null,6,4.5999999999999996,4,2.2000000000000002,3.3,2.2000000000000002,null,1.7,0.5,null,6,2.2999999999999998,4.7,0.59,null,6,4.7]
[null,7,4.5999999999999996,4,2.2000000000000002,3.3,2.2000000000000002,null,1.7,0.5,null,7,2.2999999999999998,4.7,0.59,null,7,4.7]
[null,8,0.96,0.78,"ー","ー","ー",null,"ー","ー",null,8,"ー","ー",0.53,null,8,"ー"]
[]
[null,"木造（枠組充填）",null,null,null,null,null,null,"木造（外断熱又は両面断熱）"]
[null,"部位","屋根","天井","外壁","床","床",null,"基礎","基礎"]
[null,"地域区分","充填","充填","充填","外気床","その他床",null,"外気接","その他"]
[null,1,6.6,5.7,3.6,4.2,3.1,null,3.5,1.2]
[null,2,6.6,5.7,3.6,4.2,3.1,null,3.5,1.2]
[null,3,4.5999999999999996,4,2.2999999999999998,4.2,3.1,null,3.5,1.2]
[null,4,4.5999999999999996,4,2.2999999999999998,3.1,2,null,1.7,0.5]
[null,5,4.5999999999999996,4,2.2999999999999998,3.1,2,null,1.7,0.5]
[null,6,4.5999999999999996,4,2.2999999999999998,3.1,2,null,1.7,0.5]
[null,7,4.5999999999999996,4,2.2999999999999998,3.1,2,null,1.7,0.5]
[null,8,0.96,0.89,"ー","ー","ー",null,"ー","ー"]
[]
[null,"木造（外張）"]
[null,"部位","屋根","天井","外壁","床","床"]
[null,"地域区分","充填","充填","充填","外気床","その他床"]
[null,1,5.7,5.7,2.9,3.8,"ー"]
[null,2,5.7,5.7,2.9,3.8,"ー"]
[null,3,4,4,1.7,3.8,"ー"]
[null,4,4,4,1.7,2.5,"ー"]
[null,5,4,4,1.7,2.5,"ー"]
[null,6,4,4,1.7,2.5,"ー"]
[null,7,4,4,1.7,2.5,"ー"]
[null,8,0.78,0.78,"ー","ー","ー"]

{"sheet":"設備メモ_非表示","index":12,"n_rows":85,"n_cols":15,"rows_kept":85,"cut":false,"hidden":true,"merged":[[40,1,42,1],[42,3,42,13],[64,3,64,13],[72,3,72,13],[84,3,84,13],[20,3,20,13],[28,3,28,13],[33,3,33,13],[39,3,39,13]]}
["１２３４地域"]
[null,null,null,"住戸全体を暖房　　",null,"ダクト式セントラル空調機で、ヒートポンプを熱源とするもの",null,null,null,null,null,null,null,null,"off：2，3，4，5，7，8，9，24，28，29，30，31，32，33，34，35"]
[null,null,null,"居室のみを暖房",null,null,null,null,null,null,null,null,null,null,"off：1，3"]
[null,null,null,null,"【主たる居室】",null,"パネルラジエーターで以下のいずれかを熱源とし、かつ配管に断熱被覆があるもの",null,null,null,null,null,null,null,"on：2　／　off：5，24，28，1，3"]
[null,null,null,null,null,null,"　①～③のいずれかを選択"]
[null,null,null,null,null,null,null,"① 石油潜熱回収型温水暖房機 【エコフィール】 の熱効率87.8% 以上のもの",null,null,null,null,null,null,"on：2　／　on：4　／　off：8，9，5，24，28，1，3"]
[null,null,null,null,null,null,null,"② ガス潜熱回収型温水暖房機 【エコジョーズ】 の熱効率82.5% 以上のもの",null,null,null,null,null,null,"on：2，4　／　off：7，9，5，24，28，1，3"]
[null,null,null,null,null,null,null,"③ 電気ヒートポンプ温水暖房機 （フロン系冷媒に限る）",null,null,null,null,null,null,"on：2，4　／　off：7，8，5，24，28，1，3"]
[null,null,null,null,null,null,"ルームエアコンディショナーで、エネルギー消費効率の区分が（ い） 又は（ ろ） のもの",null,null,null,null,null,null,null,"on：2　／　off：4，24，28，7，8，9，1，3"]
[null,null,null,null,null,null,"FF 暖房機の熱効率86.0% 以上のもの",null,null,null,null,null,null,null,"on：2　／　off：4，5，28，7，8，9，1，3"]
[null,"暖房設備",null,null,null,null,"暖房設備機器または放熱器を設置しない",null,null,null,null,null,null,null,"on：2　／　off：4，5，24，7，8，9，1，3"]
[null,"右記のいずれかを選択",null,null,"【その他の居室】",null,"パネルラジエーターで以下のいずれかを熱源とし、かつ配管に断熱被覆があるもの",null,null,null,null,null,null,null,"on：2　／　off：30，34，35，1，3"]
[null,null,null,null,null,null,"　①～③のいずれかを選択"]
[null,null,null,null,null,null,null,"① 石油潜熱回収型温水暖房機 【エコフィール】 の熱効率87.8% 以上のもの",null,null,null,null,null,null,"on：2，29　／　off：32，33，30，34，35，1，3"]
[null,null,null,null,null,null,null,"② ガス潜熱回収型温水暖房機 【エコジョーズ】 の熱効率82.5% 以上のもの",null,null,null,null,null,null,"on：2，29　／　off：31，33，30，34，35，1，3"]
[null,null,null,null,null,null,null,"③ 電気ヒートポンプ温水暖房機 （フロン系冷媒に限る）",null,null,null,null,null,null,"on：2，29　／　off：31，32，30，34，35，1，3"]
[null,null,null,null,null,null,"ルームエアコンディショナーで、エネルギー消費効率の区分が（ い） 又は（ ろ） のもの",null,null,null,null,null,null,null,"on：2　／　off：29，34，35，31，32，33，1，3"]
[null,null,null,null,null,null,"FF 暖房機の熱効率86.0% 以上のもの",null,null,null,null,null,null,null,"on：2　／　off：29，30，35，31，32，33，1，3"]
[null,null,null,null,null,null,"暖房設備機器または放熱器を設置しない",null,null,null,null,null,null,null,"on：2　／　off：29，30，34，31，32，33，1，3"]
[null,null,null,"設置しない（入居者設置など）",null,null,null,null,null,null,null,null,null,null,"off：1，2，4，5，7，8，9，24，28，29，30，31，32，33，34，35"]
[null,null,"備考"]
[null,null,null,"住戸全体を冷房　　",null,"ダクト式セントラル空調機で、ヒートポンプを熱源とするもの",null,null,null,null,null,null,null,null,"off：21，22，40，41，42，43"]
[null,"冷房設備",null,"居室のみを冷房　　",null,"ルームエアコンディショナーで、エネルギー消費効率の区分が（ い） 又は（ ろ） のもの",null,null,null,null,null,null,null,null,"off：20，22"]
[null,null,null,null,"【主たる居室】",null,"ルームエアコンディショナーで、エネルギー消費効率の区分が（ い） 又は（ ろ） のもの",null,null,null,null,null,null,null,"on：21　／　off：41，20，22"]
[null,null,null,null,null,null,"冷房設備機器を設置しない",null,null,null,null,null,null,null,"on：21　／　off：40，20，22"]
[null,null,null,null,"【その他の居室】",null,"ルームエアコンディショナーで、エネルギー消費効率の区分が（ い） 又は（ ろ） のもの",null,null,null,null,null,null,null,"on：21　／　off：43，20，22"]
[null,null,null,null,null,null,"冷房設備機器を設置しない",null,null,null,null,null,null,null,"on：21　／　off：42，20，22"]
[null,"右記のいずれかを選択",null,"設置しない（入居者設置など）",null,null,null,null,null,null,null,null,null,null,"off：20，21，40，41，42，43"]
[null,null,"備考"]
[null,null,null,"比消費電力（熱交換換気設備を採用する場合にあっては比消費電力を有効換気量率で除した値）が0.3[W/(㎥/h)]以下の換気設備"]
[null,null,null,"ダクト式第一種換気設備（熱交換なし）で、 ダクト内径が75ｍｍ以上で、 かつDC モーター（直流）のもの"]
[null,"換気設備",null,"ダクト式第二種 又は 第三種換気設備で、 ダクト内径が75ｍｍ以上のもの"]
[null,"右記のいずれかを選択",null,"壁付け式第二種 又は 第三種換気設備のもの"]
[null,null,"備考"]
[null,null,null,"石油潜熱回収型給湯機【エコフィール】のモード熱効率 81.3% 以上のもの",null,null,null,null,null,null,null,null,null,null,"off：15，16，17，27"]
[null,null,null,"ガス潜熱回収型給湯機【エコジョーズ】のモード熱効率 83.7% 以上のもの",null,null,null,null,null,null,null,null,null,null,"off：14，16，17，27"]
[null,"給湯設備",null,"電気ヒートポンプ給湯機【エコキュート】のJIS効率が下記以上のもの",null,null,null,null,null,null,null,null,null,null,"off：14，15，17"]
[null,"給湯設備",null,null,null," 3.5 以上（1地域）、3.2 以上（2地域）、3.0 以上（3地域）、2.9 以上（4地域）",null,null,null,null,null,null,null,null,"on：16　／　off：14，15，17"]
[null,"右記のいずれかを選択",null,"設置しない（入居者設置など）",null,null,null,null,null,null,null,null,null,null,"off：14，15，16，27"]
[null,null,"備考"]
[null,"照明設備\n（非居室の仕様）\n　\n右記のいずれかを選択",null,"非居室の全ての照明に、LED 又は 蛍光灯 を設置している"]
[null,null,null,"設置しない（入居者設置など）"]
[null,null,"備考"]
[]
[]
[]
["５６７地域"]
[null,null,null,"住戸全体を暖房　　",null,"ダクト式セントラル空調機で、ヒートポンプを熱源とするもの",null,null,null,null,null,null,null,null,"off：2，31，4，5，37，7，8，9，32，33，38，34，35，36"]
[null,null,null,"居室のみを暖房",null,null,null,null,null,null,null,null,null,null,"off：1，31"]
[null,null,null,null,"【主たる居室】",null,"パネルラジエーターで以下のいずれかを熱源とし、かつ配管に断熱被覆があるもの",null,null,null,null,null,null,null,"on：2　／　off：5，37，1，31"]
[null,null,null,null,null,null,"　①～③のいずれかを選択"]
[null,null,null,null,null,null,null,"① 石油潜熱回収型温水暖房機 【エコフィール】 の熱効率87.8% 以上のもの",null,null,null,null,null,null,"on：2，4　／　off：8，9，5，37，1，31"]
[null,null,null,null,null,null,null,"② ガス潜熱回収型温水暖房機 【エコジョーズ】 の熱効率82.5% 以上のもの",null,null,null,null,null,null,"on：2，4　／　off：7，9，5，37，1，31"]
[null,null,null,null,null,null,null,"③ 電気ヒートポンプ温水暖房機 （フロン系冷媒に限る）",null,null,null,null,null,null,"on：2，4　／　off：7，8，5，37，1，31"]
[null,null,null,null,null,null,"ルームエアコンディショナーで、エネルギー消費効率の区分が（ い） 又は（ ろ） のもの",null,null,null,null,null,null,null,"on：2　／　off：4，37，7，8，9，1，31"]
[null,"暖房設備",null,null,null,null,"暖房設備機器または放熱器を設置しない",null,null,null,null,null,null,null,"on：2　／　off：4，5，7，8，9，1，31"]
[null,"右記のいずれかを選択",null,null,"【その他の居室】",null,"パネルラジエーターで以下のいずれかを熱源とし、かつ配管に断熱被覆があるもの",null,null,null,null,null,null,null,"on：2　／　off：33，38，1，31"]
[null,null,null,null,null,null,"　①～③のいずれかを選択"]
[null,null,null,null,null,null,null,"① 石油潜熱回収型温水暖房機 【エコフィール】 の熱効率87.8% 以上のもの",null,null,null,null,null,null,"on：2，32　／　off：35，36，33，38，1，31"]
[null,null,null,null,null,null,null,"② ガス潜熱回収型温水暖房機 【エコジョーズ】 の熱効率82.5% 以上のもの",null,null,null,null,null,null,"on：2，32　／　off：34，36，33，38，1，31"]
[null,null,null,null,null,null,null,"③ 電気ヒートポンプ温水暖房機 （フロン系冷媒に限る）",null,null,null,null,null,null,"on：2，32　／　off：34，35，33，38，1，31"]
[null,null,null,null,null,null,"ルームエアコンディショナーで、エネルギー消費効率の区分が（ い） 又は（ ろ） のもの",null,null,null,null,null,null,null,"on：2　／　off：32，38，34，35，36，1，31"]
[null,null,null,null,null,null,"暖房設備機器または放熱器を設置しない",null,null,null,null,null,null,null,"on：2　／　off：32，33，34，35，36，1，31"]
[null,null,null,"設置しない（入居者設置など）",null,null,null,null,null,null,null,null,null,null,"off：1，2，4，5，37，7，8，9，32，33，38，34，35，36"]
[null,null,"備考"]
[null,null,null,"住戸全体を冷房　　",null,"ダクト式セントラル空調機で、ヒートポンプを熱源とするもの",null,null,null,null,null,null,null,null,"off：28，29，39，40，41，42"]
[null,"冷房設備",null,"居室のみを冷房　　",null,"ルームエアコンディショナーで、エネルギー消費効率の区分が（ い） 又は（ ろ） のもの",null,null,null,null,null,null,null,null,"off：27，29"]
[null,null,null,null,"【主たる居室】",null,"ルームエアコンディショナーで、エネルギー消費効率の区分が（ い） 又は（ ろ） のもの",null,null,null,null,null,null,null,"on：28　／　off：40，27，29"]
[null,null,null,null,null,null,"冷房設備機器を設置しない",null,null,null,null,null,null,null,"on：28　／　off：39，27，29"]
[null,null,null,null,"【その他の居室】",null,"ルームエアコンディショナーで、エネルギー消費効率の区分が（ い） 又は（ ろ） のもの",null,null,null,null,null,null,null,"on：28　／　off：42，27，29"]
[null,null,null,null,null,null,"冷房設備機器を設置しない",null,null,null,null,null,null,null,"on：28　／　off：41，27，29"]
[null,"右記のいずれかを選択",null,"設置しない（入居者設置など）",null,null,null,null,null,null,null,null,null,null,"off：27，28，39，40，41，42"]
[null,null,"備考"]
[]
[]
[]
["８地域"]
[null,null,null,"住戸全体を冷房　　",null,"ダクト式セントラル空調機で、ヒートポンプを熱源とするもの",null,null,null,null,null,null,null,null,"off：21，22，23，24，25，26"]
[null,"冷房設備",null,"居室のみを冷房　　",null,"ルームエアコンディショナーで、エネルギー消費効率の区分が（ い） 又は（ ろ） のもの",null,null,null,null,null,null,null,null,"off：20，22"]
[null,null,null,null,"【主たる居室】",null,"ルームエアコンディショナーで、エネルギー消費効率の区分が（ い） 又は（ ろ） のもの",null,null,null,null,null,null,null,"on：21　／　off：24，20，22"]
[null,null,null,null,null,null,"冷房設備機器を設置しない",null,null,null,null,null,null,null,"on：21　／　off：23，20，22"]
[null,null,null,null,"【その他の居室】",null,"ルームエアコンディショナーで、エネルギー消費効率の区分が（ い） 又は（ ろ） のもの",null,null,null,null,null,null,null,"on：21　／　off：26，20，22"]
[null,null,null,null,null,null,"冷房設備機器を設置しない",null,null,null,null,null,null,null,"on：21　／　off：25，20，22"]
[null,"右記のいずれかを選択",null,"設置しない（入居者設置など）",null,null,null,null,null,null,null,null,null,null,"off：20，21，23，24，25，26"]
[null,null,"備考"]

{"sheet":"登録値_断熱材λ値","index":13,"n_rows":2,"n_cols":29,"rows_kept":2,"cut":false,"hidden":false,"merged":[]}
["住宅の省エネルギー基準と評価方法2024【戸建住宅版】　 6-029　6-030　6-031",null,null,null,null,null,null,null,null,null,null,null,null,null,null,null,null,null,null,null,null,null,null,null,null,null,null,null,"国交省資料ライブラリ：ー住宅の省エネルギー基準と評価方法2024【戸建住宅版】"]
[null,null,null,null,null,null,null,null,null,null,null,null,null,null,null,null,null,null,null,null,null,null,null,null,null,null,null,null,"https://www.mlit.go.jp/common/001627022.pdf"]

{"sheet":"登録値_窓、ドアのU値､ηd値","index":14,"n_rows":2,"n_cols":28,"rows_kept":2,"cut":false,"hidden":false,"merged":[]}
["住宅の省エネルギー基準と評価方法2024【戸建住宅版】　 6-032　6-033　6-035",null,null,null,null,null,null,null,null,null,null,null,null,null,null,null,null,null,null,null,null,null,null,null,null,null,null,"国交省資料ライブラリ：ー住宅の省エネルギー基準と評価方法2024【戸建住宅版】"]
[null,null,null,null,null,null,null,null,null,null,null,null,null,null,null,null,null,null,null,null,null,null,null,null,null,null,null,"https://www.mlit.go.jp/common/001627022.pdf"]

{"sheet":"改定後_地域区分_非表示","index":15,"n_rows":1713,"n_cols":14,"rows_kept":1713,"cut":false,"hidden":true,"merged":[[1,1,2,1],[1,2,2,2],[1,3,2,3],[1,11,2,11]]}
[null,"建築物エネルギー消費性能基準等を定める省令における算出方法等を定める件（国土交通省告示第二百六十五号）（抄）別表第10",null,null,null,null,null,null,null,null,null,null,null,"2021/3/5作成"]
[null,"都道府県名","市町村","計算","改定後",null,null,null,null,null,null,"都道府県名"]
[null,null,null,null,"地域の区分"]
[1,"北海道","愛別町",{"$f":"B4&C4","v":"北海道愛別町"},1,"アイベツチョウ",null,null,null,null,null,"北海道",1]
[1,"北海道","赤井川村","北海道赤井川村",2,"アカイガワムラ",null,null,null,null,null,"青森県",2]
[1,"北海道","赤平市","北海道赤平市",2,"アカビラシ",null,null,null,null,null,"岩手県",3]
[1,"北海道","旭川市","北海道旭川市",2,"アサヒカワシ",null,null,null,null,null,"宮城県",4]
[1,"北海道","芦別市","北海道芦別市",2,"アシベツシ",null,null,null,null,null,"秋田県",5]
[1,"北海道","足寄町","北海道足寄町",1,"アショロチョウ",null,null,null,null,null,"山形県",6]
[1,"北海道","厚岸町","北海道厚岸町",2,"アッケシチョウ",null,null,null,null,null,"福島県",7]
[1,"北海道","厚沢部町","北海道厚沢部町",3,"アッサブチョウ",null,null,null,null,null,"茨城県",8]
[1,"北海道","厚真町","北海道厚真町",2,"アツマチョウ",null,null,null,null,null,"栃木県",9]
[1,"北海道","網走市","北海道網走市",2,"アバシリシ",null,null,null,null,null,"群馬県",10]
[1,"北海道","安平町","北海道安平町",2,"アビラチョウ",null,null,null,null,null,"埼玉県",11]
[1,"北海道","池田町","北海道池田町",2,"イケダチョウ",null,null,null,null,null,"千葉県",12]
[1,"北海道","石狩市","北海道石狩市",2,"イシカリシ",null,null,null,null,null,"東京都",13]
[1,"北海道","今金町","北海道今金町",2,"イマカネチョウ",null,null,null,null,null,"神奈川県",14]
[1,"北海道","岩内町","北海道岩内町",2,"イワナイチョウ",null,null,null,null,null,"新潟県",15]
[1,"北海道","岩見沢市","北海道岩見沢市",2,"イワミザワシ",null,null,null,null,null,"富山県",16]
[1,"北海道","歌志内市","北海道歌志内市",2,"ウタシナイシ",null,null,null,null,null,"石川県",17]
[1,"北海道","浦臼町","北海道浦臼町",2,"ウラウスチョウ",null,null,null,null,null,"福井県",18]
[1,"北海道","浦河町","北海道浦河町",2,"ウラカワチョウ",null,null,null,null,null,"山梨県",19]
[1,"北海道","浦幌町","北海道浦幌町",2,"ウラホロチョウ",null,null,null,null,null,"長野県",20]
[1,"北海道","雨竜町","北海道雨竜町",2,"ウリュウチョウ",null,null,null,null,null,"岐阜県",21]
[1,"北海道","江差町","北海道江差町",3,"エサシチョウ",null,null,null,null,null,"静岡県",22]
[1,"北海道","枝幸町（旧歌登町に限る。）","北海道枝幸町（旧歌登町に限る。）",1,"エサシチョウ（キュウウタノボリチョウニカギル。）",null,null,null,null,null,"愛知県",23]
[1,"北海道","枝幸町（旧枝幸町に限る。）","北海道枝幸町（旧枝幸町に限る。）",2,"エサシチョウ（キュウエサシチョウニカギル。）",null,null,null,null,null,"三重県",24]
[1,"北海道","恵庭市","北海道恵庭市",2,"エニワシ",null,null,null,null,null,"滋賀県",25]
[1,"北海道","江別市","北海道江別市",2,"エベツシ",null,null,null,null,null,"京都府",26]
[1,"北海道","えりも町","北海道えりも町",2,"エリモチョウ",null,null,null,null,null,"大阪府",27]
[1,"北海道","遠軽町","北海道遠軽町",1,"エンガルチョウ",null,null,null,null,null,"兵庫県",28]
[1,"北海道","遠別町","北海道遠別町",2,"エンベツチョウ",null,null,null,null,null,"奈良県",29]
[1,"北海道","雄武町","北海道雄武町",1,"オウムチョウ",null,null,null,null,null,"和歌山県",30]
[1,"北海道","大空町","北海道大空町",2,"オオゾラチョウ",null,null,null,null,null,"鳥取県",31]
[1,"北海道","奥尻町","北海道奥尻町",3,"オクシリチョウ",null,null,null,null,null,"島根県",32]
[1,"北海道","置戸町","北海道置戸町",1,"オケトチョウ",null,null,null,null,null,"岡山県",33]
[1,"北海道","興部町","北海道興部町",1,"オコッペチョウ",null,null,null,null,null,"広島県",34]
[1,"北海道","長万部町","北海道長万部町",2,"オシャマンベチョウ",null,null,null,null,null,"山口県",35]
[1,"北海道","小樽市","北海道小樽市",2,"オタルシ",null,null,null,null,null,"徳島県",36]
[1,"北海道","音威子府村","北海道音威子府村",1,"オトイネップムラ",null,null,null,null,null,"香川県",37]
[1,"北海道","音更町","北海道音更町",2,"オトフケチョウ",null,null,null,null,null,"愛媛県",38]
[1,"北海道","乙部町","北海道乙部町",3,"オトベチョウ",null,null,null,null,null,"高知県",39]
[1,"北海道","帯広市","北海道帯広市",2,"オビヒロシ",null,null,null,null,null,"福岡県",40]
[1,"北海道","小平町","北海道小平町",2,"オビラチョウ",null,null,null,null,null,"佐賀県",41]
[1,"北海道","上川町","北海道上川町",1,"カミカワチョウ",null,null,null,null,null,"長崎県",42]
[1,"北海道","上士幌町","北海道上士幌町",1,"カミシホロチョウ",null,null,null,null,null,"熊本県",43]
[1,"北海道","上砂川町","北海道上砂川町",2,"カミスナガワチョウ",null,null,null,null,null,"大分県",44]
[1,"北海道","上ノ国町","北海道上ノ国町",3,"カミノクニチョウ",null,null,null,null,null,"宮崎県",45]
[1,"北海道","上富良野町","北海道上富良野町",2,"カミフラノチョウ",null,null,null,null,null,"鹿児島県",46]
[1,"北海道","神恵内村","北海道神恵内村",2,"カモエナイムラ",null,null,null,null,null,"沖縄県",47]
[1,"北海道","木古内町","北海道木古内町",2,"キコナイチョウ"]
[1,"北海道","北広島市","北海道北広島市",2,"キタヒロシマシ"]
[1,"北海道","北見市","北海道北見市",2,"キタミシ"]
[1,"北海道","喜茂別町","北海道喜茂別町",1,"キモベツチョウ"]
[1,"北海道","京極町","北海道京極町",2,"キョウゴクチョウ"]
[1,"北海道","共和町","北海道共和町",2,"キョウワチョウ"]
[1,"北海道","清里町","北海道清里町",2,"キヨサトチョウ"]
[1,"北海道","釧路市","北海道釧路市",2,"クシロシ"]
[1,"北海道","釧路町","北海道釧路町",2,"クシロチョウ"]
[1,"北海道","倶知安町","北海道倶知安町",2,"クッチャンチョウ"]
[1,"北海道","栗山町","北海道栗山町",2,"クリヤマチョウ"]
[1,"北海道","黒松内町","北海道黒松内町",2,"クロマツナイチョウ"]
[1,"北海道","訓子府町","北海道訓子府町",1,"クンネップチョウ"]
[1,"北海道","剣淵町","北海道剣淵町",2,"ケンブチチョウ"]
[1,"北海道","小清水町","北海道小清水町",2,"コシミズチョウ"]
[1,"北海道","札幌市","北海道札幌市",2,"サッポロシ"]
[1,"北海道","様似町","北海道様似町",2,"サマニチョウ"]
[1,"北海道","更別村",{"$f":"B68&C68","v":"北海道更別村"},1,"サラベツムラ"]
[1,"北海道","猿払村","北海道猿払村",1,"サルフツムラ"]
[1,"北海道","佐呂間町","北海道佐呂間町",1,"サロマチョウ"]
[1,"北海道","鹿追町","北海道鹿追町",2,"シカオイチョウ"]
[1,"北海道","鹿部町","北海道鹿部町",2,"シカベチョウ"]
[1,"北海道","標茶町","北海道標茶町",1,"シベチャチョウ"]
[1,"北海道","士別市","北海道士別市",1,"シベツシ"]
[1,"北海道","標津町","北海道標津町",2,"シベツチョウ"]
[1,"北海道","士幌町","北海道士幌町",2,"シホロチョウ"]
[1,"北海道","島牧村","北海道島牧村",2,"シママキムラ"]
[1,"北海道","清水町","北海道清水町",2,"シミズチョウ"]
[1,"北海道","占冠村","北海道占冠村",1,"シムカップムラ"]
[1,"北海道","下川町","北海道下川町",1,"シモカワチョウ"]
[1,"北海道","積丹町","北海道積丹町",2,"シャコタンチョウ"]
[1,"北海道","斜里町","北海道斜里町",2,"シャリチョウ"]
[1,"北海道","初山別村","北海道初山別村",2,"ショサンベツムラ"]
[1,"北海道","白老町","北海道白老町",2,"シラオイチョウ"]
[1,"北海道","白糠町","北海道白糠町",2,"シラヌカチョウ"]
[1,"北海道","知内町","北海道知内町",3,"シリウチチョウ"]
[1,"北海道","新篠津村","北海道新篠津村",2,"シンシノツムラ"]
[1,"北海道","新得町","北海道新得町",2,"シントクチョウ"]
[1,"北海道","新十津川町","北海道新十津川町",2,"シントツカワチョウ"]
[1,"北海道","新ひだか町","北海道新ひだか町",2,"シンヒダカチョウ"]
[1,"北海道","寿都町","北海道寿都町",2,"スッツチョウ"]
[1,"北海道","砂川市","北海道砂川市",2,"スナガワシ"]
[1,"北海道","せたな町","北海道せたな町",2,"セタナチョウ"]
[1,"北海道","壮瞥町","北海道壮瞥町",2,"ソウベツチョウ"]
[1,"北海道","大樹町","北海道大樹町",1,"タイキチョウ"]
[1,"北海道","当麻町","北海道当麻町",2,"タイマチョウ"]
[1,"北海道","鷹栖町","北海道鷹栖町",2,"タカスチョウ"]
[1,"北海道","滝川市","北海道滝川市",2,"タキカワシ"]
[1,"北海道","滝上町","北海道滝上町",1,"タキノウエチョウ"]
[1,"北海道","伊達市(旧大滝村に限る。)","北海道伊達市(旧大滝村に限る。)",1,"ダテシ(キュウオオタキムラニカギル。)"]
[1,"北海道","伊達市(旧伊達市に限る。)","北海道伊達市(旧伊達市に限る。)",2,"ダテシ(キュウダテシニカギル。)"]
[1,"北海道","秩父別町","北海道秩父別町",2,"チップベツチョウ"]
[1,"北海道","千歳市","北海道千歳市",2,"チトセシ"]
[1,"北海道","月形町","北海道月形町",2,"ツキガタチョウ"]
[1,"北海道","津別町","北海道津別町",1,"ツベツチョウ"]
[1,"北海道","鶴居村","北海道鶴居村",1,"ツルイムラ"]
[1,"北海道","天塩町","北海道天塩町",2,"テシオチョウ"]
[1,"北海道","弟子屈町","北海道弟子屈町",1,"テシカガチョウ"]
[1,"北海道","当別町","北海道当別町",2,"トウベツチョウ"]
[1,"北海道","洞爺湖町","北海道洞爺湖町",2,"トウヤコチョウ"]
[1,"北海道","苫小牧市","北海道苫小牧市",2,"トマコマイシ"]
[1,"北海道","苫前町","北海道苫前町",2,"トママエチョウ"]
[1,"北海道","泊村","北海道泊村",2,"トマリムラ"]
[1,"北海道","豊浦町","北海道豊浦町",2,"トヨウラチョウ"]
[1,"北海道","豊頃町","北海道豊頃町",1,"トヨコロチョウ"]
[1,"北海道","豊富町","北海道豊富町",2,"トヨトミチョウ"]
[1,"北海道","奈井江町","北海道奈井江町",2,"ナイエチョウ"]
[1,"北海道","中川町","北海道中川町",1,"ナカガワチョウ"]
[1,"北海道","中札内村","北海道中札内村",1,"ナカサツナイムラ"]
[1,"北海道","中標津町","北海道中標津町",1,"ナカシベツチョウ"]
[1,"北海道","中頓別町","北海道中頓別町",1,"ナカトンベツチョウ"]
[1,"北海道","長沼町","北海道長沼町",2,"ナガヌマチョウ"]
[1,"北海道","中富良野町","北海道中富良野町",2,"ナカフラノチョウ"]
[1,"北海道","七飯町","北海道七飯町",2,"ナナエチョウ"]
[1,"北海道","名寄市","北海道名寄市",1,"ナヨロシ"]
[1,"北海道","南幌町","北海道南幌町",2,"ナンポロチョウ"]
[1,"北海道","新冠町","北海道新冠町",2,"ニイカップチョウ"]
[1,"北海道","仁木町","北海道仁木町",2,"ニキチョウ"]
[1,"北海道","西興部村","北海道西興部村",1,"ニシオコッペムラ"]
[1,"北海道","ニセコ町","北海道ニセコ町",2,"ニセコチョウ"]
[1,"北海道","沼田町","北海道沼田町",2,"ヌマタチョウ"]
[1,"北海道","根室市",{"$f":"B132&C132","v":"北海道根室市"},2,"ネムロシ"]
[1,"北海道","登別市","北海道登別市",2,"ノボリベツシ"]
[1,"北海道","函館市","北海道函館市",3,"ハコダテシ"]
[1,"北海道","羽幌町","北海道羽幌町",2,"ハボロチョウ"]
[1,"北海道","浜頓別町","北海道浜頓別町",1,"ハマトンベツチョウ"]
[1,"北海道","浜中町","北海道浜中町",2,"ハマナカチョウ"]
[1,"北海道","美瑛町","北海道美瑛町",1,"ビエイチョウ"]
[1,"北海道","東神楽町","北海道東神楽町",2,"ヒガシカグラチョウ"]
[1,"北海道","東川町","北海道東川町",2,"ヒガシカワチョウ"]
[1,"北海道","日高町","北海道日高町",2,"ヒダカチョウ"]
[1,"北海道","比布町","北海道比布町",2,"ピップチョウ"]
[1,"北海道","美唄市","北海道美唄市",2,"ビバイシ"]
[1,"北海道","美深町","北海道美深町",1,"ビフカチョウ"]
[1,"北海道","美幌町","北海道美幌町",2,"ビホロチョウ"]
[1,"北海道","平取町","北海道平取町",2,"ビラトリチョウ"]
[1,"北海道","広尾町","北海道広尾町",2,"ヒロオチョウ"]
[1,"北海道","深川市","北海道深川市",2,"フカガワシ"]
[1,"北海道","福島町","北海道福島町",3,"フクシマチョウ"]
[1,"北海道","富良野市","北海道富良野市",2,"フラノシ"]
[1,"北海道","古平町","北海道古平町",2,"フルビラチョウ"]
[1,"北海道","別海町","北海道別海町",1,"ベッカイチョウ"]
[1,"北海道","北斗市","北海道北斗市",2,"ホクトシ"]
[1,"北海道","北竜町","北海道北竜町",2,"ホクリュウチョウ"]
[1,"北海道","幌加内町","北海道幌加内町",1,"ホロカナイチョウ"]
[1,"北海道","幌延町","北海道幌延町",2,"ホロノベチョウ"]
[1,"北海道","本別町","北海道本別町",2,"ホンベツチョウ"]
[1,"北海道","幕別町（旧忠類村に限る。）","北海道幕別町（旧忠類村に限る。）",1,"マクベツチョウ（キュウチュウルイムラニカギル。）"]
[1,"北海道","幕別町（旧幕別町に限る。）","北海道幕別町（旧幕別町に限る。）",2,"マクベツチョウ（キュウマクベツチョウニカギル。）"]
[1,"北海道","増毛町","北海道増毛町",2,"マシケチョウ"]
[1,"北海道","真狩村","北海道真狩村",2,"マッカリムラ"]
[1,"北海道","松前町","北海道松前町",3,"マツマエチョウ"]
[1,"北海道","三笠市","北海道三笠市",2,"ミカサシ"]
[1,"北海道","南富良野町","北海道南富良野町",1,"ミナミフラノチョウ"]
[1,"北海道","むかわ町","北海道むかわ町",2,"ムカワチョウ"]
[1,"北海道","室蘭市","北海道室蘭市",3,"ムロランシ"]
[1,"北海道","芽室町","北海道芽室町",2,"メムロチョウ"]
[1,"北海道","妹背牛町","北海道妹背牛町",2,"モセウシチョウ"]
[1,"北海道","森町","北海道森町",2,"モリマチ"]
[1,"北海道","紋別市","北海道紋別市",2,"モンベツシ"]
[1,"北海道","八雲町(旧熊石町に限る。)","北海道八雲町(旧熊石町に限る。)",3,"ヤグモチョウ(キュウクマイシチョウニカギル。)"]
[1,"北海道","八雲町(旧八雲町に限る。)","北海道八雲町(旧八雲町に限る。)",2,"ヤグモチョウ(キュウヤグモチョウニカギル。)"]
[1,"北海道","夕張市","北海道夕張市",1,"ユウバリシ"]
[1,"北海道","湧別町","北海道湧別町",2,"ユウベツチョウ"]
[1,"北海道","由仁町","北海道由仁町",2,"ユニチョウ"]
[1,"北海道","余市町","北海道余市町",2,"ヨイチチョウ"]
[1,"北海道","羅臼町","北海道羅臼町",2,"ラウスチョウ"]
[1,"北海道","蘭越町","北海道蘭越町",2,"ランコシチョウ"]
[1,"北海道","陸別町","北海道陸別町",1,"リクベツチョウ"]
[1,"北海道","利尻町","北海道利尻町",2,"リシリチョウ"]
[1,"北海道","利尻富士町","北海道利尻富士町",2,"リシリフジチョウ"]
[1,"北海道","留寿都村","北海道留寿都村",1,"ルスツムラ"]
[1,"北海道","留萌市","北海道留萌市",2,"ルモイシ"]
[1,"北海道","礼文町","北海道礼文町",2,"レブンチョウ"]
[1,"北海道","稚内市","北海道稚内市",2,"ワッカナイシ"]
[1,"北海道","和寒町","北海道和寒町",2,"ワッサムチョウ"]
[2,"青森県","青森市","青森県青森市",3,"アオモリシ"]
[2,"青森県","鰺ヶ沢町","青森県鰺ヶ沢町",4,"アジガサワマチ"]
[2,"青森県","板柳町","青森県板柳町",3,"イタヤナギマチ"]
[2,"青森県","田舎館村","青森県田舎館村",3,"イナカダテムラ"]
[2,"青森県","今別町","青森県今別町",3,"イマベツマチ"]
[2,"青森県","おいらせ町","青森県おいらせ町",3,"オイラセチョウ"]
[2,"青森県","大間町","青森県大間町",3,"オオママチ"]
[2,"青森県","大鰐町","青森県大鰐町",3,"オオワニマチ"]
[2,"青森県","風間浦村","青森県風間浦村",3,"カザマウラムラ"]
[2,"青森県","黒石市",{"$f":"B196&C196","v":"青森県黒石市"},3,"クロイシシ"]
[2,"青森県","五所川原市","青森県五所川原市",3,"ゴショガワラシ"]
[2,"青森県","五戸町","青森県五戸町",3,"ゴノヘマチ"]
[2,"青森県","佐井村","青森県佐井村",3,"サイムラ"]
[2,"青森県","三戸町","青森県三戸町",3,"サンノヘマチ"]
[2,"青森県","七戸町","青森県七戸町",3,"シチノヘマチ"]
[2,"青森県","新郷村","青森県新郷村",3,"シンゴウムラ"]
[2,"青森県","外ヶ浜町","青森県外ヶ浜町",3,"ソトガハママチ"]
[2,"青森県","田子町","青森県田子町",3,"タッコマチ"]
[2,"青森県","つがる市","青森県つがる市",3,"ツガルシ"]
[2,"青森県","鶴田町","青森県鶴田町",3,"ツルダチョウ"]
[2,"青森県","東北町","青森県東北町",3,"トウホクマチ"]
[2,"青森県","十和田市","青森県十和田市",3,"トワダシ"]
[2,"青森県","中泊町","青森県中泊町",3,"ナカドマリマチ"]
[2,"青森県","南部町","青森県南部町",3,"ナンブチョウ"]
[2,"青森県","西目屋村","青森県西目屋村",3,"ニシメヤムラ"]
[2,"青森県","野辺地町","青森県野辺地町",3,"ノヘジマチ"]
[2,"青森県","階上町","青森県階上町",3,"ハシカミチョウ"]
[2,"青森県","八戸市","青森県八戸市",3,"ハチノヘシ"]
[2,"青森県","東通村","青森県東通村",3,"ヒガシドオリムラ"]
[2,"青森県","平川市（旧碇ヶ関村に限る。）","青森県平川市（旧碇ヶ関村に限る。）",2,"ヒラカワシ（キュウイカリガセキムラニカギル。）"]
[2,"青森県","平川市（旧尾上町、旧平賀町に限る。）","青森県平川市（旧尾上町、旧平賀町に限る。）",3,"ヒラカワシ（キュウオノエチョウ、キュウヒラカマチニカギル。）"]
[2,"青森県","平内町","青森県平内町",3,"ヒラナイマチ"]
[2,"青森県","弘前市","青森県弘前市",3,"ヒロサキシ"]
[2,"青森県","深浦町","青森県深浦町",4,"フカウラマチ"]
[2,"青森県","藤崎町","青森県藤崎町",3,"フジサキマチ"]
[2,"青森県","三沢市","青森県三沢市",3,"ミサワシ"]
[2,"青森県","むつ市","青森県むつ市",3,"ムツシ"]
[2,"青森県","横浜町","青森県横浜町",3,"ヨコハマチョウ"]
[2,"青森県","蓬田村","青森県蓬田村",3,"ヨモギダムラ"]
[2,"青森県","六戸町","青森県六戸町",3,"ロクノヘマチ"]
[2,"青森県","六ヶ所村","青森県六ヶ所村",3,"ロッカショムラ"]
[3,"岩手県","一関市（旧一関市、旧花泉町、旧川崎村に限る。）","岩手県一関市（旧一関市、旧花泉町、旧川崎村に限る。）",4,"イチノセキシ（キュウイチノセキシ、キュウハナイズミマチ、キュウカワサキムラニカギル。）"]
[3,"岩手県","一関市(旧大東町、旧藤沢町、旧千厩町、旧東山町、旧室根村に限る。)","岩手県一関市(旧大東町、旧藤沢町、旧千厩町、旧東山町、旧室根村に限る。)",3,"イチノセキシ(キュウダイトウチョウ、キュウフジサワチョウ、キュウセンマヤチョウ、キュウヒガシヤマチョウ、キュウムロネムラニカギル。)"]
[3,"岩手県","一戸町","岩手県一戸町",3,"イチノヘマチ"]
[3,"岩手県","岩泉町","岩手県岩泉町",3,"イワイズミチョウ"]
[3,"岩手県","岩手町","岩手県岩手町",2,"イワテマチ"]
[3,"岩手県","奥州市","岩手県奥州市",4,"オウシュウシ"]
[3,"岩手県","大槌町","岩手県大槌町",4,"オオツチチョウ"]
[3,"岩手県","大船渡市","岩手県大船渡市",4,"オオフナトシ"]
[3,"岩手県","釜石市","岩手県釜石市",4,"カマイシシ"]
[3,"岩手県","軽米町","岩手県軽米町",3,"カルマイマチ"]
[3,"岩手県","北上市","岩手県北上市",4,"キタカミシ"]
[3,"岩手県","金ケ崎町","岩手県金ケ崎町",4,"キンケザキマチ"]
[3,"岩手県","久慈市","岩手県久慈市",3,"クジシ"]
[3,"岩手県","葛巻町","岩手県葛巻町",2,"クズマキマチ"]
[3,"岩手県","九戸村","岩手県九戸村",2,"クノヘムラ"]
[3,"岩手県","雫石町","岩手県雫石町",3,"シズクイシチョウ"]
[3,"岩手県","紫波町","岩手県紫波町",3,"シワチョウ"]
[3,"岩手県","住田町","岩手県住田町",3,"スミダマチ"]
[3,"岩手県","滝沢市","岩手県滝沢市",3,"タキザワシ"]
[3,"岩手県","田野畑村","岩手県田野畑村",3,"タノハタムラ"]
[3,"岩手県","遠野市","岩手県遠野市",3,"トオノシ"]
[3,"岩手県","西和賀町","岩手県西和賀町",2,"ニシワガマチ"]
[3,"岩手県","二戸市","岩手県二戸市",3,"ニノヘシ"]
[3,"岩手県","野田村","岩手県野田村",3,"ノダムラ"]
[3,"岩手県","八幡平市","岩手県八幡平市",3,"ハチマンタイシ"]
[3,"岩手県","八幡平市（旧安代町に限る。）","岩手県八幡平市（旧安代町に限る。）",2,"ハチマンタイシ（キュウアシロチョウニカギル。）"]
[3,"岩手県","八幡平市（旧西根町、旧松尾村に限る。）","岩手県八幡平市（旧西根町、旧松尾村に限る。）",3,"ハチマンタイシ（キュウニシネチョウ、キュウマツオムラニカギル。）"]
[3,"岩手県","花巻市","岩手県花巻市",3,"ハナマキシ"]
[3,"岩手県","平泉町","岩手県平泉町",4,"ヒライズミチョウ"]
[3,"岩手県","洋野町","岩手県洋野町",3,"ヒロノチョウ"]
[3,"岩手県","普代村","岩手県普代村",3,"フダイムラ"]
[3,"岩手県","宮古市","岩手県宮古市",4,"ミヤコシ"]
[3,"岩手県","盛岡市",{"$f":"B260&C260","v":"岩手県盛岡市"},3,"モリオカシ"]
[3,"岩手県","矢巾町","岩手県矢巾町",3,"ヤハバチョウ"]
[3,"岩手県","山田町","岩手県山田町",4,"ヤマダチョウ"]
[3,"岩手県","陸前高田市","岩手県陸前高田市",4,"リクゼンタカタシ"]
[4,"宮城県","石巻市","宮城県石巻市",4,"イシノマキシ"]
[4,"宮城県","岩沼市","宮城県岩沼市",4,"イワヌマシ"]
[4,"宮城県","大河原町","宮城県大河原町",4,"オオガワラマチ"]
[4,"宮城県","大崎市","宮城県大崎市",4,"オオサキシ"]
[4,"宮城県","大郷町","宮城県大郷町",4,"オオサトチョウ"]
[4,"宮城県","大衡村","宮城県大衡村",4,"オオヒラムラ"]
[4,"宮城県","女川町","宮城県女川町",4,"オナガワチョウ"]
[4,"宮城県","角田市","宮城県角田市",4,"カクダシ"]
[4,"宮城県","加美町","宮城県加美町",4,"カミマチ"]
[4,"宮城県","川崎町","宮城県川崎町",4,"カワサキマチ"]
[4,"宮城県","栗原市","宮城県栗原市",4,"クリハラシ"]
[4,"宮城県","気仙沼市","宮城県気仙沼市",4,"ケセンヌマシ"]
[4,"宮城県","蔵王町","宮城県蔵王町",4,"ザオウマチ"]
[4,"宮城県","塩竈市","宮城県塩竈市",4,"シオガマシ"]
[4,"宮城県","色麻町","宮城県色麻町",4,"シカマチョウ"]
[4,"宮城県","七ヶ宿町","宮城県七ヶ宿町",3,"シチカシュクマチ"]
[4,"宮城県","七ヶ浜町","宮城県七ヶ浜町",4,"シチガハママチ"]
[4,"宮城県","柴田町","宮城県柴田町",4,"シバタマチ"]
[4,"宮城県","白石市","宮城県白石市",4,"シロイシシ"]
[4,"宮城県","仙台市","宮城県仙台市",5,"センダイシ"]
[4,"宮城県","多賀城市","宮城県多賀城市",5,"タガジョウシ"]
[4,"宮城県","富谷市","宮城県富谷市",4,"トミヤシ"]
[4,"宮城県","登米市","宮城県登米市",4,"トメシ"]
[4,"宮城県","名取市","宮城県名取市",4,"ナトリシ"]
[4,"宮城県","東松島市","宮城県東松島市",4,"ヒガシマツシマシ"]
[4,"宮城県","松島町","宮城県松島町",4,"マツシママチ"]
[4,"宮城県","丸森町","宮城県丸森町",4,"マルモリマチ"]
[4,"宮城県","美里町","宮城県美里町",4,"ミサトマチ"]
[4,"宮城県","南三陸町","宮城県南三陸町",4,"ミナミサンリクチョウ"]
[4,"宮城県","村田町","宮城県村田町",4,"ムラタマチ"]
[4,"宮城県","大和町","宮城県大和町",4,"ヤマトチョウ"]
[4,"宮城県","山元町","宮城県山元町",5,"ヤマモトチョウ"]
[4,"宮城県","利府町","宮城県利府町",4,"リフチョウ"]
[4,"宮城県","涌谷町","宮城県涌谷町",4,"ワクヤチョウ"]
[4,"宮城県","亘理町","宮城県亘理町",4,"ワタリチョウ"]
[5,"秋田県","秋田市","秋田県秋田市",4,"アキタシ"]
[5,"秋田県","井川町","秋田県井川町",4,"イカワチョウ"]
[5,"秋田県","羽後町","秋田県羽後町",3,"ウゴマチ"]
[5,"秋田県","大潟村","秋田県大潟村",4,"オオガタムラ"]
[5,"秋田県","大館市","秋田県大館市",3,"オオダテシ"]
[5,"秋田県","男鹿市","秋田県男鹿市",4,"オガシ"]
[5,"秋田県","潟上市","秋田県潟上市",4,"カタガミシ"]
[5,"秋田県","鹿角市","秋田県鹿角市",3,"カヅノシ"]
[5,"秋田県","上小阿仁村","秋田県上小阿仁村",3,"カミコアニムラ"]
[5,"秋田県","北秋田市","秋田県北秋田市",3,"キタアキタシ"]
[5,"秋田県","小坂町","秋田県小坂町",2,"コザカチョウ"]
[5,"秋田県","五城目町","秋田県五城目町",4,"ゴジョウメマチ"]
[5,"秋田県","仙北市","秋田県仙北市",3,"センボクシ"]
[5,"秋田県","大仙市","秋田県大仙市",3,"ダイセンシ"]
[5,"秋田県","にかほ市","秋田県にかほ市",5,"ニカホシ"]
[5,"秋田県","能代市(旧能代市に限る。)","秋田県能代市(旧能代市に限る。)",4,"ノシロシ(キュウノシロシニカギル。)"]
[5,"秋田県","能代市(旧二ツ井町に限る。)","秋田県能代市(旧二ツ井町に限る。)",3,"ノシロシ(キュウフタツイマチニカギル。)"]
[5,"秋田県","八郎潟町","秋田県八郎潟町",4,"ハチロウガタマチ"]
[5,"秋田県","八峰町","秋田県八峰町",4,"ハッポウチョウ"]
[5,"秋田県","東成瀬村","秋田県東成瀬村",3,"ヒガシナルセムラ"]
[5,"秋田県","藤里町","秋田県藤里町",3,"フジサトマチ"]
[5,"秋田県","美郷町","秋田県美郷町",3,"ミサトマチ"]
[5,"秋田県","三種町","秋田県三種町",4,"ミタネチョウ"]
[5,"秋田県","湯沢市","秋田県湯沢市",3,"ユザワシ"]
[5,"秋田県","由利本荘市","秋田県由利本荘市",4,"ユリホンジョウシ"]
[5,"秋田県","横手市",{"$f":"B324&C324","v":"秋田県横手市"},3,"ヨコテシ"]
[6,"山形県","朝日町","山形県朝日町",3,"アサヒチョウ"]
[6,"山形県","飯豊町","山形県飯豊町",3,"イイデマチ"]
[6,"山形県","大石田町","山形県大石田町",3,"オオイシダマチ"]
[6,"山形県","大江町","山形県大江町",3,"オオエマチ"]
[6,"山形県","大蔵村","山形県大蔵村",4,"オオクラムラ"]
[6,"山形県","小国町","山形県小国町",3,"オグニマチ"]
[6,"山形県","尾花沢市","山形県尾花沢市",3,"オバナザワシ"]
[6,"山形県","金山町","山形県金山町",3,"カナヤマチョウ"]
[6,"山形県","河北町","山形県河北町",4,"カホクチョウ"]
[6,"山形県","上山市","山形県上山市",4,"カミノヤマシ"]
[6,"山形県","川西町","山形県川西町",3,"カワニシマチ"]
[6,"山形県","寒河江市","山形県寒河江市",4,"サガエシ"]
[6,"山形県","酒田市（旧酒田市に限る。）","山形県酒田市（旧酒田市に限る。）",5,"サカタシ（キュウサカタシニカギル。）"]
[6,"山形県","酒田市（旧八幡町、旧松山町、旧平田町に限る。）","山形県酒田市（旧八幡町、旧松山町、旧平田町に限る。）",4,"サカタシ（キュウヤハタチョウ、キュウマツヤママチ、キュウヒラタチョウニカギル。）"]
[6,"山形県","鮭川村","山形県鮭川村",3,"サケガワムラ"]
[6,"山形県","庄内町","山形県庄内町",4,"ショウナイマチ"]
[6,"山形県","白鷹町","山形県白鷹町",4,"シラタカマチ"]
[6,"山形県","新庄市","山形県新庄市",3,"シンジョウシ"]
[6,"山形県","高畠町","山形県高畠町",3,"タカハタマチ"]
[6,"山形県","中山町","山形県中山町",4,"チュウザンチョウ"]
[6,"山形県","鶴岡市","山形県鶴岡市",4,"ツルオカシ"]
[6,"山形県","天童市","山形県天童市",4,"テンドウシ"]
[6,"山形県","戸沢村","山形県戸沢村",3,"トサワムラ"]
[6,"山形県","長井市","山形県長井市",3,"ナガイシ"]
[6,"山形県","南陽市","山形県南陽市",3,"ナンヨウシ"]
[6,"山形県","西川町","山形県西川町",3,"ニシカワマチ"]
[6,"山形県","東根市","山形県東根市",4,"ヒガシネシ"]
[6,"山形県","舟形町","山形県舟形町",3,"フナガタマチ"]
[6,"山形県","真室川町","山形県真室川町",3,"マムロガワマチ"]
[6,"山形県","三川町","山形県三川町",4,"ミカワマチ"]
[6,"山形県","村山市","山形県村山市",4,"ムラヤマシ"]
[6,"山形県","最上町","山形県最上町",3,"モガミマチ"]
[6,"山形県","山形市","山形県山形市",4,"ヤマガタシ"]
[6,"山形県","山辺町","山形県山辺町",4,"ヤマノベマチ"]
[6,"山形県","遊佐町","山形県遊佐町",4,"ユザマチ"]
[6,"山形県","米沢市","山形県米沢市",4,"ヨネザワシ"]
[7,"福島県","会津坂下町","福島県会津坂下町",4,{"$f":"PHONETIC(C361)","v":"アイヅバンゲマチ"}]
[7,"福島県","会津美里町","福島県会津美里町",4,"アイヅミサトマチ"]
[7,"福島県","会津若松市","福島県会津若松市",4,"アイヅワカマツシ"]
[7,"福島県","浅川町","福島県浅川町",4,"アサカワマチ"]
[7,"福島県","飯舘村","福島県飯舘村",3,"イイタテムラ"]
[7,"福島県","石川町","福島県石川町",4,"イシカワチョウ"]
[7,"福島県","泉崎村","福島県泉崎村",4,"イズミザキムラ"]
[7,"福島県","猪苗代町","福島県猪苗代町",3,"イナワシロマチ"]
[7,"福島県","いわき市","福島県いわき市",5,"イワキシ"]
[7,"福島県","大熊町","福島県大熊町",5,"オオクママチ"]
[7,"福島県","大玉村","福島県大玉村",4,"オオタマムラ"]
[7,"福島県","鏡石町","福島県鏡石町",4,"カガミイシマチ"]
[7,"福島県","葛尾村","福島県葛尾村",3,"カツラオムラ"]
[7,"福島県","金山町","福島県金山町",3,"カナヤマチョウ"]
[7,"福島県","川内村","福島県川内村",3,"カワウチムラ"]
[7,"福島県","川俣町","福島県川俣町",4,"カワマタマチ"]
[7,"福島県","喜多方市","福島県喜多方市",4,"キタカタシ"]
[7,"福島県","北塩原村","福島県北塩原村",3,"キタシオバラムラ"]
[7,"福島県","国見町","福島県国見町",4,"クニミマチ"]
[7,"福島県","広野町","福島県広野町",5,"コウノチョウ"]
[7,"福島県","桑折町","福島県桑折町",4,"コオリマチ"]
[7,"福島県","郡山市","福島県郡山市",5,"コオリヤマシ"]
[7,"福島県","小野町","福島県小野町",3,"コノチョウ"]
[7,"福島県","西郷村","福島県西郷村",4,"サイゴウムラ"]
[7,"福島県","鮫川村","福島県鮫川村",3,"サメガワムラ"]
[7,"福島県","下郷町","福島県下郷町",3,"シモゴウマチ"]
[7,"福島県","昭和村","福島県昭和村",3,"ショウワムラ"]
[7,"福島県","白河市",{"$f":"B388&C388","v":"福島県白河市"},4,"シラカワシ"]
[7,"福島県","新地町","福島県新地町",5,"シンチマチ"]
[7,"福島県","須賀川市","福島県須賀川市",4,"スカガワシ"]
[7,"福島県","相馬市","福島県相馬市",5,"ソウマシ"]
[7,"福島県","只見町","福島県只見町",3,"タダミマチ"]
[7,"福島県","伊達市","福島県伊達市",4,"ダテシ"]
[7,"福島県","棚倉町","福島県棚倉町",4,"タナグラマチ"]
[7,"福島県","玉川村","福島県玉川村",4,"タマガワムラ"]
[7,"福島県","田村市","福島県田村市",4,"タムラシ"]
[7,"福島県","天栄村","福島県天栄村",4,"テンエイムラ"]
[7,"福島県","富岡町","福島県富岡町",5,"トミオカマチ"]
[7,"福島県","中島村","福島県中島村",4,"ナカジマムラ"]
[7,"福島県","浪江町","福島県浪江町",5,"ナミエマチ"]
[7,"福島県","楢葉町","福島県楢葉町",5,"ナラハマチ"]
[7,"福島県","西会津町","福島県西会津町",4,"ニシアイヅマチ"]
[7,"福島県","二本松市（旧東和町に限る。）","福島県二本松市（旧東和町に限る。）",3,"ニホンマツシ（キュウトウワチョウニカギル。）"]
[7,"福島県","二本松市（旧二本松市、旧安達町、旧岩代町に限る。）","福島県二本松市（旧二本松市、旧安達町、旧岩代町に限る。）",4,"ニホンマツシ（キュウニホンマツシ、キュウアダチマチ、キュウイワシロマチニカギル。）"]
[7,"福島県","塙町","福島県塙町",4,"ハナワマチ"]
[7,"福島県","磐梯町","福島県磐梯町",3,"バンダイマチ"]
[7,"福島県","檜枝岐村","福島県檜枝岐村",2,"ヒノエマタムラ"]
[7,"福島県","平田村","福島県平田村",3,"ヒラタムラ"]
[7,"福島県","福島市","福島県福島市",5,"フクシマシ"]
[7,"福島県","双葉町","福島県双葉町",5,"フタバマチ"]
[7,"福島県","古殿町","福島県古殿町",4,"フルドノマチ"]
[7,"福島県","三島町","福島県三島町",3,"ミシマチョウ"]
[7,"福島県","南会津町（旧田島町に限る。）","福島県南会津町（旧田島町に限る。）",3,"ミナミアイヅチョウ（キュウタジママチニカギル。）"]
[7,"福島県","南会津町（旧舘岩村、旧伊南村、旧南郷村に限る。）","福島県南会津町（旧舘岩村、旧伊南村、旧南郷村に限る。）",2,"ミナミアイヅチョウ（キュウタテイワムラ、キュウイナムラ、キュウナンゴウムラニカギル。）"]
[7,"福島県","南相馬市","福島県南相馬市",5,"ミナミソウマシ"]
[7,"福島県","三春町","福島県三春町",4,"ミハルマチ"]
[7,"福島県","本宮市","福島県本宮市",4,"モトミヤシ"]
[7,"福島県","柳津町","福島県柳津町",3,"ヤナイヅマチ"]
[7,"福島県","矢吹町","福島県矢吹町",4,"ヤブキマチ"]
[7,"福島県","矢祭町","福島県矢祭町",4,"ヤマツリマチ"]
[7,"福島県","湯川村","福島県湯川村",4,"ユカワムラ"]
[8,"茨城県","阿見町","茨城県阿見町",5,"アミマチ"]
[8,"茨城県","石岡市","茨城県石岡市",5,"イシオカシ"]
[8,"茨城県","潮来市","茨城県潮来市",6,"イタコシ"]
[8,"茨城県","稲敷市","茨城県稲敷市",5,"イナシキシ"]
[8,"茨城県","茨城町","茨城県茨城町",5,"イバラキマチ"]
[8,"茨城県","牛久市","茨城県牛久市",5,"ウシクシ"]
[8,"茨城県","大洗町","茨城県大洗町",5,"オオアライマチ"]
[8,"茨城県","小美玉市","茨城県小美玉市",5,"オミタマシ"]
[8,"茨城県","笠間市","茨城県笠間市",5,"カサマシ"]
[8,"茨城県","鹿嶋市","茨城県鹿嶋市",6,"カシマシ"]
[8,"茨城県","かすみがうら市","茨城県かすみがうら市",5,"カスミガウラシ"]
[8,"茨城県","神栖市","茨城県神栖市",6,"カミスシ"]
[8,"茨城県","河内町","茨城県河内町",5,"カワチマチ"]
[8,"茨城県","北茨城市","茨城県北茨城市",5,"キタイバラキシ"]
[8,"茨城県","古河市","茨城県古河市",6,"コガシ"]
[8,"茨城県","五霞町","茨城県五霞町",5,"ゴカマチ"]
[8,"茨城県","境町","茨城県境町",5,"サカイマチ"]
[8,"茨城県","桜川市","茨城県桜川市",5,"サクラガワシ"]
[8,"茨城県","下妻市","茨城県下妻市",5,"シモツマシ"]
[8,"茨城県","常総市","茨城県常総市",5,"ジョウソウシ"]
[8,"茨城県","城里町（旧常北町、旧桂村に限る。）","茨城県城里町（旧常北町、旧桂村に限る。）",5,"シロサトマチ（キュウジョウホクマチ、キュウカツラムラニカギル。）"]
[8,"茨城県","城里町（旧七会村に限る。）","茨城県城里町（旧七会村に限る。）",4,"シロサトマチ（キュウナナカイムラニカギル。）"]
[8,"茨城県","大子町","茨城県大子町",4,"ダイゴマチ"]
[8,"茨城県","高萩市","茨城県高萩市",5,"タカハギシ"]
[8,"茨城県","筑西市","茨城県筑西市",5,"チクセイシ"]
[8,"茨城県","つくば市","茨城県つくば市",5,"ツクバシ"]
[8,"茨城県","つくばみらい市","茨城県つくばみらい市",5,"ツクバミライシ"]
[8,"茨城県","土浦市（旧新治村に限る。）","茨城県土浦市（旧新治村に限る。）",5,"ツチウラシ（キュウニイハリムラニカギル。）"]
[8,"茨城県","土浦市（旧新治村を除く。）","茨城県土浦市（旧新治村を除く。）",6,"ツチウラシ（キュウニイハリムラヲノゾク。）"]
[8,"茨城県","東海村","茨城県東海村",5,"トウカイムラ"]
[8,"茨城県","利根町",{"$f":"B452&C452","v":"茨城県利根町"},5,"トネマチ"]
[8,"茨城県","取手市","茨城県取手市",5,"トリデシ"]
[8,"茨城県","那珂市","茨城県那珂市",5,"ナカシ"]
[8,"茨城県","坂東市","茨城県坂東市",5,"バンドウシ"]
[8,"茨城県","常陸太田市","茨城県常陸太田市",5,"ヒタチオオタシ"]
[8,"茨城県","常陸大宮市","茨城県常陸大宮市",5,"ヒタチオオミヤシ"]
[8,"茨城県","日立市","茨城県日立市",6,"ヒタチシ"]
[8,"茨城県","ひたちなか市","茨城県ひたちなか市",5,"ヒタチナカシ"]
[8,"茨城県","鉾田市","茨城県鉾田市",5,"ホコタシ"]
[8,"茨城県","水戸市","茨城県水戸市",5,"ミトシ"]
[8,"茨城県","美浦村","茨城県美浦村",5,"ミホムラ"]
[8,"茨城県","守谷市","茨城県守谷市",6,"モリヤシ"]
[8,"茨城県","八千代町","茨城県八千代町",5,"ヤチヨチョウ"]
[8,"茨城県","結城市","茨城県結城市",5,"ユウキシ"]
[8,"茨城県","行方市","茨城県行方市",5,"ユクエシ"]
[8,"茨城県","龍ケ崎市","茨城県龍ケ崎市",6,"リュウガサキシ"]
[9,"栃木県","足利市","栃木県足利市",6,"アシカガシ"]
[9,"栃木県","市貝町","栃木県市貝町",5,"イチカイマチ"]
[9,"栃木県","宇都宮市","栃木県宇都宮市",5,"ウツノミヤシ"]
[9,"栃木県","大田原市","栃木県大田原市",5,"オオタワラシ"]
[9,"栃木県","小山市","栃木県小山市",5,"オヤマシ"]
[9,"栃木県","鹿沼市","栃木県鹿沼市",5,"カヌマシ"]
[9,"栃木県","上三川町","栃木県上三川町",5,"カミノカワマチ"]
[9,"栃木県","さくら市","栃木県さくら市",5,"サクラシ"]
[9,"栃木県","佐野市","栃木県佐野市",6,"サノシ"]
[9,"栃木県","塩谷町","栃木県塩谷町",4,"シオヤマチ"]
[9,"栃木県","下野市","栃木県下野市",5,"シモツケシ"]
[9,"栃木県","高根沢町","栃木県高根沢町",5,"タカネザワマチ"]
[9,"栃木県","栃木市","栃木県栃木市",5,"トチギシ"]
[9,"栃木県","那珂川町","栃木県那珂川町",5,"ナカガワマチ"]
[9,"栃木県","那須烏山市","栃木県那須烏山市",5,"ナスカラスヤマシ"]
[9,"栃木県","那須塩原市","栃木県那須塩原市",4,"ナスシオバラシ"]
[9,"栃木県","那須町","栃木県那須町",4,"ナスマチ"]
[9,"栃木県","日光市(旧足尾町に限る。)","栃木県日光市(旧足尾町に限る。)",3,"ニッコウシ(キュウアシオマチニカギル。)"]
[9,"栃木県","日光市（旧栗山村に限る。）","栃木県日光市（旧栗山村に限る。）",2,"ニッコウシ（キュウクリヤマムラニカギル。）"]
[9,"栃木県","日光市(旧日光市、旧今市市、旧藤原町に限る。)","栃木県日光市(旧日光市、旧今市市、旧藤原町に限る。)",4,"ニッコウシ(キュウニッコウシ、キュウイマイチシ、キュウフジワラチョウニカギル。)"]
[9,"栃木県","野木町","栃木県野木町",5,"ノギマチ"]
[9,"栃木県","芳賀町","栃木県芳賀町",5,"ハガマチ"]
[9,"栃木県","益子町","栃木県益子町",5,"マシコマチ"]
[9,"栃木県","壬生町","栃木県壬生町",5,"ミブマチ"]
[9,"栃木県","真岡市","栃木県真岡市",5,"モオカシ"]
[9,"栃木県","茂木町","栃木県茂木町",5,"モギマチ"]
[9,"栃木県","矢板市","栃木県矢板市",5,"ヤイタシ"]
[10,"群馬県","安中市","群馬県安中市",5,"アンナカシ"]
[10,"群馬県","伊勢崎市","群馬県伊勢崎市",6,"イセサキシ"]
[10,"群馬県","板倉町","群馬県板倉町",5,"イタクラマチ"]
[10,"群馬県","上野村","群馬県上野村",3,"ウエノムラ"]
[10,"群馬県","邑楽町","群馬県邑楽町",6,"オウラマチ"]
[10,"群馬県","大泉町","群馬県大泉町",6,"オオイズミマチ"]
[10,"群馬県","太田市","群馬県太田市",6,"オオタシ"]
[10,"群馬県","片品村","群馬県片品村",2,"カタシナムラ"]
[10,"群馬県","川場村","群馬県川場村",3,"カワバムラ"]
[10,"群馬県","神流町","群馬県神流町",4,"カンナマチ"]
[10,"群馬県","甘楽町","群馬県甘楽町",5,"カンラマチ"]
[10,"群馬県","桐生市（旧桐生市に限る。）","群馬県桐生市（旧桐生市に限る。）",6,"キリュウシ（キュウキリュウシニカギル。）"]
[10,"群馬県","桐生市(旧黒保根村に限る。)","群馬県桐生市(旧黒保根村に限る。)",4,"キリュウシ(キュウクロホネムラニカギル。)"]
[10,"群馬県","桐生市(旧新里村に限る。)","群馬県桐生市(旧新里村に限る。)",5,"キリュウシ(キュウシンザトムラニカギル。)"]
[10,"群馬県","草津町","群馬県草津町",2,"クサツマチ"]
[10,"群馬県","渋川市","群馬県渋川市",5,"シブカワシ"]
[10,"群馬県","下仁田町","群馬県下仁田町",5,"シモニタマチ"]
[10,"群馬県","昭和村","群馬県昭和村",4,"ショウワムラ"]
[10,"群馬県","榛東村","群馬県榛東村",5,"シントウムラ"]
[10,"群馬県","高崎市（旧倉渕村に限る。）","群馬県高崎市（旧倉渕村に限る。）",4,"タカサキシ（キュウクラブチムラニカギル。）"]
[10,"群馬県","高崎市（旧倉渕村を除く。）","群馬県高崎市（旧倉渕村を除く。）",6,"タカサキシ（キュウクラブチムラヲノゾク。）"]
[10,"群馬県","高山村",{"$f":"B516&C516","v":"群馬県高山村"},3,"タカヤマムラ"]
[10,"群馬県","館林市","群馬県館林市",6,"タテバヤシシ"]
[10,"群馬県","玉村町","群馬県玉村町",6,"タマムラマチ"]
[10,"群馬県","千代田町","群馬県千代田町",6,"チヨダマチ"]
[10,"群馬県","嬬恋村","群馬県嬬恋村",2,"ツマゴイムラ"]
[10,"群馬県","富岡市","群馬県富岡市",5,"トミオカシ"]
[10,"群馬県","中之条町","群馬県中之条町",4,"ナカノジョウマチ"]
[10,"群馬県","長野原町","群馬県長野原町",3,"ナガノハラマチ"]
[10,"群馬県","沼田市","群馬県沼田市",4,"ヌマタシ"]
[10,"群馬県","東吾妻町","群馬県東吾妻町",4,"ヒガシアガツママチ"]
[10,"群馬県","藤岡市","群馬県藤岡市",6,"フジオカシ"]
[10,"群馬県","前橋市","群馬県前橋市",6,"マエバシシ"]
[10,"群馬県","みどり市","群馬県みどり市",5,"ミドリシ"]
[10,"群馬県","みなかみ町","群馬県みなかみ町",4,"ミナカミマチ"]
[10,"群馬県","南牧村","群馬県南牧村",4,"ミナミマキムラ"]
[10,"群馬県","明和町","群馬県明和町",6,"メイワチョウ"]
[10,"群馬県","吉岡町","群馬県吉岡町",5,"ヨシオカマチ"]
[11,"埼玉県","上尾市","埼玉県上尾市",6,"アゲオシ"]
[11,"埼玉県","朝霞市","埼玉県朝霞市",6,"アサカシ"]
[11,"埼玉県","伊奈町","埼玉県伊奈町",6,"イナマチ"]
[11,"埼玉県","入間市","埼玉県入間市",6,"イルマシ"]
[11,"埼玉県","小鹿野町","埼玉県小鹿野町",5,"オガノマチ"]
[11,"埼玉県","小川町","埼玉県小川町",5,"オガワマチ"]
[11,"埼玉県","桶川市","埼玉県桶川市",6,"オケガワシ"]
[11,"埼玉県","越生町","埼玉県越生町",5,"オゴセマチ"]
[11,"埼玉県","春日部市","埼玉県春日部市",6,"カスカベシ"]
[11,"埼玉県","加須市","埼玉県加須市",6,"カゾシ"]
[11,"埼玉県","神川町","埼玉県神川町",5,"カミカワマチ"]
[11,"埼玉県","上里町","埼玉県上里町",6,"カミサトマチ"]
[11,"埼玉県","川口市","埼玉県川口市",6,"カワグチシ"]
[11,"埼玉県","川越市","埼玉県川越市",6,"カワゴエシ"]
[11,"埼玉県","川島町","埼玉県川島町",5,"カワシマチョウ"]
[11,"埼玉県","北本市","埼玉県北本市",6,"キタモトシ"]
[11,"埼玉県","行田市","埼玉県行田市",6,"ギョウダシ"]
[11,"埼玉県","久喜市","埼玉県久喜市",6,"クキシ"]
[11,"埼玉県","熊谷市","埼玉県熊谷市",6,"クマガヤシ"]
[11,"埼玉県","鴻巣市","埼玉県鴻巣市",6,"コウノスシ"]
[11,"埼玉県","越谷市","埼玉県越谷市",6,"コシガヤシ"]
[11,"埼玉県","さいたま市","埼玉県さいたま市",6,"サイタマシ"]
[11,"埼玉県","坂戸市","埼玉県坂戸市",6,"サカドシ"]
[11,"埼玉県","幸手市","埼玉県幸手市",6,"サッテシ"]
[11,"埼玉県","狭山市","埼玉県狭山市",6,"サヤマシ"]
[11,"埼玉県","志木市","埼玉県志木市",6,"シキシ"]
[11,"埼玉県","白岡市","埼玉県白岡市",6,"シラオカシ"]
[11,"埼玉県","杉戸町","埼玉県杉戸町",6,"スギトマチ"]
[11,"埼玉県","草加市","埼玉県草加市",6,"ソウカシ"]
[11,"埼玉県","秩父市(旧大滝村に限る。)","埼玉県秩父市(旧大滝村に限る。)",4,"チチブシ(キュウオオタキムラニカギル。)"]
[11,"埼玉県","秩父市(旧秩父市、旧吉田町、旧荒川村に限る。)","埼玉県秩父市(旧秩父市、旧吉田町、旧荒川村に限る。)",5,"チチブシ(キュウチチブシ、キュウキッタチョウ、キュウアラカワムラニカギル。)"]
[11,"埼玉県","鶴ヶ島市","埼玉県鶴ヶ島市",6,"ツルガシマシ"]
[11,"埼玉県","ときがわ町","埼玉県ときがわ町",5,"トキガワマチ"]
[11,"埼玉県","所沢市","埼玉県所沢市",6,"トコロザワシ"]
[11,"埼玉県","戸田市","埼玉県戸田市",6,"トダシ"]
[11,"埼玉県","長瀞町","埼玉県長瀞町",5,"ナガトロマチ"]
[11,"埼玉県","滑川町","埼玉県滑川町",5,"ナメカワチョウ"]
[11,"埼玉県","新座市","埼玉県新座市",6,"ニイザシ"]
[11,"埼玉県","蓮田市","埼玉県蓮田市",6,"ハスダシ"]
[11,"埼玉県","鳩山町","埼玉県鳩山町",5,"ハトヤママチ"]
[11,"埼玉県","羽生市","埼玉県羽生市",6,"ハニュウシ"]
[11,"埼玉県","飯能市","埼玉県飯能市",5,"ハンノウシ"]
[11,"埼玉県","東秩父村","埼玉県東秩父村",5,"ヒガシチチブムラ"]
[11,"埼玉県","東松山市","埼玉県東松山市",6,"ヒガシマツヤマシ"]
[11,"埼玉県","日高市","埼玉県日高市",5,"ヒダカシ"]
[11,"埼玉県","深谷市","埼玉県深谷市",6,"フカヤシ"]
[11,"埼玉県","富士見市","埼玉県富士見市",6,"フジミシ"]
[11,"埼玉県","ふじみ野市",{"$f":"B580&C580","v":"埼玉県ふじみ野市"},6,"フジミノシ"]
[11,"埼玉県","本庄市","埼玉県本庄市",6,"ホンジョウシ"]
[11,"埼玉県","三郷市","埼玉県三郷市",6,"ミサトシ"]
[11,"埼玉県","美里町","埼玉県美里町",5,"ミサトマチ"]
[11,"埼玉県","皆野町","埼玉県皆野町",5,"ミナノマチ"]
[11,"埼玉県","宮代町","埼玉県宮代町",6,"ミヤシロマチ"]
[11,"埼玉県","三芳町","埼玉県三芳町",6,"ミヨシマチ"]
[11,"埼玉県","毛呂山町","埼玉県毛呂山町",5,"モロヤママチ"]
[11,"埼玉県","八潮市","埼玉県八潮市",6,"ヤシオシ"]
[11,"埼玉県","横瀬町","埼玉県横瀬町",5,"ヨコゼマチ"]
[11,"埼玉県","吉川市","埼玉県吉川市",6,"ヨシカワシ"]
[11,"埼玉県","吉見町","埼玉県吉見町",5,"ヨシミマチ"]
[11,"埼玉県","寄居町","埼玉県寄居町",5,"ヨリイマチ"]
[11,"埼玉県","嵐山町","埼玉県嵐山町",5,"ランザンマチ"]
[11,"埼玉県","和光市","埼玉県和光市",6,"ワコウシ"]
[11,"埼玉県","蕨市","埼玉県蕨市",6,"ワラビシ"]
[12,"千葉県","旭市","千葉県旭市",6,"アサヒシ"]
[12,"千葉県","我孫子市","千葉県我孫子市",6,"アビコシ"]
[12,"千葉県","いすみ市","千葉県いすみ市",6,"イスミシ"]
[12,"千葉県","市川市","千葉県市川市",6,"イチカワシ"]
[12,"千葉県","一宮町","千葉県一宮町",6,"イチノミヤマチ"]
[12,"千葉県","市原市","千葉県市原市",6,"イチハラシ"]
[12,"千葉県","印西市","千葉県印西市",5,"インザイシ"]
[12,"千葉県","浦安市","千葉県浦安市",6,"ウラヤスシ"]
[12,"千葉県","大網白里市","千葉県大網白里市",6,"オオアミシラサトシ"]
[12,"千葉県","大多喜町","千葉県大多喜町",6,"オオタキマチ"]
[12,"千葉県","御宿町","千葉県御宿町",6,"オンジュクマチ"]
[12,"千葉県","柏市","千葉県柏市",6,"カシワシ"]
[12,"千葉県","勝浦市","千葉県勝浦市",7,"カツウラシ"]
[12,"千葉県","香取市","千葉県香取市",6,"カトリシ"]
[12,"千葉県","鎌ケ谷市","千葉県鎌ケ谷市",6,"カマガヤシ"]
[12,"千葉県","鴨川市","千葉県鴨川市",6,"カモガワシ"]
[12,"千葉県","神崎町","千葉県神崎町",5,"カンザキチョウ"]
[12,"千葉県","木更津市","千葉県木更津市",6,"キサラヅシ"]
[12,"千葉県","君津市","千葉県君津市",6,"キミツシ"]
[12,"千葉県","鋸南町","千葉県鋸南町",6,"キョナンマチ"]
[12,"千葉県","九十九里町","千葉県九十九里町",6,"クジュウクリマチ"]
[12,"千葉県","栄町","千葉県栄町",5,"サカエマチ"]
[12,"千葉県","佐倉市","千葉県佐倉市",6,"サクラシ"]
[12,"千葉県","山武市","千葉県山武市",6,"サンムシ"]
[12,"千葉県","酒々井町","千葉県酒々井町",6,"シスイマチ"]
[12,"千葉県","芝山町","千葉県芝山町",6,"シバヤママチ"]
[12,"千葉県","白子町","千葉県白子町",6,"シラコマチ"]
[12,"千葉県","白井市","千葉県白井市",6,"シロイシ"]
[12,"千葉県","匝瑳市","千葉県匝瑳市",6,"ソウサシ"]
[12,"千葉県","袖ケ浦市","千葉県袖ケ浦市",6,"ソデガウラシ"]
[12,"千葉県","多古町","千葉県多古町",6,"タコマチ"]
[12,"千葉県","館山市","千葉県館山市",7,"タテヤマシ"]
[12,"千葉県","千葉市","千葉県千葉市",6,"チバシ"]
[12,"千葉県","銚子市","千葉県銚子市",6,"チョウシシ"]
[12,"千葉県","長生村","千葉県長生村",6,"チョウセイムラ"]
[12,"千葉県","長南町","千葉県長南町",6,"チョウナンマチ"]
[12,"千葉県","東金市","千葉県東金市",6,"トウガネシ"]
[12,"千葉県","東庄町","千葉県東庄町",6,"トウノショウマチ"]
[12,"千葉県","富里市","千葉県富里市",5,"トミサトシ"]
[12,"千葉県","長柄町","千葉県長柄町",6,"ナガラマチ"]
[12,"千葉県","流山市","千葉県流山市",6,"ナガレヤマシ"]
[12,"千葉県","習志野市","千葉県習志野市",6,"ナラシノシ"]
[12,"千葉県","成田市","千葉県成田市",6,"ナリタシ"]
[12,"千葉県","野田市","千葉県野田市",6,"ノダシ"]
[12,"千葉県","富津市","千葉県富津市",6,"フッツシ"]
[12,"千葉県","船橋市","千葉県船橋市",6,"フナバシシ"]
[12,"千葉県","松戸市","千葉県松戸市",6,"マツドシ"]
[12,"千葉県","南房総市","千葉県南房総市",6,"ミナミボウソウシ"]
[12,"千葉県","睦沢町",{"$f":"B644&C644","v":"千葉県睦沢町"},6,"ムツザワマチ"]
[12,"千葉県","茂原市","千葉県茂原市",6,"モバラシ"]
[12,"千葉県","八街市","千葉県八街市",6,"ヤチマタシ"]
[12,"千葉県","八千代市","千葉県八千代市",6,"ヤチヨシ"]
[12,"千葉県","横芝光町","千葉県横芝光町",6,"ヨコシバヒカリマチ"]
[12,"千葉県","四街道市","千葉県四街道市",6,"ヨツカイドウシ"]
[13,"東京都","東京23区","東京都東京23区",6,"トウキョウ23ク"]
[13,"東京都","青ヶ島村","東京都青ヶ島村",7,"アオガシマムラ"]
[13,"東京都","昭島市","東京都昭島市",6,"アキシマシ"]
[13,"東京都","あきる野市","東京都あきる野市",5,"アキルノシ"]
[13,"東京都","稲城市","東京都稲城市",6,"イナギシ"]
[13,"東京都","青梅市","東京都青梅市",5,"オウメシ"]
[13,"東京都","大島町","東京都大島町",7,"オオシママチ"]
[13,"東京都","小笠原村","東京都小笠原村",8,"オガサワラムラ"]
[13,"東京都","奥多摩町","東京都奥多摩町",4,"オクタママチ"]
[13,"東京都","清瀬市","東京都清瀬市",6,"キヨセシ"]
[13,"東京都","国立市","東京都国立市",6,"クニタチシ"]
[13,"東京都","神津島村","東京都神津島村",7,"コウヅシマムラ"]
[13,"東京都","小金井市","東京都小金井市",6,"コガネイシ"]
[13,"東京都","国分寺市","東京都国分寺市",6,"コクブンジシ"]
[13,"東京都","小平市","東京都小平市",6,"コダイラシ"]
[13,"東京都","狛江市","東京都狛江市",6,"コマエシ"]
[13,"東京都","新島村","東京都新島村",7,"シンシマムラ"]
[13,"東京都","立川市","東京都立川市",6,"タチカワシ"]
[13,"東京都","多摩市","東京都多摩市",6,"タマシ"]
[13,"東京都","調布市","東京都調布市",6,"チョウフシ"]
[13,"東京都","西東京市","東京都西東京市",6,"ニシトウキョウシ"]
[13,"東京都","八王子市","東京都八王子市",6,"ハチオウジシ"]
[13,"東京都","八丈町","東京都八丈町",7,"ハチジョウマチ"]
[13,"東京都","羽村市","東京都羽村市",5,"ハムラシ"]
[13,"東京都","東久留米市","東京都東久留米市",6,"ヒガシクルメシ"]
[13,"東京都","東村山市","東京都東村山市",6,"ヒガシムラヤマシ"]
[13,"東京都","東大和市","東京都東大和市",6,"ヒガシヤマトシ"]
[13,"東京都","日野市","東京都日野市",6,"ヒノシ"]
[13,"東京都","日の出町","東京都日の出町",5,"ヒノデマチ"]
[13,"東京都","檜原村","東京都檜原村",4,"ヒノハラムラ"]
[13,"東京都","府中市","東京都府中市",6,"フチュウシ"]
[13,"東京都","福生市","東京都福生市",6,"フッサシ"]
[13,"東京都","町田市","東京都町田市",6,"マチダシ"]
[13,"東京都","御蔵島村","東京都御蔵島村",7,"ミクラジマムラ"]
[13,"東京都","瑞穂町","東京都瑞穂町",5,"ミズホチョウ"]
[13,"東京都","三鷹市","東京都三鷹市",6,"ミタカシ"]
[13,"東京都","三宅村","東京都三宅村",7,"ミヤケムラ"]
[13,"東京都","武蔵野市","東京都武蔵野市",6,"ムサシノシ"]
[13,"東京都","武蔵村山市","東京都武蔵村山市",6,"ムサシムラヤマシ"]
[13,"東京都","利島村","東京都利島村",7,"リシマムラ"]
[14,"神奈川県","愛川町","神奈川県愛川町",5,"アイカワマチ"]
[14,"神奈川県","厚木市","神奈川県厚木市",6,"アツギシ"]
[14,"神奈川県","綾瀬市","神奈川県綾瀬市",6,"アヤセシ"]
[14,"神奈川県","伊勢原市","神奈川県伊勢原市",6,"イセハラシ"]
[14,"神奈川県","海老名市","神奈川県海老名市",6,"エビナシ"]
[14,"神奈川県","大磯町","神奈川県大磯町",6,"オオイソマチ"]
[14,"神奈川県","大井町","神奈川県大井町",6,"オオイチョウ"]
[14,"神奈川県","小田原市","神奈川県小田原市",6,"オダワラシ"]
[14,"神奈川県","開成町","神奈川県開成町",6,"カイセイマチ"]
[14,"神奈川県","鎌倉市","神奈川県鎌倉市",6,"カマクラシ"]
[14,"神奈川県","川崎市","神奈川県川崎市",6,"カワサキシ"]
[14,"神奈川県","清川村","神奈川県清川村",5,"キヨカワムラ"]
[14,"神奈川県","相模原市","神奈川県相模原市",6,"サガミハラシ"]
[14,"神奈川県","座間市","神奈川県座間市",6,"ザマシ"]
[14,"神奈川県","寒川町","神奈川県寒川町",6,"サムカワマチ"]
[14,"神奈川県","逗子市","神奈川県逗子市",6,"ズシシ"]
[14,"神奈川県","茅ヶ崎市","神奈川県茅ヶ崎市",6,"チガサキシ"]
[14,"神奈川県","中井町","神奈川県中井町",6,"ナカイマチ"]
[14,"神奈川県","二宮町",{"$f":"B708&C708","v":"神奈川県二宮町"},6,"ニノミヤマチ"]
[14,"神奈川県","箱根町","神奈川県箱根町",6,"ハコネマチ"]
[14,"神奈川県","秦野市","神奈川県秦野市",6,"ハダノシ"]
[14,"神奈川県","葉山町","神奈川県葉山町",6,"ハヤママチ"]
[14,"神奈川県","平塚市","神奈川県平塚市",6,"ヒラツカシ"]
[14,"神奈川県","藤沢市","神奈川県藤沢市",7,"フジサワシ"]
[14,"神奈川県","松田町","神奈川県松田町",6,"マツダマチ"]
[14,"神奈川県","真鶴町","神奈川県真鶴町",6,"マナツルマチ"]
[14,"神奈川県","三浦市","神奈川県三浦市",7,"ミウラシ"]
[14,"神奈川県","南足柄市","神奈川県南足柄市",6,"ミナミアシガラシ"]
[14,"神奈川県","山北町","神奈川県山北町",5,"ヤマキタマチ"]
[14,"神奈川県","大和市","神奈川県大和市",6,"ヤマトシ"]
[14,"神奈川県","湯河原町","神奈川県湯河原町",6,"ユガワラマチ"]
[14,"神奈川県","横須賀市","神奈川県横須賀市",7,"ヨコスカシ"]
[14,"神奈川県","横浜市","神奈川県横浜市",6,"ヨコハマシ"]
[15,"新潟県","阿賀町","新潟県阿賀町",4,"アガチョウ"]
[15,"新潟県","阿賀野市","新潟県阿賀野市",5,"アガノシ"]
[15,"新潟県","粟島浦村","新潟県粟島浦村",5,"アワシマウラムラ"]
[15,"新潟県","出雲崎町","新潟県出雲崎町",5,"イズモザキマチ"]
[15,"新潟県","糸魚川市","新潟県糸魚川市",5,"イトイガワシ"]
[15,"新潟県","魚沼市","新潟県魚沼市",4,"ウオヌマシ"]
[15,"新潟県","小千谷市","新潟県小千谷市",4,"オヂヤシ"]
[15,"新潟県","柏崎市","新潟県柏崎市",5,"カシワザキシ"]
[15,"新潟県","加茂市","新潟県加茂市",5,"カモシ"]
[15,"新潟県","刈羽村","新潟県刈羽村",5,"カリワムラ"]
[15,"新潟県","五泉市","新潟県五泉市",5,"ゴセンシ"]
[15,"新潟県","佐渡市","新潟県佐渡市",5,"サドシ"]
[15,"新潟県","三条市","新潟県三条市",5,"サンジョウシ"]
[15,"新潟県","新発田市","新潟県新発田市",5,"シバタシ"]
[15,"新潟県","上越市","新潟県上越市",5,"ジョウエツシ"]
[15,"新潟県","聖籠町","新潟県聖籠町",5,"セイロマチ"]
[15,"新潟県","関川村","新潟県関川村",4,"セキカワムラ"]
[15,"新潟県","胎内市","新潟県胎内市",5,"タイナイシ"]
[15,"新潟県","田上町","新潟県田上町",5,"タガミマチ"]
[15,"新潟県","津南町","新潟県津南町",4,"ツナンマチ"]
[15,"新潟県","燕市","新潟県燕市",5,"ツバメシ"]
[15,"新潟県","十日町市","新潟県十日町市",4,"トオカマチシ"]
[15,"新潟県","長岡市","新潟県長岡市",5,"ナガオカシ"]
[15,"新潟県","新潟市","新潟県新潟市",5,"ニイガタシ"]
[15,"新潟県","見附市","新潟県見附市",5,"ミツケシ"]
[15,"新潟県","南魚沼市","新潟県南魚沼市",4,"ミナミウオヌマシ"]
[15,"新潟県","妙高市","新潟県妙高市",5,"ミョウコウシ"]
[15,"新潟県","村上市","新潟県村上市",4,"ムラカミシ"]
[15,"新潟県","弥彦村","新潟県弥彦村",5,"ヤヒコムラ"]
[15,"新潟県","湯沢町","新潟県湯沢町",4,"ユザワマチ"]
[16,"富山県","朝日町","富山県朝日町",5,"アサヒチョウ"]
[16,"富山県","射水市","富山県射水市",5,"イミズシ"]
[16,"富山県","魚津市","富山県魚津市",5,"ウオヅシ"]
[16,"富山県","小矢部市","富山県小矢部市",5,"オヤベシ"]
[16,"富山県","上市町","富山県上市町",5,"カミイチマチ"]
[16,"富山県","黒部市","富山県黒部市",5,"クロベシ"]
[16,"富山県","高岡市","富山県高岡市",5,"タカオカシ"]
[16,"富山県","立山町","富山県立山町",5,"タテヤママチ"]
[16,"富山県","砺波市","富山県砺波市",5,"トナミシ"]
[16,"富山県","富山市","富山県富山市",5,"トヤマシ"]
[16,"富山県","滑川市","富山県滑川市",5,"ナメリカワシ"]
[16,"富山県","南砺市","富山県南砺市",5,"ナントシ"]
[16,"富山県","入善町","富山県入善町",5,"ニュウゼンマチ"]
[16,"富山県","氷見市","富山県氷見市",5,"ヒミシ"]
[16,"富山県","舟橋村","富山県舟橋村",5,"フナハシムラ"]
[17,"石川県","穴水町","石川県穴水町",5,"アナミズマチ"]
[17,"石川県","内灘町","石川県内灘町",5,"ウチナダマチ"]
[17,"石川県","加賀市","石川県加賀市",5,"カガシ"]
[17,"石川県","金沢市","石川県金沢市",6,"カナザワシ"]
[17,"石川県","かほく市",{"$f":"B772&C772","v":"石川県かほく市"},5,"カホクシ"]
[17,"石川県","川北町","石川県川北町",5,"カワキタマチ"]
[17,"石川県","小松市","石川県小松市",6,"コマツシ"]
[17,"石川県","志賀町","石川県志賀町",5,"シガチョウ"]
[17,"石川県","珠洲市","石川県珠洲市",5,"スズシ"]
[17,"石川県","津幡町","石川県津幡町",5,"ツバタマチ"]
[17,"石川県","中能登町","石川県中能登町",5,"ナカノトマチ"]
[17,"石川県","七尾市","石川県七尾市",5,"ナナオシ"]
[17,"石川県","能登町","石川県能登町",5,"ノトチョウ"]
[17,"石川県","野々市市","石川県野々市市",6,"ノノイチシ"]
[17,"石川県","能美市","石川県能美市",5,"ノミシ"]
[17,"石川県","羽咋市","石川県羽咋市",5,"ハクイシ"]
[17,"石川県","白山市(旧河内村、旧吉野谷村、旧鳥越村、旧尾口村に限る。)","石川県白山市(旧河内村、旧吉野谷村、旧鳥越村、旧尾口村に限る。)",4,"ハクザンシ(キュウカワチムラ、キュウヨシノダニムラ、キュウトリゴエムラ、キュウオグチムラニカギル。)"]
[17,"石川県","白山市（旧白峰村に限る。）","石川県白山市（旧白峰村に限る。）",3,"ハクサンシ（キュウシラミネムラニカギル。）"]
[17,"石川県","白山市(旧松任市に限る。)","石川県白山市(旧松任市に限る。)",6,"ハクザンシ(キュウマツトウシニカギル。)"]
[17,"石川県","白山市(旧美川町、旧鶴来町に限る。)","石川県白山市(旧美川町、旧鶴来町に限る。)",5,"ハクザンシ(キュウミカワチョウ"]
[17,"石川県","宝達志水町","石川県宝達志水町",5,"ホウダツシミズチョウ"]
[17,"石川県","輪島市","石川県輪島市",5,"ワジマシ"]
[18,"福井県","あわら市","福井県あわら市",5,"アワラシ"]
[18,"福井県","池田町","福井県池田町",4,"イケダチョウ"]
[18,"福井県","永平寺町","福井県永平寺町",5,"エイヘイジチョウ"]
[18,"福井県","越前市","福井県越前市",6,"エチゼンシ"]
[18,"福井県","越前町","福井県越前町",6,"エチゼンチョウ"]
[18,"福井県","おおい町","福井県おおい町",6,"オオイマチ"]
[18,"福井県","大野市","福井県大野市",5,"オオノシ"]
[18,"福井県","小浜市","福井県小浜市",6,"オバマシ"]
[18,"福井県","勝山市","福井県勝山市",5,"カツヤマシ"]
[18,"福井県","坂井市","福井県坂井市",5,"サカイシ"]
[18,"福井県","鯖江市","福井県鯖江市",6,"サバエシ"]
[18,"福井県","高浜町","福井県高浜町",6,"タカハマチョウ"]
[18,"福井県","敦賀市","福井県敦賀市",6,"ツルガシ"]
[18,"福井県","福井市","福井県福井市",6,"フクイシ"]
[18,"福井県","南越前町","福井県南越前町",5,"ミナミエチゼンチョウ"]
[18,"福井県","美浜町","福井県美浜町",6,"ミハマチョウ"]
[18,"福井県","若狭町","福井県若狭町",5,"ワカサチョウ"]
[19,"山梨県","市川三郷町","山梨県市川三郷町",5,"イチカワミサトチョウ"]
[19,"山梨県","上野原市","山梨県上野原市",5,"ウエノハラシ"]
[19,"山梨県","大月市","山梨県大月市",5,"オオツキシ"]
[19,"山梨県","忍野村","山梨県忍野村",3,"オシノムラ"]
[19,"山梨県","甲斐市","山梨県甲斐市",5,"カイシ"]
[19,"山梨県","甲州市（旧塩山市、旧勝沼町に限る。）","山梨県甲州市（旧塩山市、旧勝沼町に限る。）",5,"コウシュウシ（キュウエンザンシ、キュウカツヌマチョウニカギル。）"]
[19,"山梨県","甲州市（旧大和村に限る。）","山梨県甲州市（旧大和村に限る。）",4,"コウシュウシ（キュウダイワムラニカギル。）"]
[19,"山梨県","甲府市(旧上九一色村に限る。)","山梨県甲府市(旧上九一色村に限る。)",4,"コウフシ(キュウカミクイシキムラニカギル。)"]
[19,"山梨県","甲府市（旧甲府市に限る。）","山梨県甲府市（旧甲府市に限る。）",6,"コウフシ（キュウコウフシニカギル。）"]
[19,"山梨県","甲府市(旧中道町に限る。)","山梨県甲府市(旧中道町に限る。)",5,"コウフシ(キュウナカミチマチニカギル。)"]
[19,"山梨県","小菅村","山梨県小菅村",3,"コスガムラ"]
[19,"山梨県","昭和町","山梨県昭和町",6,"ショウワチョウ"]
[19,"山梨県","丹波山村","山梨県丹波山村",3,"タバヤマムラ"]
[19,"山梨県","中央市","山梨県中央市",5,"チュウオウシ"]
[19,"山梨県","都留市","山梨県都留市",5,"ツルシ"]
[19,"山梨県","道志村","山梨県道志村",4,"ドウシムラ"]
[19,"山梨県","鳴沢村","山梨県鳴沢村",3,"ナルサワムラ"]
[19,"山梨県","南部町","山梨県南部町",6,"ナンブチョウ"]
[19,"山梨県","西桂町","山梨県西桂町",4,"ニシカツラチョウ"]
[19,"山梨県","韮崎市","山梨県韮崎市",5,"ニラサキシ"]
[19,"山梨県","早川町","山梨県早川町",5,"ハヤカワチョウ"]
[19,"山梨県","笛吹市(旧芦川村に限る。)","山梨県笛吹市(旧芦川村に限る。)",3,"フエフキシ(キュウアシカワムラニカギル。)"]
[19,"山梨県","笛吹市（旧春日居町、旧石和町、旧御坂町、旧一宮町、旧八代町、旧境川村に限る。)","山梨県笛吹市（旧春日居町、旧石和町、旧御坂町、旧一宮町、旧八代町、旧境川村に限る。)",5,"フエフキシ（キュウカスガイチョウ、キュウイサワチョウ、キュウミサカチョウ、キュウイチノミヤマチ、キュウヤツシロチョウ、キュウサカイガワムラニカギル。)"]
[19,"山梨県","富士河口湖町","山梨県富士河口湖町",4,"フジカワグチコマチ"]
[19,"山梨県","富士川町","山梨県富士川町",5,"フジカワチョウ"]
[19,"山梨県","富士吉田市","山梨県富士吉田市",4,"フジヨシダシ"]
[19,"山梨県","北杜市(旧明野村、旧須玉町、旧高根町、旧長坂町、旧大泉村、旧白州町に限る。)","山梨県北杜市(旧明野村、旧須玉町、旧高根町、旧長坂町、旧大泉村、旧白州町に限る。)",4,"ホクトシ(キュウアケノムラ、キュウスダマチョウ、キュウタカネチョウ、キュウナガサカチョウ、キュウオオイズミムラ、キュウハクシュウマチニカギル。)"]
[19,"山梨県","北杜市(旧小淵沢町に限る。)","山梨県北杜市(旧小淵沢町に限る。)",3,"ホクトシ(キュウコブチサワチョウニカギル。)"]
[19,"山梨県","北杜市（旧武川村に限る。）","山梨県北杜市（旧武川村に限る。）",5,"ホクトシ（キュウタケカワムラニカギル。）"]
[19,"山梨県","南アルプス市",{"$f":"B836&C836","v":"山梨県南アルプス市"},5,"ミナミアルプスシ"]
[19,"山梨県","身延町","山梨県身延町",5,"ミノブチョウ"]
[19,"山梨県","山中湖村","山梨県山中湖村",3,"ヤマナカコムラ"]
[19,"山梨県","山梨市","山梨県山梨市",5,"ヤマナシシ"]
[20,"長野県","青木村","長野県青木村",4,"アオキムラ"]
[20,"長野県","上松町","長野県上松町",3,"アゲマツマチ"]
[20,"長野県","朝日村","長野県朝日村",3,"アサヒムラ"]
[20,"長野県","安曇野市","長野県安曇野市",4,"アズミノシ"]
[20,"長野県","阿智村","長野県阿智村",4,"アチムラ"]
[20,"長野県","阿南町","長野県阿南町",4,"アナンチョウ"]
[20,"長野県","飯田市","長野県飯田市",5,"イイダシ"]
[20,"長野県","飯綱町","長野県飯綱町",3,"イイヅナマチ"]
[20,"長野県","飯山市","長野県飯山市",4,"イイヤマシ"]
[20,"長野県","生坂村","長野県生坂村",3,"イクサカムラ"]
[20,"長野県","池田町","長野県池田町",4,"イケダチョウ"]
[20,"長野県","伊那市","長野県伊那市",4,"イナシ"]
[20,"長野県","上田市(旧上田市、旧丸子町に限る。)","長野県上田市(旧上田市、旧丸子町に限る。)",4,"ウエダシ(キュウウエダシ、キュウマルコチョウニカギル。)"]
[20,"長野県","上田市(旧真田町、旧武石村に限る。)","長野県上田市(旧真田町、旧武石村に限る。)",3,"ウエダシ(キュウサナダマチ、キュウタケイシムラニカギル。)"]
[20,"長野県","売木村","長野県売木村",3,"ウルギムラ"]
[20,"長野県","王滝村","長野県王滝村",3,"オウタキムラ"]
[20,"長野県","大桑村","長野県大桑村",4,"オオクワムラ"]
[20,"長野県","大鹿村","長野県大鹿村",4,"オオシカムラ"]
[20,"長野県","大町市","長野県大町市",3,"オオマチシ"]
[20,"長野県","岡谷市","長野県岡谷市",3,"オカヤシ"]
[20,"長野県","小川村","長野県小川村",3,"オガワムラ"]
[20,"長野県","小谷村","長野県小谷村",3,"オタリムラ"]
[20,"長野県","小布施町","長野県小布施町",4,"オブセマチ"]
[20,"長野県","麻績村","長野県麻績村",3,"オミムラ"]
[20,"長野県","軽井沢町","長野県軽井沢町",2,"カルイザワマチ"]
[20,"長野県","川上村","長野県川上村",2,"カワウエムラ"]
[20,"長野県","木島平村","長野県木島平村",4,"キジマダイラムラ"]
[20,"長野県","木曽町（旧開田村に限る。）","長野県木曽町（旧開田村に限る。）",2,"キソマチ（キュウカイダムラニカギル。）"]
[20,"長野県","木曽町（旧木曽福島町、旧日義村、旧三岳村に限る。）","長野県木曽町（旧木曽福島町、旧日義村、旧三岳村に限る。）",3,"キソマチ（キュウキソフクシママチ、キュウヒヨシムラ、キュウミタケムラニカギル。）"]
[20,"長野県","木祖村","長野県木祖村",2,"キソムラ"]
[20,"長野県","北相木村","長野県北相木村",2,"キタアイキムラ"]
[20,"長野県","小海町","長野県小海町",3,"コウミマチ"]
[20,"長野県","駒ヶ根市","長野県駒ヶ根市",4,"コマガネシ"]
[20,"長野県","小諸市","長野県小諸市",3,"コモロシ"]
[20,"長野県","栄村","長野県栄村",4,"サカエムラ"]
[20,"長野県","坂城町","長野県坂城町",4,"サカキマチ"]
[20,"長野県","佐久市","長野県佐久市",3,"サクシ"]
[20,"長野県","佐久穂町","長野県佐久穂町",3,"サクホマチ"]
[20,"長野県","塩尻市（旧塩尻市に限る。）","長野県塩尻市（旧塩尻市に限る。）",4,"シオジリシ（キュウシオジリシニカギル。）"]
[20,"長野県","塩尻市（旧楢川村に限る。）","長野県塩尻市（旧楢川村に限る。）",2,"シオジリシ（キュウナラカワムラニカギル。）"]
[20,"長野県","信濃町","長野県信濃町",3,"シナノマチ"]
[20,"長野県","下條村","長野県下條村",4,"シモジョウムラ"]
[20,"長野県","下諏訪町","長野県下諏訪町",4,"シモスワマチ"]
[20,"長野県","須坂市","長野県須坂市",4,"スザカシ"]
[20,"長野県","諏訪市","長野県諏訪市",4,"スワシ"]
[20,"長野県","喬木村","長野県喬木村",5,"タカギムラ"]
[20,"長野県","高森町","長野県高森町",4,"タカモリマチ"]
[20,"長野県","高山村","長野県高山村",3,"タカヤマムラ"]
[20,"長野県","辰野町","長野県辰野町",3,"タツノマチ"]
[20,"長野県","立科町","長野県立科町",3,"タテシナマチ"]
[20,"長野県","千曲市","長野県千曲市",4,"チクマシ"]
[20,"長野県","茅野市","長野県茅野市",3,"チノシ"]
[20,"長野県","筑北村","長野県筑北村",3,"ツクキタムラ"]
[20,"長野県","天龍村","長野県天龍村",4,"テンリュウムラ"]
[20,"長野県","東御市","長野県東御市",4,"トウミシ"]
[20,"長野県","豊丘村","長野県豊丘村",4,"トヨオカムラ"]
[20,"長野県","中川村","長野県中川村",4,"ナカガワムラ"]
[20,"長野県","中野市","長野県中野市",4,"ナカノシ"]
[20,"長野県","長野市","長野県長野市",4,"ナガノシ"]
[20,"長野県","長和町","長野県長和町",3,"ナガワチョウ"]
[20,"長野県","南木曽町",{"$f":"B900&C900","v":"長野県南木曽町"},4,"ナギソマチ"]
[20,"長野県","根羽村","長野県根羽村",4,"ネバムラ"]
[20,"長野県","野沢温泉村","長野県野沢温泉村",3,"ノザワオンセンムラ"]
[20,"長野県","白馬村","長野県白馬村",3,"ハクバムラ"]
[20,"長野県","飯島町","長野県飯島町",4,"ハシマチョウ"]
[20,"長野県","原村","長野県原村",3,"ハラムラ"]
[20,"長野県","平谷村","長野県平谷村",3,"ヒラヤムラ"]
[20,"長野県","富士見町","長野県富士見町",3,"フジミチョウ"]
[20,"長野県","松川町","長野県松川町",4,"マツカワマチ"]
[20,"長野県","松川村","長野県松川村",4,"マツカワムラ"]
[20,"長野県","松本市","長野県松本市",4,"マツモトシ"]
[20,"長野県","南相木村","長野県南相木村",2,"ミナミアイキムラ"]
[20,"長野県","南牧村","長野県南牧村",2,"ミナミマキムラ"]
[20,"長野県","南箕輪村","長野県南箕輪村",4,"ミナミミノワムラ"]
[20,"長野県","箕輪町","長野県箕輪町",4,"ミノワマチ"]
[20,"長野県","宮田村","長野県宮田村",4,"ミヤダムラ"]
[20,"長野県","御代田町","長野県御代田町",3,"ミヨタマチ"]
[20,"長野県","泰阜村","長野県泰阜村",4,"ヤスオカムラ"]
[20,"長野県","山形村","長野県山形村",4,"ヤマガタムラ"]
[20,"長野県","山ノ内町","長野県山ノ内町",3,"ヤマノウチマチ"]
[21,"岐阜県","安八町","岐阜県安八町",6,"アンパチチョウ"]
[21,"岐阜県","池田町","岐阜県池田町",6,"イケダチョウ"]
[21,"岐阜県","揖斐川町","岐阜県揖斐川町",6,"イビガワチョウ"]
[21,"岐阜県","恵那市","岐阜県恵那市",5,"エナシ"]
[21,"岐阜県","大垣市(旧大垣市、旧墨俣町に限る。)","岐阜県大垣市(旧大垣市、旧墨俣町に限る。)",6,"オオガキシ(キュウオオガキシ、キュウスノマタチョウニカギル。)"]
[21,"岐阜県","大垣市(旧上石津町に限る。)","岐阜県大垣市(旧上石津町に限る。)",5,"オオガキシ(キュウカミイシヅチョウニカギル。)"]
[21,"岐阜県","大野町","岐阜県大野町",6,"オオノチョウ"]
[21,"岐阜県","海津市","岐阜県海津市",6,"カイヅシ"]
[21,"岐阜県","各務原市","岐阜県各務原市",6,"カカミガハラシ"]
[21,"岐阜県","笠松町","岐阜県笠松町",6,"カサマツチョウ"]
[21,"岐阜県","可児市","岐阜県可児市",6,"カニシ"]
[21,"岐阜県","川辺町","岐阜県川辺町",5,"カワベチョウ"]
[21,"岐阜県","岐南町","岐阜県岐南町",6,"ギナンチョウ"]
[21,"岐阜県","岐阜市","岐阜県岐阜市",6,"ギフシ"]
[21,"岐阜県","郡上市（旧高鷲村に限る。）","岐阜県郡上市（旧高鷲村に限る。）",3,"グジョウシ（キュウタカスムラニカギル。）"]
[21,"岐阜県","郡上市(旧美並村に限る。)","岐阜県郡上市(旧美並村に限る。)",5,"グジョウシ(キュウミナミムラニカギル。)"]
[21,"岐阜県","郡上市(旧八幡町、旧大和町、旧白鳥町、旧明宝村、旧和良村に限る。)","岐阜県郡上市(旧八幡町、旧大和町、旧白鳥町、旧明宝村、旧和良村に限る。)",4,"グジョウシ(キュウヤワタチョウ、キュウダイワチョウ、キュウシラトリチョウ、キュウメイホウムラ、キュウカズヨシムラニカギル。)"]
[21,"岐阜県","下呂市（旧小坂町、旧馬瀬村に限る。）","岐阜県下呂市（旧小坂町、旧馬瀬村に限る。）",3,"ゲロシ（キュウコザカチョウ、キュウマセムラニカギル。）"]
[21,"岐阜県","下呂市(旧萩原町、旧下呂町、旧金山町に限る。)","岐阜県下呂市(旧萩原町、旧下呂町、旧金山町に限る。)",4,"ゲロシ(キュウハギワラチョウ、キュウゲロチョウ、キュウカナヤマチョウニカギル。)"]
[21,"岐阜県","神戸町","岐阜県神戸町",6,"コウベチョウ"]
[21,"岐阜県","坂祝町","岐阜県坂祝町",5,"サカホギチョウ"]
[21,"岐阜県","白川町","岐阜県白川町",5,"シラカワチョウ"]
[21,"岐阜県","白川村","岐阜県白川村",3,"シラカワムラ"]
[21,"岐阜県","関ケ原町","岐阜県関ケ原町",5,"セキガハラチョウ"]
[21,"岐阜県","関市","岐阜県関市",6,"セキシ"]
[21,"岐阜県","高山市","岐阜県高山市",4,"タカヤマシ"]
[21,"岐阜県","多治見市","岐阜県多治見市",6,"タジミシ"]
[21,"岐阜県","垂井町","岐阜県垂井町",6,"タルイチョウ"]
[21,"岐阜県","土岐市","岐阜県土岐市",5,"トキシ"]
[21,"岐阜県","富加町","岐阜県富加町",5,"トミカチョウ"]
[21,"岐阜県","中津川市(旧中津川市に限る。)","岐阜県中津川市(旧中津川市に限る。)",5,"ナカツガワシ(キュウナカツガワシニカギル。)"]
[21,"岐阜県","中津川市(旧長野県木曽郡山口村、旧坂下町、旧川上村、旧加子母村、旧付知町、旧福岡町、旧蛭川村に限る。)","岐阜県中津川市(旧長野県木曽郡山口村、旧坂下町、旧川上村、旧加子母村、旧付知町、旧福岡町、旧蛭川村に限る。)",4,"ナカツガワシ(キュウナガノケンキソグンヤマグチムラ、キュウサカシタチョウ、キュウカワカミムラ、キュウカシモムラ、キュウツケチチョウ、キュウフクオカチョウ、キュウヒルカワムラニカギル。)"]
[21,"岐阜県","羽島市","岐阜県羽島市",6,"ハシマシ"]
[21,"岐阜県","東白川村","岐阜県東白川村",4,"ヒガシシラカワムラ"]
[21,"岐阜県","飛騨市","岐阜県飛騨市",3,"ヒダシ"]
[21,"岐阜県","七宗町","岐阜県七宗町",5,"ヒチソウチョウ"]
[21,"岐阜県","北方町","岐阜県北方町",6,"ボッケマチ"]
[21,"岐阜県","瑞浪市","岐阜県瑞浪市",5,"ミズナミシ"]
[21,"岐阜県","瑞穂市","岐阜県瑞穂市",6,"ミズホシ"]
[21,"岐阜県","御嵩町","岐阜県御嵩町",5,"ミタケチョウ"]
[21,"岐阜県","美濃加茂市","岐阜県美濃加茂市",6,"ミノカモシ"]
[21,"岐阜県","美濃市","岐阜県美濃市",5,"ミノシ"]
[21,"岐阜県","本巣市（旧根尾村に限る。）","岐阜県本巣市（旧根尾村に限る。）",4,"モトスシ（キュウネオムラニカギル。）"]
[21,"岐阜県","本巣市（旧本巣町、旧真正町、旧糸貫町に限る。）","岐阜県本巣市（旧本巣町、旧真正町、旧糸貫町に限る。）",6,"モトスシ（キュウモトスチョウ、キュウシンセイチョウ、キュウイトヌキチョウニカギル。）"]
[21,"岐阜県","八百津町",{"$f":"B964&C964","v":"岐阜県八百津町"},5,"ヤオツチョウ"]
[21,"岐阜県","山県市","岐阜県山県市",6,"ヤマガタシ"]
[21,"岐阜県","養老町","岐阜県養老町",6,"ヨウロウチョウ"]
[21,"岐阜県","輪之内町","岐阜県輪之内町",6,"ワノウチチョウ"]
[22,"静岡県","熱海市","静岡県熱海市",6,"アタミシ"]
[22,"静岡県","伊豆市","静岡県伊豆市",6,"イズシ"]
[22,"静岡県","伊豆の国市","静岡県伊豆の国市",6,"イズノクニシ"]
[22,"静岡県","伊東市","静岡県伊東市",7,"イトウシ"]
[22,"静岡県","磐田市","静岡県磐田市",7,"イワタシ"]
[22,"静岡県","御前崎市","静岡県御前崎市",7,"オマエザキシ"]
[22,"静岡県","小山町","静岡県小山町",5,"オヤマチョウ"]
[22,"静岡県","掛川市","静岡県掛川市",6,"カケガワシ"]
[22,"静岡県","河津町","静岡県河津町",7,"カワヅチョウ"]
[22,"静岡県","川根本町","静岡県川根本町",5,"カワネホンマチ"]
[22,"静岡県","函南町","静岡県函南町",6,"カンナミチョウ"]
[22,"静岡県","菊川市","静岡県菊川市",6,"キクカワシ"]
[22,"静岡県","湖西市","静岡県湖西市",6,"コサイシ"]
[22,"静岡県","御殿場市","静岡県御殿場市",5,"ゴテンバシ"]
[22,"静岡県","静岡市","静岡県静岡市",7,"シズオカシ"]
[22,"静岡県","島田市","静岡県島田市",6,"シマダシ"]
[22,"静岡県","清水町","静岡県清水町",7,"シミズチョウ"]
[22,"静岡県","下田市","静岡県下田市",7,"シモダシ"]
[22,"静岡県","裾野市","静岡県裾野市",6,"スソノシ"]
[22,"静岡県","長泉町","静岡県長泉町",6,"ナガイズミチョウ"]
[22,"静岡県","西伊豆町","静岡県西伊豆町",6,"ニシイズチョウ"]
[22,"静岡県","沼津市","静岡県沼津市",7,"ヌマヅシ"]
[22,"静岡県","浜松市","静岡県浜松市",6,"ハママツシ"]
[22,"静岡県","東伊豆町","静岡県東伊豆町",7,"ヒガシイズチョウ"]
[22,"静岡県","袋井市","静岡県袋井市",6,"フクロイシ"]
[22,"静岡県","藤枝市","静岡県藤枝市",7,"フジエダシ"]
[22,"静岡県","富士市","静岡県富士市",7,"フジシ"]
[22,"静岡県","富士宮市","静岡県富士宮市",6,"フジノミヤシ"]
[22,"静岡県","牧之原市","静岡県牧之原市",7,"マキノハラシ"]
[22,"静岡県","松崎町","静岡県松崎町",7,"マツザキチョウ"]
[22,"静岡県","三島市","静岡県三島市",6,"ミシマシ"]
[22,"静岡県","南伊豆町","静岡県南伊豆町",7,"ミナミイズチョウ"]
[22,"静岡県","森町","静岡県森町",6,"モリマチ"]
[22,"静岡県","焼津市","静岡県焼津市",7,"ヤイヅシ"]
[22,"静岡県","吉田町","静岡県吉田町",7,"ヨシダチョウ"]
[23,"愛知県","愛西市","愛知県愛西市",6,"アイサイシ"]
[23,"愛知県","阿久比町","愛知県阿久比町",6,"アグイチョウ"]
[23,"愛知県","あま市","愛知県あま市",6,"アマシ"]
[23,"愛知県","安城市","愛知県安城市",6,"アンジョウシ"]
[23,"愛知県","一宮市","愛知県一宮市",6,"イチノミヤシ"]
[23,"愛知県","稲沢市","愛知県稲沢市",6,"イナザワシ"]
[23,"愛知県","犬山市","愛知県犬山市",6,"イヌヤマシ"]
[23,"愛知県","岩倉市","愛知県岩倉市",6,"イワクラシ"]
[23,"愛知県","大口町","愛知県大口町",6,"オオグチチョウ"]
[23,"愛知県","大治町","愛知県大治町",6,"オオハルチョウ"]
[23,"愛知県","大府市","愛知県大府市",6,"オオブシ"]
[23,"愛知県","岡崎市","愛知県岡崎市",6,"オカザキシ"]
[23,"愛知県","尾張旭市","愛知県尾張旭市",6,"オワリアサヒシ"]
[23,"愛知県","春日井市","愛知県春日井市",6,"カスガイシ"]
[23,"愛知県","蒲郡市","愛知県蒲郡市",6,"ガマゴオリシ"]
[23,"愛知県","刈谷市","愛知県刈谷市",6,"カリヤシ"]
[23,"愛知県","北名古屋市","愛知県北名古屋市",6,"キタナゴヤシ"]
[23,"愛知県","清須市","愛知県清須市",6,"キヨスシ"]
[23,"愛知県","幸田町","愛知県幸田町",6,"コウタチョウ"]
[23,"愛知県","江南市","愛知県江南市",6,"コウナンシ"]
[23,"愛知県","小牧市","愛知県小牧市",6,"コマキシ"]
[23,"愛知県","設楽町（旧設楽町に限る。）","愛知県設楽町（旧設楽町に限る。）",5,"シタラチョウ（キュウシタラチョウニカギル。）"]
[23,"愛知県","設楽町（旧津具村に限る。）","愛知県設楽町（旧津具村に限る。）",4,"シタラチョウ（キュウツグムラニカギル。）"]
[23,"愛知県","新城市","愛知県新城市",6,"シンシロシ"]
[23,"愛知県","瀬戸市","愛知県瀬戸市",6,"セトシ"]
[23,"愛知県","高浜市",{"$f":"B1028&C1028","v":"愛知県高浜市"},6,"タカハマシ"]
[23,"愛知県","武豊町","愛知県武豊町",6,"タケトヨチョウ"]
[23,"愛知県","田原市","愛知県田原市",6,"タハラシ"]
[23,"愛知県","知多市","愛知県知多市",6,"チタシ"]
[23,"愛知県","知立市","愛知県知立市",6,"チリュウシ"]
[23,"愛知県","津島市","愛知県津島市",6,"ツシマシ"]
[23,"愛知県","東栄町","愛知県東栄町",5,"トウエイチョウ"]
[23,"愛知県","東海市","愛知県東海市",6,"トウカイシ"]
[23,"愛知県","東郷町","愛知県東郷町",6,"トウゴウチョウ"]
[23,"愛知県","常滑市","愛知県常滑市",6,"トコナメシ"]
[23,"愛知県","飛島村","愛知県飛島村",6,"トビシマムラ"]
[23,"愛知県","豊明市","愛知県豊明市",6,"トヨアケシ"]
[23,"愛知県","豊川市","愛知県豊川市",6,"トヨカワシ"]
[23,"愛知県","豊田市（旧稲武町に限る。）","愛知県豊田市（旧稲武町に限る。）",4,"トヨタシ（キュウイナブチョウニカギル。）"]
[23,"愛知県","豊田市（旧稲武町を除く。）","愛知県豊田市（旧稲武町を除く。）",6,"トヨタシ（キュウイナブチョウヲノゾク。）"]
[23,"愛知県","豊根村","愛知県豊根村",4,"トヨネムラ"]
[23,"愛知県","豊橋市","愛知県豊橋市",7,"トヨハシシ"]
[23,"愛知県","豊山町","愛知県豊山町",6,"トヨヤマチョウ"]
[23,"愛知県","長久手市","愛知県長久手市",6,"ナガクテシ"]
[23,"愛知県","名古屋市","愛知県名古屋市",6,"ナゴヤシ"]
[23,"愛知県","西尾市","愛知県西尾市",6,"ニシオシ"]
[23,"愛知県","日進市","愛知県日進市",6,"ニッシンシ"]
[23,"愛知県","半田市","愛知県半田市",6,"ハンダシ"]
[23,"愛知県","東浦町","愛知県東浦町",6,"ヒガシウラチョウ"]
[23,"愛知県","扶桑町","愛知県扶桑町",6,"フソウチョウ"]
[23,"愛知県","碧南市","愛知県碧南市",6,"ヘキナンシ"]
[23,"愛知県","南知多町","愛知県南知多町",6,"ミナミチタチョウ"]
[23,"愛知県","美浜町","愛知県美浜町",6,"ミハマチョウ"]
[23,"愛知県","みよし市","愛知県みよし市",6,"ミヨシシ"]
[23,"愛知県","弥富市","愛知県弥富市",6,"ヤトミシ"]
[24,"三重県","朝日町","三重県朝日町",6,"アサヒチョウ"]
[24,"三重県","伊賀市","三重県伊賀市",5,"イガシ"]
[24,"三重県","伊勢市","三重県伊勢市",6,"イセシ"]
[24,"三重県","いなべ市（旧員弁町、旧大安町に限る。）","三重県いなべ市（旧員弁町、旧大安町に限る。）",6,"イナベシ（キュウイナベチョウ、キュウダイアンチョウニカギル。）"]
[24,"三重県","いなべ市（旧北勢町、旧藤原町に限る。）","三重県いなべ市（旧北勢町、旧藤原町に限る。）",5,"イナベシ（キュウホクセイチョウ、キュウフジワラチョウニカギル。）"]
[24,"三重県","大台町","三重県大台町",6,"オオダイチョウ"]
[24,"三重県","尾鷲市","三重県尾鷲市",6,"オワセシ"]
[24,"三重県","亀山市","三重県亀山市",6,"カメヤマシ"]
[24,"三重県","川越町","三重県川越町",6,"カワゴエチョウ"]
[24,"三重県","木曽岬町","三重県木曽岬町",6,"キソサキチョウ"]
[24,"三重県","紀宝町","三重県紀宝町",7,"キホウチョウ"]
[24,"三重県","紀北町","三重県紀北町",6,"キホクチョウ"]
[24,"三重県","熊野市","三重県熊野市",7,"クマノシ"]
[24,"三重県","桑名市","三重県桑名市",6,"クワナシ"]
[24,"三重県","菰野町","三重県菰野町",6,"コモノチョウ"]
[24,"三重県","志摩市","三重県志摩市",6,"シマシ"]
[24,"三重県","鈴鹿市","三重県鈴鹿市",6,"スズカシ"]
[24,"三重県","大紀町","三重県大紀町",6,"ダイキマチ"]
[24,"三重県","多気町","三重県多気町",6,"タキチョウ"]
[24,"三重県","玉城町","三重県玉城町",6,"タマキチョウ"]
[24,"三重県","津市(旧津市、旧久居市、旧河芸町、旧芸濃町、旧美里村、旧安濃町、旧香良洲町、旧一志町、旧白山町に限る。)","三重県津市(旧津市、旧久居市、旧河芸町、旧芸濃町、旧美里村、旧安濃町、旧香良洲町、旧一志町、旧白山町に限る。)",6,"ツシ(キュウツシ、キュウヒサイシ、キュウカワゲチョウ、キュウゲイノウチョウ、キュウミサトムラ、キュウアノウチョウ、キュウカラスチョウ、キュウイチシチョウ、キュウハクサンチョウニカギル。)"]
[24,"三重県","津市(旧美杉村に限る。)","三重県津市(旧美杉村に限る。)",5,"ツシ(キュウミスギムラニカギル。)"]
[24,"三重県","東員町","三重県東員町",6,"トウインチョウ"]
[24,"三重県","鳥羽市","三重県鳥羽市",6,"トバシ"]
[24,"三重県","名張市","三重県名張市",5,"ナバリシ"]
[24,"三重県","松阪市","三重県松阪市",6,"マツサカシ"]
[24,"三重県","南伊勢町","三重県南伊勢町",6,"ミナミイセマチ"]
[24,"三重県","御浜町","三重県御浜町",7,"ミハマチョウ"]
[24,"三重県","明和町","三重県明和町",6,"メイワチョウ"]
[24,"三重県","四日市市","三重県四日市市",6,"ヨッカイチシ"]
[24,"三重県","度会町","三重県度会町",6,"ワタライチョウ"]
[25,"滋賀県","愛荘町","滋賀県愛荘町",5,"アイショウチョウ"]
[25,"滋賀県","近江八幡市","滋賀県近江八幡市",6,"オウミハチマンシ"]
[25,"滋賀県","大津市","滋賀県大津市",5,"オオツシ"]
[25,"滋賀県","草津市",{"$f":"B1092&C1092","v":"滋賀県草津市"},6,"クサツシ"]
[25,"滋賀県","甲賀市","滋賀県甲賀市",5,"コウガシ"]
[25,"滋賀県","甲良町","滋賀県甲良町",5,"コウラチョウ"]
[25,"滋賀県","湖南市","滋賀県湖南市",5,"コナンシ"]
[25,"滋賀県","高島市","滋賀県高島市",5,"タカシマシ"]
[25,"滋賀県","多賀町","滋賀県多賀町",5,"タガチョウ"]
[25,"滋賀県","豊郷町","滋賀県豊郷町",5,"トヨサトチョウ"]
[25,"滋賀県","長浜市","滋賀県長浜市",5,"ナガハマシ"]
[25,"滋賀県","東近江市","滋賀県東近江市",5,"ヒガシオウミシ"]
[25,"滋賀県","彦根市","滋賀県彦根市",5,"ヒコネシ"]
[25,"滋賀県","日野町","滋賀県日野町",5,"ヒノチョウ"]
[25,"滋賀県","米原市","滋賀県米原市",5,"マイバラシ"]
[25,"滋賀県","守山市","滋賀県守山市",6,"モリヤマシ"]
[25,"滋賀県","野洲市","滋賀県野洲市",5,"ヤスシ"]
[25,"滋賀県","栗東市","滋賀県栗東市",5,"リットウシ"]
[25,"滋賀県","竜王町","滋賀県竜王町",5,"リュウオウチョウ"]
[26,"京都府","綾部市","京都府綾部市",5,"アヤベシ"]
[26,"京都府","井手町","京都府井手町",6,"イデチョウ"]
[26,"京都府","伊根町","京都府伊根町",6,"イネチョウ"]
[26,"京都府","宇治市","京都府宇治市",6,"ウジシ"]
[26,"京都府","宇治田原町","京都府宇治田原町",5,"ウジタワラチョウ"]
[26,"京都府","大山崎町","京都府大山崎町",6,"オオヤマザキチョウ"]
[26,"京都府","笠置町","京都府笠置町",5,"カサギチョウ"]
[26,"京都府","亀岡市","京都府亀岡市",5,"カメオカシ"]
[26,"京都府","木津川市","京都府木津川市",6,"キヅガワシ"]
[26,"京都府","京田辺市","京都府京田辺市",6,"キョウタナベシ"]
[26,"京都府","京丹後市","京都府京丹後市",5,"キョウタンゴシ"]
[26,"京都府","京丹波町","京都府京丹波町",5,"キョウタンバチョウ"]
[26,"京都府","京都市","京都府京都市",6,"キョウトシ"]
[26,"京都府","久御山町","京都府久御山町",6,"クミヤマチョウ"]
[26,"京都府","城陽市","京都府城陽市",6,"ジョウヨウシ"]
[26,"京都府","精華町","京都府精華町",6,"セイカチョウ"]
[26,"京都府","長岡京市","京都府長岡京市",6,"ナガオカキョウシ"]
[26,"京都府","南丹市","京都府南丹市",5,"ナンタンシ"]
[26,"京都府","福知山市","京都府福知山市",5,"フクチヤマシ"]
[26,"京都府","舞鶴市","京都府舞鶴市",6,"マイヅルシ"]
[26,"京都府","南山城村","京都府南山城村",5,"ミナミヤマシロムラ"]
[26,"京都府","宮津市","京都府宮津市",5,"ミヤヅシ"]
[26,"京都府","向日市","京都府向日市",6,"ムコウシ"]
[26,"京都府","八幡市","京都府八幡市",6,"ヤワタシ"]
[26,"京都府","与謝野町","京都府与謝野町",5,"ヨサノチョウ"]
[26,"京都府","和束町","京都府和束町",5,"ワヅカチョウ"]
[27,"大阪府","池田市","大阪府池田市",6,"イケダシ"]
[27,"大阪府","泉大津市","大阪府泉大津市",6,"イズミオオツシ"]
[27,"大阪府","泉佐野市","大阪府泉佐野市",6,"イズミサノシ"]
[27,"大阪府","和泉市","大阪府和泉市",6,"イズミシ"]
[27,"大阪府","茨木市","大阪府茨木市",6,"イバラキシ"]
[27,"大阪府","大阪狭山市","大阪府大阪狭山市",6,"オオサカサヤマシ"]
[27,"大阪府","大阪市","大阪府大阪市",6,"オオサカシ"]
[27,"大阪府","貝塚市","大阪府貝塚市",6,"カイヅカシ"]
[27,"大阪府","柏原市","大阪府柏原市",6,"カシワラシ"]
[27,"大阪府","交野市","大阪府交野市",6,"カタノシ"]
[27,"大阪府","門真市","大阪府門真市",6,"カドマシ"]
[27,"大阪府","河南町","大阪府河南町",6,"カナンチョウ"]
[27,"大阪府","河内長野市","大阪府河内長野市",6,"カワチナガノシ"]
[27,"大阪府","岸和田市","大阪府岸和田市",6,"キシワダシ"]
[27,"大阪府","熊取町","大阪府熊取町",6,"クマトリチョウ"]
[27,"大阪府","堺市","大阪府堺市",6,"サカイシ"]
[27,"大阪府","四條畷市","大阪府四條畷市",6,"シジョウナワテシ"]
[27,"大阪府","島本町","大阪府島本町",6,"シマモトチョウ"]
[27,"大阪府","吹田市","大阪府吹田市",6,"スイタシ"]
[27,"大阪府","摂津市","大阪府摂津市",6,"セッツシ"]
[27,"大阪府","泉南市","大阪府泉南市",6,"センナンシ"]
[27,"大阪府","太子町","大阪府太子町",6,"タイシチョウ"]
[27,"大阪府","大東市",{"$f":"B1156&C1156","v":"大阪府大東市"},6,"ダイトウシ"]
[27,"大阪府","高石市","大阪府高石市",6,"タカイシシ"]
[27,"大阪府","高槻市","大阪府高槻市",6,"タカツキシ"]
[27,"大阪府","田尻町","大阪府田尻町",6,"タジリチョウ"]
[27,"大阪府","忠岡町","大阪府忠岡町",6,"タダオカチョウ"]
[27,"大阪府","千早赤阪村","大阪府千早赤阪村",6,"チハヤアカサカムラ"]
[27,"大阪府","豊中市","大阪府豊中市",6,"トヨナカシ"]
[27,"大阪府","豊能町","大阪府豊能町",5,"トヨノチョウ"]
[27,"大阪府","富田林市","大阪府富田林市",6,"トンダバヤシシ"]
[27,"大阪府","寝屋川市","大阪府寝屋川市",6,"ネヤガワシ"]
[27,"大阪府","能勢町","大阪府能勢町",5,"ノセチョウ"]
[27,"大阪府","羽曳野市","大阪府羽曳野市",6,"ハビキノシ"]
[27,"大阪府","阪南市","大阪府阪南市",6,"ハンナンシ"]
[27,"大阪府","東大阪市","大阪府東大阪市",6,"ヒガシオオサカシ"]
[27,"大阪府","枚方市","大阪府枚方市",6,"ヒラカタシ"]
[27,"大阪府","藤井寺市","大阪府藤井寺市",6,"フジイデラシ"]
[27,"大阪府","松原市","大阪府松原市",6,"マツバラシ"]
[27,"大阪府","岬町","大阪府岬町",7,"ミサキチョウ"]
[27,"大阪府","箕面市","大阪府箕面市",6,"ミノオシ"]
[27,"大阪府","守口市","大阪府守口市",6,"モリグチシ"]
[27,"大阪府","八尾市","大阪府八尾市",6,"ヤオシ"]
[28,"兵庫県","相生市","兵庫県相生市",6,"アイオイシ"]
[28,"兵庫県","明石市","兵庫県明石市",6,"アカシシ"]
[28,"兵庫県","赤穂市","兵庫県赤穂市",6,"アコウシ"]
[28,"兵庫県","朝来市","兵庫県朝来市",5,"アサゴシ"]
[28,"兵庫県","芦屋市","兵庫県芦屋市",6,"アシヤシ"]
[28,"兵庫県","尼崎市","兵庫県尼崎市",6,"アマガサキシ"]
[28,"兵庫県","淡路市","兵庫県淡路市",6,"アワジシ"]
[28,"兵庫県","伊丹市","兵庫県伊丹市",6,"イタミシ"]
[28,"兵庫県","市川町","兵庫県市川町",5,"イチカワチョウ"]
[28,"兵庫県","猪名川町","兵庫県猪名川町",5,"イナガワチョウ"]
[28,"兵庫県","稲美町","兵庫県稲美町",6,"イナミチョウ"]
[28,"兵庫県","小野市","兵庫県小野市",6,"オノシ"]
[28,"兵庫県","加古川市","兵庫県加古川市",6,"カコガワシ"]
[28,"兵庫県","加西市","兵庫県加西市",5,"カサイシ"]
[28,"兵庫県","加東市","兵庫県加東市",5,"カトウシ"]
[28,"兵庫県","神河町","兵庫県神河町",5,"カミカワチョウ"]
[28,"兵庫県","上郡町","兵庫県上郡町",5,"カミゴオリチョウ"]
[28,"兵庫県","香美町（旧村岡町、旧美方町に限る。）","兵庫県香美町（旧村岡町、旧美方町に限る。）",4,"カミチョウ（キュウムラオカチョウ、キュウミカタチョウニカギル。）"]
[28,"兵庫県","香美町（旧村岡町、旧美方町を除く。）","兵庫県香美町（旧村岡町、旧美方町を除く。）",6,"カミチョウ（キュウムラオカチョウ、キュウミカタチョウヲノゾク。）"]
[28,"兵庫県","川西市","兵庫県川西市",6,"カワニシシ"]
[28,"兵庫県","神戸市","兵庫県神戸市",6,"コウベシ"]
[28,"兵庫県","佐用町","兵庫県佐用町",5,"サヨウチョウ"]
[28,"兵庫県","三田市","兵庫県三田市",5,"サンダシ"]
[28,"兵庫県","宍粟市","兵庫県宍粟市",5,"シソウシ"]
[28,"兵庫県","新温泉町（旧温泉町に限る。）","兵庫県新温泉町（旧温泉町に限る。）",5,"シンオンセンチョウ（キュウオンセンチョウニカギル。）"]
[28,"兵庫県","新温泉町（旧浜坂町に限る。）","兵庫県新温泉町（旧浜坂町に限る。）",6,"シンオンセンチョウ（キュウハマサカチョウニカギル。）"]
[28,"兵庫県","洲本市","兵庫県洲本市",6,"スモトシ"]
[28,"兵庫県","太子町","兵庫県太子町",6,"タイシチョウ"]
[28,"兵庫県","高砂市","兵庫県高砂市",6,"タカサゴシ"]
[28,"兵庫県","多可町","兵庫県多可町",5,"タカマチ"]
[28,"兵庫県","宝塚市","兵庫県宝塚市",6,"タカラヅカシ"]
[28,"兵庫県","たつの市","兵庫県たつの市",6,"タツノシ"]
[28,"兵庫県","丹波篠山市","兵庫県丹波篠山市",5,"タンバササヤマシ"]
[28,"兵庫県","丹波市","兵庫県丹波市",5,"タンバシ"]
[28,"兵庫県","豊岡市","兵庫県豊岡市",5,"トヨオカシ"]
[28,"兵庫県","西宮市","兵庫県西宮市",6,"ニシノミヤシ"]
[28,"兵庫県","西脇市","兵庫県西脇市",5,"ニシワキシ"]
[28,"兵庫県","播磨町","兵庫県播磨町",6,"ハリマチョウ"]
[28,"兵庫県","姫路市","兵庫県姫路市",6,"ヒメジシ"]
[28,"兵庫県","福崎町","兵庫県福崎町",6,"フクザキチョウ"]
[28,"兵庫県","三木市","兵庫県三木市",6,"ミキシ"]
[28,"兵庫県","南あわじ市","兵庫県南あわじ市",6,"ミナミアワジシ"]
[28,"兵庫県","養父市","兵庫県養父市",5,"ヤブシ"]
[29,"奈良県","明日香村",{"$f":"B1220&C1220","v":"奈良県明日香村"},6,"アスカムラ"]
[29,"奈良県","安堵町","奈良県安堵町",6,"アンドチョウ"]
[29,"奈良県","斑鳩町","奈良県斑鳩町",6,"イカルガチョウ"]
[29,"奈良県","生駒市","奈良県生駒市",5,"イコマシ"]
[29,"奈良県","宇陀市","奈良県宇陀市",5,"ウダシ"]
[29,"奈良県","王寺町","奈良県王寺町",6,"オウジチョウ"]
[29,"奈良県","大淀町","奈良県大淀町",5,"オオヨドチョウ"]
[29,"奈良県","香芝市","奈良県香芝市",6,"カシバシ"]
[29,"奈良県","橿原市","奈良県橿原市",6,"カシハラシ"]
[29,"奈良県","葛城市","奈良県葛城市",6,"カツラギシ"]
[29,"奈良県","上北山村","奈良県上北山村",5,"カミキタヤマムラ"]
[29,"奈良県","河合町","奈良県河合町",6,"カワイチョウ"]
[29,"奈良県","川上村","奈良県川上村",4,"カワウエムラ"]
[29,"奈良県","川西町","奈良県川西町",6,"カワニシマチ"]
[29,"奈良県","上牧町","奈良県上牧町",6,"カンマキチョウ"]
[29,"奈良県","黒滝村","奈良県黒滝村",4,"クロタキムラ"]
[29,"奈良県","広陵町","奈良県広陵町",6,"コウリョウチョウ"]
[29,"奈良県","五條市(旧大塔村に限る。)","奈良県五條市(旧大塔村に限る。)",4,"ゴジョウシ(キュウオオトウムラニカギル。)"]
[29,"奈良県","五條市（旧大塔村を除く。）","奈良県五條市（旧大塔村を除く。）",6,"ゴジョウシ（キュウオオトウムラヲノゾク。）"]
[29,"奈良県","御所市","奈良県御所市",6,"ゴセシ"]
[29,"奈良県","桜井市","奈良県桜井市",6,"サクライシ"]
[29,"奈良県","三郷町","奈良県三郷町",6,"サンゴウチョウ"]
[29,"奈良県","下市町","奈良県下市町",5,"シモイチチョウ"]
[29,"奈良県","下北山村","奈良県下北山村",5,"シモキタヤマムラ"]
[29,"奈良県","曽爾村","奈良県曽爾村",4,"ソニムラ"]
[29,"奈良県","高取町","奈良県高取町",6,"タカトリチョウ"]
[29,"奈良県","田原本町","奈良県田原本町",6,"タワラモトチョウ"]
[29,"奈良県","天川村","奈良県天川村",4,"テンカワムラ"]
[29,"奈良県","天理市","奈良県天理市",6,"テンリシ"]
[29,"奈良県","十津川村","奈良県十津川村",5,"トツカワムラ"]
[29,"奈良県","奈良市(旧都祁村に限る。)","奈良県奈良市(旧都祁村に限る。)",4,"ナラシ(キュウツゲムラニカギル。)"]
[29,"奈良県","奈良市（旧都祁村を除く。）","奈良県奈良市（旧都祁村を除く。）",6,"ナラシ（キュウツゲムラヲノゾク。）"]
[29,"奈良県","野迫川村","奈良県野迫川村",3,"ノセガワムラ"]
[29,"奈良県","東吉野村","奈良県東吉野村",5,"ヒガシヨシノムラ"]
[29,"奈良県","平群町","奈良県平群町",5,"ヘグリチョウ"]
[29,"奈良県","御杖村","奈良県御杖村",4,"ミツエムラ"]
[29,"奈良県","三宅町","奈良県三宅町",6,"ミヤケチョウ"]
[29,"奈良県","山添村","奈良県山添村",5,"ヤマゾエムラ"]
[29,"奈良県","大和郡山市","奈良県大和郡山市",6,"ヤマトコオリヤマシ"]
[29,"奈良県","大和高田市","奈良県大和高田市",6,"ヤマトタカダシ"]
[29,"奈良県","吉野町","奈良県吉野町",5,"ヨシノチョウ"]
[30,"和歌山県","有田川町","和歌山県有田川町",6,"アリダガワチョウ"]
[30,"和歌山県","有田市","和歌山県有田市",6,"アリダシ"]
[30,"和歌山県","印南町","和歌山県印南町",7,"イナミチョウ"]
[30,"和歌山県","岩出市","和歌山県岩出市",6,"イワデシ"]
[30,"和歌山県","海南市","和歌山県海南市",6,"カイナンシ"]
[30,"和歌山県","かつらぎ町(旧花園村に限る。)","和歌山県かつらぎ町(旧花園村に限る。)",5,"カツラギチョウ(キュウハナゾノムラニカギル。)"]
[30,"和歌山県","かつらぎ町（旧花園村を除く。）","和歌山県かつらぎ町（旧花園村を除く。）",6,"カツラギチョウ（キュウハナゾノムラヲノゾク。）"]
[30,"和歌山県","上富田町","和歌山県上富田町",6,"カミトンダチョウ"]
[30,"和歌山県","北山村","和歌山県北山村",6,"キタヤマムラ"]
[30,"和歌山県","紀の川市","和歌山県紀の川市",6,"キノカワシ"]
[30,"和歌山県","紀美野町","和歌山県紀美野町",6,"キミノチョウ"]
[30,"和歌山県","串本町","和歌山県串本町",7,"クシモトチョウ"]
[30,"和歌山県","九度山町","和歌山県九度山町",6,"クドヤマチョウ"]
[30,"和歌山県","古座川町","和歌山県古座川町",7,"コザガワチョウ"]
[30,"和歌山県","御坊市","和歌山県御坊市",7,"ゴボウシ"]
[30,"和歌山県","白浜町","和歌山県白浜町",7,"シラハマチョウ"]
[30,"和歌山県","新宮市","和歌山県新宮市",7,"シングウシ"]
[30,"和歌山県","すさみ町","和歌山県すさみ町",7,"スサミチョウ"]
[30,"和歌山県","太地町","和歌山県太地町",7,"タイジチョウ"]
[30,"和歌山県","高野町","和歌山県高野町",4,"タカノチョウ"]
[30,"和歌山県","田辺市(旧本宮町に限る。)","和歌山県田辺市(旧本宮町に限る。)",6,"タナベシ(キュウホングウチョウニカギル。)"]
[30,"和歌山県","田辺市（旧龍神村、旧本宮町を除く。）","和歌山県田辺市（旧龍神村、旧本宮町を除く。）",7,"タナベシ（キュウリュウジンムラ、キュウホングウチョウヲノゾク。）"]
[30,"和歌山県","田辺市(旧龍神村に限る。)","和歌山県田辺市(旧龍神村に限る。)",5,"タナベシ(キュウリュウジンムラニカギル。)"]
[30,"和歌山県","那智勝浦町",{"$f":"B1284&C1284","v":"和歌山県那智勝浦町"},7,"ナチカツウラチョウ"]
[30,"和歌山県","橋本市","和歌山県橋本市",6,"ハシモトシ"]
[30,"和歌山県","日高川町（旧川辺町、旧中津村に限る。）","和歌山県日高川町（旧川辺町、旧中津村に限る。）",6,"ヒダカガワチョウ（キュウカワベチョウ、キュウナカツムラニカギル。）"]
[30,"和歌山県","日高川町（旧美山村に限る。）","和歌山県日高川町（旧美山村に限る。）",5,"ヒダカガワチョウ（キュウミヤマムラニカギル。）"]
[30,"和歌山県","日高町","和歌山県日高町",6,"ヒダカチョウ"]
[30,"和歌山県","広川町","和歌山県広川町",6,"ヒロガワチョウ"]
[30,"和歌山県","みなべ町","和歌山県みなべ町",7,"ミナベチョウ"]
[30,"和歌山県","美浜町","和歌山県美浜町",7,"ミハマチョウ"]
[30,"和歌山県","湯浅町","和歌山県湯浅町",6,"ユアサチョウ"]
[30,"和歌山県","由良町","和歌山県由良町",6,"ユラチョウ"]
[30,"和歌山県","和歌山市","和歌山県和歌山市",7,"ワカヤマシ"]
[31,"鳥取県","岩美町","鳥取県岩美町",6,"イワミチョウ"]
[31,"鳥取県","北栄町","鳥取県北栄町",6,"キタエイマチ"]
[31,"鳥取県","倉吉市","鳥取県倉吉市",5,"クラヨシシ"]
[31,"鳥取県","江府町","鳥取県江府町",5,"コウフチョウ"]
[31,"鳥取県","琴浦町","鳥取県琴浦町",6,"コトウラチョウ"]
[31,"鳥取県","境港市","鳥取県境港市",6,"サカイミナトシ"]
[31,"鳥取県","大山町","鳥取県大山町",6,"ダイセンチョウ"]
[31,"鳥取県","智頭町","鳥取県智頭町",5,"チヅチョウ"]
[31,"鳥取県","鳥取市","鳥取県鳥取市",6,"トットリシ"]
[31,"鳥取県","南部町","鳥取県南部町",5,"ナンブチョウ"]
[31,"鳥取県","日南町","鳥取県日南町",4,"ニチナンチョウ"]
[31,"鳥取県","日吉津村","鳥取県日吉津村",6,"ヒエヅソン"]
[31,"鳥取県","日野町","鳥取県日野町",4,"ヒノチョウ"]
[31,"鳥取県","伯耆町","鳥取県伯耆町",6,"ホウキチョウ"]
[31,"鳥取県","三朝町","鳥取県三朝町",5,"ミササチョウ"]
[31,"鳥取県","八頭町","鳥取県八頭町",5,"ヤズチョウ"]
[31,"鳥取県","湯梨浜町","鳥取県湯梨浜町",6,"ユリハマチョウ"]
[31,"鳥取県","米子市","鳥取県米子市",6,"ヨナゴシ"]
[31,"鳥取県","若桜町","鳥取県若桜町",4,"ワカサチョウ"]
[32,"島根県","海士町","島根県海士町",6,"アマチョウ"]
[32,"島根県","飯南町","島根県飯南町",4,"イイナンチョウ"]
[32,"島根県","出雲市","島根県出雲市",6,"イズモシ"]
[32,"島根県","雲南市","島根県雲南市",5,"ウンナンシ"]
[32,"島根県","大田市","島根県大田市",6,"オオダシ"]
[32,"島根県","邑南町","島根県邑南町",5,"オオナンチョウ"]
[32,"島根県","隠岐の島町","島根県隠岐の島町",6,"オキノシマチョウ"]
[32,"島根県","奥出雲町","島根県奥出雲町",5,"オクイズモチョウ"]
[32,"島根県","川本町","島根県川本町",5,"カワモトマチ"]
[32,"島根県","江津市","島根県江津市",6,"ゴウツシ"]
[32,"島根県","知夫村","島根県知夫村",6,"チブムラ"]
[32,"島根県","津和野町","島根県津和野町",5,"ツワノチョウ"]
[32,"島根県","西ノ島町","島根県西ノ島町",6,"ニシノシマチョウ"]
[32,"島根県","浜田市","島根県浜田市",6,"ハマダシ"]
[32,"島根県","益田市（旧益田市に限る。）","島根県益田市（旧益田市に限る。）",6,"マスダシ（キュウマスダシニカギル。）"]
[32,"島根県","益田市(旧美都町、旧匹見町に限る。)","島根県益田市(旧美都町、旧匹見町に限る。)",5,"マスダシ(キュウミトチョウ、キュウヒキミチョウニカギル。)"]
[32,"島根県","松江市","島根県松江市",6,"マツエシ"]
[32,"島根県","美郷町","島根県美郷町",5,"ミサトマチ"]
[32,"島根県","安来市","島根県安来市",6,"ヤスギシ"]
[32,"島根県","吉賀町","島根県吉賀町",4,"ヨシカチョウ"]
[33,"岡山県","赤磐市","岡山県赤磐市",6,"アカイワシ"]
[33,"岡山県","浅口市","岡山県浅口市",6,"アサクチシ"]
[33,"岡山県","井原市","岡山県井原市",6,"イバラシ"]
[33,"岡山県","岡山市","岡山県岡山市",6,"オカヤマシ"]
[33,"岡山県","鏡野町","岡山県鏡野町",5,"カガミノチョウ"]
[33,"岡山県","笠岡市","岡山県笠岡市",6,"カサオカシ"]
[33,"岡山県","吉備中央町","岡山県吉備中央町",4,"キビチュウオウチョウ"]
[33,"岡山県","久米南町","岡山県久米南町",5,"クメナンチョウ"]
[33,"岡山県","倉敷市","岡山県倉敷市",6,"クラシキシ"]
[33,"岡山県","里庄町","岡山県里庄町",6,"サトショウチョウ"]
[33,"岡山県","勝央町","岡山県勝央町",5,"ショウオウチョウ"]
[33,"岡山県","新庄村","岡山県新庄村",4,"シンジョウムラ"]
[33,"岡山県","瀬戸内市","岡山県瀬戸内市",6,"セトウチシ"]
[33,"岡山県","総社市","岡山県総社市",6,"ソウジャシ"]
[33,"岡山県","高梁市",{"$f":"B1348&C1348","v":"岡山県高梁市"},5,"タカハシシ"]
[33,"岡山県","玉野市","岡山県玉野市",6,"タマノシ"]
[33,"岡山県","津山市(旧阿波村に限る。)","岡山県津山市(旧阿波村に限る。)",4,"ツヤマシ(キュウアワムラニカギル。)"]
[33,"岡山県","津山市(旧津山市、旧加茂町、旧勝北町、旧久米町に限る。)","岡山県津山市(旧津山市、旧加茂町、旧勝北町、旧久米町に限る。)",5,"ツヤマシ(キュウツヤマシ、キュウカモチョウ、キュウショウボクチョウ、キュウクメチョウニカギル。)"]
[33,"岡山県","奈義町","岡山県奈義町",5,"ナギチョウ"]
[33,"岡山県","新見市","岡山県新見市",5,"ニイミシ"]
[33,"岡山県","西粟倉村","岡山県西粟倉村",4,"ニシアワクラソン"]
[33,"岡山県","早島町","岡山県早島町",6,"ハヤシマチョウ"]
[33,"岡山県","備前市","岡山県備前市",5,"ビゼンシ"]
[33,"岡山県","真庭市(旧北房町、旧勝山町、旧落合町、旧久世町に限る。)","岡山県真庭市(旧北房町、旧勝山町、旧落合町、旧久世町に限る。)",5,"マニワシ(キュウホクボウチョウ、キュウカツヤママチ、キュウオチアイチョウ、キュウクセチョウニカギル。)"]
[33,"岡山県","真庭市(旧湯原町、旧美甘村、旧川上村、旧八束村、旧中和村に限る。)","岡山県真庭市(旧湯原町、旧美甘村、旧川上村、旧八束村、旧中和村に限る。)",4,"マニワシ(キュウユバラチョウ、キュウミカモソン、キュウカワカミムラ、キュウヤツカムラ、キュウチュウワムラニカギル。)"]
[33,"岡山県","美咲町","岡山県美咲町",5,"ミサキチョウ"]
[33,"岡山県","美作市","岡山県美作市",5,"ミマサカシ"]
[33,"岡山県","矢掛町","岡山県矢掛町",6,"ヤカゲチョウ"]
[33,"岡山県","和気町","岡山県和気町",5,"ワケチョウ"]
[34,"広島県","安芸太田町","広島県安芸太田町",4,"アキオオタチョウ"]
[34,"広島県","安芸高田市","広島県安芸高田市",5,"アキタカタシ"]
[34,"広島県","江田島市","広島県江田島市",6,"エタジマシ"]
[34,"広島県","大崎上島町","広島県大崎上島町",6,"オオサキカミジマチョウ"]
[34,"広島県","大竹市","広島県大竹市",6,"オオタケシ"]
[34,"広島県","尾道市","広島県尾道市",6,"オノミチシ"]
[34,"広島県","海田町","広島県海田町",6,"カイタチョウ"]
[34,"広島県","北広島町","広島県北広島町",5,"キタヒロシマチョウ"]
[34,"広島県","熊野町","広島県熊野町",5,"クマノチョウ"]
[34,"広島県","呉市","広島県呉市",6,"クレシ"]
[34,"広島県","坂町","広島県坂町",6,"サカチョウ"]
[34,"広島県","庄原市（旧庄原市に限る。）","広島県庄原市（旧庄原市に限る。）",5,"ショウバラシ（キュウショウバラシニカギル。）"]
[34,"広島県","庄原市（旧総領町、旧西城町、旧東城町、旧口和町、旧高野町、旧比和町に限る。）","広島県庄原市（旧総領町、旧西城町、旧東城町、旧口和町、旧高野町、旧比和町に限る。）",4,"ショウバラシ（キュウソウリョウチョウ、キュウサイジョウチョウ、キュウトウジョウチョウ、キュウクチワチョウ、キュウタカノチョウ、キュウヒワチョウニカギル。）"]
[34,"広島県","神石高原町","広島県神石高原町",4,"ジンセキコウゲンチョウ"]
[34,"広島県","世羅町","広島県世羅町",4,"セラチョウ"]
[34,"広島県","竹原市","広島県竹原市",6,"タケハラシ"]
[34,"広島県","廿日市市（旧佐伯町、旧吉和村を除く。）","広島県廿日市市（旧佐伯町、旧吉和村を除く。）",6,"ハツカイチシ（キュウサイキチョウ、キュウヨシワムラヲノゾク。）"]
[34,"広島県","廿日市市（旧佐伯町に限る。）","広島県廿日市市（旧佐伯町に限る。）",5,"ハツカイチシ（キュウサイキチョウニカギル。）"]
[34,"広島県","廿日市市（旧吉和村に限る。）","広島県廿日市市（旧吉和村に限る。）",3,"ハツカイチシ（キュウヨシワムラニカギル。）"]
[34,"広島県","東広島市","広島県東広島市",5,"ヒガシヒロシマシ"]
[34,"広島県","広島市","広島県広島市",6,"ヒロシマシ"]
[34,"広島県","福山市","広島県福山市",6,"フクヤマシ"]
[34,"広島県","府中市","広島県府中市",5,"フチュウシ"]
[34,"広島県","府中町","広島県府中町",6,"フチュウチョウ"]
[34,"広島県","三原市","広島県三原市",6,"ミハラシ"]
[34,"広島県","三次市","広島県三次市",5,"ミヨシシ"]
[35,"山口県","阿武町","山口県阿武町",6,"アブチョウ"]
[35,"山口県","岩国市","山口県岩国市",6,"イワクニシ"]
[35,"山口県","宇部市","山口県宇部市",6,"ウベシ"]
[35,"山口県","上関町","山口県上関町",6,"カミノセキチョウ"]
[35,"山口県","下松市","山口県下松市",6,"クダマツシ"]
[35,"山口県","山陽小野田市","山口県山陽小野田市",6,"サンヨウオノダシ"]
[35,"山口県","下関市(旧豊田町に限る。)","山口県下関市(旧豊田町に限る。)",5,"シモノセキシ(キュウトヨタチョウニカギル。)"]
[35,"山口県","下関市（旧豊田町を除く。）","山口県下関市（旧豊田町を除く。）",7,"シモノセキシ（キュウトヨタチョウヲノゾク。）"]
[35,"山口県","周南市","山口県周南市",6,"シュウナンシ"]
[35,"山口県","周防大島町","山口県周防大島町",6,"スオウオオシマチョウ"]
[35,"山口県","田布施町","山口県田布施町",6,"タブセチョウ"]
[35,"山口県","長門市","山口県長門市",6,"ナガトシ"]
[35,"山口県","萩市(旧萩市、旧川上村、旧田万川町、旧須佐町、旧旭村に限る。)","山口県萩市(旧萩市、旧川上村、旧田万川町、旧須佐町、旧旭村に限る。)",6,"ハギシ(キュウハギシ、キュウカワカミムラ、キュウタマガワチョウ、キュウスサチョウ、キュウアサヒムラニカギル。)"]
[35,"山口県","萩市(旧むつみ村、旧福栄村に限る。)","山口県萩市(旧むつみ村、旧福栄村に限る。)",5,"ハギシ(キュウムツミソン、キュウフクエソンニカギル。)"]
[35,"山口県","光市","山口県光市",6,"ヒカリシ"]
[35,"山口県","平生町","山口県平生町",6,"ヒラオチョウ"]
[35,"山口県","防府市","山口県防府市",6,"ホウフシ"]
[35,"山口県","美祢市","山口県美祢市",5,"ミネシ"]
[35,"山口県","柳井市","山口県柳井市",6,"ヤナイシ"]
[35,"山口県","山口市","山口県山口市",6,"ヤマグチシ"]
[35,"山口県","和木町","山口県和木町",6,"ワキチョウ"]
[36,"徳島県","藍住町","徳島県藍住町",6,"アイズミチョウ"]
[36,"徳島県","阿南市","徳島県阿南市",7,"アナンシ"]
[36,"徳島県","阿波市",{"$f":"B1412&C1412","v":"徳島県阿波市"},6,"アワシ"]
[36,"徳島県","石井町","徳島県石井町",6,"イシイチョウ"]
[36,"徳島県","板野町","徳島県板野町",6,"イタノチョウ"]
[36,"徳島県","海陽町","徳島県海陽町",7,"カイヨウチョウ"]
[36,"徳島県","勝浦町","徳島県勝浦町",6,"カツウラチョウ"]
[36,"徳島県","上板町","徳島県上板町",6,"カミイタチョウ"]
[36,"徳島県","上勝町","徳島県上勝町",5,"カミカツチョウ"]
[36,"徳島県","神山町","徳島県神山町",6,"カミヤマチョウ"]
[36,"徳島県","北島町","徳島県北島町",6,"キタジマチョウ"]
[36,"徳島県","小松島市","徳島県小松島市",7,"コマツシマシ"]
[36,"徳島県","佐那河内村","徳島県佐那河内村",6,"サナゴウチソン"]
[36,"徳島県","つるぎ町","徳島県つるぎ町",6,"ツルギチョウ"]
[36,"徳島県","徳島市","徳島県徳島市",6,"トクシマシ"]
[36,"徳島県","那賀町","徳島県那賀町",6,"ナガチョウ"]
[36,"徳島県","鳴門市","徳島県鳴門市",6,"ナルトシ"]
[36,"徳島県","東みよし町","徳島県東みよし町",6,"ヒガシミヨシチョウ"]
[36,"徳島県","松茂町","徳島県松茂町",6,"マツシゲチョウ"]
[36,"徳島県","美波町","徳島県美波町",7,"ミナミチョウ"]
[36,"徳島県","美馬市","徳島県美馬市",6,"ミマシ"]
[36,"徳島県","三好市","徳島県三好市",5,"ミヨシシ"]
[36,"徳島県","牟岐町","徳島県牟岐町",6,"ムギチョウ"]
[36,"徳島県","吉野川市","徳島県吉野川市",6,"ヨシノガワシ"]
[37,"香川県","全ての市町　","香川県全ての市町　",6,"スベテノシチョウ　"]
[38,"愛媛県","愛南町","愛媛県愛南町",7,"アイナンチョウ"]
[38,"愛媛県","伊方町","愛媛県伊方町",6,"イカタチョウ"]
[38,"愛媛県","今治市","愛媛県今治市",6,"イマバリシ"]
[38,"愛媛県","伊予市","愛媛県伊予市",6,"イヨシ"]
[38,"愛媛県","内子町（旧内子町、旧五十崎町に限る。）","愛媛県内子町（旧内子町、旧五十崎町に限る。）",6,"ウチコチョウ（キュウウチコチョウ、キュウイカザキチョウニカギル。）"]
[38,"愛媛県","内子町（旧小田町に限る。）","愛媛県内子町（旧小田町に限る。）",5,"ウチコチョウ（キュウオダチョウニカギル。）"]
[38,"愛媛県","宇和島市","愛媛県宇和島市",7,"ウワジマシ"]
[38,"愛媛県","大洲市(旧大洲市、旧長浜町に限る。)","愛媛県大洲市(旧大洲市、旧長浜町に限る。)",6,"オオズシ(キュウオオズシ、キュウナガハマチョウニカギル。)"]
[38,"愛媛県","大洲市(旧肱川町、旧河辺村に限る。)","愛媛県大洲市(旧肱川町、旧河辺村に限る。)",5,"オオズシ(キュウヒジカワチョウ、キュウカワベムラニカギル。)"]
[38,"愛媛県","上島町","愛媛県上島町",6,"カミジマチョウ"]
[38,"愛媛県","鬼北町","愛媛県鬼北町",6,"キホクチョウ"]
[38,"愛媛県","久万高原町","愛媛県久万高原町",4,"クマコウゲンチョウ"]
[38,"愛媛県","西条市","愛媛県西条市",6,"サイジョウシ"]
[38,"愛媛県","四国中央市","愛媛県四国中央市",6,"シコクチュウオウシ"]
[38,"愛媛県","西予市","愛媛県西予市",6,"セイヨシ"]
[38,"愛媛県","東温市","愛媛県東温市",6,"トウオンシ"]
[38,"愛媛県","砥部町","愛媛県砥部町",6,"トベチョウ"]
[38,"愛媛県","新居浜市（旧新居浜市に限る。）","愛媛県新居浜市（旧新居浜市に限る。）",7,"ニイハマシ（キュウニイハマシニカギル。）"]
[38,"愛媛県","新居浜市（旧別子山村に限る。）","愛媛県新居浜市（旧別子山村に限る。）",4,"ニイハマシ（キュウベッシヤマムラニカギル。）"]
[38,"愛媛県","松野町","愛媛県松野町",6,"マツノチョウ"]
[38,"愛媛県","松前町","愛媛県松前町",7,"マツマエチョウ"]
[38,"愛媛県","松山市","愛媛県松山市",7,"マツヤマシ"]
[38,"愛媛県","八幡浜市","愛媛県八幡浜市",6,"ヤワタハマシ"]
[39,"高知県","安芸市","高知県安芸市",7,"アキシ"]
[39,"高知県","いの町（旧伊野町に限る。）","高知県いの町（旧伊野町に限る。）",6,"イノチョウ（キュウイノチョウニカギル。）"]
[39,"高知県","いの町(旧吾北村に限る。)","高知県いの町(旧吾北村に限る。)",5,"イノチョウ(キュウゴホクソンニカギル。)"]
[39,"高知県","いの町(旧本川村に限る。)","高知県いの町(旧本川村に限る。)",4,"イノチョウ(キュウモトカワムラニカギル。)"]
[39,"高知県","馬路村","高知県馬路村",6,"ウマジムラ"]
[39,"高知県","大川村","高知県大川村",5,"オオカワムラ"]
[39,"高知県","大月町","高知県大月町",7,"オオツキチョウ"]
[39,"高知県","大豊町","高知県大豊町",5,"オオトヨチョウ"]
[39,"高知県","越知町","高知県越知町",6,"オチチョウ"]
[39,"高知県","香美市","高知県香美市",6,"カミシ"]
[39,"高知県","北川村","高知県北川村",7,"キタカワムラ"]
[39,"高知県","黒潮町","高知県黒潮町",6,"クロシオチョウ"]
[39,"高知県","芸西村","高知県芸西村",7,"ゲイセイムラ"]
[39,"高知県","高知市","高知県高知市",7,"コウチシ"]
[39,"高知県","香南市","高知県香南市",7,"コウナンシ"]
[39,"高知県","佐川町","高知県佐川町",6,"サカワチョウ"]
[39,"高知県","四万十市","高知県四万十市",7,"シマントシ"]
[39,"高知県","宿毛市","高知県宿毛市",7,"スクモシ"]
[39,"高知県","須崎市",{"$f":"B1476&C1476","v":"高知県須崎市"},7,"スサキシ"]
[39,"高知県","田野町","高知県田野町",7,"タノチョウ"]
[39,"高知県","津野町","高知県津野町",6,"ツノマチ"]
[39,"高知県","東洋町","高知県東洋町",7,"トウヨウチョウ"]
[39,"高知県","土佐市","高知県土佐市",7,"トサシ"]
[39,"高知県","土佐清水市","高知県土佐清水市",7,"トサシミズシ"]
[39,"高知県","土佐町","高知県土佐町",5,"トサチョウ"]
[39,"高知県","中土佐町","高知県中土佐町",7,"ナカトサチョウ"]
[39,"高知県","奈半利町","高知県奈半利町",7,"ナハリチョウ"]
[39,"高知県","南国市","高知県南国市",7,"ナンコクシ"]
[39,"高知県","仁淀川町","高知県仁淀川町",5,"ニヨドガワチョウ"]
[39,"高知県","日高村","高知県日高村",6,"ヒタカムラ"]
[39,"高知県","三原村","高知県三原村",6,"ミハラムラ"]
[39,"高知県","室戸市","高知県室戸市",7,"ムロトシ"]
[39,"高知県","本山町","高知県本山町",5,"モトヤマチョウ"]
[39,"高知県","安田町","高知県安田町",7,"ヤスダチョウ"]
[39,"高知県","梼原町","高知県梼原町",4,"ユスハラチョウ"]
[39,"高知県","四万十町","高知県四万十町",6,"ヨンマンジュウチョウ"]
[40,"福岡県","赤村","福岡県赤村",6,"アカムラ"]
[40,"福岡県","朝倉市","福岡県朝倉市",6,"アサクラシ"]
[40,"福岡県","芦屋町","福岡県芦屋町",7,"アシヤマチ"]
[40,"福岡県","飯塚市","福岡県飯塚市",6,"イイヅカシ"]
[40,"福岡県","糸島市","福岡県糸島市",6,"イトシマシ"]
[40,"福岡県","糸田町","福岡県糸田町",6,"イトダマチ"]
[40,"福岡県","うきは市","福岡県うきは市",6,"ウキハシ"]
[40,"福岡県","宇美町","福岡県宇美町",6,"ウミマチ"]
[40,"福岡県","大川市","福岡県大川市",6,"オオカワシ"]
[40,"福岡県","大任町","福岡県大任町",6,"オオトウマチ"]
[40,"福岡県","大野城市","福岡県大野城市",6,"オオノジョウシ"]
[40,"福岡県","大牟田市","福岡県大牟田市",6,"オオムタシ"]
[40,"福岡県","岡垣町","福岡県岡垣町",6,"オカガキマチ"]
[40,"福岡県","小郡市","福岡県小郡市",6,"オゴオリシ"]
[40,"福岡県","遠賀町","福岡県遠賀町",6,"オンガチョウ"]
[40,"福岡県","春日市","福岡県春日市",6,"カスガシ"]
[40,"福岡県","粕屋町","福岡県粕屋町",7,"カスヤマチ"]
[40,"福岡県","嘉麻市","福岡県嘉麻市",6,"カマシ"]
[40,"福岡県","川崎町","福岡県川崎町",6,"カワサキマチ"]
[40,"福岡県","苅田町","福岡県苅田町",6,"カンダマチ"]
[40,"福岡県","北九州市","福岡県北九州市",6,"キタキュウシュウシ"]
[40,"福岡県","鞍手町","福岡県鞍手町",6,"クラテマチ"]
[40,"福岡県","久留米市","福岡県久留米市",6,"クルメシ"]
[40,"福岡県","桂川町","福岡県桂川町",6,"ケイセンマチ"]
[40,"福岡県","古賀市","福岡県古賀市",6,"コガシ"]
[40,"福岡県","小竹町","福岡県小竹町",6,"コタケマチ"]
[40,"福岡県","篠栗町","福岡県篠栗町",6,"ササグリマチ"]
[40,"福岡県","志免町","福岡県志免町",7,"シメマチ"]
[40,"福岡県","上毛町","福岡県上毛町",6,"ジョウモウマチ"]
[40,"福岡県","新宮町","福岡県新宮町",7,"シングウチョウ"]
[40,"福岡県","須恵町","福岡県須恵町",6,"スエマチ"]
[40,"福岡県","添田町","福岡県添田町",6,"ソエダマチ"]
[40,"福岡県","大木町","福岡県大木町",6,"ダイギチョウ"]
[40,"福岡県","田川市","福岡県田川市",6,"タガワシ"]
[40,"福岡県","太宰府市","福岡県太宰府市",6,"ダザイフシ"]
[40,"福岡県","大刀洗町","福岡県大刀洗町",6,"タチアライマチ"]
[40,"福岡県","筑後市","福岡県筑後市",6,"チクゴシ"]
[40,"福岡県","筑紫野市","福岡県筑紫野市",6,"チクシノシ"]
[40,"福岡県","築上町","福岡県築上町",6,"チクジョウチョウ"]
[40,"福岡県","筑前町","福岡県筑前町",6,"チクゼンマチ"]
[40,"福岡県","東峰村","福岡県東峰村",5,"トウホウムラ"]
[40,"福岡県","那珂川市","福岡県那珂川市",6,"ナカガワシ"]
[40,"福岡県","中間市","福岡県中間市",6,"ナカマシ"]
[40,"福岡県","直方市","福岡県直方市",6,"ノオガタシ"]
[40,"福岡県","久山町","福岡県久山町",6,"ヒサヤママチ"]
[40,"福岡県","広川町","福岡県広川町",6,"ヒロガワチョウ"]
[40,"福岡県","福岡市",{"$f":"B1540&C1540","v":"福岡県福岡市"},7,"フクオカシ"]
[40,"福岡県","福智町","福岡県福智町",6,"フクチマチ"]
[40,"福岡県","福津市","福岡県福津市",6,"フクツシ"]
[40,"福岡県","豊前市","福岡県豊前市",6,"ブゼンシ"]
[40,"福岡県","水巻町","福岡県水巻町",6,"ミズマキマチ"]
[40,"福岡県","みやこ町","福岡県みやこ町",6,"ミヤコマチ"]
[40,"福岡県","みやま市","福岡県みやま市",6,"ミヤマシ"]
[40,"福岡県","宮若市","福岡県宮若市",6,"ミヤワカシ"]
[40,"福岡県","宗像市","福岡県宗像市",6,"ムナカタシ"]
[40,"福岡県","柳川市","福岡県柳川市",6,"ヤナガワシ"]
[40,"福岡県","八女市","福岡県八女市",6,"ヤメシ"]
[40,"福岡県","行橋市","福岡県行橋市",6,"ユクハシシ"]
[40,"福岡県","吉富町","福岡県吉富町",6,"ヨシトミマチ"]
[41,"佐賀県","全ての市町　","佐賀県全ての市町　",6,"スベテノシチョウ　"]
[42,"長崎県","壱岐市","長崎県壱岐市",7,"イキシ"]
[42,"長崎県","諫早市","長崎県諫早市",7,"イサハヤシ"]
[42,"長崎県","雲仙市（旧小浜町に限る。）","長崎県雲仙市（旧小浜町に限る。）",6,"ウンゼンシ（キュウオバマチョウニカギル。）"]
[42,"長崎県","雲仙市（旧小浜町を除く。）","長崎県雲仙市（旧小浜町を除く。）",7,"ウンゼンシ（キュウオバマチョウヲノゾク。）"]
[42,"長崎県","大村市","長崎県大村市",7,"オオムラシ"]
[42,"長崎県","小値賀町","長崎県小値賀町",7,"オヂカチョウ"]
[42,"長崎県","川棚町","長崎県川棚町",6,"カワタナチョウ"]
[42,"長崎県","五島市","長崎県五島市",7,"ゴトウシ"]
[42,"長崎県","佐々町","長崎県佐々町",6,"サザチョウ"]
[42,"長崎県","佐世保市","長崎県佐世保市",6,"サセボシ"]
[42,"長崎県","島原市","長崎県島原市",7,"シマバラシ"]
[42,"長崎県","新上五島町","長崎県新上五島町",7,"シンカミゴトウチョウ"]
[42,"長崎県","対馬市","長崎県対馬市",6,"ツシマシ"]
[42,"長崎県","時津町","長崎県時津町",7,"トギツチョウ"]
[42,"長崎県","長崎市","長崎県長崎市",7,"ナガサキシ"]
[42,"長崎県","長与町","長崎県長与町",7,"ナガヨチョウ"]
[42,"長崎県","西海市","長崎県西海市",7,"ニシウミシ"]
[42,"長崎県","波佐見町","長崎県波佐見町",6,"ハサミチョウ"]
[42,"長崎県","東彼杵町","長崎県東彼杵町",6,"ヒガシソノギチョウ"]
[42,"長崎県","平戸市","長崎県平戸市",7,"ヒラドシ"]
[42,"長崎県","松浦市","長崎県松浦市",6,"マツウラシ"]
[42,"長崎県","南島原市","長崎県南島原市",7,"ミナミシマバラシ"]
[43,"熊本県","あさぎり町","熊本県あさぎり町",6,"アサギリチョウ"]
[43,"熊本県","芦北町","熊本県芦北町",7,"アシキタマチ"]
[43,"熊本県","阿蘇市","熊本県阿蘇市",5,"アソシ"]
[43,"熊本県","天草市","熊本県天草市",7,"アマクサシ"]
[43,"熊本県","荒尾市","熊本県荒尾市",6,"アラオシ"]
[43,"熊本県","五木村","熊本県五木村",5,"イツキムラ"]
[43,"熊本県","宇城市","熊本県宇城市",7,"ウキシ"]
[43,"熊本県","宇土市","熊本県宇土市",7,"ウトシ"]
[43,"熊本県","産山村","熊本県産山村",5,"ウブヤマムラ"]
[43,"熊本県","大津町","熊本県大津町",6,"オオツチョウ"]
[43,"熊本県","小国町","熊本県小国町",5,"オグニマチ"]
[43,"熊本県","嘉島町","熊本県嘉島町",7,"カシママチ"]
[43,"熊本県","和水町","熊本県和水町",6,"カズミズマチ"]
[43,"熊本県","上天草市","熊本県上天草市",7,"カミアマクサシ"]
[43,"熊本県","菊池市","熊本県菊池市",6,"キクチシ"]
[43,"熊本県","菊陽町","熊本県菊陽町",6,"キクヨウマチ"]
[43,"熊本県","玉東町","熊本県玉東町",6,"ギョクトウマチ"]
[43,"熊本県","球磨村","熊本県球磨村",6,"クマムラ"]
[43,"熊本県","熊本市","熊本県熊本市",7,"クマモトシ"]
[43,"熊本県","甲佐町","熊本県甲佐町",6,"コウサマチ"]
[43,"熊本県","合志市","熊本県合志市",6,"コウシシ"]
[43,"熊本県","相良村","熊本県相良村",6,"サガラムラ"]
[43,"熊本県","高森町","熊本県高森町",5,"タカモリマチ"]
[43,"熊本県","玉名市","熊本県玉名市",6,"タマナシ"]
[43,"熊本県","多良木町","熊本県多良木町",6,"タラギマチ"]
[43,"熊本県","津奈木町","熊本県津奈木町",7,"ツナギマチ"]
[43,"熊本県","長洲町","熊本県長洲町",7,"ナガスマチ"]
[43,"熊本県","南関町","熊本県南関町",6,"ナンカンマチ"]
[43,"熊本県","錦町",{"$f":"B1604&C1604","v":"熊本県錦町"},6,"ニシキチョウ"]
[43,"熊本県","西原村","熊本県西原村",6,"ニシハラムラ"]
[43,"熊本県","氷川町","熊本県氷川町",7,"ヒカワチョウ"]
[43,"熊本県","人吉市","熊本県人吉市",6,"ヒトヨシシ"]
[43,"熊本県","益城町","熊本県益城町",6,"マシキマチ"]
[43,"熊本県","美里町","熊本県美里町",6,"ミサトマチ"]
[43,"熊本県","水上村","熊本県水上村",5,"ミズカミムラ"]
[43,"熊本県","水俣市","熊本県水俣市",7,"ミナマタシ"]
[43,"熊本県","南阿蘇村","熊本県南阿蘇村",5,"ミナミアソムラ"]
[43,"熊本県","南小国町","熊本県南小国町",5,"ミナミオグニマチ"]
[43,"熊本県","御船町","熊本県御船町",6,"ミフネマチ"]
[43,"熊本県","八代市（旧泉村に限る。）","熊本県八代市（旧泉村に限る。）",5,"ヤツシロシ（キュウイズミムラニカギル。）"]
[43,"熊本県","八代市(旧坂本村、旧東陽村に限る。)","熊本県八代市(旧坂本村、旧東陽村に限る。)",6,"ヤツシロシ(キュウサカモトムラ、キュウトウヨウムラニカギル。)"]
[43,"熊本県","八代市(旧八代市、旧千丁町、旧鏡町に限る。)","熊本県八代市(旧八代市、旧千丁町、旧鏡町に限る。)",7,"ヤツシロシ(キュウヤツシロシ、キュウセンチョウマチ、キュウカガミチョウニカギル。)"]
[43,"熊本県","山江村","熊本県山江村",6,"ヤマエムラ"]
[43,"熊本県","山鹿市","熊本県山鹿市",6,"ヤマガシ"]
[43,"熊本県","山都町","熊本県山都町",5,"ヤマトマチ"]
[43,"熊本県","湯前町","熊本県湯前町",6,"ユノマエマチ"]
[43,"熊本県","苓北町","熊本県苓北町",7,"レイホクマチ"]
[44,"大分県","宇佐市","大分県宇佐市",6,"ウサシ"]
[44,"大分県","臼杵市","大分県臼杵市",6,"ウスキシ"]
[44,"大分県","大分市（旧野津原町に限る。）","大分県大分市（旧野津原町に限る。）",6,"オオイタシ（キュウノツハルマチニカギル。）"]
[44,"大分県","大分市（旧野津原町を除く。）","大分県大分市（旧野津原町を除く。）",7,"オオイタシ（キュウノツハルマチヲノゾク。）"]
[44,"大分県","杵築市","大分県杵築市",6,"キツキシ"]
[44,"大分県","玖珠町","大分県玖珠町",5,"クスマチ"]
[44,"大分県","国東市","大分県国東市",6,"クニサキシ"]
[44,"大分県","九重町","大分県九重町",5,"ココノエマチ"]
[44,"大分県","佐伯市(旧宇目町に限る。)","大分県佐伯市(旧宇目町に限る。)",5,"サイキシ(キュウウメマチニカギル。)"]
[44,"大分県","佐伯市（旧宇目町を除く。）","大分県佐伯市（旧宇目町を除く。）",7,"サイキシ（キュウウメマチヲノゾク。）"]
[44,"大分県","竹田市","大分県竹田市",6,"タケタシ"]
[44,"大分県","津久見市","大分県津久見市",6,"ツクミシ"]
[44,"大分県","中津市","大分県中津市",6,"ナカツシ"]
[44,"大分県","日出町","大分県日出町",6,"ヒジマチ"]
[44,"大分県","日田市","大分県日田市",6,"ヒタシ"]
[44,"大分県","姫島村","大分県姫島村",6,"ヒメシマムラ"]
[44,"大分県","豊後大野市","大分県豊後大野市",6,"ブンゴオオノシ"]
[44,"大分県","豊後高田市","大分県豊後高田市",6,"ブンゴタカダシ"]
[44,"大分県","別府市","大分県別府市",6,"ベップシ"]
[44,"大分県","由布市(旧挾間町、旧庄内町に限る。)","大分県由布市(旧挾間町、旧庄内町に限る。)",6,"ユフシ(キュウハサママチ、キュウショウナイマチニカギル。)"]
[44,"大分県","由布市（旧湯布院町に限る。)","大分県由布市（旧湯布院町に限る。)",5,"ユフシ（キュウユフインチョウニカギル。)"]
[45,"宮崎県","綾町","宮崎県綾町",7,"アヤチョウ"]
[45,"宮崎県","えびの市","宮崎県えびの市",6,"エビノシ"]
[45,"宮崎県","門川町","宮崎県門川町",7,"カドガワチョウ"]
[45,"宮崎県","川南町","宮崎県川南町",7,"カワミナミチョウ"]
[45,"宮崎県","木城町","宮崎県木城町",7,"キジョウチョウ"]
[45,"宮崎県","串間市","宮崎県串間市",7,"クシマシ"]
[45,"宮崎県","国富町","宮崎県国富町",7,"クニトミチョウ"]
[45,"宮崎県","五ヶ瀬町","宮崎県五ヶ瀬町",5,"ゴカセチョウ"]
[45,"宮崎県","小林市","宮崎県小林市",6,"コバヤシシ"]
[45,"宮崎県","西都市","宮崎県西都市",7,"サイトシ"]
[45,"宮崎県","椎葉村","宮崎県椎葉村",5,"シイバソン"]
[45,"宮崎県","新富町","宮崎県新富町",7,"シントミチョウ"]
[45,"宮崎県","高千穂町","宮崎県高千穂町",6,"タカチホチョウ"]
[45,"宮崎県","高鍋町","宮崎県高鍋町",7,"タカナベチョウ"]
[45,"宮崎県","高原町","宮崎県高原町",6,"タカハルチョウ"]
[45,"宮崎県","都農町","宮崎県都農町",7,"ツノチョウ"]
[45,"宮崎県","西米良村","宮崎県西米良村",6,"ニシメラソン"]
[45,"宮崎県","日南市","宮崎県日南市",7,"ニチナンシ"]
[45,"宮崎県","延岡市","宮崎県延岡市",7,"ノベオカシ"]
[45,"宮崎県","日之影町","宮崎県日之影町",6,"ヒノカゲチョウ"]
[45,"宮崎県","日向市","宮崎県日向市",7,"ヒュウガシ"]
[45,"宮崎県","美郷町","宮崎県美郷町",6,"ミサトマチ"]
[45,"宮崎県","三股町","宮崎県三股町",7,"ミマタチョウ"]
[45,"宮崎県","都城市","宮崎県都城市",7,"ミヤコノジョウシ"]
[45,"宮崎県","宮崎市",{"$f":"B1668&C1668","v":"宮崎県宮崎市"},7,"ミヤザキシ"]
[45,"宮崎県","諸塚村","宮崎県諸塚村",6,"モロツカソン"]
[46,"鹿児島県","姶良市","鹿児島県姶良市",7,"アイラシ"]
[46,"鹿児島県","阿久根市","鹿児島県阿久根市",7,"アクネシ"]
[46,"鹿児島県","天城町","鹿児島県天城町",8,"アマギチョウ"]
[46,"鹿児島県","奄美市","鹿児島県奄美市",8,"アマミシ"]
[46,"鹿児島県","伊佐市","鹿児島県伊佐市",6,"イサシ"]
[46,"鹿児島県","出水市","鹿児島県出水市",7,"イズミシ"]
[46,"鹿児島県","伊仙町","鹿児島県伊仙町",8,"イセンチョウ"]
[46,"鹿児島県","いちき串木野市","鹿児島県いちき串木野市",7,"イチキクシキノシ"]
[46,"鹿児島県","指宿市","鹿児島県指宿市",7,"イブスキシ"]
[46,"鹿児島県","宇検村","鹿児島県宇検村",8,"ウケンソン"]
[46,"鹿児島県","大崎町","鹿児島県大崎町",7,"オオサキチョウ"]
[46,"鹿児島県","鹿児島市","鹿児島県鹿児島市",7,"カゴシマシ"]
[46,"鹿児島県","鹿屋市","鹿児島県鹿屋市",7,"カノヤシ"]
[46,"鹿児島県","喜界町","鹿児島県喜界町",8,"キカイチョウ"]
[46,"鹿児島県","肝付町","鹿児島県肝付町",7,"キモツキチョウ"]
[46,"鹿児島県","霧島市","鹿児島県霧島市",7,"キリシマシ"]
[46,"鹿児島県","錦江町","鹿児島県錦江町",7,"キンコウチョウ"]
[46,"鹿児島県","薩摩川内市","鹿児島県薩摩川内市",7,"サツマセンダイシ"]
[46,"鹿児島県","さつま町","鹿児島県さつま町",7,"サツマチョウ"]
[46,"鹿児島県","志布志市","鹿児島県志布志市",7,"シブシシ"]
[46,"鹿児島県","瀬戸内町","鹿児島県瀬戸内町",8,"セトウチチョウ"]
[46,"鹿児島県","曽於市","鹿児島県曽於市",7,"ソオシ"]
[46,"鹿児島県","大和村","鹿児島県大和村",8,"ダイワムラ"]
[46,"鹿児島県","龍郷町","鹿児島県龍郷町",8,"タツゴウチョウ"]
[46,"鹿児島県","垂水市","鹿児島県垂水市",7,"タルミズシ"]
[46,"鹿児島県","知名町","鹿児島県知名町",8,"チナチョウ"]
[46,"鹿児島県","徳之島町","鹿児島県徳之島町",8,"トクノシマチョウ"]
[46,"鹿児島県","十島村","鹿児島県十島村",7,"トシマムラ"]
[46,"鹿児島県","長島町","鹿児島県長島町",7,"ナガシマチョウ"]
[46,"鹿児島県","中種子町","鹿児島県中種子町",7,"ナカタネチョウ"]
[46,"鹿児島県","西之表市","鹿児島県西之表市",7,"ニシノオモテシ"]
[46,"鹿児島県","日置市","鹿児島県日置市",7,"ヒオキシ"]
[46,"鹿児島県","東串良町","鹿児島県東串良町",7,"ヒガシクシラチョウ"]
[46,"鹿児島県","枕崎市","鹿児島県枕崎市",7,"マクラザキシ"]
[46,"鹿児島県","三島村","鹿児島県三島村",7,"ミシマムラ"]
[46,"鹿児島県","南大隅町","鹿児島県南大隅町",7,"ミナミオオスミチョウ"]
[46,"鹿児島県","南九州市","鹿児島県南九州市",7,"ミナミキュウシュウシ"]
[46,"鹿児島県","南さつま市","鹿児島県南さつま市",7,"ミナミサツマシ"]
[46,"鹿児島県","南種子町","鹿児島県南種子町",7,"ミナミタネチョウ"]
[46,"鹿児島県","屋久島町","鹿児島県屋久島町",7,"ヤクシマチョウ"]
[46,"鹿児島県","湧水町","鹿児島県湧水町",6,"ユウスイチョウ"]
[46,"鹿児島県","与論町","鹿児島県与論町",8,"ヨロンチョウ"]
[46,"鹿児島県","和泊町","鹿児島県和泊町",8,"ワドマリチョウ"]
[47,"沖縄県","全ての市町村","沖縄県全ての市町村",8,"スベテノシチョウソン"]